{"text_format":"1","workbook":"xlsx","n_sheets":8,"sheets":["Menu","CatData","Public Access","LookUpCopy","LookUpSubjects","LookUpNames","LookUpPlaces","LookUpGenres"],"not_rendered":{"charts":0,"images":2,"macros":1,"external_links":0,"defined_names":7,"comments":0,"pivot_tables":0},"unopened":[],"bounds":{"document_bytes":16777216,"sheet_cells":100000,"rows_first":2000,"rows_last":500,"rows_between":2000,"halvings":0,"cell_chars":16384,"cell_head_chars":4096},"cells_cut":0,"cells_raw":0,"read":"whole","date_system":"1900"}

{"sheet":"Menu","index":0,"n_rows":0,"n_cols":0,"rows_kept":0,"cut":false,"hidden":false,"merged":[]}

{"sheet":"CatData","index":1,"n_rows":10084,"n_cols":49,"rows_kept":1125,"cut":true,"hidden":false,"merged":[],"bounds":{"rows_first":500,"rows_last":125,"rows_between":500,"halvings":2}}
["Ref Level 1","Ref Level 2","Ref Level 3","Ref Level 4","Full Reference","Level","Title","Creator","Description","Dates","Extent","Original/Copy","Physical Storage Location","Accession Number","File/Folder Name and Path (Preservation copy)","Digital Storage Location (Preservation copy)","File/Folder Name and Path (Access Copy)","Digital Storage Location (Access Copy)","Access Conditions","Copyright","Language","Subject 1","Subject 2","Subject 3","Place 1","Place 2","Place 3","Name 1","Name 2 ","Name 3","Genre 1","Genre 2","Genre 3","Public Notes","Private Notes",null,null,null,null,null,null,null,null,null,"Direct copy of First sector shown in Col A","If second sector is empty replace with 10 zeros else pad with leading zeros","If third sector is empty replace with 10 zeros else pad with leading zeros","If fourth sector is empty replace with 10 zeros else pad with leading zeros","Combine all characters from previous four columns."]
["AM",null,null,null,{"$f":"CONCATENATE(A2,(IF(B2<>\"\",\"/\",\"\")),B2,(IF(C2<>\"\",\"/\",\"\")),C2,(IF(D2<>\"\",\"/\",\"\")),D2)","v":"AM"},"Collection","Ann Meakin","SLC","Martham and Local History",null,"Multiple folders and storage boxes? Number.",null,null,"MAG/2021/1",null,null,null,null,null,null,null,null,null,null,null,null,null,null,null,null,null,null,null,null,"  ",null,null,null,null,null,null,null,null,null,{"$f":"A2","v":"AM"},{"$f":"IF(B2=\"\",\"0000000000\",RIGHT(\"0000000000\"&B2,10))","v":"0000000000"},"0000000000",{"$f":"IF(D2=\"\",\"0000000000\",RIGHT(\"0000000000\"&D2, 10))","v":"0000000000"},{"$f":"CONCATENATE(AS2,AT2,AU2,D2,)","v":"AM00000000000000000000"}]
["AM",1,null,null,"AM/1","Series","St Mary’s Church file and Christianity in Martham","SLC","A4 File containing research for pamphlets, books and courses",null,null,null,null,null,"St Mary's Church and Religion in Martham.",null,null,null,null,null,null,null,null,null,null,null,null,null,null,null,null,null,null,null,"  ",null,null,null,null,null,null,null,null,null,"AM","0000000001","0000000000","0000000000","AM00000000010000000000"]
["AM",1,1,null,"AM/1/1","File","Martham Church Guide ","SLC","Page guide to St Mary's Church","1970's","1 page",null,null,null,null,null,null,null,null,null,null,"Church Buildings","Church Architecture","Religion","Martham",null,null,"St Mary the Virgin",null,null,"Guide Book",null,null,null,null,null,null,null,null,null,null,null,null,null,"AM","0000000001","0000000001","0000000000","AM00000000010000000001"]
["AM",1,2,null,"AM/1/2","File","Martham Church Guide ","SLC","Church Guide to St Mary's Martham - Michael Young","1970's","1 page",null,null,null,null,null,null,null,null,null,null,"Church Buildings","Church Architecture","Religion","Martham",null,null,"St Mary the Virgin",null,null,"Guide Book",null,null,null,null,null,null,null,null,null,null,null,null,null,"AM","0000000001","0000000002","0000000000","AM00000000010000000002"]
["AM",1,3,null,"AM/1/3","File","St Mary's A Short History","SLC","Church Guide to St Mary's Martham","1980's","A4 Folded",null,null,null,null,null,null,null,null,null,null,"Church Buildings","Church Architecture","Religion","Martham",null,null,"St Mary the Virgin",null,null,"Guide Book",null,null,null,null,null,null,null,null,null,null,null,null,null,"AM","0000000001","0000000003","0000000000","AM00000000010000000003"]
["AM",1,4,null,"AM/1/4","File","A Short Guide to St Mary's Church","SLC","A Guide for use by Visitors","1980's","A4 ",null,null,null,null,null,null,null,null,null,null,"Church Buildings","Church Architecture","Religion","Martham",null,null,"St Mary the Virgin",null,null,"Guide Book",null,null,null,null,null,null,null,null,null,null,null,null,null,"AM","0000000001","0000000004","0000000000","AM00000000010000000004"]
["AM",1,5,null,"AM/1/5","File","St Mary's Church Guide 2007","SLC","Church Guide to St Mary's",null,"Booklet",null,null,null,null,null,null,null,null,null,null,"Church Buildings","Church Architecture","Religion","Martham",null,null,"St Mary the Virgin",null,null,"Guide Book",null,null,null,null,null,null,null,null,null,null,null,null,null,"AM","0000000001","0000000005","0000000000","AM00000000010000000005"]
["AM",1,6,null,"AM/1/6","File","St Mary's Church Guide 2008","SLC","Church Guide to St Mary's",2008,"Booklet",null,null,null,null,null,null,null,null,null,null,"Church Buildings","Church Architecture","Religion","Martham",null,null,"St Mary the Virgin",null,null,"Guide Book",null,null,"Printed Contains editing notes",null,null,null,null,null,null,null,null,null,null,"AM","0000000001","0000000006","0000000000","AM00000000010000000006"]
["AM",1,7,null,"AM/1/7","File","St Mary's Church Guide 2009","SLC","Church Guide to St Mary's",2009,"Booklet",null,null,null,null,null,null,null,null,null,null,"Church Buildings","Church Architecture","Religion","Martham",null,null,"St Mary the Virgin",null,null,"Guide Book",null,null,"Printed Contains editing notes",null,null,null,null,null,null,null,null,null,null,"AM","0000000001","0000000007","0000000000","AM00000000010000000007"]
["AM",1,8,null,"AM/1/8","File ","St Mary's Church Guide 2010","SLC","Church Guide to St Mary's",2010,"Booklet",null,null,null,null,null,null,null,null,null,null,"Church Buildings","Church Architecture","Religion","Martham",null,null,"St Mary the Virgin",null,null,"Guide Book",null,null,null,null,null,null,null,null,null,null,null,null,null,"AM","0000000001","0000000008","0000000000","AM00000000010000000008"]
["AM",1,9,null,"AM/1/9","File","Martham Church Guide 2008","SLC","Short Guide to St Mary's Church - Chris Harrison",2008,"Leaflet",null,null,null,null,null,null,null,null,null,null,"Church Buildings","Church Architecture","Religion","Martham",null,null,"St Mary the Virgin",null,null,"Guide Book",null,null,"Printed Copyright, 2008 Martham, St Mary the Virgin.  Loan",null,null,null,null,null,null,null,null,null,null,"AM","0000000001","0000000009","0000000000","AM00000000010000000009"]
["AM",1,10,null,"AM/1/10","File","Welcome to The Parish Church of St Mary The Virgin Martham","SLC","Free Brief Guide to the Church","Unknown","Leaflet",null,null,null,null,null,null,null,null,null,"English","Church Buildings","Church Architecture","Religion","Martham",null,null,"St Mary the Virgin",null,null,"Guide Book",null,null,null,null,null,null,null,null,null,null,null,null,null,"AM","0000000001","0000000010","0000000000","AM00000000010000000010"]
["AM",1,11,null,"AM/1/11","File","Martham's Mystery Mariner","SLC","Guide Sheet - Ann Meakin","Unknown","A4 Leaflet",null,null,null,null,null,null,null,null,null,"English","Church Buildings","Medieval Ship Graffiti","Hanseatic League","Martham",null,null,"St Mary the Virgin",null,null,"Guide Book",null,null,null,null,null,null,null,null,null,null,null,null,null,"AM","0000000001","0000000011","0000000000","AM00000000010000000011"]
["AM",1,12,null,"AM/1/12","File","Interior Of Martham Church.","SLC","Interior of St Mary's pre-C19 restoration by CJ Winter","Pre-19th century","A4",null,null,null,null,null,null,null,null,"Original Norwich Castle Museum ","English","Church Buildings","Church Architecture","Religion","Martham",null,null,"St Mary the Virgin","CJ Winter",null,"Publications",null,null,"Photocopy",null,null,null,null,null,null,null,null,null,null,"AM","0000000001","0000000012","0000000000","AM00000000010000000012"]
["AM",1,13,null,{"$f":"CONCATENATE(A16,(IF(B16<>\"\",\"/\",\"\")),B16,(IF(C16<>\"\",\"/\",\"\")),C16,(IF(D16<>\"\",\"/\",\"\")),D16)","v":"AM/1/13"},"File","Exterior South Door St Mary's","SLC","Black and White Line Drawing of the South Door. Ancient Doors - CJ Winter","Pre-19th century","A4",null,null,null,null,null,null,null,null,"Original Norwich Castle Museum ","English","Church Buildings","Church Architecture",null,"Martham",null,null,"St Mary the Virgin","CJ Winter","South Door","Publications",null,null,"Photocopy",null,null,null,null,null,null,null,null,null,null,"AM","0000000001","0000000013","0000000000","AM00000000010000000013"]
["AM",1,14,null,"AM/1/14","File","Sketch of The Rood screen","SLC","The rood screen pre-C19 - CJ Winter","Pre-19th century","A4",null,null,null,null,null,null,null,null,"Original Norwich Castle Museum ","English","Church Buildings","Church Architecture","Religion","Martham",null,null,"St Mary the Virgin","CJ Winter","Rood Screen","Publications",null,null,"Photocopy ",null,null,null,null,null,null,null,null,null,null,"AM","0000000001","0000000014","0000000000","AM00000000010000000014"]
["AM",1,15,null,"AM/1/15","File","Martham Church Drawing","SLC","Drawn and measured by RJ Brandon","Unknown","A4",null,null,null,null,null,null,null,null,"Original Norwich Castle Museum ","English","Church Buildings","Church Architecture","Religion","Martham",null,null,"St Mary the Virgin","RJ Brandon",null,"Publications",null,null,"Photocopy",null,null,null,null,null,null,null,null,null,null,"AM","0000000001","0000000015","0000000000","AM00000000010000000015"]
["AM",1,16,null,"AM/1/16","File","The East Window of Mulbarton Church","SLC","This includes stained glass from Martham Church","Unknown","Photo on Backing Card and Note",null,null,null,null,null,null,null,null,null,null,"Church Buildings","Church Architecture","Religion","Martham ","Mulbarton",null,"St Mary the Virgin & St Mary Magdalene",null,"Stained Glass Window","Photographic print",null,null,"Photo and handwritten note.  Note -The East Window at Mulbarton Church, which includes glass 'stolen' from Martham Church in the early 19th Century.  ",null,null,null,null,null,null,null,null,null,null,"AM","0000000001","0000000016","0000000000","AM00000000010000000016"]
["AM",1,17,null,"AM/1/17","File","Photo of floor showing original round tower","SLC","Photo and Note - shows dark patch where original round tower stood. Archaeologist dig. 1999 Photo by AM",1999,"A4",null,null,null,null,null,null,null,null,null,null,"Church Buildings","Church Architecture","Religion","Martham",null,null,"St Mary the Virgin",null,"Round Tower Church","Photographic print",null,null,"Photo and note on A4 Notes about the round tower  ",null,null,null,null,null,null,null,null,null,null,"AM","0000000001","0000000017","0000000000","AM00000000010000000017"]
["AM",1,18,null,"AM/1/18","File","Diagram of the floor layout of Martham Church showing position of the old round towered Church until the 15th century","SLC","Drawn and Measured by R.A Brandon","15th Century","A4",null,null,null,null,null,null,null,null,null,null,"Church Buildings","Church Architecture","Religion","Martham",null,null,"St Mary the Virgin","RJ Brandon","Round Tower Church","Publications",null,null,"Photocopy  ",null,null,null,null,null,null,null,null,null,null,"AM","0000000001","0000000018","0000000000","AM00000000010000000018"]
["AM",1,19,null,"AM/1/19","File","Draft of essay 'Examine the role of the Parish Church in the Life of a selected village by reference to parish manuscripts in the Norfolk Records office'","SLC","Draft essay and letters from Barbara Cornford 1997","From 1744-1785","6 pages A4",null,null,null,null,null,null,null,null,null,"English","Church Buildings","Church Architecture","Religion","Martham",null,null,"St Mary the Virgin","B Cornford",null,null,null,null,"Typed.  Covers the years 1744 to 1785 ",null,null,null,null,null,null,null,null,null,null,"AM","0000000001","0000000019","0000000000","AM00000000010000000019"]
["AM",1,20,null,"AM/1/20","File","Item removed","SLC",null,null,null,null,null,null,null,null,null,null,null,null,null,null,null,null,null,null,null,null,null,null,null,null,null,null,null,null,null,null,null,null,null,null,null,null,"AM","0000000001","0000000020","0000000000","AM00000000010000000020"]
["AM",1,21,null,"AM/1/21","File","Item removed","SLC",null,null,null,null,null,null,null,null,null,null,null,null,null,null,null,null,null,null,null,null,null,null,null,null,null,null,null,null,null,null,null,null,null,null,null,null,"AM","0000000001","0000000021","0000000000","AM00000000010000000021"]
["AM",1,22,null,"AM/1/22","File","Item Removed","SLC",null,null,null,null,null,null,null,null,null,null,null,null,null,null,null,null,null,null,null,null,null,null,null,null,null,null,null,null,null,null,null,null,null,null,null,null,"AM","0000000001","0000000022","0000000000","AM00000000010000000022"]
["AM",1,23,null,"AM/1/23","File","Photocopy of a page - describing The Church, Nave, Aisles and Font","SLC","Norfolk Archaeological Journal Vol 5","Unknown","1 A5 page",null,null,null,null,null,null,null,null,null,"English","Church Buildings","Church Architecture","Religion","Martham",null,null,"St Mary the Virgin",null,"Nave, Aisles and Font","Publications",null,null,"Photocopy  ",null,null,null,null,null,null,null,null,null,null,"AM","0000000001","0000000023","0000000000","AM00000000010000000023"]
["AM",1,24,null,"AM/1/24","File","Article from Church Times 10/01/2003. About James Woodforde","SLC","By Adrian Leak","2003-01-10","1 page of Broadsheet paper",null,null,null,null,null,null,null,null,null,"English","Religion","Christian communities","Religious life and customs","Martham",null,null,"St Mary the Virgin","James Woodforde","Adrian Leake","Publications",null,null,"Original newspaper  - Church Times",null,null,null,null,null,null,null,null,null,null,"AM","0000000001","0000000024","0000000000","AM00000000010000000024"]
["AM",1,25,null,"AM/1/25","File","Advert for a book 'Seeable Signs.The Iconography of the Seven Sacraments 1350-1544 by Anne Elijenholm Nichols","SLC","Details of contents","1350-1544","A5 sheet",null,null,null,null,null,null,null,null,null,null,null,null,null,null,null,null,null,null,null,null,null,null,"Details of contents",null,null,null,null,null,null,null,null,null,null,"AM","0000000001","0000000025","0000000000","AM00000000010000000025"]
["AM",1,26,null,"AM/1/26","File","Extract from 'The Lantern' Autumn 1982. Section 100. The Sarson Stone","SLC",null,1982,"A4 sheet",null,null,null,null,null,null,null,null,"The Lantern","English","Religion",null,null,"Martham","Black Street",null,"The Sarson Stone","The Markstone",null,"Publications",null,null,"Photocopy. The Sarson Stone was probably part of a pagan worship site, where the church now stands.  TG454183.  Extract from \"The Lantern\"",null,null,null,null,null,null,null,null,null,null,"AM","0000000001","0000000026","0000000000","AM00000000010000000026"]
["AM",1,27,null,"AM/1/27","File","Printed pages from writing of The Rev. E.S Taylor on Martham church previous to its restoration in 1856","SLC",null,1856,"8 double sided pages. Numbered 168-179 from the original book.",null,null,null,null,null,null,null,null,"Unknown","English","Church Buildings","Church Architecture","Religion","Martham",null,null,"St Mary the Virgin","Rev. ES Taylor",null,"Publications",null,null,"Photocopy  ",null,null,null,null,null,null,null,null,null,null,"AM","0000000001","0000000027","0000000000","AM00000000010000000027"]
["AM",1,"28 & 29",null,"AM/1/28 & 29","File","Typed and handwritten notes. 'The Christian Story'.  Exhibition 24/4/1999","SLC","9 pages of typed notes on the exhibition and 6 pages handwritten notes on the sources. Dated 24/4/1999.","1999-04-24","Handwritten and Typed notes",null,null,null,null,null,null,null,null,null,"English","Religion","Christian communities","Religious life and customs","Martham",null,null,null,null,null,null,null,null,"Printed and handwritten notes  ",null,null,null,null,null,null,null,null,null,null,"AM","0000000001","00028 & 29","0000000000","AM000000000100028 & 29"]
["AM",1,30,null,"AM/1/30","File","Note on Rev William Mackay Died July 13 1752. ","SLC","From Notes and Queries Vol 11 Jan 20 1855 Page 46 by CJH","13/07/1752","1 side A4",null,null,null,null,null,null,null,null,"Unknown","English","Religion",null,"Religious life and customs","Martham",null,null,"St Mary the Virgin","Rev. William Mackay",null,"Publications",null,null,"Handwritten Note - AM1/31 is on the reverse of this item ",null,null,null,null,null,null,null,null,null,null,"AM","0000000001","0000000030","0000000000","AM00000000010000000030"]
["AM",1,31,null,"AM/1/31","File","Figures of Saints","SLC","From Notes & Queries Vol 4 July 5 1851 page 7. Notes on Mural paintings found on each side of the Chancel where arch-angelic figures can be seen. By CJH","5/7/1851","1 side A4",null,null,null,null,null,null,null,null,"CJH","English","Church Buildings","Church Architecture",null,"Martham",null,null,"St Mary the Virgin","CJH",null,"Publications","Painting",null,"Handwritten Note AM1/30 is on the reverse of this item Loan",null,null,null,null,null,null,null,null,null,null,"AM","0000000001","0000000031","0000000000","AM00000000010000000031"]
["AM",1,32,null,"AM/1/32","File","Letter to AM from Jenny Watts Archivist for parish records. Dated 31/3/2009","SLC","Details of diocesan deeds in relation  to the sale of land to the School Board in 1878.",1878,"1 side A4",null,null,null,null,null,null,null,null,null,"English","Diocesan Deeds","Education","Parish Records","Martham",null,null,"St Mary the Virgin",null,"School Board","Deeds",null,null,"Printed Notes on sale of land to School Board in 1878, and in 1932 for Playing Field Loan",null,null,null,null,null,null,null,null,null,null,"AM","0000000001","0000000032","0000000000","AM00000000010000000032"]
["AM",1,33,null,"AM/1/33","File","Inventory of Church Goods 1368 in Latin",null,"From the History of Norfolk by Francis Blomefield",1368,"2 sides A4",null,null,null,null,null,null,null,null,null,"Latin","Church Buildings","Church Inventory","Religious life and customs","Martham",null,null,"St Mary the Virgin","Francis Blomefield",null,"Church Inventory","Publications",null,"Photocopy  ",null,null,null,null,null,null,null,null,null,null,"AM","0000000001","0000000033","0000000000","AM00000000010000000033"]
["AM",1,34,null,"AM/1/34","File","Inventory of Church Goods Martham 1552","SLC","Original authors Christopher Dandy Clark, Transcribed by CJH 2019",1552,"1 side A4",null,null,null,null,null,null,null,null,"CJH","English","Church Buildings","Church Inventory","Religious life and customs","Martham",null,null,"St Mary the Virgin","Christopher Dandy Clark",null,"Church Inventory","Publications",null,"Photocopy  ",null,null,null,null,null,null,null,null,null,null,"AM","0000000001","0000000034","0000000000","AM00000000010000000034"]
["AM",1,35,null,"AM/1/35","File","Before and After the Reformation - Martham Church","SLC","Inventory of goods owned by the church before and after 1552. ",1552,"1 side A4",null,null,null,null,null,null,null,null,null,"English","Church Buildings","Church Inventory","Religious life and customs","Martham",null,null,"St Mary the Virgin",null,null,"Church Inventory",null,null,"Photocopy  ",null,null,null,null,null,null,null,null,null,null,"AM","0000000001","0000000035","0000000000","AM00000000010000000035"]
["AM",1,36,null,"AM/1/36","File","Books and Documents in the Possession of Martham Parish Church in 1978 as found by Ann Bridges and Barbara Cornford","SLC",null,1978,"1 side A4",null,null,null,null,null,null,null,null,null,"English","Religion","Church Inventory",null,"Martham",null,null,"St Mary the Virgin","Ann Bridges","B Cornford","Church Inventory","Index",null,null,null,null,null,null,null,null,null,null,null,null,"AM","0000000001","0000000036","0000000000","AM00000000010000000036"]
["AM",1,37,null,"AM/1/37","File","Handwritten notes on Thomas Earp 1828-1893","SLC","Handwritten note","1828-1893","A5",null,null,null,null,null,null,null,null,null,"English","Church Buildings","Stonemasons","Church Architecture","Martham",null,null,"St Mary the Virgin","Thomas Earp",null,"Publications","Publications",null,"Handwritten  ",null,null,null,null,null,null,null,null,null,null,"AM","0000000001","0000000037","0000000000","AM00000000010000000037"]
["AM",1,38,null,"AM/1/38","File","From Map of North Lambeth 1870 (GLC) London Life and Work. Notes on Earp Workshops","SLC","Mentions - A carved pulpit in St Mary's Church Martham is attributed to Henry Earp.",1870,"2 Double-sided A4",null,null,null,null,null,null,null,null,null,"English","Church Buildings","Stonemasons","Church Architecture","Martham","Pulpit",null,"St Mary the Virgin","Henry Earp",null,"Publications",null,null,"Photocopied from book  - full book reference unknown",null,null,null,null,null,null,null,null,null,null,"AM","0000000001","0000000038","0000000000","AM00000000010000000038"]
["AM",1,39,null,"AM/1/39","File","From Bryants Norfolk Churches. Church of St Mary the Virgin. Martham","SLC","Copies from the book and a line drawing of the church. Bryants",null,"14 single A4 Pages",null,null,null,null,null,null,null,null,"Bryant's `churches","English","Church Buildings","Church Architecture",null,"Martham",null,null,"St Mary the Virgin","Bryant",null,"Publications",null,null,null,null,null,null,null,null,null,null,null,null,null,"AM","0000000001","0000000039","0000000000","AM00000000010000000039"]
["AM",1,40,null,"AM/1/40","File","Blomfield - pages on Martham","SLC","Pages 168, 169, 170/171",null,"4 pages",null,null,null,null,null,null,null,null,"Blomfield","English","Church Buildings","Religion",null,"Martham",null,null,"St Mary the Virgin","Blomefield",null,"Publications",null,null,"Photocopy from Blomfield",null,null,null,null,null,null,null,null,null,null,"AM","0000000001","0000000040","0000000000","AM00000000010000000040"]
["AM",1,41,null,"AM/1/41","File","The Lollards and Margery Baxter of Martham","SLC","Lollard Women (act. c.1390-1520) Oxford Dictionary of National Biography. Norman P Tanner","1390-1520","5 pages",null,null,null,null,null,null,null,null,"https://www.oxforddnb.com/search?q=Lollard+women+%28act.+c.+1390%E2%80%93c.+1520%29","English","Christian communities","Religion",null,"Martham",null,null,"St Mary the Virgin","The Lollards","Margery Baxter of Martham","Publications",null,null,"(Oxford Univerity Press 2004)"," ",null,null,null,null,null,null,null,null,null,"AM","0000000001","0000000041","0000000000","AM00000000010000000041"]
["AM",1,42,null,"AM/1/42","File","The Seven Sacrament Fonts of Norfolk","SLC","Norfolk Archaeology Vol 25 1932 - by The Rev. HS Squirrell",1932,"Photocopy - 11 pages",null,null,null,null,null,null,null,null,null,null,null,null,null,null,null,null,null,null,null,null,null,null,null,null,null,null,null,null,null,null,null,null,null,"AM","0000000001","0000000042","0000000000","AM00000000010000000042"]
["AM",1,43,null,"AM/1/43","File","Extract from 'Victorian Stone Carvers in Dorset Churches' 1856-1880 ","SLC","Joan Brocklebank","1856-1880","Photocopy of Pages 17-39",null,null,null,null,null,null,null,null,"Joan Brocklebank (author)","English",null,null,null,null,null,null,null,null,null,null,null,null,"Note - from author - re Benjamin Grassby stone mason, he started career in Martham and married in St Mary's.   Loan",null,null,null,null,null,null,null,null,null,null,"AM","0000000001","0000000043","0000000000","AM00000000010000000043"]
["AM",1,44,null,"AM/1/44","File","Copy of singular Inscription upon Tombstone, in Martham Church Norfolk, presented by Herbert Poulter","SLC"," The story of Baseborn Biggs",null,"2 pages",null,null,null,null,null,null,null,null,"Herbert Poulter","English","Headstones","Christian communities","Burial Records","Martham",null,null,"St Mary the Virgin","Base born Biggs",null,null,null,null,null,null,null,null,null,null,null,null,null,null,null,"AM","0000000001","0000000044","0000000000","AM00000000010000000044"]
["AM",1,45,null,"AM/1/45","File","The strange story of base born Biggs","SLC","By Michael Young",null,"Small postcard double-sided  ",null,null,null,null,null,null,null,null,"Michael Young","English","Headstones","Christian communities","Burial Records","Martham",null,null,"St Mary the Virgin","Base born Biggs",null,"Postcards",null,null,null,null,null,null,null,null,null,null,null,null,null,"AM","0000000001","0000000045","0000000000","AM00000000010000000045"]
["AM",1,46,null,"AM/1/46","File","Letter to church archives from Colin de'Ath re gift of a booklet on Christopher Burraway found in his deceased parent's possessions","SLC","Reverse of booklet is an advert from Seagull Coaches and Garage of Queen's Road Great Yarmouth - Prop JP Calver",null,"12x9 cm Four sided booklet",null,null,null,null,null,null,null,null,null,"English","Headstones","Christian communities","Burial Records","Martham",null,null,"St Mary the Virgin","Christopher Burraway","Seagull Coaches and Garage. Gt Yarmouth","Publications",null,null,"Small handwritten letter & Original 4-sided booklet 12 x 9 cm Advert for special coach tour to Sandringham - 'The Norfolk home of our King and Queen'.  Loan","Small handwritten letter & Original 4-sided booklet 12 x 9 cm Advert for special coach tour to Sandringham - 'The Norfolk home of our King and Queen'  Loan",null,null,null,null,null,null,null,null,null,"AM","0000000001","0000000046","0000000000","AM00000000010000000046"]
["AM",1,47,null,"AM/1/47","File","Newspaper cutting - Tombstone of Anna Hinderer","SLC",null,"1934-02-15","Original",null,null,null,null,null,null,null,null,null,"English","Headstones","Christian communities","Religious life and customs","Martham",null,null,"St Mary the Virgin","Anna Hinderer",null,"Newspapers",null,null,"1 newspaper cutting stuck to backing card.  Article described fund raising for repair of Anna Hinderer's tombstone. Loan","1 newspaper cutting stuck to backing card Article described fund raising for repair of Anna Hinderer's tombstone. Loan",null,null,null,null,null,null,null,null,null,"AM","0000000001","0000000047","0000000000","AM00000000010000000047"]
["AM",1,48,null,"AM/1/48","File","Letters about the stained glass windows and metalwork in Martham Church and copy of photo of stained glass window","SLC","Letters between AM and Michael Fisher, Architectural Historian and Consultant Archivist for John Hardman Company, Birmingham","2007 & 2008","6 pages single-sided",null,null,null,null,null,null,null,null,null,"English","Church Buildings","Church Architecture",null,"Martham",null,null,"St Mary the Virgin","Michael Fisher","John Hardman - Birmingham","Letters, letter",null,null,"6 pages of single-sided pages  Letters dated 26th March 2007, 29th May 2008, 5th August 2008. 6th September 2008.  Loan","6 pages of single-sided pages  Letters dated 26th March 2007, 29th May 2008, 5th August 2008. 6th September 2008.  Loan",null,null,null,null,null,null,null,null,null,"AM","0000000001","0000000048","0000000000","AM00000000010000000048"]
["AM",1,49,null,"AM/1/49","File","The Pugin and Hardman Families of C19th Birmingham ","SLC","Photocopy from a book 5 double-sided pages. (?? Title of book) plus  Family tree of Hardman and Pugin families. ","19th Century","Copy 5 double-sided pages",null,null,null,null,null,null,null,null,null,"English","Church Buildings","Church Architecture",null,"Martham","Birmingham Jewellery Quarter",null,"Pugin","Hardman","Michael Fisher","Publications",null,null,"5 Double-sided photocopied pages from a book  Loan","5 Double-sided photocopied pages from a book  Loan",null,null,null,null,null,null,null,null,null,"AM","0000000001","0000000049","0000000000","AM00000000010000000049"]
["AM",1,50,null,"AM/1/50","File","Handwritten notes from book 'Hardman of Birmingham; Goldsmith and Glass painter'","SLC","By Michael Fisher Landmark Publishing.",null,"Original- Handwritten notes 2 pages",null,null,null,null,null,null,null,null,"Michael Fisher","English","Church Buildings","Church Architecture",null,"Martham","Birmingham Jewellery Quarter",null,"Hardman","Michael Fisher",null,"Notebooks",null,null,"Handwritten notes over 2 and half pages  Loan","Handwritten notes over 2 and half pages  Loan",null,null,null,null,null,null,null,null,null,"AM","0000000001","0000000050","0000000000","AM00000000010000000050"]
["AM",1,51,null,"AM/1/51","File","Silver Lining' JW Evans & Sons. Article from Heritage Today ","SLC","Mark Palmer",null,"Original Magazine 3 pages A4",null,null,null,null,null,null,null,null,"Heritage Magazine","English","Church Buildings","Church Architecture",null,"Martham","Birmingham Jewellery Quarter",null,"JW Evans","Mark Palmer",null,null,null,null,"3 Pages A4 Article about English Heritage project to save a factory in Birmingham's jewellery Quarter. Loan","3 Pages A4 Article about English Heritage project to save a factory in Birmingham's jewellery Quarter. Loan",null,null,null,null,null,null,null,null,null,"AM","0000000001","0000000051","0000000000","AM00000000010000000051"]
["AM",1,52,null,"AM/1/52","File","Planting the Millenium Yew Tree. St Mary's Churchyard","SLC",null,"2001-10-01","Photograph - 15x10cm",null,null,null,null,null,null,null,null,null,null,"Church Buildings",null,null,"Martham",null,null,"Millenium Celebrations",null,null,"Photographic print",null,null,"15x10cm Gloss Finish Photo showing group planting the tree Loan","15x10cm Gloss Finish Photo showing group planting the tree Loan",null,null,null,null,null,null,null,null,null,"AM","0000000001","0000000052","0000000000","AM00000000010000000052"]
["AM",1,53,null,"AM/1/53",null,"Photo of an aerial View of St Mary's Church","SLC","After 1970 when the carpark was created by demolishing the vicarage stables",1970,"Photocopy A4",null,null,null,null,null,null,null,null,null,null,"Church Buildings",null,null,"Martham","Vicarage",null,null,null,null,"Photographic print",null,null,"Photocopy of an A4 photo  Loan","Photocopy of an A4 photo  Loan",null,null,null,null,null,null,null,null,null,"AM","0000000001","0000000053","0000000000","AM00000000010000000053"]
["AM",1,54,null,"AM/1/54","File","Martham Church Choir and list of choir members","SLC","Late 1940's","Late 1940's","Photocopy of Black and White Photo A4 and separate handwritten list of choir members",null,null,null,null,null,null,null,null,null,"English","Christian communities",null,null,"Martham",null,null,"Church Choir","Rev. Stenhouse","St Mary the Virgin","Photographic print",null,null,"A4 sheet x2 List of Choir members, with the Rev Stenhouse 1947-1953 Loan","A4 sheet x2 List of Choir members, with the Rev Stenhouse 1947-1953 Loan",null,null,null,null,null,null,null,null,null,"AM","0000000001","0000000054","0000000000","AM00000000010000000054"]
["AM",1,55,null,"AM/1/55","File","Record of vicars, curates and school masters of Martham from 1311 ","SLC","Three lists from Diocesan records, Blomefield and other sources",1311,"Typed, photocopied and printed.",null,null,null,null,null,null,null,null,"Blomefield","English","Christian communities","Education",null,"Martham","School",null,"Blomefield","St Mary the Virgin",null,null,null,null,"3 pages A4  Loan","3 pages A4  Loan",null,null,null,null,null,null,null,null,null,"AM","0000000001","0000000055","0000000000","AM00000000010000000055"]
["AM",1,56,null,"AM/1/56","File","Article 'Martham Church Redated.' Murphy's Law at Work. By P.Cattermole & S Cotton","SLC"," NARG News ","1983-01-31","Photocopy A4",null,null,null,null,null,null,null,null,"NARG news","English","Church Buildings",null,null,"Martham",null,null,"P Cattermole","S Cotton","St Mary the Virgin","Publications",null,null,"1 sheet A4 Article discussing records giving dates of the early church in Martham. Loan","1 sheet A4 Article discussing records giving dates of the early church in Martham. Loan",null,null,null,null,null,null,null,null,null,"AM","0000000001","0000000056","0000000000","AM00000000010000000056"]
["AM",1,57,null,"AM/1/57","File","Article - 'Clutching at Straws - Medieval Churchbuilding revisted again. By Simon Cotton","SLC","NARG News 31",null,"Photocopy 4 pages A4",null,null,null,null,null,null,null,null,"NARG news","English","Church Buildings",null,null,"Martham",null,null,"S Cotton","St Mary the Virgin",null,"Publications",null,null,"Pages 1-7. 4 pages of A4 single sided Article discussing dates local churches were established including St Mary's Loan","Pages 1-7. 4 pages of A4 single sided Article discussing dates local churches were established including St Mary's Loan",null,null,null,null,null,null,null,null,null,"AM","0000000001","0000000057","0000000000","AM00000000010000000057"]
["AM",1,58,null,"AM/1/58","File","Letter - Re St Mary's certification by the Bishop of Norwich to the Queen Anne's Bounty Board","SLC","Letter to Ann Bridges from NG Cox Public records Office 13/04/1976","1976-04-13","Photocopy 1 A4",null,null,null,null,null,null,null,null,"PRO","English","Church Buildings","Christian communities",null,"Martham",null,null,"Queen Ann Bounty Board","St Mary the Virgin","St Mary the Virgin","Letters, letter",null,null,"1 sheet A4 original Typed NB. Ann Bridges became Ann Meakin on remarriage.  Loan","1 sheet A4 original Typed NB. Ann Bridges became Ann Meakin on remarriage Loan",null,null,null,null,null,null,null,null,null,"AM","0000000001","0000000058","0000000000","AM00000000010000000058"]
["AM",1,59,null,"AM/1/59","File","List of vicars of Martham 1160-1968","SLC",null,"1160-1968","Copy A4 1 sheet",null,null,null,null,null,null,null,null,null,"English","Christian communities",null,null,"Martham",null,null,"St Mary the Virgin",null,null,"Notebooks",null,null,"1 sheet A4  Loan","1 sheet A4  Loan",null,null,null,null,null,null,null,null,null,"AM","0000000001","0000000059","0000000000","AM00000000010000000059"]
["AM",1,60,null,"AM/1/60","File","Letter of enquiry to The Royal Institute of Architects re Mr Philip Boyce","SLC","Letter from Ann Bridges,  Dated 28th March 1976",1976,"Carbon copy of typed letter",null,null,null,null,null,null,null,null,null,"English","Church Buildings","Church Architecture",null,"Martham",null,null,"St Mary the Virgin",null,null,"Letters, letter",null,null,"1 sheet A4.  AB wrote asking for information about Mr Philip Boyce who was the architect involved in the rebuilding of the chancel between 1855-61. Loan","1 sheet A4 AB wrote asking for information about Mr Philip Boyce who was the architect involved in the rebuilding of the chancel between 1855-61. Loan",null,null,null,null,null,null,null,null,null,"AM","0000000001","0000000060","0000000000","AM00000000010000000060"]
["AM",1,61,null,"AM/1/61","File","Reply to AM1/60 from The British Architectural Library","SLC","Letter dated 23/04/1976 from RH Kamen.","1976-04-23","Typed original letter. Signed A4",null,null,null,null,null,null,null,null,null,"English","Church Buildings","Church Architecture",null,"Martham",null,null,"St Mary the Virgin","The British Architectural Library",null,"Letters, letter",null,null,"1 sheet A4 Reply included information about Philip Boyce.  Loan","1 sheet A4 Reply included information about Philip Boyce Loan",null,null,null,null,null,null,null,null,null,"AM","0000000001","0000000061","0000000000","AM00000000010000000061"]
["AM",1,62,null,"AM/1/62","File","Copy of Will of John Spire. Vicar of Martham. 1374. ","SLC","Copy of a page from the Norfolk Probate Records",1374,"Photocopy from a book A5",null,null,null,null,null,null,null,null,"Norfolk Records Office",null,null,null,null,null,null,null,null,null,null,null,null,null,"Approx A5 NRO ref. 98 Heydon  Loan","Approx A5 NRO ref. 98 Heydon  Loan",null,null,null,null,null,null,null,null,null,"AM","0000000001","0000000062","0000000000","AM00000000010000000062"]
["AM",1,63,null,"AM/1/63","File","Transcription of John Spire's Will  AM1/62 ","SLC","By Barbara Cornford",null,"Typed and pencil handwritten transcription. A4 2 sheets",null,null,null,null,null,null,null,null,null,"English","Christian communities",null,null,"Martham",null,null,"St Mary the Virgin","John Spire","Barbara  Cornford","Notebooks",null,null," Two A4 sheets.  Loan"," Two A4 sheets  Loan",null,null,null,null,null,null,null,null,null,"AM","0000000001","0000000063","0000000000","AM00000000010000000063"]
["AM",1,64,null,{"$f":"CONCATENATE(A66,(IF(B66<>\"\",\"/\",\"\")),B66,(IF(C66<>\"\",\"/\",\"\")),C66,(IF(D66<>\"\",\"/\",\"\")),D66)","v":"AM/1/64"},"File","St Mary's Church inventories","SLC","1966 and 1980","1966 & 1980","Handwritten notes. 18 pages A4",null,null,null,null,null,null,null,null,null,"English","Church Buildings",null,null,"Martham",null,null,"St Mary the Virgin",null,null,"Inventories","Notebooks",null,"18 single-sided sheets.  Loan","18 single-sided sheets  Loan",null,null,null,null,null,null,null,null,null,{"$f":"A66","v":"AM"},{"$f":"IF(B66=\"\",\"0000000000\",RIGHT(\"0000000000\"&B66,10))","v":"0000000001"},"0000000064",{"$f":"IF(D66=\"\",\"0000000000\",RIGHT(\"0000000000\"&D66, 10))","v":"0000000000"},{"$f":"CONCATENATE(AS66,AT66,AU66,D66,)","v":"AM00000000010000000064"}]
["AM",1,65,null,"AM/1/65","File","Letter regarding the proposed sale of church tapestries and busts","SLC","Undated. Stencil copy of a letter from Ann Bridges ",null,"Typed-2 sides A4",null,null,null,null,null,null,null,null,null,"English","Church Buildings",null,null,"Martham",null,null,"St Mary the Virgin",null,null,"Notebooks",null,null,"2 single-sided sheets Re a tapestry depicting a small group of women, thought to have been made by a Martham village woman. Also mentions marble busts  - A lady 30\" tall inscribed \"Holme Cardwell, Fecit Roma 1855. & A bust of a man 32\" tall inscribed \"Holme Cardwell Sculpt. Roma 1847\".  Loan","2 single-sided sheets Re a tapestry depicting a small group of women, thought to have been made by a Martham village woman. Also mentions marble busts  - A lady 30\" tall inscribed \"Holme Cardwell, Fecit Roma 1855. & A bust of a man 32\" tall inscribed \"Holme Cardwell Sculpt. Roma 1847\" Loan",null,null,null,null,null,null,null,null,null,"AM","0000000001","0000000065","0000000000","AM00000000010000000065"]
["AM",1,66,null,"AM/1/66","File","A copy of a questionaire sent from the Bishop of Norwich to The Rev. Thomas Bowman.  1784","SLC","Original in Norfolk Records Office",1784,"Copy- 8 x A4 pages",null,null,null,null,null,null,null,null,"Norfolk Records Office","English","Christian communities",null,null,"Martham",null,null,"St Mary the Virgin","Thomas Bowman",null,null,null,null,"8 single-sided pages stapled. Additonal copy in file. Rev. Thomas Bowman - Vicar of St Mary's from 1758 to 1792. Loan","8 single-sided pages stapled. Additonal copy in file. Rev. Thomas Bowman-Vicar of St Mary's from 1758 to 1792. Loan",null,null,null,null,null,null,null,null,null,"AM","0000000001","0000000066","0000000000","AM00000000010000000066"]
["AM",1,67,null,"AM/1/67","File","Title - \"An address to the Inhibitants of the Parish of Martham \"by The Rev T Bowman. August 17th 1780","SLC","A photocopy of a pamphlet printed by John Crouse of Norwich. \n",1780,"14 pages 18x11cm",null,null,null,null,null,null,null,null,"John Crouse of Norfolk","English","Christian communities",null,null,"Martham",null,null,"St Mary the Virgin","Thomas Bowman",null,"Brochures",null,null,"14 pages.  Stapled. 18 by 11 cm  In file AM1/70 noted this pamphlet is in the Parish chest?  Additional A5 page with hand-written note of page 14 & 15 of the pamphlet. Loan"," 14 pages.  Stapled. 18 by 11 cm  In file AM1/70 noted this pamphlet is in the Parish chest?. Additional A5 page with hand-written note of page 14 & 15 of the pamphlet. Loan",null,null,null,null,null,null,null,null,null,"AM","0000000001","0000000067","0000000000","AM00000000010000000067"]
["AM",1,68,null,"AM/1/68","File","Notes from the discourse delivered at the funeral of Rev.T Bowman 17/6/1792","SLC","Handwritten notes taken from an original source","17/06/1792","Handwritten note. One page",null,null,null,null,null,null,null,null,null,"English","Christian communities",null,null,"Martham",null,null,"St Mary the Virgin","Thomas Bowman",null,"Notebooks",null,null,"1 page  Loan","1 page  Loan",null,null,null,null,null,null,null,null,null,"AM","0000000001","0000000068","0000000000","AM00000000010000000068"]
["AM",1,69,null,"AM/1/69","File","Letter from Michael Honeybone - about 4 publications of Thomas Bowman","SLC","Dated 8th December 2009","2009-12-08","Handwritten 1 page",null,null,null,null,null,null,null,null,null,"English","Christian communities",null,null,"Martham",null,null,"St Mary the Virgin"," Thomas Bowman",null,"Letters, letter",null,null,"1 page Four Books discussed. 1. The principles of Christianity-Norwich 1764 London.  2. A Review of the doctrine of the Reformation, Norwich 1768.  3. Caustonian or Twelve Discourses addressed to the inhabitants of Cawston in Norfolk 1791. 4. Thoughts on the Discipline of the Church of England. London 1793.  Loan","1 page Four Books discussed. 1. The principles of Christianity-Norwich 1764 London.  2. A Review of the doctrine of the Reformation, Norwich 1768.  3. Caustonian or Twelve Discourses addressed to the inhabitants of Cawston in Norfolk 1791. 4. Thoughts on the Discipline of the Church of England.London 1793 Loan",null,null,null,null,null,null,null,null,null,"AM","0000000001","0000000069","0000000000","AM00000000010000000069"]
["AM",1,70,null,"AM/1/70","File","Thomas Bowman - Vicar of Martham 1758-1792","SLC","List of dates and will details","1758-1792","Typed",null,null,null,null,null,null,null,null,null,"English","Christian communities",null,null,"Martham",null,null,"St Mary the Virgin","Thomas Bowman",null,"Notebooks",null,null,"1 page  Loan","1 page  Loan",null,null,null,null,null,null,null,null,null,"AM","0000000001","0000000070","0000000000","AM00000000010000000070"]
["AM",1,71,null,"AM/1/71","File","COPAC web searches on Thomas Bowman's publications","SLC",null,null,"15 pages copied",null,null,null,null,null,null,null,null,"JISC Library Hub","English","Christian communities",null,null,"Martham",null,null,"St Mary the Virgin","Thomas Bowman",null,"Internet search notes",null,null,"15 single-sided COPAC - Consortium of Online Public Access Catalogues. Replaced in July 2019 by JISC Library Hub Discover. Loan","15 single-sided COPAC - Consortium of Online Public Access Catalogues. Replaced in July 2019 by JISC Library Hub Discover. Loan",null,null,null,null,null,null,null,null,null,"AM","0000000001","0000000071","0000000000","AM00000000010000000071"]
["AM",1,72,null,"AM/1/72","File","Article by Frank Meeres on the origin of place names in Norfolk","SLC","Newspaper cutting from EDP 30/09/2006","2006-09-30","Original newspaper ",null,null,null,null,null,null,null,null,"EDP","English","Norfolk History",null,null,"Martham",null,null,null,"Frank Meeres",null,"Newspapers",null,null,"6cm x 35cm  Loan","6cm by 35cm  Loan",null,null,null,null,null,null,null,null,null,"AM","0000000001","0000000072","0000000000","AM00000000010000000072"]
["AM",1,73,null,"AM/1/73","File","Article - Ninth Centenary of Norfolk Saint. The story of St Walston","SLC","EDP article by Walter Piper. 6/06/1916","1916-06-06","Photocopy of original newspaper cutting",null,null,null,null,null,null,null,null,"EDP","English","Norfolk History","Religious life and customs","Christian communities","Martham",null,null,"St Walston","Walter Piper",null,"Newspapers",null,null,"A4  Loan","A4  Loan",null,null,null,null,null,null,null,null,null,"AM","0000000001","0000000073","0000000000","AM00000000010000000073"]
["AM",1,74,null,"AM/1/74","File","Notes - St Walston and St Blide","SLC","Handwritten notes ",null,"A4 ",null,null,null,null,null,null,null,null,null,"English","Norfolk History","Religious life and customs","Christian communities","Martham",null,null,"St Walston","St Blide",null,"Notebooks",null,null,"A4  Loan","A4  Loan",null,null,null,null,null,null,null,null,null,"AM","0000000001","0000000074","0000000000","AM00000000010000000074"]
["AM",1,75,null,"AM/1/75","File","Bishop Redman's Visitation 1597","SLC","Martham entry mentions; Robert Foulsham, John Constable,  Robert Russell",1597,"A4 ",null,null,null,null,null,null,null,null,null,"English","Christian communities","Religious life and customs","Christian communities","Martham",null,null,"Bishop Redman","St Mary the Virgin",null,"Notebooks",null,null,"A4  Loan","A4  Loan",null,null,null,null,null,null,null,null,null,"AM","0000000001","0000000075","0000000000","AM00000000010000000075"]
["AM",1,76,null,"AM/1/76","File","Photo of the probable site of the first Methodist Chapel in Martham.","SLC",null,null,"10x15cm",null,null,null,null,null,null,null,null,null,null,"Christian communities","Religious life and customs","Religious Faith","Martham","Primitive Methodist Chapel",null,"Methodists",null,null,"Photographic print",null,null,"10 x 15cm gloss photo  Loan","10 x 15cm gloss photo  Loan",null,null,null,null,null,null,null,null,null,"AM","0000000001","0000000076","0000000000","AM00000000010000000076"]
["AM",1,77,null,"AM/1/77","File","Copy of licence for Methodists to open a chapel in Martham. 1813","SLC","Original in the NRO",1813,"30x20cm copy",null,null,null,null,null,null,null,null,"NRO","English","Christian communities","Religious life and customs","Religious Faith","Martham","Primitive Methodist Chapel",null,"Methodists",null,null,"Licence",null,null,"30x20cm A copy from the Bishop's register. (NRO Ref. DN/D15/4/1 and MF505) Loan","30x20cm A copy from the Bishop's register. (NRO Ref. DN/D15/4/1 and MF505) Loan",null,null,null,null,null,null,null,null,null,"AM","0000000001","0000000077","0000000000","AM00000000010000000077"]
["AM",1,78,null,"AM/1/78","File","Copy of licence for Baptists to open a chapel in Martham. 1800","SLC","Original in the NRO",1800,"30x20cm copy",null,null,null,null,null,null,null,null,"NRO","English","Christian communities","Religious life and customs","Religious Faith","Martham","Baptist Chapel",null,"Baptists","Baptist Chapel",null,"Licence",null,null,"30x20cm NRO Ref. DN/D15/1/2 and MF505 Loan","30x20cm NRO Ref. DN/D15/1/2 and MF505 Loan",null,null,null,null,null,null,null,null,null,"AM","0000000001","0000000078","0000000000","AM00000000010000000078"]
["AM",1,79,null,"AM/1/79","File","1851 census return for St Mary's Church","SLC","From the Public Records Office",1851,"34x19cm copy",null,null,null,null,null,null,null,null,"PRO","English","Christian communities","Religious life and customs","Religious Faith","Martham","St Mary the Virgin",null,"St Mary the Virgin",null,null,"Census",null,null,"34x19cm PRO Ref. H.O 129229 X/K3989.   229-2-5-7 Loan","34x19cm PRO REf. H.O 129229 X/K3989.   229-2-5-7 Loan",null,null,null,null,null,null,null,null,null,"AM","0000000001","0000000079","0000000000","AM00000000010000000079"]
["AM",1,80,null,"AM/1/80","File","1851 Census return for Baptist Chapel in Martham. Recorded on 30/03/1851. Chapel erected in 1799.","SLC","From the Public Records Office","30/03/1851","34x19cm copy",null,null,null,null,null,null,null,null,"PRO","English","Christian communities","Religious life and customs","Religious Faith","Martham","Baptist Chapel",null,"Baptists","Baptist Chapel",null,"Census",null,null,"34x19cm PRO Ref. H.O 129229 X/K3989.   229-2-5-9 Loan","34x19cm PRO Ref. H.O 129229 X/K3989.   229-2-5-9 Loan",null,null,null,null,null,null,null,null,null,"AM","0000000001","0000000080","0000000000","AM00000000010000000080"]
["AM",1,81,null,"AM/1/81","File","1851 Census return for the  Primitive Methodist Chapel. Recorded 30/03/1851. Chapel erected in 1843","SLC",null,1851,"33x18cm & 38x26cm copy",null,null,null,null,null,null,null,null,"PRO","English","Christian communities","Religious life and customs","Religious Faith","Martham","Primitive Methodist Chapel",null,"Methodists",null,null,"Census",null,null,"33x18cm and 38x26 cm PRO Ref. H.O 129.  229. x/K. 3989 (as recorded on larger copy).  Both copies - 229-2-58 Loan","33x18cm and 38x26 cm PRO Ref. H.O 129.  229. x/K. 3989 (as recorded on larger copy).  Both copies - 229-2-58 Loan",null,null,null,null,null,null,null,null,null,"AM","0000000001","0000000081","0000000000","AM00000000010000000081"]
["AM",2,null,null,"AM/2",null,"Copies of Historical Background Information","SLC","Purple File",null,null,null,null,null,null,null,null,null,null,null,null,null,null,null,null,null,null,null,null,null,null,null,null,null,null,null,null,null,null,null,null,null,null,null,"AM",{"$f":"IF(B84=\"\",\"0000000000\",RIGHT(\"0000000000\"&B84,10))","v":"0000000002"},"0000000000","0000000000","AM00000000020000000000"]
["AM",2,1,null,"AM/2/1","File","Report on Martham Ring Ditches from Norfolk Landscape Archaeology ","SLC","Several reports describing Bronze Age Barrows and ring ditches. With grid references","2350BC- 701BC","2 pages A4 ","Copy in public domain",null,null,null,null,null,null,null,null,"English","Bronze Age","Archaeology",null,"Martham",null,null,"Ring Ditches","Cropmark","Round Barrow","Reports, business",null,"Letters, letter","Details of several monument types and dates found around Martham dated from the Bronze Age",null,null,null,null,null,null,null,null,null,null,"AM","0000000002","0000000001","0000000000","AM00000000020000000001"]
["AM",2,2,null,"AM/2/2","File","Report on Saxon Finds in Martham -From Norfolk Archaeology","SLC","Details of Archaeology finds with dates and locations from around the Martham area. ","1995-02-21","3 pages of A4 and 2 maps","Copy in public domain",null,null,null,null,null,null,null,null,"English","Saxon","Archaeology",null,"Martham",null,null,null,null,null,"Reports, business","Maps","Letters, letter","Letter to AM from Norfolk Landscape Archaeology re Saxon finds in Martham area",null,null,null,null,null,null,null,null,null,null,"AM","0000000002","0000000002","0000000000","AM00000000020000000002"]
["AM",2,3,null,"AM/2/3","File","Report on Roman finds and St Mary's church repairs, in Martham - From Norfolk Archaeology","SLC","Details of Archaeology finds with dates and locations from around the Martham area.  Also summary of stone type used in the St Mary's Church repairs in 1975","1996-01-04","5 A4 pages of report and 3 pages letter","Original",null,null,null,null,null,null,null,null,"English","Church Buildings","Archaeology","Romans","Martham","St Mary the Virgin",null,null,null,null,"Reports, business","Letters, letter",null,"Letter to AM from Norfolk Landscape Archaeology re Roman finds in the Martham area",null,null,null,null,null,null,null,null,null,null,"AM","0000000002","0000000003","0000000000","AM00000000020000000003"]
["AM",2,4,null,"AM/2/4","File","Collection of aerial photos of the Martham area from Norfolk Landscape Archaeology","SLC","Details of a collection of aerial photographs of the Martham area from Norfolk Landscape Archaeology","1983-1999","13 A3 sheets","Copy in public domain",null,null,null,null,null,null,null,null,null,null,null,null,null,null,null,null,null,null,null,null,null,null,null,null,null,null,null,null,null,null,null,null,"AM","0000000002","0000000004","0000000000","AM00000000020000000004"]
["AM",2,4,1,"AM/2/4/1","Item","Crop circles seen in the Area South of Somerton Road","SLC","Aerial Photo. PIRTG4518/B/ATQ13 - 137.  (NGR)TG459187","1983-06-29","A3","Copy in public domain",null,null,null,null,null,null,null,"Norfolk Landscape Archaeology",null,"Archaeology",null,null,"Martham",null,null,"Cropmark",null,null,"Photographic print",null,null,null,null,null,null,null,null,null,null,null,null,null,"AM","0000000002","0000000004","0000000001","AM000000000200000000041"]
["AM",2,4,2,"AM/2/4/2","Item","Crop circles seen in the Area South of Somerton Road","SLC","Aerial Photo. PIRTG4518/B/ATQ14 - No137.  (NGR)TG459187","1983-07-29","A3","Copy in public domain",null,null,null,null,null,null,null,"Norfolk Landscape Archaeology",null,"Archaeology",null,null,"Martham",null,null,"Cropmark",null,null,"Photographic print",null,null,null,null,null,null,null,null,null,null,null,null,null,"AM","0000000002","0000000004","0000000002","AM000000000200000000042"]
["AM",2,4,3,"AM/2/4/3","Item","Crop circles seen in the Area South of Somerton Road","SLC","Aerial Photo. PIRTG4518/C/ATQ15 - No137.  (NGR)TG459187","1983-07-29","A3","Copy in public domain",null,null,null,null,null,null,null,"Norfolk Landscape Archaeology",null,"Archaeology",null,null,"Martham",null,null,"Cropmark",null,null,"Photographic print",null,null,null,null,null,null,null,null,null,null,null,null,null,"AM","0000000002","0000000004","0000000003","AM000000000200000000043"]
["AM",2,4,4,"AM/2/4/4","Item","Crop circles seen in the Area South of Repps Rd","SLC","PIR.TG4417/A/GDC4 No.271   NGR. TG446172","1990-07-12","A3","Copy in public domain",null,null,null,null,null,null,null,"Norfolk Landscape Archaeology",null,"Archaeology",null,null,"Martham",null,null,"Cropmark",null,null,"Photographic print",null,null,null,null,null,null,null,null,null,null,null,null,null,"AM","0000000002","0000000004","0000000004","AM000000000200000000044"]
["AM",2,4,5,"AM/2/4/5","Item","Crop circles seen in the Area South of Repps Rd","SLC","PIR.TG4417/B/GDC5 No.271   NGR. TG446172","1990-07-12","A3","Copy in public domain",null,null,null,null,null,null,null,"Norfolk Landscape Archaeology",null,"Archaeology",null,null,"Martham",null,null,"Cropmark",null,null,"Photographic print",null,null,null,null,null,null,null,null,null,null,null,null,null,"AM","0000000002","0000000004","0000000005","AM000000000200000000045"]
["AM",2,4,6,"AM/2/4/6","Item","Crop circles seen in the area of Martham Mill","SLC","PIR.TG4419/A/HYV4 No.343   NGRTG44221924","1994-07-19","A3","Copy in public domain",null,null,null,null,null,null,null,"Norfolk Landscape Archaeology",null,"Archaeology",null,null,"Martham",null,null,"Cropmark",null,null,"Photographic print",null,null,null,null,null,null,null,null,null,null,null,null,null,"AM","0000000002","0000000004","0000000006","AM000000000200000000046"]
["AM",2,4,7,"AM/2/4/7","Item","Crop circles seen in the area of Martham Mill","SLC","PIR.TG4419/ABHYV5 No.343   NGRTG44221924","1994-07-19","A3","Copy in public domain",null,null,null,null,null,null,null,"Norfolk Landscape Archaeology",null,"Archaeology",null,null,"Martham",null,null,"Cropmark",null,null,"Photographic print",null,null,null,null,null,null,null,null,null,null,null,null,null,"AM","0000000002","0000000004","0000000007","AM000000000200000000047"]
["AM",2,4,8,"AM/2/4/8","Item","Crop circles seen in the area of Martham Mill","SLC","PIR.TG4419/D/SLIDE N0 34. NGR. TG44221024","1994-07-19","A3","Copy in public domain",null,null,null,null,null,null,null,"Norfolk Landscape Archaeology",null,"Archaeology",null,null,"Martham",null,null,"Cropmark",null,null,"Photographic print",null,null,null,null,null,null,null,null,null,null,null,null,null,"AM","0000000002","0000000004","0000000008","AM000000000200000000048"]
["AM",2,4,9,"AM/2/4/9","Item","Crop circles seen in the area of Martham Mill","SLC","PIR.TG4419/C/SLIDE N0 343. NGR. TG44221924","1994-07-19","A3","Copy in public domain",null,null,null,null,null,null,null,"Norfolk Landscape Archaeology",null,"Archaeology",null,null,"Martham",null,null,"Cropmark",null,null,"Photographic print",null,null,null,null,null,null,null,null,null,null,null,null,null,"AM","0000000002","0000000004","0000000009","AM000000000200000000049"]
["AM",2,4,10,"AM/2/4/10","Item","Gas Pipeline south of Martham","SLC","PIR. TG4517/A/JKL14 No.394 NGR452170","1999-05-13","A3","Copy in public domain",null,null,null,null,null,null,null,"Norfolk Landscape Archaeology",null,"Archaeology","Gas Pipe Line",null,"Martham",null,null,"Gas Pipe Line",null,null,"Photographic print",null,null,null,"2 copies",null,null,null,null,null,null,null,null,null,"AM","0000000002","0000000004","0000000010","AM0000000002000000000410"]
["AM",2,4,11,"AM/2/4/11","Item","Gas Pipeline south of Martham","SLC","PIR.TG4517/B/JKL 15 No.394 NGR.TG452170","1999-05-13","A3","Copy in public domain",null,null,null,null,null,null,null,"Norfolk Landscape Archaeology",null,"Archaeology","Gas Pipe Line",null,"Martham",null,null,"Gas Pipe Line",null,null,"Photographic print",null,null,null,"2 copies",null,null,null,null,null,null,null,null,null,"AM","0000000002","0000000004","0000000011","AM0000000002000000000411"]
["AM",2,4,12,"AM/2/4/12","Item","Martham Broad and River Thurne. Heigham Holmes and Airstrip","SLC","PIR.TG42/TG4420/B. NGR449202. Aerial photo taken by 541 Squadron.","1944-09-23","A3","Copy in public domain",null,null,null,null,null,null,null,"Norfolk Landscape Archaeology",null,"Archaeology","Heigham Holmes",null,"Martham","Heigham Holmes","River Thurne","Heigham Holmes","541 Squadron","Air Strip","Photographic print",null,null,null,null,null,null,null,null,null,null,null,null,null,"AM","0000000002","0000000004","0000000012","AM0000000002000000000412"]
["AM",2,5,null,"AM/2/5","File","Roman Times - The Pattern of North Flegg","SLC","Bulletin No.17 Discussing map references suggesting Roman Settlements","1971-02-01","2 pages A4 ","Copy in public domain",null,null,null,null,null,null,null,null,null,"Archaeology","Romans",null,"Martham",null,null,"Arthur Cornford",null,null,"Journals","Facsimile",null,null,null,null,null,null,null,null,null,null,null,null,"AM","0000000002","0000000005","0000000000","AM00000000020000000005"]
["AM",2,6,null,"AM/2/6","File","Viking Settlement in Norfolk","SLC","A Study of New Evidence -",null,"12 pages","Copy in public domain",null,null,null,null,null,null,null,"Sue Margeson","English","Archaeology","Vikings",null,"Martham",null,null,"Sue Margeson",null,null,"Publications","Facsimile",null,"Discusses Danelaw and Viking finds in Norfolk.","Copyright Sue Margeson. Taken from Norfolk Archaeology",null,null,null,null,null,null,null,null,null,"AM","0000000002","0000000006","0000000000","AM00000000020000000006"]
["AM",2,7,null,"AM/2/7","File","A Festival of Norfolk Archaeology","SLC","Part of a pamphlet - The making of the Danelaw","1905-06-19","4 pages","Copy in public domain",null,null,null,null,null,null,null,"Sue Margeson","English","Archaeology","Norfolk History",null,"Martham","Norfolk",null,"Sue Margeson",null,null,"Publications","Facsimile",null,"The making of the Danelaw",null,null,null,null,null,null,null,null,null,null,"AM",{"$f":"IF(B103=\"\",\"0000000000\",RIGHT(\"0000000000\"&B103,10))","v":"0000000002"},"0000000007","0000000000","AM00000000020000000007"]
["AM",2,8,null,"AM/2/8","File","Cornford's report on Saxon Finds in Martham","SLC","Norfolk Research Committee Bulletin","1980-03-01","Page 9","Copy in public domain",null,null,null,null,null,null,null,"Barbara Cornford","English","Archaeology",null,null,"Martham","Norfolk",null,"Barbara Cornford",null,null,"Publications","Facsimile",null,"The complete March 09 bulletin. ",null,null,null,null,null,null,null,null,null,null,null,"0000000002","0000000008"]
["AM",2,9,null,"AM/2/9","File","A Hill In Broadland","SLC","A short article on archaeological finds from Grange Farm. 1979",null,"4 pages","Copy in public domain",null,null,null,null,null,null,null,"Narg.Newa 22","English","Archaeology",null,null,"Martham","Norfolk",null,"Peter Dawson","Grange Farm",null,"Publications","Facsimile",null,"Describes Saxon, Roman, Medieval and Georgian finds, found on Grange Farm Land Autumn 1979",null,null,null,null,null,null,null,null,null,null,null,"0000000002","0000000009"]
["AM",2,10,null,"AM/2/10","File","Domesday Book Extracts re Martham ","SLC","From Philimore's publication with additional notes by Barbara Cornford",null,"17 pages of extract A4","Copy in public domain",null,null,null,null,null,null,null,"Philimore","English","Norfolk History","Domesday Book",null,"Martham","Norfolk",null,"Barbara Cornford",null,null,"Publications","Manorial records","Transcripts","Photocopy of several pages of Philimore, with typed notes by Barbara Cornford.",null,null,null,null,null,null,null,null,null,null,null,"0000000002","0000000010"]
["AM",2,11,null,"AM/2/11","File","Minsters and Parish Churches. The local Church in Transition. 950-1200. By S Heywood. Edited by John Blair","SLC","The Round Towers of East Anglia ","950-1200","9  A4 pages","Copy in public domain",null,null,null,null,null,null,null,"Oxford University Committee  for Archaeology","English","Architecture",null,null,"Martham","Norfolk",null,"S Heywood",null,null,"Publications","Facsimile",null,"Copy of Chapter XII- From Oxford University Committee  for Archaeology. Monograph No 17 1988. ",null,null,null,null,null,null,null,null,null,null,null,"0000000002","0000000011"]
["AM",2,12,null,"AM/2/12","File","Minsters and Parish Churches. The Parish Church in Norfolk in the 11th and 12th Centuries.- Neil Batcock","SLC",null,"950-1200","12 A4 pages","Copy in public domain",null,null,null,null,null,null,null,"Oxford University Committee  for Archaeology","English","Architecture","Church Buildings",null,"Martham","Norfolk",null,"Neil Batcock",null,null,"Publications","Facsimile",null,"Copy of Chapter XIII - From Oxford University Committee  for Archaeology . ",null,null,null,null,null,null,null,null,null,null,null,"0000000002","0000000012"]
["AM",2,13,null,"AM/2/13","File","Round Towered Churches by Stephen Heywood","SLC","Article from An Historical Atlas of Norfolk","11th Century","3 pages A4","Copy in public domain",null,null,null,null,null,null,null,"An Historical Atlas of Norfolk","English","Architecture","Church Buildings",null,"Martham","Norfolk",null,"Stephen Heywood",null,null,"Publications","Facsimile",null,"Extract from An Historical Atlas of Norfolk",null,null,null,null,null,null,null,null,null,null,null,"0000000002","0000000013"]
["AM",2,14,null,"AM/2/14","File","Romanesque Architecture in Norfolk","SLC","By Stephen Heywood",null,"14 pages A4","Copy in public domain",null,null,null,null,null,null,null,"Norfolk Archaeology","English","Architecture",null,null,"Martham","Norfolk",null,"Stephen Heywood",null,null,null,"Facsimile",null,null,null,null,null,null,null,null,null,null,null,null,null,"0000000002","0000000014"]
["AM",2,15,null,"AM/2/15","File","The Anglo Danish Community of Martham","SLC","Its Pre-Domesday Tenants and their conversion into customary tenants of a feudal manor in 1101. Extract from Norfolk Archaeology: Rev William Hudson FSA",null,"12 pages","Copy in public domain",null,null,null,null,null,null,null,"Norfolk Archaeology","English","Domesday Book",null,null,"Martham","Norfolk",null,"Rev. William Hudson FSA",null,null,null,"Facsimile",null,null,null,null,null,null,null,null,null,null,null,null,null,"0000000002","0000000015"]
["AM",2,16,null,"AM/2/16","File","Martham in the 13th Century (Stowe Survey) By Barbara Cornford","SLC","Presidential Address to the Norfolk Archaeological and Historical Research Group ","1993-04-24","12 pages","Copy in public domain",null,null,null,null,null,null,null,"Norfolk Archaeological & Historical Research Group","English","Norfolk History",null,null,"Martham","Norfolk",null,"Barbara Cornford",null,null,null,"Facsimile",null,"Presentation by Barbara Cornford to the Norfolk Archaeological and Historical Research Group. The Martham Survey giving detailed descriptions of the land in the Manor in 1292. There is a micro-film of this survey (Stowe 936) in the NRO.",null,null,null,null,null,null,null,null,null,null,null,"0000000002","0000000016"]
["AM",2,17,null,"AM/2/17","File","Map of Martham in 1292 from the Stowe Survey","SLC","Hand traced map of Martham in 1292",null,"2 pages","Original",null,null,null,null,null,null,null,null,"English","Norfolk History",null,null,"Martham","Norfolk",null,null,null,null,null,"Maps",null,"Hand drawn map of Martham and traced copy. From Stowe report on Martham 1292",null,null,null,null,null,null,null,null,null,null,null,"0000000002","0000000017"]
["AM",2,18,null,"AM/2/18","File","The Making of the Broads '- J Lambert, JN Jennings, CT Smith, Chas Green, JN Hutchungson","SLC","Copy of chapters from 'The Making of the Broads'","Date unknown","27 pages",null,null,null,null,null,null,null,null,"J.M.Lambert et al","English","Land use - Great Britain","Landscapes",null,"Martham","Norfolk",null,"J.M Lambert",null,null,"Publications","Facsimile",null,"Copy of Chapters from 'The Making of the Broads' ",null,null,null,null,null,null,null,null,null,null,null,"0000000002","0000000018"]
["AM",2,19,null,"AM/2/19","File","History of the Norfolk Floods","SLC","Copy of an extract from an article describing the floods in Jan 1953 and February 1938. Discusses the Roman occupation of the area. With maps.","1953 & 1938","4 pages","Copy in public domain",null,null,null,null,null,null,null,"Author Unknown","English","Norfolk History","Landscapes",null,"Martham","Norfolk",null,null,null,null,"Publications","Facsimile",null,null,null,null,null,null,null,null,null,null,null,null,null,"0000000002","0000000019"]
["AM",2,20,null,"AM/2/20","File","Martham Church Redated.  Written by Paul Cattermole and Simon Cotton","SLC","From NARG News No33 ","1983-06-01","1 page and hand written letter","Copy in public domain",null,null,null,null,null,null,null,"NARG News N033 ","English","Norfolk History","Church Buildings",null,"Martham","Norfolk",null,"Barbara Cornford",null,null,"Publications","Letters, letter",null,"Copy of article from NARG News. Discussing the date of Martham Parish Church.  Also included a letter from Barbara Cornford to AM",null,null,null,null,null,null,null,null,null,null,null,"0000000002","0000000020"]
["AM",2,21,null,"AM/2/21","File","The Story of Christopher Burraway of Martham","SLC","An article by Barbara Cornford published in Norfolk Fair 1973","1997-02-03","2 pages A4 ","Copy in public domain",null,null,null,null,null,null,null,"Norfolk Fair","English","Norfolk History","Churchyard",null,"Martham","Norfolk",null,"Barbara Cornford",null,null,"Publications","Letters, letter",null,"Copy of Article from Norfolk Fair and letter from Barbara Cornford to AM dated 3/2/1997",null,null,null,null,null,null,null,null,null,null,null,"0000000002","0000000021"]
["AM",2,22,null,"AM/2/22","File","The Burraway Inscription in the Church of Martham by JH Harrison of Great Yarmouth","SLC","Newspaper notice, describing the Burraway family and the relationship between Christopher Burraway and his wife Alice. ","March 1874","2 pages of A3 copy","Copy in public domain",null,null,null,null,null,null,null,"NRO","English","Norfolk History","Churchyard",null,"Martham","Norfolk","St Mary The Virgin","Christopher Burraway",null,null,"Facsimile",null,null,"NRO Ref. MS12866(31F2)",null,null,null,null,null,null,null,null,null,null,null,"0000000002","0000000022"]
["AM",2,23,null,"AM/2/23","File","The Proctor Family - Yorkshire, Norfolk, London and Surrey","SLC","An article by Patricia Proctor about her family connection to Martham. Her ancestor F Proctor bought Martham Hall after the death of Christopher Burraway","1995-03-01","1 page A4","Copy in public domain",null,null,null,null,null,null,null,"Norfolk Ancestor Magazine March 1995","English","Norfolk History","Churchyard",null,"Martham","Norfolk","St Mary The Virgin","Christopher Burraway","Proctor",null,"Publications","Facsimile",null,"J Proctor bought Martham Hall when Christopher Burraway died.",null,null,null,null,null,null,null,null,null,null,null,"0000000002","0000000023"]
["AM",2,24,null,"AM/2/24","File","Blomefield on Martham and handwritten notes","SLC","One page of Blomefield. Handwritten notes by AM",null," Page 168 & notes","Copy in public domain",null,null,null,null,null,null,null,"Blomefield","English","Norfolk History",null,null,"Martham","Norfolk",null,"Blomefield",null,null,"Publications","Notebooks",null,null,null,null,null,null,null,null,null,null,null,null,null,"0000000002","0000000024"]
["AM",2,25,null,"AM/2/25","File","Copy of pages of the index of transactions from Manor Court Book.","SLC","Transactions from 1751 and 1765","1751 & 1765","6 pages of A3","Copy in public domain",null,null,null,null,null,null,null,"NRO ","English","Manors","Norfolk History",null,"Martham","Norfolk",null,null,null,null,"Manorial records","Facsimile",null,"NRO Ref. NRS 1682343F",null,null,null,null,null,null,null,null,null,null,null,"0000000002","0000000025"]
["AM",2,26,null,"AM/2/26","File","Copies of Parish records researched by Revd. Folland & an email from NRO","SLC","From the pages 81-109","1940's to 1960's","30 pages of A3","Copy in public domain",null,null,null,null,null,null,null,"NRO","English","Norfolk History",null,null,"Martham","Norfolk",null,"Revd. Folland",null,null,"Parish register transcripts","Parish registers","Facsimile","Email from NRO advises may have come from the Flegg Deanery book.  Catalogue ref DN/BBD 18 or Parish Small book for Martham compiled by Revd. Folland and his colleagues. Catalogue ref. DN/BBD 109. ",null,null,null,null,null,null,null,null,null,null,null,"0000000002","0000000026"]
["AM",2,27,null,"AM/2/27","File","Letter to B Cornford from K.Kirkland -re the index of Parish documents.","SLC","From Parish Documents which were transcribed from 1945 to 1947 ","1558-1889","4 pages A4","Copy in private hands",null,null,null,null,null,null,null,null,"English","Norfolk History",null,null,"Martham","Norfolk",null,"Barbara Cornford","Norfolk",null,"Parish register transcripts","Parish registers","Letters, letter","Letter to B.Cornford from K Kirkland, dated 24th April 1971. Listing the indexes of transcriptions made of:- Parish registers 1558-1650. Overseer's accounts 1671-1690. Banns of Marriages 1823-1889. Documents in Parish Chest - 1674-1844.",null,null,null,null,null,null,null,null,null,null,null,"0000000002","0000000027"]
["AM",2,28,null,"AM/2/28","File","List of Parish Records deposited at NRO in 2004","SLC","Births, Marriage and Death Registers. Church record books. Visitor Books. Other papers - see public notes","2004-11-16","3 pages A4","Copy in private hands",null,null,null,null,null,null,null,"NRO","English","Christian Communities",null,null,"Martham","Norfolk",null,null,null,null,"Accounts","Parish registers","Visitors' books","Parish Registers, Accounts Book, Visitors Books, Vestry Minutes. Documents including, stained glass window in the chancel 1925, Electrical installation, Brass tablet in memory of Edgar Mace 1931. Grave space for Willaim Arthur Rigg 1946. New Brass Altar and Processional Cross 1956. Repairs to Church Tower 1956.  Moving pews and introducing an Altar Table from St Mary's, Southtown 1965.  Grave spaces for Grimble, Knights and the Bailey family.  Reorganisation of the Benefice. Archdeacon's certificates of 1980 and 1981. Terriers dated 1813, 1834, 1845, 1872, 1901, 1908, 1912, 1926, 1941 and 1955. Correspondence - Tithe Redemption, Charities 1880 to 1887. Jillings Charity. Addition to the Churchyard 1889. Death of George Merriman. Letters from 1940's to 1950's, including papers on insurance. Refurbishment of the High Altar and the consecration of it on 26th October 1969.",null,null,null,null,null,null,null,null,null,null,null,"0000000002","0000000028"]
["AM",2,29,null,"AM/2/29","File","John Wilson (MDCCXLVI-MDCCXVI) The Old Commissioner by Duine Campbell","SLC","Reference to a book held by AM in a separate part of the collection. John worked on the estate of the Proctor Family of Martham Hall.","2021-01-01","1 page A4","Copy in private hands",null,null,null,null,null,null,null,"Duine Campbell","English","Norfolk History","Estate Management",null,"Martham","Norfolk",null,"Proctor Family","Martham Hall",null,"Publications",null,null,"This is a one-page reference to a book by Duine Campbell on John Wilson. He worked at Martham Hall for the Proctor Family while studying estate management. The book is held by AM in a separate part of the collection. ",null,null,null,null,null,null,null,null,null,null,null,"0000000002","0000000029"]
["AM",3,null,null,"AM/3","Series","Green Folder","CJH","Green 2-Ring Folder","2021-02-19",null,null,null,null,null,null,null,null,null,null,null,null,null,null,null,null,null,null,null,null,null,null,null,null,null,null,null,null,null,null,null,null,null,null,{"$f":"A126","v":"AM"},{"$f":"IF(B126=\"\",\"0000000000\",RIGHT(\"0000000000\"&B126,10))","v":"0000000003"}]
["AM",3,1,null,"AM/3/1","File","Green Ring File - Index","CJH","Index of Wills & Inventories and their Transcriptions","2021-02-19","Typed",null,null,null,null,null,null,null,null,null,"English","Wills","Inventories",null,"Martham",null,null,null,null,null,null,null,null,"All Inventories are of goods and chattels",null,null,null,null,null,null,null,null,null,null,"AM","0000000003"]
["AM",3,1,1,"AM/3/1/1","File","Background Information on Wills and Inventories","CJH","Information about the procedure of creating Wills & Inventories","2021-02-19","Typed A4 sheet",null,null,null,null,null,null,null,null,null,null,null,null,null,null,null,null,null,null,null,null,null,null,"Further information available in \"Encyclopaedia of Local History\" by John Richardson page 73.",null,null,null,null,null,null,null,null,null,null,"AM","0000000003"]
["AM",3,1,"2",{"$f":"CONCATENATE(A129,(IF(B129<>\"\",\"/\",\"\")),B129,(IF(C129<>\"\",\"/\",\"\")),C129,(IF(D129<>\"\",\"/\",\"\")),D129)","v":"AM/3/1/2"},"File","A study of six Wills and four Inventories of people of the Parish of Martham in Norfolk, who died between 1722 & 1752.","CJH","A research document by Ann Meakin from March 2006, entitled \"A study of six Wills and four Inventories of people of the Parish of Martham in Norfolk, who died between 1722 & 1752\".","2006-03-09","34 pages, A4 28 pages, A3 3 pages & 3 pages of cropped size.  Includes typed, photocopied pages.  Transcripts and three photocopies of pictures of properties.","Original",null,null,null,null,null,null,null,"© Ann Meakin","English","Wills","Inventories","Maps","Martham","Norfolk",null,"Christopher Barns","John Littleboy","Daniel Rust","Transcripts","Facsimile","Maps","Also included Robert Sutfield.  NRO References used throughout this research paper include: (Appendix 3)NRO DCN 73/4/4; DCN MF/RO V69  (Appendix 4) NRO DCN/IV/410; DCN/V/196; DCN MF/RO V245; DCN 73/5/9 (Appendix 5) NRO DCN 73/5/2; DCN MF/RO V 73/5/4 (Appensix 6) NRO DCN MF/RO 73/4/17; DCN/73/4/35",null,null,null,null,null,null,null,null,null,null,null,"0000000003"]
["AM",3,2,null,"AM/3/2","File","Martham Wills from 1370-1550","CJH","A list of Martham Wills from the Index Locurum by The Norfolk Records Society Vol XVI","2021-02-19","Typed A4 sheet",null,null,null,null,null,null,null,null,null,null,null,null,null,null,null,null,null,null,null,null,null,null,null,null,null,null,null,null,null,null,null,null,null,"AM","0000000003"]
["AM","3","2","1",{"$f":"CONCATENATE(A131,(IF(B131<>\"\",\"/\",\"\")),B131,(IF(C131<>\"\",\"/\",\"\")),C131,(IF(D131<>\"\",\"/\",\"\")),D131)","v":"AM/3/2/1"},"File","Will of William Apethe","CJH","The Will of William Apethe who died in 1532","1532","Two A3 sheets","Copy in public domain","",null,null,null,null,null,"","© Norfolk Record Office","Latin","Wills","","","Martham","","","Apethe, William","","","Facsimile","","","NRO Ref: Palgrave 282 MF41","",null,null,null,null,null,null,null,null,null,"AM","0000000003",{"$f":"IF(C131=\"\",\"0000000000\",RIGHT(\"0000000000\"&C131,10))","v":"0000000002"},{"$f":"IF(D131=\"\",\"0000000000\",RIGHT(\"0000000000\"&D131, 10))","v":"0000000001"},{"$f":"CONCATENATE(AS131,AT131,AU131,D131,)","v":"AM000000000300000000021"}]
["AM",3,2,2,{"$f":"CONCATENATE(A132,(IF(B132<>\"\",\"/\",\"\")),B132,(IF(C132<>\"\",\"/\",\"\")),C132,(IF(D132<>\"\",\"/\",\"\")),D132)","v":"AM/3/2/2"},"File","Will of William Redar","CJH","The Will of William Redar who died in 1532",1532,"Two A3 & one A4 sheet","Copy in public domain",null,null,null,null,null,null,null,"© Norfolk Record Office","English","Wills",null,null,"Martham",null,null,"Redar, William",null,null,"Facsimile",null,null,"NRO Ref: Palgrave 312-314 MF41",null,null,null,null,null,null,null,null,null,null,{"$f":"A132","v":"AM"},{"$f":"IF(B132=\"\",\"0000000000\",RIGHT(\"0000000000\"&B132,10))","v":"0000000003"},{"$f":"IF(C132=\"\",\"0000000000\",RIGHT(\"0000000000\"&C132,10))","v":"0000000002"},{"$f":"IF(D132=\"\",\"0000000000\",RIGHT(\"0000000000\"&D132, 10))","v":"0000000002"},{"$f":"CONCATENATE(AS132,AT132,AU132,D132,)","v":"AM000000000300000000022"}]
["AM",3,2,3,"AM/3/2/3","File","Will of Robert Parthe","CJH","The Will of Robert Parthe who died in 1532",1532,"One A4 sheet","Copy in public domain",null,null,null,null,null,null,null,"© Norfolk Record Office","English","Wills",null,null,"Martham",null,null,"Parthe, Robert",null,null,"Facsimile",null,null,"NRO Ref: Deyns NP24 MF47",null,null,null,null,null,null,null,null,null,null,"AM","0000000003","0000000002","0000000003","AM000000000300000000023"]
["AM",3,2,4,"AM/3/2/4","File","Will of Anne Wicks","CJH","The Will of Anne Wicks (widow) who died in 1541",1541,"One A3 sheet","Copy in public domain",null,null,null,null,null,null,null,"© Norfolk Record Office","English","Wills",null,null,"Martham",null,null,"Wicks, Anne",null,null,"Facsimile",null,null,"NRO Ref: Deyns 85, 86 MF47",null,null,null,null,null,null,null,null,null,null,"AM","0000000003","0000000002","0000000004","AM000000000300000000024"]
["AM",3,2,5,"AM/3/2/5","File","Will of Robert Wegge","CJH","The Will of Robert Wegge who died in 1544",1544,"One A3 sheet","Copy in public domain",null,null,null,null,null,null,null,"© Norfolk Record Office","English","Wills",null,null,"Martham",null,null,"Wegge, Robert",null,null,"Facsimile",null,null,"NRO Ref: Deyns 190, 191 MF47",null,null,null,null,null,null,null,null,null,null,"AM","0000000003","0000000002","0000000005","AM000000000300000000025"]
["AM",3,2,6,"AM/3/2/6","File","Will of Robert Lownde","CJH","The Will of Robert Lownde who died in 1547",1547,"One A3 sheet","Copy in public domain",null,null,null,null,null,null,null,"© Norfolk Record Office","English","Wills",null,null,"Martham",null,null,"Lownde, Robert",null,null,"Facsimile",null,null,"NRO Ref: Deyns 259 MF47",null,null,null,null,null,null,null,null,null,null,"AM","0000000003","0000000002","0000000006","AM000000000300000000026"]
["AM",3,2,7,"AM/3/2/7","File","Will of John Harridance","CJH","The Will of John Harridance who died in 1559",1559,"One A4 sheet","Copy in public domain",null,null,null,null,null,null,null,null,"English","Wills","Clergy",null,"Martham",null,null,"Harridance, John",null,null,"Transcripts",null,null,"NRO Ref: NCC 341 Colman (Transcript by Jenny Walpole)","An added note by Jenny Walpole states \"An article in the English Historical Review 1933 - 'Married Clergy and Pensioned Religious in Norwich Diocese 1555' mentions 'John Harridance, vicar of Martham (1540, died 1559) as one of 'the following monks of St Benet's in livings in the gift either of that abbey or of the dean and chapter'.",null,null,null,null,null,null,null,null,null,"AM","0000000003","0000000002","0000000007","AM000000000300000000027"]
["AM",3,2,8,"AM/3/2/8","File","Inventory of John Richers","CJH","The Inventory of John Richers (senior) who died in 1616",1616,"Two A4 sheets","Copy in public domain",null,null,null,null,null,null,null,"© Norfolk Record Office","English","Inventories","Yeomanry",null,"Martham",null,null,"Richers, John",null,null,"Facsimile",null,null,null,null,null,null,null,null,null,null,null,null,null,"AM","0000000003","0000000002","0000000008","AM000000000300000000028"]
["AM",3,2,9,"AM/3/2/9","File","Will of Christopher Amys","CJH","Details from the Will of Christopher Amys who died in 1622",1622,"One A4 sheet","Copy in public domain",null,null,null,null,null,null,null,null,"English","Wills",null,null,"Martham",null,null,"Amys, Christopher",null,null,"Transcripts",null,null,"NRO Ref: NCC (p.8) Transcribed by Dr Mary Fewster 2009","Of Rollesby, he left money for the school in Martham",null,null,null,null,null,null,null,null,null,"AM","0000000003","0000000002","0000000009","AM000000000300000000029"]
["AM",3,2,10,"AM/3/2/10","File","Will of Robert Sutfield","CJH","The Will of Robert Sutfield who died in 1638",1638,"Three A4 sheets (one duplicated)","Copy in public domain",null,null,null,null,null,null,null,"© Norfolk Record Office","English","Wills",null,null,"Martham",null,null,"Sutfield, Robert",null,null,"Facsimile",null,null,null,"Cannot find any record of his burial",null,null,null,null,null,null,null,null,null,"AM","0000000003","0000000002","0000000010","AM0000000003000000000210"]
["AM",3,2,11,"AM/3/2/11","File","Inventory of John Love","CJH","The Inventory of John Love who died in either 1641 or 1687","1641 or 1687","Two A4 sheets","Copy in public domain",null,null,null,null,null,null,null,"© Norfolk Record Office","English","Inventories",null,null,"Martham",null,null,"Love, John",null,null,"Facsimile",null,null,null,"Matthew Norgate, appraiser",null,null,null,null,null,null,null,null,null,"AM","0000000003","0000000002","0000000011","AM0000000003000000000211"]
["AM",3,2,12,"AM/3/2/12","File","Inventory of Richard Varley","CJH","The Inventory of Richard Varley who died in 1652",1652,"One A4 sheet","Copy in public domain",null,null,null,null,null,null,null,"© Norfolk Record Office","English","Inventories",null,null,"Martham",null,null,"Varley, Richard",null,null,"Facsimile",null,null,"Buried 04/10/1652",null,null,null,null,null,null,null,null,null,null,"AM","0000000003","0000000002","0000000012","AM0000000003000000000212"]
["AM",3,2,13,"AM/3/2/13","File","Inventory of Robert Richers (Junior)","CJH","The Inventory of Robert Richers (Junior) who died in 1676 or 1703","1676 or 1703","Two A4 sheets","Copy in public domain",null,null,null,null,null,null,null,"© Norfolk Record Office","English","Inventories",null,null,"Martham",null,null,"Richers, Robert",null,null,"Facsimile",null,null,null,null,null,null,null,null,null,null,null,null,null,"AM","0000000003","0000000002","0000000013","AM0000000003000000000213"]
["AM",3,2,14,"AM/3/2/14","File","Inventory of Willyame Bullocke","CJH","The Inventory of Willyame Bullocke who died in 1683",1683,"Three A4 sheets","Copy in public domain",null,null,null,null,null,null,null,"© Norfolk Record Office","English","Inventories",null,null,"Martham",null,null,"Bullocke, Willyame",null,null,"Facsimile",null,null,"NRO: DCN 73/1/31",null,null,null,null,null,null,null,null,null,null,"AM","0000000003","0000000002","0000000014","AM0000000003000000000214"]
["AM",3,3,null,"AM/3/3","File","Index of Inventories","CJH","An Index of Inventories of the 1680s","1680s","One A4 sheet",null,null,null,null,null,null,null,null,null,"English","Inventories",null,null,"Martham",null,null,null,null,null,"Index",null,null,"NRO: DCN 73/1/1 - ?1/27",null,null,null,null,null,null,null,null,null,null,"AM","0000000003","0000000003","0000000000","AM00000000030000000003"]
["AM",3,3,1,"AM/3/3/1","File","Inventory of Robert Bower","CJH","The Inventory of Robert Bower who died in 1683",1683,"One A4 sheet (duplicated)","Copy in public domain",null,null,null,null,null,null,null,"© Norfolk Record Office","English","Inventories",null,null,"Martham",null,null,"Bower, Robert",null,null,"Facsimile",null,null,"NRO: DCN 73/1/32",null,null,null,null,null,null,null,null,null,null,"AM","0000000003","0000000003","0000000001","AM000000000300000000031"]
["AM",3,3,2,"AM/3/3/2","File","Inventory of Robert Mordew","CJH","The Inventory of Robert Mordew who died in 1684",1684,"Two A4 sheets","Copy in public domain",null,null,null,null,null,null,null,"© Norfolk Record Office","English","Inventories",null,null,"Martham",null,null,"Mordew, Robert",null,null,"Facsimile",null,null,"NRO: DCN 73/1/26",null,null,null,null,null,null,null,null,null,null,"AM","0000000003","0000000003","0000000002","AM000000000300000000032"]
["AM",3,3,3,"AM/3/3/3","File","Inventory of John Nudd","CJH","The Inventory of John Nudd who died in 1684",1684,"One A4 sheet","Copy in public domain",null,null,null,null,null,null,null,"© Norfolk Record Office","English","Inventories",null,null,"Martham",null,null,"Nudd, John",null,null,"Facsimile",null,null,"NRO: DCN 73/1/41",null,null,null,null,null,null,null,null,null,null,"AM","0000000003","0000000003","0000000003","AM000000000300000000033"]
["AM",3,3,4,"AM/3/3/4","File","Inventory of John Linge","CJH","The Inventory of John Linge who died in 1684","28/4/1684","One A4 sheet","Copy in public domain",null,null,null,null,null,null,null,"© Norfolk Record Office","English","Inventories",null,null,"Martham",null,null,"Linge, John",null,null,"Facsimile",null,null,"NRO: DCN 73/1/44",null,null,null,null,null,null,null,null,null,null,"AM","0000000003","0000000003","0000000004","AM000000000300000000034"]
["AM",3,3,5,"AM/3/3/5","File","Inventory of William Gymer","CJH","The Inventory of William Gymer who died in 1684",1684,"Two A4 sheets","Copy in public domain",null,null,null,null,null,null,null,"© Norfolk Record Office","English","Inventories",null,null,"Martham",null,null,"Gymer, William",null,null,"Facsimile","Transcripts",null,"NRO: DCN 73/1/247",null,null,null,null,null,null,null,null,null,null,"AM","0000000003","0000000003","0000000005","AM000000000300000000035"]
["AM",3,3,6,"AM/3/3/6","File","Inventory of Thomas Same","CJH","The Inventory of Thomas Same who died in 1684",1684,"Two A4 sheets","Copy in public domain",null,null,null,null,null,null,null,"© Norfolk Record Office","English","Inventories",null,null,"Martham",null,null,"Same, Thomas",null,null,"Facsimile","Transcripts",null,"NRO: DCN 73/1/36",null,null,null,null,null,null,null,null,null,null,"AM","0000000003","0000000003","0000000006","AM000000000300000000036"]
["AM",3,3,7,"AM/3/3/7","File","Inventory of Margaret Watson (widow)","CJH","The Inventory of Margaret Watson (widow) who died in 1685",1685,"One A4 sheet","Copy in public domain",null,null,null,null,null,null,null,"© Norfolk Record Office","English","Inventories",null,null,"Martham",null,null,"Watson, Margaret",null,null,"Facsimile",null,null,"NRO: DCN 73/1/54",null,null,null,null,null,null,null,null,null,null,"AM","0000000003","0000000003","0000000007","AM000000000300000000037"]
["AM",3,3,8,"AM/3/3/8","File","Inventory of John Willgress","CJH","The Inventory of John Willgress who died in 1686",1686,"Two A4 sheets","Copy in public domain",null,null,null,null,null,null,null,"© Norfolk Record Office","English","Inventories",null,null,"Martham",null,null,"Willgress, John",null,null,"Facsimile",null,null,"NRO: DCN 73/1/56",null,null,null,null,null,null,null,null,null,null,"AM","0000000003","0000000003","0000000008","AM000000000300000000038"]
["AM",3,3,9,"AM/3/3/9","File","Inventory of John Bidson","CJH","The Inventory of John Bidson who died in 1686",1686,"One A4 sheet (duplicated)","Copy in public domain",null,null,null,null,null,null,null,"© Norfolk Record Office","English","Inventories",null,null,"Martham",null,null,"Bidson, John",null,null,"Facsimile",null,null,"NRO: DCN 73/1/71",null,null,null,null,null,null,null,null,null,null,"AM","0000000003","0000000003","0000000009","AM000000000300000000039"]
["AM",3,3,10,"AM/3/3/10","File","Inventory of Richard Philips","CJH","The Inventory of Richard Philips who died in 1686",1686,"One A4 sheet (duplicated)","Copy in public domain",null,null,null,null,null,null,null,"© Norfolk Record Office","English","Inventories",null,null,"Martham",null,null,"Philips, Richard",null,null,"Facsimile",null,null,"NRO: DCN 73/1/69",null,null,null,null,null,null,null,null,null,null,"AM","0000000003","0000000003","0000000010","AM0000000003000000000310"]
["AM",3,4,null,"AM/3/4","File","Index of Wills & Inventories","CJH","An Index of Wills & Inventories for Martham people and others - held at the Norfolk Record Office.  N.B. Parish Registers were not kept from 1728 to 1758.","2021-02-19","Three A4 sheets",null,null,null,null,null,null,null,null,null,"English","Wills","Inventories",null,"Martham",null,null,null,null,null,"Index",null,null,null,null,null,null,null,null,null,null,null,null,null,"AM","0000000003","0000000004","0000000000","AM00000000030000000004"]
["AM",3,4,1,"AM/3/4/1","File","Inventory of William Hall","CJH","The Inventory of William Hall who died in 1687",1687,"One A4 sheet","Copy in public domain",null,null,null,null,null,null,null,"© Norfolk Record Office","English","Inventories",null,null,"Martham",null,null,"Hall, William",null,null,"Facsimile",null,null,"Buried 29/3/1687",null,null,null,null,null,null,null,null,null,null,"AM","0000000003","0000000004","0000000001","AM000000000300000000041"]
["AM",3,4,2,"AM/3/4/2","File","Will & Inventory of Henry Curtis","CJH","The Will & Inventory of Henry Curtis who died in 1694",1694,"Three A4 sheets","Copy in public domain",null,null,null,null,null,null,null,"© Norfolk Record Office","English","Wills","Inventories","Clergy","Martham",null,null,"Curtis, Henry",null,null,"Facsimile",null,null,null,null,null,null,null,null,null,null,null,null,null,"AM","0000000003","0000000004","0000000002","AM000000000300000000042"]
["AM",3,4,3,"AM/3/4/3","File","Inventory of Benjamin Peake","CJH","The Inventory of Benjamin Peake who died in 1694",1694,"One A4 sheet","Copy in public domain",null,null,null,null,null,null,null,"© Norfolk Record Office","English","Inventories",null,null,"Martham",null,null,"Peake, Benjamin",null,null,"Facsimile",null,null,"No burial record",null,null,null,null,null,null,null,null,null,null,"AM","0000000003","0000000004","0000000003","AM000000000300000000043"]
["AM",3,4,4,"AM/3/4/4","File","Inventory of Thomas Richers","CJH","The Inventory of Thomas Richers who died in 1704",1704,"One A4 sheet","Copy in public domain",null,null,null,null,null,null,null,"© Norfolk Record Office","English","Inventories",null,null,"Martham",null,null,"Richers, Thomas",null,null,"Facsimile",null,null,"Christopher Barnes, appraiser",null,null,null,null,null,null,null,null,null,null,"AM","0000000003","0000000004","0000000004","AM000000000300000000044"]
["AM",3,4,5,"AM/3/4/5","File","Inventory of Willaim Westgate","CJH","The Inventory of William Westgate who died in 1714",1714,"One A4 sheet","Original",null,null,null,null,null,null,null,"© Norfolk Record Office","English","Inventories",null,null,"Martham",null,null,"Westgate, William",null,null,"Transcripts",null,null,"NRO DN/INV 72 No. 372 (MF/X/19)",null,null,null,null,null,null,null,null,null,null,"AM","0000000003","0000000004","0000000005","AM000000000300000000045"]
["AM",3,4,6,"AM/3/4/6","File","Will of John Littleboy","CJH","The Will of John Littleboy who died in 1723",1723,"Three A4 sheets","Copy in public domain",null,null,null,null,null,null,null,"© Norfolk Record Office","English","Wills","Yeomanry",null,"Martham",null,null,"Littleboy, John",null,null,"Facsimile","Transcripts",null,"NRO DCN/IV/410","Family Tree (See AM/3/6/2)",null,null,null,null,null,null,null,null,null,"AM","0000000003","0000000004","0000000006","AM000000000300000000046"]
["AM",3,4,7,"AM/3/4/7","File","Inventory c.1727","CJH","The Inventory of (illegible name) who died in 1727",1727,"One A3 sheet","Copy in public domain",null,null,null,null,null,null,null,"© Norfolk Record Office","English","Inventories",null,null,"Martham",null,null,"(illegible)",null,null,"Facsimile",null,null,"NRO DCN 73/4/3 (Robert Sutfield appraiser)",null,null,null,null,null,null,null,null,null,null,"AM","0000000003","0000000004","0000000007","AM000000000300000000047"]
["AM",3,4,8,"AM/3/4/8","File","Will of Christopher Barn(e)s","CJH","The Will of Christopher Barn(e)s who died in 1727",1727,"Three A4 sheets","Copy in public domain",null,null,null,null,null,null,null,"© Norfolk Record Office","English","Wills","Yeomanry",null,"Martham",null,null,"Barn(e)s, Christopher",null,null,"Facsimile","Transcripts",null,"NRO MF/RO v69","Family Tree (See AM/3/6/1)",null,null,null,null,null,null,null,null,null,"AM","0000000003","0000000004","0000000008","AM000000000300000000048"]
["AM",3,4,"8/1","AM/3/4/8/1","File","Inventory of Christopher Barn(e)s","CJH","The Inventory of Christopher Barn(e)s who died in 1727",1727,"One A3 sheet","Copy in public domain",null,null,null,null,null,null,null,"© Norfolk Record Office","English","Inventories","Yeomanry",null,"Martham",null,null,"Barn(e)s, Christopher",null,null,"Facsimile",null,null,"NRO DCN 73/4/4","Family Tree (See AM/3/6/1)",null,null,null,null,null,null,null,null,null,"AM","0000000003","0000000004","00000008/1","AM000000000300000000048/1"]
["AM",3,4,"8/2","AM/3/4/8/2","File","Inventory of Christopher Barn(e)s","CJH","The Inventory of Christopher Barn(e)s who died in 1727",1727,"One A4 sheet","Original",null,null,null,null,null,null,null,null,"English","Inventories","Yeomanry",null,"Martham",null,null,"Barn(e)s, Christopher",null,null,"Transcripts",null,null,"Transcript by Ann Meakin","Family Tree (See AM/3/6/1)",null,null,null,null,null,null,null,null,null,"AM","0000000003","0000000004","00000008/2","AM000000000300000000048/2"]
["AM",3,4,"8/3","AM/3/4/8/3","File","Will of Christopher Barn(e)s","CJH","The Will of Christopher Barn(e)s who died in 1727",1727,"Two A4 sheets","Copy in public domain",null,null,null,null,null,null,null,"© Norfolk Record Office","English","Wills","Yeomanry",null,"Martham",null,null,"Barn(e)s, Christopher",null,null,"Facsimile","Transcripts",null,"NRO Ref DCN MF/RO/V/69 Transcript by Ann Meakin","Family Tree (See AM/3/6/1)",null,null,null,null,null,null,null,null,null,"AM","0000000003","0000000004","00000008/3","AM000000000300000000048/3"]
["AM",3,4,9,"AM/3/4/9","File","Will of Daniel Rust","CJH","The Will of Daniel Rust who died in 1727",1727,"Five A4 sheets","Copy in public domain",null,null,null,null,null,null,null,"© Norfolk Record Office","English","Wills","Husbandman",null,"Martham",null,null,"Rust, Daniel",null,null,"Transcripts","Facsimile",null,"NRO DCN MF/RO/V/73/5/4",null,null,null,null,null,null,null,null,null,null,"AM","0000000003","0000000004","0000000009","AM000000000300000000049"]
["AM",3,4,10,"AM/3/4/10","File","Will of Richard Maries","CJH","The Will of the Reverend Richard Maries, vicar of Martham who died in 1728",1728,"Four A4 sheets & One A3 sheet","Copy in public domain",null,null,null,null,null,null,null,"© Norfolk Record Office","English","Wills","Clergy",null,"Martham",null,null,"Maries, Richard",null,null,"Transcripts","Facsimile",null,"NRO DCN 52/F/84",null,null,null,null,null,null,null,null,null,null,"AM","0000000003","0000000004","0000000010","AM0000000003000000000410"]
["AM",3,4,"10/1","AM/3/4/10/1","File","Inventory of Richard Maries","CJH","The Inventory of the Reverend Richard Maries. Vicar of Martham who died in 1728",1728," One A3 sheet & Five A4 sheets","Copy in public domain",null,null,null,null,null,null,null,"© Norfolk Record Office","English","Inventories","Clergy",null,"Martham",null,null,"Maries, Richard",null,null,"Facsimile","Transcripts",null,"NRO DCN 73/4/5",null,null,null,null,null,null,null,null,null,null,"AM","0000000003","0000000004","00000010/1","AM0000000003000000000410/1"]
["AM",3,4,11,"AM/3/4/11","File","Inventory of John Kearns","CJH","The Inventory of John Kearns who died in 1728",1728,"Four A4 sheets","Copy in public domain",null,null,null,null,null,null,null,"© Norfolk Record Office","English","Inventories",null,null,"Martham",null,null,"Kearns, John",null,null,"Facsimile","Transcripts",null,"NRO Reference not stated",null,null,null,null,null,null,null,null,null,null,"AM","0000000003","0000000004","0000000011","AM0000000003000000000411"]
["AM",3,4,12,"AM/3/4/12","File","Inventory of Stannow Richers","CJH","The Inventory of Stannow Richers who died in 1728",1728,"Two A4 sheets","Copy in public domain",null,null,null,null,null,null,null,"© Norfolk Record Office","English","Inventories",null,null,"Martham",null,null,"Richers, Stannow",null,null,"Facsimile","Transcripts",null,"NRO DCN 73/4/6",null,null,null,null,null,null,null,null,null,null,"AM","0000000003","0000000004","0000000012","AM0000000003000000000412"]
["AM",3,4,13,"AM/3/4/13","File","Inventory of (illegible) c.1720s","CJH","The Inventory of (illegible name) who died in 1720s","1720s","One A4 sheet","Copy in public domain",null,null,null,null,null,null,null,"© Norfolk Record Office","English","Inventories",null,null,"Martham",null,null,"(illegible)",null,null,"Facsimile",null,null,"NRO DCN 73/4/20",null,null,null,null,null,null,null,null,null,null,"AM","0000000003","0000000004","0000000013","AM0000000003000000000413"]
["AM",3,4,14,"AM/3/4/14","File","Inventory of Robert Sutfield","CJH","The Inventory of Robert Sutfield (senior) who died in 1729",1729,"One A4 sheet","Copy in public domain",null,null,null,null,null,null,null,"© Norfolk Record Office","English","Inventories",null,null,"Martham",null,null,"Sutfield, Robert",null,null,"Facsimile",null,null,"NRO DCN 73/4/35",null,null,null,null,null,null,null,null,null,null,"AM","0000000003","0000000004","0000000014","AM0000000003000000000414"]
["AM",3,4,15,{"$f":"CONCATENATE(A175,(IF(B175<>\"\",\"/\",\"\")),B175,(IF(C175<>\"\",\"/\",\"\")),C175,(IF(D175<>\"\",\"/\",\"\")),D175)","v":"AM/3/4/15"},"File","Will of Alice Burraway","CJH","The Will of Alice Burraway who died in 1729",1729,"Four A4 sheets","Copy in public domain",null,null,null,null,null,null,null,"© Norfolk Record Office","English","Wills",null,null,"Martham",null,null,"Burraway, Alice","Johnson, Alice",null,"Facsimile",null,null,"NRO Reference not stated",null,null,null,null,null,null,null,null,null,null,{"$f":"A175","v":"AM"},{"$f":"IF(B175=\"\",\"0000000000\",RIGHT(\"0000000000\"&B175,10))","v":"0000000003"},{"$f":"IF(C175=\"\",\"0000000000\",RIGHT(\"0000000000\"&C175,10))","v":"0000000004"},{"$f":"IF(D175=\"\",\"0000000000\",RIGHT(\"0000000000\"&D175, 10))","v":"0000000015"},{"$f":"CONCATENATE(AS175,AT175,AU175,D175,)","v":"AM0000000003000000000415"}]
["AM",3,4,16,"AM/3/4/16","File","Inventory of William Hall","CJH","The Inventory of William Hall who died in 1729",1729,"One A4 sheet","Copy in public domain",null,null,null,null,null,null,null,"© Norfolk Record Office","English","Inventories",null,null,"Martham",null,null,"Hall, William",null,null,"Facsimile",null,null,"NRO Reference not stated",null,null,null,null,null,null,null,null,null,null,"AM","0000000003","0000000004","0000000016","AM0000000003000000000416"]
["AM",3,4,17,"AM/3/4/17","File","Will of Christopher Burraway","CJH","The Will of Christopher Burraway who died in 1730",1730,"Four A4 sheets","Copy in public domain",null,null,null,null,null,null,null,"© Norfolk Record Office","English","Wills","Yeomanry",null,"Martham",null,null,"Burraway, Christopher",null,null,"Facsimile",null,null,"NRO Reference not stated",null,null,null,null,null,null,null,null,null,null,"AM","0000000003","0000000004","0000000017","AM0000000003000000000417"]
["AM",3,4,18,"AM/3/4/18","File","Will of Robert Lacey","CJH","The Will of Robert Lacey who died in 1730",1730,"Three A4 sheets","Copy in public domain",null,null,null,null,null,null,null,"© Norfolk Record Office","English","Wills","Husbandman",null,"Martham",null,null,"Lacey, Robert",null,null,"Facsimile",null,null,"NRO Reference not stated",null,null,null,null,null,null,null,null,null,null,"AM","0000000003","0000000004","0000000018","AM0000000003000000000418"]
["AM",3,4,19,"AM/3/4/19","File","Will of Mary Ward","CJH","The Will of Mary Ward (widow) who died c.1736/7","c.1736/7","Three A4 sheets","Copy in public domain",null,null,null,null,null,null,null,"© Norfolk Record Office","English","Wills",null,null,"Martham",null,null,"Ward, Mary",null,null,"Facsimile",null,null,"NRO Reference not stated","Will made in 1732",null,null,null,null,null,null,null,null,null,"AM","0000000003","0000000004","0000000019","AM0000000003000000000419"]
["AM",3,4,20,"AM/3/4/20","File","Will of Ann Dixson","CJH","The Will of Ann Dixson (widow) who died c.1734","c.1734","Two A4 sheets","Copy in public domain",null,null,null,null,null,null,null,"© Norfolk Record Office","English","Wills",null,null,"Martham",null,null,"Dixson, Ann",null,null,"Facsimile",null,null,"NRO Reference not stated","Will made in 1734",null,null,null,null,null,null,null,null,null,"AM","0000000003","0000000004","0000000020","AM0000000003000000000420"]
["AM",3,4,21,"AM/3/4/21","File","Inventory of William Whitaker","CJH","The Inventory of William Whitaker who died in 1735",1735,"Two A4 sheets","Copy in public domain",null,null,null,null,null,null,null,"© Norfolk Record Office","English","Inventories","Blacksmiths",null,"Martham",null,null,"Whitaker, William",null,null,"Facsimile","Transcripts",null,"NRO Ref DN/Inv/79/E/15 (MF/X/21)","Appraised by Robert Lacey 27 April 1735",null,null,null,null,null,null,null,null,null,"AM","0000000003","0000000004","0000000021","AM0000000003000000000421"]
["AM",3,4,"21/1","AM/3/4/21/1","File","Will of William Whitaker","CJH","The Will of William Whitaker who died in 1735",1735,"Two A4 sheets","Copy in public domain",null,null,null,null,null,null,null,"© Norfolk Record Office","English","Wills","Blacksmiths",null,"Martham",null,null,"Whitaker, William",null,null,"Facsimile","Transcripts",null,null,null,null,null,null,null,null,null,null,null,null,"AM","0000000003","0000000004","00000021/1","AM0000000003000000000421/1"]
["AM",3,4,22,"AM/3/4/22","File","Inventory of Daniel Rust","CJH","The Inventory of Daniel Rust who died in 1739",1739,"Two A4 sheets","Copy in public domain",null,null,null,null,null,null,null,"© Norfolk Record Office","English","Inventories",null,null,"Martham",null,null,"Rust, Daniel",null,null,"Facsimile","Transcripts",null,"NRO Ref DCN 73/5/2","Family Tree (See AM/3/6/3)",null,null,null,null,null,null,null,null,null,"AM","0000000003","0000000004","0000000022","AM0000000003000000000422"]
["AM",3,4,23,"AM/3/4/23","File","Will of John Littleboy","CJH","The Will of John Littleboy who died in 1739",1739,"Four A4 sheets","Copy in public domain",null,null,null,null,null,null,null,"© Norfolk Record Office","English","Wills","Yeomanry",null,"Martham",null,null,"Littleboy, John","Littleboy, Elizabeth",null,"Facsimile","Transcripts",null,"NRO Ref DCN/V/196","Family Tree (See AM/3/6/2)",null,null,null,null,null,null,null,null,null,"AM","0000000003","0000000004","0000000023","AM0000000003000000000423"]
["AM",3,4,24,"AM/3/4/24","File","Will of John Littleboy","CJH","The Will of John Littleboy who died in 1745",1745,"Four A4 sheets","Copy in public domain",null,null,null,null,null,null,null,"© Norfolk Record Office","English","Wills",null,null,"Martham",null,null,"Littleboy, John","Littleboy, Elizabeth",null,"Facsimile","Transcripts",null,"NRO Ref DCN MF/RO/V/245","Family Tree (See AM/3/6/2)",null,null,null,null,null,null,null,null,null,"AM","0000000003","0000000004","0000000024","AM0000000003000000000424"]
["AM",3,4,"24/1","AM/3/4/24/1","File","Inventory of John Littleboy","CJH","The Inventory of John Littleboy who died in 1745",1745,"Five A4 sheets & One A3 sheet","Copy in public domain",null,null,null,null,null,null,null,"© Norfolk Record Office","English","Inventories",null,null,"Martham",null,null,"Littleboy, John",null,null,"Facsimile","Transcripts",null,"NRO Ref DCN 73/5/9","Family Tree (See AM/3/6/2)",null,null,null,null,null,null,null,null,null,"AM","0000000003","0000000004","00000024/1","AM0000000003000000000424/1"]
["AM",3,4,25,"AM/3/4/25","File","Will of Robert Sutfield","CJH","The Will of Robert Sutfield who died in 1652",1652,"Nine A4 sheets","Copy in public domain",null,null,null,null,null,null,null,"© Norfolk Record Office","English","Wills","Yeomanry",null,"Martham",null,null,"Sutfield, Robert",null,null,"Facsimile","Transcripts",null,"NRO Ref DCN MF/RO/73/4/62","Also Ref given as DCN/MF/RO/73/4/17 300 Family Tree (See AM/3/6/4)",null,null,null,null,null,null,null,null,null,"AM","0000000003","0000000004","0000000025","AM0000000003000000000425"]
["AM",3,4,26,"AM/3/4/26","File","Will of Benjamin Creasey","CJH","The Will of Benjamin Creasey who died in c.1754","c.1754","Seven A4 sheets Two duplicated","Copy in public domain",null,null,null,null,null,null,null,"© Norfolk Record Office","English","Wills","Gentry",null,"Martham",null,null,"Creasey, Benjamin",null,null,"Facsimile",null,null,"NRO Reference not stated",null,null,null,null,null,null,null,null,null,null,"AM","0000000003","0000000004","0000000026","AM0000000003000000000426"]
["AM",3,4,27,"AM/3/4/27","File","Inventory of John Benslin","CJH","The Inventory of John Benslin who died in 1765",1765,"One A3 sheet","Copy in public domain",null,null,null,null,null,null,null,"© Norfolk Record Office","English","Inventories",null,null,"Martham",null,null,"Benslin, John",null,null,"Facsimile",null,null,"NRO Ref DCN 73/4/23",null,null,null,null,null,null,null,null,null,null,"AM","0000000003","0000000004","0000000027","AM0000000003000000000427"]
["AM",3,4,28,"AM/3/4/28","File","Inventory of Robert Claxton","CJH","The Inventory of Robert Claxton who died in 1768",1768,"Two A4 sheets","Copy in public domain",null,null,null,null,null,null,null,"© Norfolk Record Office","English","Inventories","Gentry",null,"Martham",null,null,"Claxton, Robert",null,null,"Facsimile",null,null,"NRO Ref DCN 73/5/2",null,null,null,null,null,null,null,null,null,null,"AM","0000000003","0000000004","0000000028","AM0000000003000000000428"]
["AM",3,4,29,"AM/3/4/29","File","Will of Samuel Rust","CJH","The Will of Samuel Rust (senior) who died in 1771",1771,"One A4 sheet","Copy in public domain",null,null,null,null,null,null,null,"© Norfolk Record Office","English","Wills","Yeomanry",null,"Martham",null,null,"Rust, Samuel",null,null,"Facsimile",null,null,"NRO Reference not stated","Family Tree (See AM/3/6/3)",null,null,null,null,null,null,null,null,null,"AM","0000000003","0000000004","0000000029","AM0000000003000000000429"]
["AM",3,4,30,"AM/3/4/30","File","Will of Benjamin Sutfield","CJH","The Will of Benjamin Sutfield who died in 1781",1781,"Three A4 sheets","Copy in public domain",null,null,null,null,null,null,null,"© Norfolk Record Office","English","Wills","Gentry",null,"Martham",null,null,"Sutfield, Benjamin",null,null,"Facsimile",null,null,"NRO Reference not stated","Family Tree (See AM/3/6/4)",null,null,null,null,null,null,null,null,null,"AM","0000000003","0000000004","0000000030","AM0000000003000000000430"]
["AM",3,4,31,"AM/3/4/31","File","Will of Robert Littleboy","CJH","The Will of Robert Littleboy who died in 1784",1784,"One A4 sheet","Copy in public domain",null,null,null,null,null,null,null,"© Norfolk Record Office","English","Wills","Cordwainer",null,"Martham",null,null,"Littleboy, Robert",null,null,"Facsimile",null,null,"NRO Reference not stated","Family Tree (See AM/3/6/2)",null,null,null,null,null,null,null,null,null,"AM","0000000003","0000000004","0000000031","AM0000000003000000000431"]
["AM",3,4,32,"AM/3/4/32","File","Will of Robert Watson","CJH","The Will of Robert Watson who died in 1787",1787,"Two A3 sheets & One A4 sheet","Copy in public domain",null,null,null,null,null,null,null,"© Norfolk Record Office","English","Wills","Cordwainer",null,"Martham",null,null,"Watson, Robert",null,null,"Facsimile",null,null,"Ref 16/3/1769",null,null,null,null,null,null,null,null,null,null,"AM","0000000003","0000000004","0000000032","AM0000000003000000000432"]
["AM",3,4,33,"AM/3/4/33","File","Will of Jonathan Dawson","CJH","The Will of Jonathan Dawson, vicar of Martham, who died in 1855",1855,"Three A4 sheets","Copy in public domain",null,null,null,null,null,null,null,"© Norfolk Record Office","English","Wills","Clergy",null,"Rollesby",null,null,"Dawson, Jonathan",null,null,"Facsimile",null,null,"NRO Reference not stated","Wife Catherine",null,null,null,null,null,null,null,null,null,"AM","0000000003","0000000004","0000000033","AM0000000003000000000433"]
["AM",3,4,34,"AM/3/4/34","File","Inventory of Humphrey Bryant (Byram)","CJH","The Inventory & Transcript of Humphrey Bryant (Byram) who died in 1687",1687,"Three A4 sheets","Copy in public domain",null,null,null,null,null,null,null,"© Norfolk Record Office","English","Inventories","Fishermen",null,"Martham",null,null,"Bryant (Byram), Humphrey",null,null,"Facsimile","Transcripts",null,"NRO Ref DN/INV/73/2/14 (MF/X/19)","Transcription by Anne Meakin, revised by Mary Fewster",null,null,null,null,null,null,null,null,null,"AM","0000000003","0000000004","0000000034","AM0000000003000000000434"]
["AM",3,5,1,"AM/3/5/1","File","Notes on Somerton Wills","CJH","A transcript of the Will of Robert Rising of West Somerton, who died in 1797.  Also a link to the Will of Engle Knights of East Somerton who died without issue and left Burnley Hall to the nephew of his wife i.e. John Barker Huntingdon","Undated","One A4 sheet typed","Original",null,null,null,null,null,null,null,null,"English","Wills",null,null,"Somerton, West","Somerton, East",null,"Rising, Robert","Knights, Engle",null,"Transcripts",null,null,"NRO Ref DCN MF/54/14 & DCN MF/455/18",null,null,null,null,null,null,null,null,null,null,"AM","0000000003","0000000005","0000000001","AM000000000300000000051"]
["AM",3,6,1,"AM/3/6/1","File","Family Tree of the Barn(e)s family","CJH","A Family Tree of the Barn(e)s family from 1727-1793","1727-1793","One A4 sheet typed","Original",null,null,null,null,null,null,null,null,"English","Genealogy",null,null,"Martham",null,null,"Barn(e)s, Christopher",null,null,"Family Tree",null,null,null,null,null,null,null,null,null,null,null,null,null,"AM","0000000003","0000000006","0000000001","AM000000000300000000061"]
["AM",3,6,2,"AM/3/6/2","File","Family Tree of the Littleboy family","CJH","A Family Tree of the Littleboy family from 1696-1773","1696-1773","Four A4 sheets (Two duplicated) typed","Original",null,null,null,null,null,null,null,null,"English","Genealogy",null,null,"Martham",null,null,"Littleboy, Robert",null,null,"Family Tree",null,null,null,null,null,null,null,null,null,null,null,null,null,"AM","0000000003","0000000006","0000000002","AM000000000300000000062"]
["AM",3,6,3,"AM/3/6/3","File","Family Tree of the Rust family","CJH","A Family Tree of the Rust family from 1701-1771","1701-1771","Four A4 sheets typed","Original",null,null,null,null,null,null,null,null,"English","Genealogy",null,null,"Martham",null,null,"Rust, Daniel",null,null,"Family Tree",null,null,null,null,null,null,null,null,null,null,null,null,null,"AM","0000000003","0000000006","0000000003","AM000000000300000000063"]
["AM",3,6,4,"AM/3/6/4","File","Family Tree of the Sutfield family","CJH","A Family Tree of the Sutfield family from 1693-1796","1693-1796","Two A4 sheets typed","Original",null,null,null,null,null,null,null,null,"English","Genealogy",null,null,"Martham",null,null,"Sutfield, Robert",null,null,"Family Tree",null,null,null,null,null,null,null,null,null,null,null,null,null,"AM","0000000003","0000000006","0000000004","AM000000000300000000064"]
["AM",3,7,1,"AM/3/7/1","File","Newspaper cutting - The Skillet","CJH","A newspaper cutting from Eastern Daily Press describing the utensil known as a Skillet - by Mike Hicks of Hicks Antiques, Stalham, Norfolk",null,"One cutting","Copy in public domain",null,null,null,null,null,null,null,"© Eastern Daily Press","English","Kitchenalia",null,null,null,null,null,null,null,null,"Newspaper cuttings",null,null,null,null,null,null,null,null,null,null,null,null,null,"AM","0000000003","0000000007","0000000001","AM000000000300000000071"]
["AM",3,8,1,"AM/3/8/1","File","Introductory book list - Palaeography","CJH","A list of Introductory Books on the subject of Palaeography",null,"One typed A4 sheet","Original",null,null,null,null,null,null,null,null,"English","Palaeography",null,null,null,null,null,null,null,null,"Publications",null,null,null,null,null,null,null,null,null,null,null,null,null,"AM","0000000003","0000000008","0000000001","AM000000000300000000081"]
["AM",3,9,1,"AM/3/9/1","File","Reading Tudor & Stuart handwriting","CJH","A brief guide to reading and interpreting Tudor & Stuart handwriting",null,"One double-side A4 sheet","Copy in public domain",null,null,null,null,null,null,null,null,"English","Palaeography",null,null,null,null,null,null,null,null,"Handwriting, medieval",null,null,"Extract: Alphabets from A. Wright's Court Hand Restored (5th Ed., 1818, plates 18, 19) iluustrating a variety of forms of letters mainly but not entirely from C16 & C17 Legal and Chancery hands.",null,null,null,null,null,null,null,null,null,null,"AM","0000000003","0000000009","0000000001","AM000000000300000000091"]
["AM",4,null,null,"AM/4","Series","Pink Ring Binder","CJH",null,null,null,null,null,null,null,null,null,null,null,null,null,null,null,null,null,null,null,null,null,null,null,null,null,null,null,null,null,null,null,null,null,null,null,null,"AM","0000000004","0000000000","0000000000","AM00000000040000000000"]
["AM",4,1,null,"AM/4/1","File","List of Contents for Pink Ring Binder","CJH","A List of Contents for the Pink ring binder, giving brief descriptions of documents contained within relating to Martham Charities, Education & Apprenticeships, Church Terriers","2021-03-01","Four A4 sheets typed","Original",null,null,null,null,null,null,"Open",null,"English","Charitable Bequests","Education","Church Terriers","Martham",null,null,null,null,null,"Contents List",null,null,null,"See also the article \"The History of Poors Land in Norfolk\" on the computer.",null,null,null,null,null,null,null,null,null,"AM","0000000004","0000000001","0000000000","AM00000000040000000001"]
["AM",4,1,1,"AM/4/1/1","File","Extract (photocopy) from report \"Further Report of the Commissioners For Inquiring Concerning Charities\" regarding Martham, from the Charity Commissioners report on Charities in Norfolk between 1815 and 1839","CJH","Details from a report by the Charity Commissioners on Charities in Norfolk between 1815 and 1839.  A (photocopied) extract from a report entitled \"Further Report of the Commissioners For Inquiring Concerning Charities\" appertaining to the county of Norfolk, and in particular, the Parish of Martham.  Pages 269-271.","1815-1839","Three A3 sheets, single-sided","Copy in public domain",null,null,null,null,null,null,"Open",null,"English","Charitable Bequests","Education","Bowman's Charity","Martham","Schoolhouse",null,"Sarah Bowman","Christopher Amies",null,"Charities Commission","Reports, business",null,null,null,null,null,null,null,null,null,null,null,null,"AM","0000000004","0000000001","0000000001","AM000000000400000000011"]
["AM",4,1,2,"AM/4/1/2","File","Notes re: Sarah Bowman's charity from the Overseers Accounts Book for Martham","CJH","A note by AM re: Mrs Sarah Bowman's charity with respect to the setting up of a Charity for the education of 6 poor children of the Parish of Martham.  Information taken from the Overseers Accounts Book.","14/6/1816","One typed A4 sheet","Original",null,null,null,null,null,null,"Open",null,"English","Charitable Bequests","Education","Bowman's Charity","Martham","Church",null,"Sarah Bowman","Rev. Thomas Bowman",null,"Overseer's Account Books",null,null,null,"From Ann Meakin's book: Glimpses into the History of the Village of Martham",null,null,null,null,null,null,null,null,null,"AM","0000000004","0000000001","0000000002","AM000000000400000000012"]
["AM",4,1,3,"AM/4/1/3","File","Extract (photocopy) re: Martham Endowments, taken from \"General Digest of Endowed Charities for certain Counties and Cities in England\" 14th report.","CJH","Martham Endowments listed in the 14th Report of \"General Digest of Endowed Charities for certain Counties and Cities in England\".  Dated 1862-64","1862-64","One photocopied A3 sheet","Copy in public domain",null,null,null,null,null,null,"Open",null,"English","Charitable Bequests",null,"Bowman's Charity","Martham",null,null,"Sarah Bowman",null,null,"Reports, business",null,null,null,null,null,null,null,null,null,null,null,null,null,"AM","0000000004","0000000001","0000000003","AM000000000400000000013"]
["AM",4,1,4,"AM/4/1/4","File","Notes on Martham Educational Charity after 1880","CJH","Notes describing the Martham Educational Charity after 1880.  Giving details of provision of free boots for poor children up to the 1950s.","1880-1950","One A4 typed sheet","Original",null,null,null,null,null,null,"Open","©Ann Meakin","English","Charitable Bequests","Bootmaker",null,"Martham","School",null,"Sarah Bowman","Diana Creasey","Christopher Amys","Report",null,null,null,null,null,null,null,null,null,null,null,null,null,"AM","0000000004","0000000001","0000000004","AM000000000400000000014"]
["AM",4,1,5,"AM/4/1/5","File","An Agreement made by Martham Educational Charity Trustees to lease the Old School House.","CJH","An Agreement made 11 October 1910 between the Trustees of the Martham General Educational Charity and Joseph Edward Debbage and Horace John Debbage both of Martham, to lease to them the Old School House and garden and premises for seven years from the 11 October 1910.","1910-10-11","One stamped sheet 41.5cm x 33cm","Original",null,null,null,null,null,null,"Restricted",null,"English","Schools","Corn/Flour Merchant",null,"Martham","Schoolhouse",null,"Joseph Edward Debbage","Horace John Debbage","Daniel Rust","Agreement",null,null,null,"This is an Original Document and should probably be lodged at the Norfolk Record Office",null,null,null,null,null,null,null,null,null,"AM","0000000004","0000000001","0000000005","AM000000000400000000015"]
["AM",4,1,6,"AM/4/1/6","File","Letter from Charity Commissioners to Revd P H Rye, re: Charity of William Rising","CJH","A letter dated 9 August 1966  from the Charity Commissioners to the Reverend P H Rye (Vicar of Martham) re: the Charity of William Rising, stating that there is £22 15s 4d in the account that could be spent and asking for help in reorganising the Charity and appointing new trustees.","1966-08-09","One typed letter, two pages A4 ","Copy in private hands",null,null,null,null,null,null,"Open",null,"English","Charitable Bequests","Advice","Accounts","Martham","Church","West Somerton","Revd P H Rye","William Rising",null,"Charities Commission","Letters, letter","Accounts",null,null,null,null,null,null,null,null,null,null,null,"AM","0000000004","0000000001","0000000006","AM000000000400000000016"]
["AM",4,1,7,"AM/4/1/7","File","Letter from Charity Commissioners to Revd P H Rye, requesting action on the Charity of William Rising as previously requested.","CJH","A letter dated 14 October 1966 from the Charity Commissioners to the Reverend P H Rye (Vicar of Martham) requesting action on the Charity of William Rising to take place as previously requested.","1966-10-14","One typed letter, two pages A4 ","Copy in private hands",null,null,null,null,null,null,"Open",null,"English","Charitable Bequests","Advice","Accounts","Martham","Church","West Somerton","Revd P H Rye","William Rising",null,"Charities Commission","Letters, letter","Accounts",null,null,null,null,null,null,null,null,null,null,null,"AM","0000000004","0000000001","0000000007","AM000000000400000000017"]
["AM",4,1,8,"AM/4/1/8","File","Letter from Charity Commissioners to Revd R Cooling re: Charity of William Rising and asking him to take action.","CJH","A letter dated 24 September 1968 from the Charity Commissioners to the Reverend R Cooling (Vicar of Martham) re: the Charity of William Rising and asking him to take action on the matter as the help previously requested had not been forthcoming.","1968-09-24","One typed letter, two pages A4 ","Copy in private hands",null,null,null,null,null,null,"Open",null,"English","Charitable Bequests","Advice","Accounts","Martham","Church","West Somerton","Revd R Cooling","William Rising",null,"Charities Commission","Letters, letter","Accounts",null,null,null,null,null,null,null,null,null,null,null,"AM","0000000004","0000000001","0000000008","AM000000000400000000018"]
["AM",4,1,9,"AM/4/1/9","File","Letter from Charity Commissioners to Daynes, Chittock & Back, solicitors, re: Charity of William Rising.","CJH","A letter dated 15 December 1969 from the Charity Commissioners to Daynes, Chittock & Back, solicitors, re: the Charity of William Rising.  The Reverend R Cooling (Vicar of Martham) had made a suggestion that is not acceptable to the Charity Commission.","1969-12-15","One typed letter, two pages (stuck together) A4 ","Copy in private hands",null,null,null,null,null,null,"Open",null,"English","Charitable Bequests","Advice","Accounts","Martham","Church","West Somerton","Daynes, Chittock & Back","William Rising",null,"Charities Commission","Letters, letter","Accounts",null,"This letter has its two pages stuck together and therefore has remained partly unread.",null,null,null,null,null,null,null,null,null,"AM","0000000004","0000000001","0000000009","AM000000000400000000019"]
["AM",4,1,10,"AM/4/1/10","File","Letter from Daynes, Chittock & Back solicitors, to Revd R Cooling, re: William Rising Charity, requesting details of trustees of the Martham & West Somerton Poors Allotments.","CJH","A letter dated 22 December 1969 from Daynes, Chittock & Back, solicitors, to the Reverend R Cooling (Vicar of Martham) re: the William Rising Charity.  Requesting details of the trustees of the Martham and West Somerton Poors Allotments, and Martham Educational Charities, saying that this matter had been referred to the Department of Education and Science.","1969-12-22","1 typed letter, Quarto 203mm x 254mm","Original",null,null,null,null,null,null,"Open","©J F C Mills","English","Charitable Bequests","Education","Poor's Allotment","Martham","West Somerton","Church","Daynes, Chittock & Back","William Rising","Revd R Cooling","Charities Commission","Letters, letter",null,null,null,null,null,null,null,null,null,null,null,null,"AM","0000000004","0000000001","0000000010","AM0000000004000000000110"]
["AM",4,1,11,"AM/4/1/11","File","Letter from Dept of Education & Science to Daynes, Chittock & Back, solicitors, re: Martham Church Educational Charity.","CJH","A letter dated 20 July 1972 from the Department of Education and Science to Daynes, Chittock & Back, solicitors, re: Martham Church Educational Charity, saying that the Vicar and Churchwardens are the Trustees and must accept responsibility for it.","1972-07-20","1 typed letter A4, signed by M E Malt (Legal Branch)","Original",null,null,null,null,null,null,"Open","©Dept of Education & Science","English","Charity","Education",null,"Martham",null,null,"Daynes, Chittock & Back","Revd R Cooling",null,"Letters, letter","Accounts",null,null,null,null,null,null,null,null,null,null,null,null,"AM","0000000004","0000000001","0000000011","AM0000000004000000000111"]
["AM",4,1,12,"AM/4/1/12","File","Letter from Mr A Bridges to the Charity Commissioners inquiring about Martham charities","CJH","A carbon copy of a letter dated 28 March 1976 from Mrs A Bridges to the Charity Commissioners inquiring about Martham charities.","1976-03-28","1 typed letter, carbon copy, Quarto 203mm x 254mm","Copy in private hands",null,null,null,null,null,null,"Open","©Mrs Ann Bridges","English","Charity",null,null,"Martham",null,null,"Charity Commissioners",null,null,"Letters, letter","Charities Commission",null,null,null,null,null,null,null,null,null,null,null,null,"AM","0000000004","0000000001","0000000012","AM0000000004000000000112"]
["AM",4,1,13,"AM/4/1/13","File","Letter from Charity Commission to Mrs A Bridges, listing 5 registered charities and 4 unregistered charities for Martham.","CJH","A letter dated 4 May 1976 from the Charity Commission to Mrs A Bridges, listing the five charities registered for Martham and four unregistered charities.  The Martham General Educaion Charity was formed in 1882 by the amalgamation of four existing charities.  In 1897 that Charity was divided into two charities - The General Educational Charity and The Church Educational Charity.  There are accompanying notes (see AM/4/1/13/1)","1976-05-04","1 typed letter, three pages, A4","Original",null,null,null,null,null,null,"Open","©Charity Commission","English","Charity",null,null,"Martham",null,null,"General Educational Charity","Church Educational Charity",null,"Letters, letter","Charities Commission",null,"Accompanying notes about Trustees being able to set apart suitable portions of a Charitable Trust in allotments, as prescribed by and subjetc to the provisions of the Allotments Extension Act, 1882.  (See AM/4/1/13/1)",null,null,null,null,null,null,null,null,null,null,"AM","0000000004","0000000001","0000000013","AM0000000004000000000113"]
["AM",4,1,"13/1","AM/4/1/13/1","File","Notes relating to the provisions of the Allotments Extension Act, 1882","CJH","Notes describing how Trustees are able to set apart suitable portions of a Charitable Trust in allotments, as prescribed by and subject to the provisions of the Allotments Extension Act, 1882.","1976-05-04","2 pages, Foolscap 203mm x 330mm","Copy in public domain",null,null,null,null,null,null,"Open",null,"English","Trusts and Trustees","Accounts",null,null,null,null,null,null,null,"Accounts",null,null,"Notes referred to in AM/4/1/13",null,null,null,null,null,null,null,null,null,null,"AM","0000000004","0000000001","00000013/1","AM0000000004000000000113/1"]
["AM",4,1,14,"AM/4/1/14","File","Letter from Mrs A Bridges to Revd A Cunnington, enclosing a copy of AM/4/1/13 & AM/4/1/13/1","CJH","A handwritten letter dated 12 July 1976 from Mrs A Bridges to Revd A Cunnington enclosing a copy of the information she had received from The Charity Commission, with their letter to her dated 4/5/1976 and two pages of typed notes.","1976-07-12","1 handwritten letter, 1 page 125mm x 202mm","Original",null,null,null,null,null,null,"Open","©A Bridges","English","Trusts and Trustees","Accounts",null,null,null,null,"Revd Alan Cunnington",null,null,"Accounts",null,null,"Additional photocopies of AM/4/1/13 & AM/4/1/13/1 included with this letter",null,null,null,null,null,null,null,null,null,null,"AM","0000000004","0000000001","0000000014","AM0000000004000000000114"]
["AM",4,1,15,"AM/4/1/15","File","Letter from Revd A Cunnington to Mrs A Bridges referring to her letter previously sent.","CJH","A typed letter dated 14 Jul 1976 from the Revd A Cunnington (Vicar of Martham) to Mrs A Bridges thanking her for her letter of 12 July 1976 and her letter to the PCC Secretary regarding the marble busts stored in the shed at the back of the church.","1976-07-14","1 type letter, A5 147mm x 210mm, 1 page","Original",null,null,null,null,null,null,"Open",null,"English","Charitable Bequests","Sculpture",null,"Martham",null,null,"Revd Alan Cunnington","Mrs Ann Bridges",null,"Letters, letter","Charities Commission",null,null,null,null,null,null,null,null,null,null,null,null,"AM","0000000004","0000000001","0000000015","AM0000000004000000000115"]
["AM",4,1,16,"AM/4/1/16","File","Letter from The Official Custodian for Charities to Revd R Cooling re: Martham Church Educational Charity.","CJH","A typed letter dated 8 February 1977 from The Official Custodian for Charities to the Revd R Cooling (Vicar of Martham) re: Martham Church Educational Charity, requesting the completion of a dividend mandate form.","1977-02-08","1 typed letter, A5 147mm x 210mm, 1 page.  Attached to four further typed letters of varying sizes relating to subsequent correspondence.","Original",null,null,null,null,null,null,"Open",null,"English","Charity","Accounts",null,"Martham",null,null,"Revd R Cooling","Martham Church Educational Charity",null,"Letters, letter","Dividend Mandate",null,"The following letters are attached:\nLetter dated 21/2/1977 from Martham PCC Treasurer to Barclays Bank, Gt Yarmouth (AM/4/1/17)\nLetter dated 24/2/1977 from Barclays Bank, Gt Yarmouth to Martham PCC Treasurer (AM/4/1/18)\nLetter dated 2/3/1977 from Martham PCC Treasurer to Barclays Bank, Gt Yarmouth (AM/4/1/19)\nLetter dated 7/3/1977 from Martham PCC Treasurer to The Official Custodian for Charities (AM/4/1/20)",null,null,null,null,null,null,null,null,null,null,"AM","0000000004","0000000001","0000000016","AM0000000004000000000116"]
["AM",4,1,17,"AM/4/1/17","File","Copy of letter from Martham PCC Treasurer to Barclays Bank re: Martham Church Educational Charity and Jillings Charity.","CJH","A carbon copy of a letter dated 21 February 1977 from the Martham PCC Treasurer to The Manager, Barclays Bank, Gt Yarmouth, re: the accounts of Martham Church Educational Charity and the Jillings Charity.","1977-02-21","1 typed letter of two pages A5, carbon copy.","Copy in private hands",null,null,null,null,null,null,null,"©Martham PCC","English","Charitable Bequests","Accounts",null,"Martham",null,null,"Martham PCC Treasurer","Martham Church Educational Charity","Jillings Charity","Letters, letter",null,null,null,"Jillings Charity refers to that set up by the Charity of Jemima Barter Jillings",null,null,null,null,null,null,null,null,null,"AM","0000000004","0000000001","0000000017","AM0000000004000000000117"]
["AM",4,1,18,"AM/4/1/18","File","Letter from Barclays Bank, Gt Yarmouth, to Martham PCC Treasurer","CJH","A letter dated 24 February 1977 from Barclays Bank, Gt Yarmouth, to Martham PCC Treasurer (Mr K Kay) requesting completion of Appointment of Bankers forms for the Martham Church Educational Charity and the Charity of Jemima Barter Jillings.","1977-02-24","1 headed letter 8.25\" x 7.75\"","Original",null,null,null,null,null,null,null,"©Barclays Bank Ltd","English","Charitable Bequests","Banks and Banking",null,"Martham",null,null,"Martham PCC Treasurer","Martham Church Educational Charity","Jillings Charity","Letters, letter",null,null,null,null,null,null,null,null,null,null,null,null,null,"AM","0000000004","0000000001","0000000018","AM0000000004000000000118"]
["AM",4,1,19,"AM/4/1/19","File","Copy of letter from Martham PCC Treasurer to Barclays Bank re: Martham Church Educational Charity and Jillings Charity.","CJH","A carbon copy of a covering letter dated 2 March 1977 from the Martham PCC Treasurer to the Manager of Barclays Bank, Gt Yarmouth, enclosing two completed Appointment of Bankers forms for the two Martham Church charities.","1977-03-02","1 typed letter A5, carbon copy","Copy in private hands",null,null,null,null,null,null,null,"©Martham PCC","English","Banks and Banking","Charitable Bequests",null,"Martham",null,null,"Martham PCC Treasurer","Martham Church Educational Charity","Jillings Charity","Letters, letter",null,null,null,null,null,null,null,null,null,null,null,null,null,"AM","0000000004","0000000001","0000000019","AM0000000004000000000119"]
["AM",4,1,20,"AM/4/1/20","File","Copy of letter from Martham PCC Treasurer to The Officlal Custodian for Charities, enclosing completed dividend mandate forms.","CJH","A carbon copy of a letter dated 7 March 1977 from the Martham PCC Treasurer (Mr K Kay) to the Official Custodian for Charities, enclosing two completed dividend mandate forms for two Church Charities.","1977-03-07","1 typed letter A4, signed by K Kay, Martham PCC Treasurer, carbon copy","Copy in private hands",null,null,null,null,null,null,"Open","©Martham PCC","English","Charitable Bequests","Banks and Banking",null,"Martham",null,null,"Martham PCC Treasurer","Martham Church Educational Charity","Jillings Charity","Letters, letter","Charities Commission",null,null,null,null,null,null,null,null,null,null,null,null,"AM","0000000004","0000000001","0000000020","AM0000000004000000000120"]
["AM",4,1,21,{"$f":"CONCATENATE(A228,(IF(B228<>\"\",\"/\",\"\")),B228,(IF(C228<>\"\",\"/\",\"\")),C228,(IF(D228<>\"\",\"/\",\"\")),D228)","v":"AM/4/1/21"},"File","Copy of letter from Charity Commission to Revd R Cooling (Vicar of Martham) suggesting charities be updated to be more applicable to modern social conditions.","CJH","A copy of a letter dated 8 January 1979 from K Dibble of The Charity Commission, to Reverend R Cooling (Vicar of Martham), suggesting that the charities might be updated to be more applicable to modern social conditions.  Also requesting the names of the current trustees.","1979-01-08","1 typed letter, Foolscap","Copy in private hands",null,null,null,null,null,null,"Open","©Charity Commission","English","Charitable Bequests","Trusts and Trustees",null,"Martham",null,null,"Revd R Cooling","Charity Commission",null,"Letters, letter","Charities Commission",null,null,null,null,null,null,null,null,null,null,null,null,"AM","0000000004","0000000001","0000000021","AM0000000004000000000121"]
["AM",4,1,"21/1",{"$f":"CONCATENATE(A229,(IF(B229<>\"\",\"/\",\"\")),B229,(IF(C229<>\"\",\"/\",\"\")),C229,(IF(D229<>\"\",\"/\",\"\")),D229)","v":"AM/4/1/21/1"},"File","Handwritten note from Mrs A Bridges to Revd A Cunnington (Vicar of Martham) giving her comments on letter (AM/4/1/21).","CJH","A handwritten note (undated) from Mrs Ann Bridges to the Reverend Alan Cunnington (Vicar of Martham) giving her comments on the letter received from the Charities Commissioners dated 8 January 1979, and stating that the money appears to be going into the wrong account.","c. Jan 1979","Handwritten Note, 1 page A4","Original",null,null,null,null,null,null,"Open","©Ann Bridges","English","Charitable Bequests",null,null,"Martham",null,null,"Mrs Ann Bridges","Revd E A Cunnington",null,"Personal correspondence","Charities Commission",null,null,null,null,null,null,null,null,null,null,null,null,"AM","0000000004","0000000001","00000021/1","AM0000000004000000000121/1"]
["AM",4,1,"21/2","AM/4/1/21/2","File","Letter from Charity Commission to Revd E A Cunnington (Vicar of Martham) enclosing a copy of letter dated 8/1/1979.","CJH","A letter dated 24 April 1979 from the Charity Commission to the Reverend E A Cunnington (Vicar of Martham), enclosing a copy of letter dated 8 January 1979 (AM/4/1/21)","1979-04-24","1 typed letter, A5","Original",null,null,null,null,null,null,"Open","©Charity Commission","English","Charitable Bequests",null,null,"Martham",null,null,"Revd E A Cunnington","Charity Commission",null,"Letters, letter",null,null,null,null,null,null,null,null,null,null,null,null,null,"AM","0000000004","0000000001","00000021/2","AM0000000004000000000121/2"]
["AM",4,1,22,"AM/4/1/22","File","Copy of the Charity Commission decision to amalgamate the Creasy, Bowman & Amies Charities.","CJH","A photocopy from the Charity Commission of the decision made in 1882 to amalgamate the Diana Creasy, Sarah Bowman & Christopher Amies Charities in the Parish of Martham.","30/11/1882","Photocopy, 12-pages Foolscap, single-sided","Copy in public domain",null,null,null,null,null,null,"Open","©Charity Commission","English","Charitable Bequests",null,null,"Martham",null,null,"Diana Creasy","Sarah Bowman","Christopher Amys","Charities Commission","Report",null,null,null,null,null,null,null,null,null,null,null,null,"AM","0000000004","0000000001","0000000022","AM0000000004000000000122"]
["AM",4,1,23,"AM/4/1/23","File","Copy of the Charity Commission decision to create The General Educational Charity and The Church Educational Charity.","CJH","A photocopy from the Charity Commission of the decision made in 1897 to create The Church Educational Charity and The General Educational Charity in the Parish of Martham.","29/10/1897","Photocopy, 2-pages Foolscap, single-sided","Copy in public domain",null,null,null,null,null,null,"Open","©Charity Commission","English","Charitable Bequests",null,null,"Martham",null,null,"Charity Commissioners",null,null,"Report","Trusts",null,null,null,null,null,null,null,null,null,null,null,null,"AM","0000000004","0000000001","0000000023","AM0000000004000000000123"]
["AM",4,1,24,"AM/4/1/24","File","Copy of the Charity Commission decision to transfer part of The General Educational Charity to a separate bank account entitled The Infirmary or Providence Charity.","CJH","A photocopy from the Charity Commission, of the decision made in 1906, to transfer part of The General Educational Charity funds into a separate bank account in the name of \"The Infirmary or Providence Charity\".","1906-08-31","Photocopy, 2-pages A4, single-sided","Copy in public domain",null,null,null,null,null,null,"Open","©Charity Commission","English","Charitable Bequests","Banks and Banking",null,"Martham",null,null,"Charity Commissioners","General Educational Charity",null,"Report","Trusts","Accounts",null,null,null,null,null,null,null,null,null,null,null,"AM","0000000004","0000000001","0000000024","AM0000000004000000000124"]
["AM",4,1,25,"AM/4/1/25","File","Statement of Account form","CJH","Statement of Account form provided under the Charities Act (1960) for completion annually by charities who do not publish their own accounts.","2021-03-25","Account Form AC (A), size A3 folded in half and printed on both sides creating 4-sides.","Original",null,null,null,null,null,null,"Open",null,"English","Banks and Banking","Accounts",null,null,null,null,"Charity Commissioners",null,null,"Statement of Accounts","Blank forms","Accounts","Two copies of this form included.",null,null,null,null,null,null,null,null,null,null,"AM","0000000004","0000000001","0000000025","AM0000000004000000000125"]
["AM",4,1,26,"AM/4/1/26","File","Diagram showing how Martham Charities changed through amalgamation.","CJH","A typewritten diagram by Ann Meakin showing how Martham Charities changed through amalgamation, and an undated handwritten page, c.early-1980s, by Ann Bridges, re: The Church Educational Charity, The Jillings Charity and the William Rising Charity, giving details of the small amounts of funds still available in those Charities.","Early 1980s","Two pages, A4, one handwritten, one typed.","Original",null,null,null,null,null,null,"Open","©Ann Meakin","English","Charitable Bequests","Accounts",null,"Martham",null,null,"Church Educational Charity","Jillings Charity","William Rising Charity","Trusts","Accounts",null,null,null,null,null,null,null,null,null,null,null,null,"AM","0000000004","0000000001","0000000026","AM0000000004000000000126"]
["AM",4,1,27,"AM/4/1/27","File","Undated letter from Martham Parish Council to Mrs Meakin requesting that she might consider becoming a trustee of the Martham Charities.","CJH","An undated letter from Martham Parish Council, via Reverend Peter Paine (Rector of Martham), to Mrs Meakin asking her to consider becoming one of the trustees of the Martham Charities.","Undated","One page of headed notepaper, A4, typed","Original",null,null,null,null,null,null,"Open","©Revd Peter Paine","English","Trusts and Trustees",null,null,"Martham",null,null,"Mrs Ann Meakin",null,null,"Trusts","Letters, letter",null,null,null,null,null,null,null,null,null,null,null,null,"AM","0000000004","0000000001","0000000027","AM0000000004000000000127"]
["AM",4,1,28,"AM/4/1/28","File","Agenda for the first meeting of the Martham Charity Trustees","CJH","An agenda for the first meeting of the Martham Charity Trustees, held at 72 Black Street, Martham on 30 November 1994.","1994-11-30","One A4 typed sheet, with additional handwritten notes.","Original",null,null,null,null,null,null,"Open",null,"English","Trusts and Trustees","Meetings",null,"Martham","72 Black Street, Martham",null,"Martham Charity Trustees",null,null,"Trusts","Agenda",null,null,null,null,null,null,null,null,null,null,null,null,"AM","0000000004","0000000001","0000000028","AM0000000004000000000128"]
["AM",4,1,29,"AM/4/1/29","File","Minutes of the first meeting of Martham Charity Trustees","CJH","The Minutes of the first meeting of Martham Charity Trustees, held at 72 Black Street on 30 November 1994.","1994-11-30","One A4 typed sheet","Copy in private hands",null,null,null,null,null,null,"Open",null,"English","Trusts and Trustees","Meetings",null,"Martham","72 Black Street, Martham",null,"Martham Charity Trustees",null,null,"Trusts","Minutes, Meetings",null,null,null,null,null,null,null,null,null,null,null,null,"AM","0000000004","0000000001","0000000029","AM0000000004000000000129"]
["AM",4,1,30,"AM/4/1/30","File","Leaflet giving a summary of the Responsibilities of Charity Trustees","CJH","Leaflet giving a summary of the Responsibilities of Charity Trustees.",1999,"Photocopy, A4, double-sided, one sheet.","Copy in public domain",null,null,null,null,null,null,"Open","©Crown Copyright 1999","English","Trusts and Trustees",null,null,null,null,null,"Charity Commissioners",null,null,"Trusts",null,null,null,null,null,null,null,null,null,null,null,null,null,"AM","0000000004","0000000001","0000000030","AM0000000004000000000130"]
["AM",4,1,"30/1","AM/4/1/30/1","File","Leaflet giving a summary of the regulations affecting very small charities.","CJH","A leaflet giving a summary of the regulations affecting very small charities.","Undated","Photocopy, A4, double-sided, one sheet.","Copy in public domain",null,null,null,null,null,null,"Open","©Charity Commission","English","Charity",null,null,null,null,null,"Charity Commissioners",null,null,"Charities",null,null,null,null,null,null,null,null,null,null,null,null,null,"AM","0000000004","0000000001","00000030/1","AM0000000004000000000130/1"]
["AM",4,2,null,{"$f":"CONCATENATE(A241,(IF(B241<>\"\",\"/\",\"\")),B241,(IF(C241<>\"\",\"/\",\"\")),C241,(IF(D241<>\"\",\"/\",\"\")),D241)","v":"AM/4/2"},"File","Research project \"A Study of the Opportunities for Education and Employment for the Young People of Martham in the Hundred of West Flegg in the County of Norfolk prior to 1900.","CJH","Research project, dated 2009, \"A Study of the Opportunities for Education and Employment for the Young People of Martham in the Hundred of West Flegg in the County of Norfolk prior to 1900.",2009,"18 pages, A4, including tables, appendices, Family Trees, a picture, and copy of will","Original",null,null,null,null,null,null,"Open","©Ann Meakin","English","Education","Employment",null,"Martham","West Flegg",null,"Mrs Ann Meakin",null,null,"Report",null,null,null,null,null,null,null,null,null,null,null,null,null,{"$f":"A241","v":"AM"},{"$f":"IF(B241=\"\",\"0000000000\",RIGHT(\"0000000000\"&B241,10))","v":"0000000004"},{"$f":"IF(C241=\"\",\"0000000000\",RIGHT(\"0000000000\"&C241,10))","v":"0000000002"},{"$f":"IF(D241=\"\",\"0000000000\",RIGHT(\"0000000000\"&D241, 10))","v":"0000000000"},{"$f":"CONCATENATE(AS241,AT241,AU241,D241,)","v":"AM00000000040000000002"}]
["AM",4,2,"1",{"$f":"CONCATENATE(A242,(IF(B242<>\"\",\"/\",\"\")),B242,(IF(C242<>\"\",\"/\",\"\")),C242,(IF(D242<>\"\",\"/\",\"\")),D242)","v":"AM/4/2/1"},"File","Leaflet explaining the history of Voluntary Controlled Schools & Church of England Foundation schools in the Diocese of Norwich.","CJH","Leaflet entitled 'Voluntary Controlled Schools and Church of England Foundation Schools in the Diocese of Norwich.","1999-10-01","One page, A4, printed, double-sided.","Copy in public domain",null,null,null,null,null,null,"Open",null,"English","Education",null,null,"Diocese of Norwich",null,null,"Voluntary Controlled Schools","Church of England Foundation Schools",null,"Guide, Leaflet",null,null,null,null,null,null,null,null,null,null,null,null,null,"AM","0000000004","0000000002",null,"AM000000000400000000021"]
["AM",4,2,"2",{"$f":"CONCATENATE(A243,(IF(B243<>\"\",\"/\",\"\")),B243,(IF(C243<>\"\",\"/\",\"\")),C243,(IF(D243<>\"\",\"/\",\"\")),D243)","v":"AM/4/2/2"},"File","Booklet - \"Martham School 1873-2003\".","CJH","A booklet entitled \"Martham School 1873-2003, produced by Ann Sharrock.",null,"Booklet containing 44 pages, A5 format.","Copy in public domain",null,null,null,null,null,null,"Open","©Ann Sharrock","English","Schools","Education","History Education","Martham","Victorian School",null,"Martham School","Mrs Ann Sharrock",null,"School Records","Log Books",null,null,null,null,null,null,null,null,null,null,null,null,"AM","0000000004","0000000002"]
["AM",4,2,"3",{"$f":"CONCATENATE(A244,(IF(B244<>\"\",\"/\",\"\")),B244,(IF(C244<>\"\",\"/\",\"\")),C244,(IF(D244<>\"\",\"/\",\"\")),D244)","v":"AM/4/2/3"},"File","Selected entries copied from the Martham School Log Books, covering the years Jun 1873 - Jun 1942","CJH","Selected entries copied from the Martham School Log Books, covering the years Jun 1873 - Jun 1942.","1873-1942","12 pages, A4, single-sided, typed.","Copy in public domain",null,null,null,null,null,null,"Open",null,"English","Schools","Education","Teaching","Martham","Victorian School",null,"Martham School",null,null,"School Records","Log Books",null,null,null,null,null,null,null,null,null,null,null,null,"AM","0000000004","0000000002"]
["AM",4,2,"3/1","AM/4/2/3/1","File","Selected entries copied from the Martham School Log Books, covering the years Nov 1943 - Jun 1977","CJH","Selected entries copied from the Martham School Log Books, covering the years Nov 1943 - Jun 1977.","1943-1977","26 Pages, A4, single-sided, typed.","Copy in public domain",null,null,null,null,null,null,"Open",null,"English","Schools","Education","Teaching","Martham","Victorian School",null,"Martham School",null,null,"School Records","Log Books",null,null,null,null,null,null,null,null,null,null,null,null,"AM","0000000004","0000000002","00000003/1","AM000000000400000000023/1"]
["AM",4,2,"3/2","AM/4/2/3/2","File","Selected entries copied from the Martham School Log Books, covering the years Jul 1977 - Jan 2000","CJH","Selected entries copied from the Martham School Log Books, covering the years Jul 1977 - Jan 2000.","1977-2000","11 Pages, A4, Single-sided, typed.","Copy in public domain",null,null,null,null,null,null,"Open",null,"English","Schools","Education","Teaching","Martham","Victorian School",null,"Martham School",null,null,"School Records","Log Books",null,null,null,null,null,null,null,null,null,null,null,null,"AM","0000000004","0000000002","00000003/2","AM000000000400000000023/2"]
["AM",4,2,"4","AM/4/2/4","File","School Days in Martham, booklet.","CJH","A booklet entitled \"School Days in Martham\", produced in 2009 by Martham Local History Group.",2009,"32 pages, A4 format, printed, with colour pictures.","Copy in public domain",null,null,null,null,null,null,"Open","©Martham Local History Group","English","Schools","Teaching","History Education","Martham","Victorian School",null,"Martham School",null,null,"School Records","Log Books",null,null,null,null,null,null,null,null,null,null,null,null,"AM","0000000004","0000000002","0000000004","AM000000000400000000024"]
["AM",4,3,null,"AM/4/3","File","Notes on Martham Church Terriers from 1626-1901.","CJH","Typewritten notes on Martham Church Terriers from 1626 to 1901.","2021-04-04","3 pages, A4, single-sided, in landscape table format, typed with added handwritten notes.","Original",null,null,null,null,null,null,"Open",null,"English","Church Terriers",null,null,"Martham","St Mary the Virgin",null,null,null,null,"Terrier",null,null,null,null,null,null,null,null,null,null,null,null,null,"AM","0000000004","0000000003","0000000000","AM00000000040000000003"]
["AM",4,3,"1","AM/4/3/1","File","Martham Church Terrier, dated 1626.","CJH","Photocopy of a church terrier, dated 1626, relating to glebe land by the vicarage house in Martham.",1626,"1 page, photocopy, A3, with partial handwritten transcript on separate A4 sheet","Copy in public domain",null,null,null,null,null,null,"Open","©Norfolk Record Office","English","Church Terriers","Glebe Land",null,"Martham","Vicarage",null,null,null,null,"Terrier",null,null,"NRO Ref: DN/TER/101/1/1.  Plus single page handwritten partial transcript.",null,null,null,null,null,null,null,null,null,null,"AM","0000000004","0000000003","0000000001","AM000000000400000000031"]
["AM",4,3,"2","AM/4/3/2","File","Martham Church Terrier, dated 1677.","CJH","Photocopy of a church terrier, dated 10th September 1677, relating to glebe lands and houses belonging to the Vicar of Martham.","10/9/1677","1 page, photocopy, approx 12.5\" x 8.5\", two copies, with partial handwritten transcript on two separate A4 sheets.","Copy in public domain",null,null,null,null,null,null,"Open","©Norfolk Record Office","English","Church Terriers","Glebe Land","Dwellings","Martham","Vicarage","Paradise",null,null,null,"Terrier","Transcripts",null,"NRO Ref: DN/TER/101/1/2.  Plus 2-page handwritten transcript.",null,null,null,null,null,null,null,null,null,null,"AM","0000000004","0000000003","0000000002","AM000000000400000000032"]
["AM",4,3,"3","AM/4/3/3","File","Martham Church Terrier, dated 1686.","CJH","Photocopy of a church terrier, dated 20th May 1686, relating to glebe lands in Martham.","20/5/1686","1 Page A3, 1 page A4, photocopied.","Copy in public domain",null,null,null,null,null,null,"Open","©Norfolk Record Office","English","Church Terriers","Glebe Land",null,"Martham","Paradise","Ponds",null,null,null,"Terrier",null,null,"NRO Ref: DN/TER/101/1/3.",null,null,null,null,null,null,null,null,null,null,"AM","0000000004","0000000003","0000000003","AM000000000400000000033"]
["AM",4,3,"4","AM/4/3/4","File","Martham Church Terrier, dated 1692.","CJH","Photocopy of a church terrier, dated 28th May 1692, relating to glebe land belonging to Martham Vicarage.","28/5/1692","1 page A3, photocopied, plus 1 page A4 with handwritten transcript.","Copy in public domain",null,null,null,null,null,null,"Open","©Norfolk Record Office","English","Church Terriers","Glebe Land",null,"Martham","Paradise","Ponds","Henry Curtis (Vicar)",null,null,"Terrier","Transcripts",null,"NRO Ref: DN/TER/101/1/4.  Plus single page handwritten transcript.",null,null,null,null,null,null,null,null,null,null,"AM","0000000004","0000000003","0000000004","AM000000000400000000034"]
["AM",4,3,"5","AM/4/3/5","File","Martham Church Terrier, dated 1699.","CJH","Photocopy of a church terrier, dated 10th June 1699, relating to glebe land belonging to the vicarage of Martham.","10/6/1699","2 pages, A3, photocopied, plus 2 pages A4 with handwritten transcript.","Copy in public domain",null,null,null,null,null,null,"Open","©Norfolk Record Office","English","Church Terriers","Glebe Land",null,"Martham",null,null,"Robert Lacey (churchwarden)",null,null,"Terrier","Transcripts",null,"NRO Ref: DN/TER/101/1/5.  Plus 2-page handwritten transcript.",null,null,null,null,null,null,null,null,null,null,"AM","0000000004","0000000003","0000000005","AM000000000400000000035"]
["AM",4,3,"6","AM/4/3/6","File","Martham Church Terrier, dated 1706.","CJH","Photocopy of a church terrier, dated 1706, relating to glebe lands and also land for a School House in Martham.",1706,"1 page, A3 and 1 page A4, photocopied, plus 1 page A4 with typewritten transcript.","Copy in public domain",null,null,null,null,null,null,"Open","©Norfolk Record Office","English","Church Terriers","Glebe Land","Schools","Martham",null,null,"R Maris (Vicar)","Christopher Amies",null,"Terrier","Transcripts",null,"NRO Ref: DN/TER/101/1/6.  Plus 1-page typewritten transcript.  Describes School and land that provides its income.",null,null,null,null,null,null,null,null,null,null,"AM","0000000004","0000000003","0000000006","AM000000000400000000036"]
["AM",4,3,"7","AM/4/3/7","File","Martham Church Terrier, dated 1706.","CJH","Photocopy of a church terrier, dated 22 May 1706, relating to Martham vicarage and adjoining buildings, plus various pieces of land including a piece called 'Paradise', and tithes of hay.","22/5/1706","1 page, A3 and 1 page A4, photocopied.","Copy in public domain",null,null,null,null,null,null,"Open","©Norfolk Record Office","English","Church Terriers","Church Buildings","Glebe Land","Martham",null,null,"R Maris (Vicar)","Christopher Burraway","Robert Sutfield","Terrier",null,null,"No indication of an NRO Reference number given on this document.",null,null,null,null,null,null,null,null,null,null,"AM","0000000004","0000000003","0000000007","AM000000000400000000037"]
["AM",4,3,"8","AM/4/3/8","File","Martham Church Terrier, dated 1716.","CJH","Photocopy of a church terrier, dated 30 June 1716, relating to Martham vicarage and associated pieces of land, Martham School and associated pieces of land in the East Field.  Also a list of goods, books & ornaments within the vicarage.","30/6/1716","2 pages, A3, photocopied.","Copy in public domain",null,null,null,null,null,null,"Open","©Norfolk Record Office","English","Church Terriers","Church Buildings","Schools","Martham",null,null,"Thomas Docwra (Curate)","Christopher Burraway","William Creasey (Schoolmaster)","Terrier",null,null,"NRO Ref: DN/TER/101/1/8.",null,null,null,null,null,null,null,null,null,null,"AM","0000000004","0000000003","0000000008","AM000000000400000000038"]
["AM",4,3,"9","AM/4/3/9","File","Martham Church Terrier, dated 1933.","CJH","A Church Terrier, dated 27 April 1933, relating to the Glebe and other Lands, Houses, Tenements, Tithes, Rent-charges in lieu of Tithes, Goods, Utensils, Ornaments, and all other Rights belonging to the Vicarage and Parish Church of Martham.","1933-04-27","8 pages, of various sizes approx 12.75\"x 9.25\", typed copy of original.","Copy in public domain",null,null,null,null,null,null,"Open","©Norfolk Record Office","English","Church Terriers","Church Buildings","Glebe Land","Martham",null,null,"John Hubert Griffiths (Vicar)","George Chapman","Edwin Braddock","Terrier",null,null,"No indication of an NRO Reference number given on this document. Lists \"goods, ornaments, utensils & books\" and the remains of the old cope carefully preserved.",null,null,null,null,null,null,null,null,null,null,"AM","0000000004","0000000003","0000000009","AM000000000400000000039"]
["AM",5,null,null,"AM/5","Series","Yellow Ring Folder","CJH",null,"2021-04-23",null,null,null,null,null,null,null,null,null,null,null,null,null,null,null,null,null,null,null,null,null,null,null,null,null,null,null,null,null,null,null,null,null,null,"AM","0000000005","0000000000","0000000000","AM00000000050000000000"]
["AM",5,1,null,"AM/5/1","File","Miltary Service","CJH","Index of Military Service documents.","2021-04-23",null,null,null,null,null,null,null,null,null,null,null,null,null,null,null,null,null,null,null,null,null,null,null,null,null,null,null,null,null,null,null,null,null,null,"AM","0000000005","0000000001","0000000000","AM00000000050000000001"]
["AM",5,1,"1","AM/5/1/1","File","The Miltary Survey of 1522 for the Hundred of West Flegg","CJH","Photocopy of an article by John Pound entitled \"The Military Survey of 1522 for the Hundred of West Flegg\" published in East Anglian Studies c.1988.","c.1988","5 pages, A4, photocopied single sided","Copy in public domain",null,null,null,null,null,null,null,"© John Pound","English","Military Service","Weapons","Armour","Hundred of West Flegg","Norfolk",null,null,null,null,"Publications",null,null,null,null,null,null,null,null,null,null,null,null,null,"AM","0000000005","0000000001","0000000001","AM000000000500000000011"]
["AM",5,1,"2","AM/5/1/2","File","Military Activity in the Flegg area between 1662-1815","CJH","Original, unpublished research by Ann Meakin in 2014, identifying Military Activity in the Flegg Area between the years 1662-1815.  Information gleaned from Muster Rolls held in the Norfolk Record Office.",2014,"1 page, A4, double-sided, typed","Original",null,null,null,null,null,null,null,"© Ann Meakin","English","Military Service","Militia",null,"Hundreds of East & West Flegg","Norfolk","Napoleonic Wars","Captain Leonard Mapes",null,null,"Muster Rolls",null,null,"Muster Rolls for the Hundreds of East & West Flegg in 1684, 1690 & 1700 are held in NRO Ref: PET 1100/1-10, 506 X 9\nMuster Rolls for 1662 are held under NRO Ref: BL/GT 11/1-2",null,null,null,null,null,null,null,null,null,null,"AM","0000000005","0000000001","0000000002","AM000000000500000000012"]
["AM",5,2,null,"AM/5/2","File","Parish Administration before 19th century Local Government","CJH","Index of documents relating to Parish Administration before 19th century Local Government .","2021-04-23","1 page, A4, typed",null,null,null,null,null,null,null,null,null,null,null,null,null,null,null,null,null,null,null,null,null,null,null,null,null,null,null,null,null,null,null,null,null,"AM","0000000005","0000000002","0000000000","AM00000000050000000002"]
["AM",5,2,"1","AM/5/2/1","File","List of Parish Officials from 1745-1847","CJH","List of Parish Officials for Martham from 1745-1847.  Researched by Ann Meakin from the Churchwarden Account Books.","2021-04-23","4 pages, A4, single-sided, typed","Original",null,null,null,null,null,null,null,"© Ann Meakin","English","Overseers","Churchwardens","Constables","Martham","Norfolk",null,null,null,null,"Churchwardens' Accounts",null,null,null,null,null,null,null,null,null,null,null,null,null,"AM","0000000005","0000000002",null,"AM000000000500000000021"]
["AM",5,2,"2","AM/5/2/2","File","Churchwardens' Accounts 1746-1777","CJH","A summary of Martham Churchwardens' Accounts from 1746-1777, compiled by Ann Meakin.","2021-04-23","1 page, A4, single-sided, typed","Original",null,null,null,null,null,null,null,"© Ann Meakin","English","Churchwardens","Accounts",null,"Martham","Norfolk",null,null,null,null,"Churchwardens' Accounts",null,null,null,null,null,null,null,null,null,null,null,null,null,"AM","0000000005","0000000002",null,"AM000000000500000000022"]
["AM",5,2,"3","AM/5/2/3","File","A study of the Rising Family of East Norfolk and the contributions of members of that family to the life of the local community in the 18th & 19th centuries.","CJH","An original unpublished research project of 2004 by Ann Meakin entitled \"A study of the Rising Family of East Norfolk and the contributions of members of that family to the life of the local community in the 18th & 19th centuries.\"",2004,"14 pages, A4, 10 pages typed single-sided, 1 page handwritten, 3 pages (maps) photocopied","Original",null,null,null,null,null,null,null,"© Ann Meakin","English","Family History","Land Ownership, Land Tenure",null,"East Norfolk","Martham","West Somerton","Thomas Rising","George Rsing","Robert Rising","Family Tree","Maps",null,"There are three appendices to this document:\nAppendix 1:  The Rising Family Tree (Simplified) hand-drawn\nAppendix 2: A list of Parish Officials of Martham (see also AM/5/2/1)\nAppendix 3:  Map 1 - Extract from Faden's Map of Norfolk 1797\nMap 2 - Extract from Bryant's Map of Norfolk 1826\nMap 3 - Extract from Ordnance Survey Pathfinder Map c.1980 scale of 2¼ inches to 1 mile\n",null,null,null,null,null,null,null,null,null,null,"AM","0000000005","0000000002",null,"AM000000000500000000023"]
["AM",5,3,null,"AM/5/3","File","Care of the Poor in the 18th & 19th centuries","CJH","Index of documents relating to Care of the Poor in the 18th & 19th centuries in East & West Flegg, Norfolk.","2021-04-23","2 pages, A4, typed",null,null,null,null,null,null,null,null,null,null,null,null,null,null,null,null,null,null,null,null,null,null,null,null,null,null,null,null,null,null,null,null,null,"AM","0000000005","0000000003"]
["AM",5,3,"1","AM/5/3/1","Item","Inventories of the Poor by Barbara Cornford BA","CJH","Booklet entitled \"Inventories of the Poor\" in Martham, by Barbara Cornford BA, reprinted from Norfolk Archaeology, XXXV, Part I, 1970.",1970,"Booklet containing 5 pages, 168mm x 217mm, Buff coloured card cover, printed","Original",null,null,null,null,null,null,null,"© Barbara Cornford","English","Inventories",null,null,"Martham","Norfolk",null,null,null,null,"Overseer's Account Books",null,null,null,null,null,null,null,null,null,null,null,null,null,"AM","0000000005","0000000003"]
["AM",5,3,"2","AM/5/3/2","File","\"A Study of how the Payers of the Poor Rate in the Parish of Martham in the County of Norfolk were affected by the Opening of the House of Industry at Rollesby\" by Ann Meakin","CJH","An original unpublished research project of 2000 by Ann Meakin, entitled \"A Study of how the Payers of the Poor Rate in the Parish of Martham in the County of Norfolk were affected by the Opening of the House of Industry at Rollesby\".",2000,"16 Pages, A4, mixture of typed, handwritten and photocopied pages.  Includes 5 Tables and a Map extract from Fadens map of 1797","Original",null,null,null,null,null,null,null,"© Ann Meakin","English","Poor's Allotment","House of Industry",null,"Martham","Rollesby","Norfolk",null,null,null,"Overseer's Account Books","Minutes, Meetings","Maps",null,null,null,null,null,null,null,null,null,null,null,"AM","0000000005","0000000003"]
["AM",5,3,"3","AM/5/3/3","File","Settlement Certificate of William Whittaker, dated 1728","CJH","A photocopy of the Settlement Certificate of William Whittaker, dated 1728, provided by the Overseers of Blickling, Norfolk, stating that he would be supported by them if he had to apply for Parish Relief.","13/1/1728","1 page, A4, photocopy","Copy in public domain",null,null,null,null,null,null,null,null,"English","Overseers",null,null,"Blickling","Martham","Norfolk","William Whittaker",null,null,"Settlement Certificate",null,null,null,null,null,null,null,null,null,null,null,null,null,"AM","0000000005","0000000003"]
["AM",5,3,"3/1","AM/5/3/3/1","File","Transcription of Settlement Certificate of William Whittaker, dated 1728","CJH","A transcription of the Settlement Certificate of William Whittaker by Ann Meakin","2021-04-24","1 page, A4, typed","Original",null,null,null,null,null,null,null,"© Ann Meakin","English","Overseers",null,null,"Blickling","Martham","Norfolk","William Whittaker",null,null,"Settlement Certificate","Transcripts",null,null,null,null,null,null,null,null,null,null,null,null,"AM","0000000005","0000000003"]
["AM",5,3,"4","AM/5/3/4","File","Table of Collectioner's Benefits from 1745-1761 in the Parish of Martham","CJH","Table of Collectioner's Benefits from 1745-1761 in the Parish of Martham, researched by Ann Meakin.","2021-04-24","4 pages, A4, taped together to form an A2-sized sheet.","Original",null,null,null,null,null,null,null,"© Ann Meakin","English","Poor's Allotment",null,null,"Martham","Norfolk",null,null,null,null,"Overseer's Account Books",null,null,null,null,null,null,null,null,null,null,null,null,null,"AM","0000000005","0000000003"]
["AM",5,3,"5","AM/5/3/5","File","Table of Apprentices placed in Martham from the House of Industry at Rollesby between 1803-1830.","CJH","Table of Apprentices placed in Martham from the House of Industry at Rollesby between 1803-1830.  Researched by Ann Meakin from the Martham Overseers Accounts Books.","2021-04-24","3 pages, A4, single-sided, typed in Table format, landscape.","Original",null,null,null,null,null,null,null,"© Ann Meakin","English","Overseers","Apprentices/Apprenticeships","House of Industry","Rollesby","Martham","Norfolk",null,null,null,"Overseer's Account Books",null,null,"Overseers Account Book NRO Ref: PD 710/69",null,null,null,null,null,null,null,null,null,null,"AM","0000000005","0000000003"]
["AM",5,3,"6","AM/5/3/6","Item","Booklet - \"The Effect of the Old & New Poor Laws on the East & West Flegg Poor Law Union in Norfolk from 1750 to 1850\".","CJH","Booklet - \"The Effect of the Old & New Poor Laws on the East & West Flegg Poor Law Union in Norfolk from 1750 to 1850\". By Peter Batley.",2002,"Booklet, A4, 48 pages, single-sided, with colour illustrations.  With comb-binding.","Copy in private hands",null,null,null,null,null,null,null,"© Peter Batley","English","Poor's Allotment","House of Industry",null,"East & West Flegg","Norfolk",null,null,null,null,"Poor Law Records","Maps",null,"Published as a private publication by Peter Batley of Caister-on-Sea, as part of a B.A.(Hons) degree in Independent Studies at Suffolk College, Ipswich.",null,null,null,null,null,null,null,null,null,null,"AM","0000000005","0000000003"]
["AM",6,null,null,{"$f":"CONCATENATE(A274,(IF(B274<>\"\",\"/\",\"\")),B274,(IF(C274<>\"\",\"/\",\"\")),C274,(IF(D274<>\"\",\"/\",\"\")),D274)","v":"AM/6"},"Series","Brown File 'Transport and Work'","SLC","File containing documents for research projects by Ann Meakin. The 3 complete research projects are catalougued.",null,null,null,null,null,null,null,null,null,null,null,null,null,null,null,null,null,null,null,null,null,null,null,null,null,null,null,null,null,null,null,null,null,null,null,"AM","0000000006","0000000000",{"$f":"IF(D274=\"\",\"0000000000\",RIGHT(\"0000000000\"&D274, 10))","v":"0000000000"},{"$f":"CONCATENATE(AS274,AT274,AU274,D274,)","v":"AM00000000060000000000"}]
["AM",6,1,null,"AM/6/1","File","Transport and Travel through the Centuries, in Martham in the Hundred of West Flegg, East Norfolk.","SLC","Transport and travel through the centuries in Martham, in the Hundred of West Flegg, East Norfolk.","2015-03-01","10 pages of A4","Original",null,null,null,null,null,null,"Open","©Ann Meakin","English","Transport","Travel",null,"West Flegg","Martham",null,null,null,null,"Research paper",null,null,"A Research project by AM. Travel and transport through the centuries in Martham in the Hundred of West Flegg. 2015",null,null,null,null,null,null,null,null,null,null,"AM","0000000006","0000000001","0000000000","AM00000000060000000001"]
["AM",6,2,null,"AM/6/2","File","A study of some of the occupations of the people of the Parish of Martham, in the Hundred of West Flegg, in the County of Norfolk, before 1800.","SLC","A Research project by AM",2007,"27 pages of A4","Original",null,null,null,null,null,null,"Open","©Ann Meakin","English","Industry","Agriculture - Community","Norfolk Industries","West Flegg","Martham","Norwich",null,null,null,"Research paper",null,null,"A Research Project by AM - A study of some of the occupations of people of the Parish of Martham in the Hundred of West Flegg, in the County of Norfolk before 1800.",null,null,null,null,null,null,null,null,null,null,"AM","0000000006","0000000002","0000000000","AM00000000060000000002"]
["AM",6,3,null,"AM/6/3","File","A Study of the Village of Martham in the County of Norfolk, in the Nineteenth Century","SLC","A Research project by AM",2008,"26 pages of A4","Original",null,null,null,null,null,null,"Open","©Ann Meakin","English","Community","Rural Life","Norfolk Industries","West Flegg","Martham",null,null,null,null,"Research paper",null,null,"A Research project by AM of the village of Martham",null,null,null,null,null,null,null,null,null,null,"AM","0000000006","0000000003","0000000000","AM00000000060000000003"]
["AM",7,null,null,"AM/7","Series","Dark Blue Folder","CJH",null,"2021-05-01",null,null,null,null,null,null,null,null,null,null,null,null,null,null,null,null,null,null,null,null,null,null,null,null,null,null,null,null,null,null,null,null,null,null,"AM","0000000007"]
["AM",7,1,null,"AM/7/1","File","Martham Parish Registers of Baptisms, Marriages & Burials","CJH","An index of items copied from Martham Parish Registers of Baptisms, Marriages & Deaths.","2021-05-01","1 page, A4, typed","Original",null,null,null,null,null,null,null,null,"English","Baptism","Marriage","Death","Martham","Norfolk",null,null,null,null,"Parish Registers",null,null,"Registers are now held in the Norfolk Record Office.",null,null,null,null,null,null,null,null,null,null,"AM","0000000007","0000000001","0000000000","AM00000000070000000001"]
["AM",7,1,"1","AM/7/1/1","File","Research Project \"The Beginning of a Study of the Population of Martham\"","CJH","A research project by Ann Meakin, dated 1998, entitled \"The Beginning of a Study of the population of Martham\".",1998,"16 pages, A4, mixture of typed, handwritten and photocopied pages.","Original",null,null,null,null,null,null,null,"© Ann Meakin","English","Baptism","Marriage","Death","Martham","Norfolk",null,null,null,null,"Parish Registers",null,null,null,null,null,null,null,null,null,null,null,null,null,"AM","0000000007","0000000001","0000000001","AM000000000700000000011"]
["AM",7,1,"2",{"$f":"CONCATENATE(A281,(IF(B281<>\"\",\"/\",\"\")),B281,(IF(C281<>\"\",\"/\",\"\")),C281,(IF(D281<>\"\",\"/\",\"\")),D281)","v":"AM/7/1/2"},"File","Research Project \"A Study of some the people of Martham who lived in the eighteenth century - using inventories and other records\".","CJH","A research project by Ann Meakin, dated April 2002, entitled \"A Study of some the people of Martham who lived in the eighteenth century - using inventories and other records\".","April 2002","25 pages, A4, mixture of typed, handwritten & photocopied pages.","Original",null,null,null,null,null,null,null,"© Ann Meakin","English","Inventories","Wills",null,"Martham","Norfolk",null,"William Whittaker","William Hall","Reverend Richard Maris","Parish Registers","Probate: Inventory","Probate: Will","Also included in this research paper are Robert Westgate (blacksmith), Stannow Richers (yeoman) & John Kearns (husbandman)",null,null,null,null,null,null,null,null,null,null,"AM","0000000007","0000000001","0000000002","AM000000000700000000012"]
["AM",7,1,"3",{"$f":"CONCATENATE(A282,(IF(B282<>\"\",\"/\",\"\")),B282,(IF(C282<>\"\",\"/\",\"\")),C282,(IF(D282<>\"\",\"/\",\"\")),D282)","v":"AM/7/1/3"},"File","Research Project \"Part Two of a Population Study of Martham\"","CJH","A research project by Ann Meakin, dated March 1998, entitled  \"Part Two of a Population Study of Martham\".","March 1998","23 pages, A4, mixture of typed, handwritten & photocopied pages, some in table format.","Original",null,null,null,null,null,null,null,"© Ann Meakin","English","Baptism","Marriage","Death","Martham","Norfolk",null,"Revd Thomas Bowman","Revd James Savage",null,"Parish Registers","Probate: Inventory","Probate: Will","Includes examples from Martham Parish Registers, lists of Occupations in Martham in the 18th century, numbers of baptisms, marriages, deaths & burials from 1692-1728.  Also from 1754-1797.  A list of goods & chattels NRO Ref DCN 73/4/5 & MF/20 335/11.  Chattels & Heriditaments for Robert Claxon 1768 NRO Ref MF/X 31/19 & DCN 73/5/2",null,null,null,null,null,null,null,null,null,null,"AM","0000000007","0000000001"]
["AM",7,2,null,"AM/7/2","File","Index of some Family Trees","CJH","An Index of some family trees of people living in Martham.","2021-05-01","1 page, A4, typed.","Original",null,null,null,null,null,null,null,null,"English","Families","Wills","Marriage Settlements","Martham","Norfolk",null,"Creasey","Powles","Starking","Family Tree","Probate: Inventory","Probate: Will","Also included a brief mention of the Grimble and Reeve families of Martham.",null,null,null,null,null,null,null,null,null,null,"AM","0000000007","0000000002","0000000000","AM00000000070000000002"]
["AM",7,2,"1","AM/7/2/1","File","A Schedule of Title to pieces of land in Martham from 1692-1789, being conveyed to Mrs Sara Claxton.","CJH","A photocopy of a Schedule of title to 3 roods, 12 perches of land in Martham from 1692 to 1789 - being conveyed by William Taylor Esq. to Mrs Sara Claxton.","1692-1789","2 pages A3 & 1 page A4, photocopied.","Copy in private hands",null,null,null,null,null,null,null,"Not known","English","Land Ownership, Land Tenure",null,null,"Martham","Norfolk",null,"Sara Claxton","William Taylor Esq",null,"Deeds",null,null,"Document photocopied from the collection of the late Stuart Chapman of Clarke's Farm, Martham.",null,null,null,null,null,null,null,null,null,null,"AM","0000000007","0000000002","0000000001","AM000000000700000000021"]
["AM",7,2,"2","AM/7/2/2","File","Marriage Settlement between William Creasey and Miss Mary Robins, to Mr John Dawson and Mr John Eldridge, dated 3 March 1748.","CJH","Photocopy of a Marriage Settlement between William Creasey and Miss Mary Robins, to Mr John Dawson and Mr John Eldridge, dated 3 March 1748.","03/03/1748","10 pages, A3 & 1 page A4, photocopied.","Copy in private hands",null,null,null,null,null,null,null,"Not known","English","Marriage Settlements",null,null,"Martham","Norfolk",null,"William Creasey","Mary Robins","John Dawson","Indenture",null,null,"Also named in document is Mr John Eldridge.  Document photocopied from the collection of the late Stuart Chapman of Clarke's Farm, Martham.",null,null,null,null,null,null,null,null,null,null,"AM","0000000007","0000000002","0000000002","AM000000000700000000022"]
["AM",7,2,"3","AM/7/2/3","File","Extract from the Will of William Creasey dated 30 January 1788.","CJH","Photocopy of an extract from the Will of William Creasey, dated 30 January 1788 and proved 26 April 1797.","30/01/1788","2 pages, A4, one page double-sided, photocopied.","Copy in private hands",null,null,null,null,null,null,null,"Not known","English","Wills",null,null,"Great Yarmouth","Martham","Moregrove","William Creasey","Joseph Cookson",null,"Probate: Will",null,null,"Document photocopied from the collection of the late Stuart Chapman of Clarke's Farm, Martham.",null,null,null,null,null,null,null,null,null,null,"AM","0000000007","0000000002","0000000003","AM000000000700000000023"]
["AM",7,2,"4","AM/7/2/4","File","Pedigree of the children of William Creasey and Mary Robins.","CJH","Photocopy of the pedigree of the children of William Creasey and Mary Robins.","2021-05-04","1 page, A3, photocopied.","Copy in private hands",null,null,null,null,null,null,null,"Not known","English","Family History","Parent-Child Relationship",null,"Martham","Norfolk",null,"William Creasey","Mary Robins",null,"Family Tree","Pedigrees",null,"Document photocopied from the collection of the late Stuart Chapman of Clarke's Farm, Martham.",null,null,null,null,null,null,null,null,null,null,"AM","0000000007","0000000002","0000000004","AM000000000700000000024"]
["AM",7,2,"5","AM/7/2/5","file","Copies of Register entries to support the Creasey children's pedigree.","CJH","Photocopy of Copies of Registers in support of the pedigree of Creasey children.","2021-05-04","2 pages A4, 2 pages A3, photocopied.","Copy in private hands",null,null,null,null,null,null,null,"Not known","English","Parent-Child Relationship","Family History",null,"Martham","Norfolk",null,"William Creasey","Mary Robins",null,"Pedigrees","Family Tree",null,"Document photocopied from the collection of the late Stuart Chapman of Clarke's Farm, Martham.",null,null,null,null,null,null,null,null,null,null,"AM","0000000007","0000000002","0000000005","AM000000000700000000025"]
["AM",7,2,"6","AM/7/2/6","File","Part of an Agreement dated 1808-09.","CJH","Photocopy of part of an Agreement dated 1808-09, pertaining to the Creasey family.  Details currently unknown.","1808/09","2 pages, A3, photocopied.","Copy in private hands",null,null,null,null,null,null,null,"Not known","English","Land Ownership, Land Tenure",null,null,"Martham","Moregrove",null,"William Creasey","Elizabeth Cookson","Diana Creasey","Agreement",null,null,"Document photocopied from the collection of the late Stuart Chapman of Clarke's Farm, Martham.  Original document on parchment.",null,null,null,null,null,null,null,null,null,null,"AM","0000000007","0000000002","0000000006","AM000000000700000000026"]
["AM",7,2,"7","AM/7/2/7","File","Part of the Final Agreement re the affairs of William Creasey in the year 1826-27.","CJH","Photocopy of part of the Final Agreement with respect to the affairs of William Creasey, dated 1826-27.","1826/27","1 page, A3, photocopied.","Copy in private hands",null,null,null,null,null,null,null,"Not known","English","Land Ownership, Land Tenure",null,null,"Martham",null,null,"William Creasey",null,null,"Agreement",null,null,"Document photocopied from the collection of the late Stuart Chapman of Clarke's Farm, Martham.  Original document on parchment.",null,null,null,null,null,null,null,null,null,null,"AM","0000000007","0000000002","0000000007","AM000000000700000000027"]
["AM",7,2,"8","AM/7/2/8","File","An Affidavit by John Ewing of Cringleford, Norfolk, dated 04 October 1826.","CJH","Photocopy of an Affidavit by John Ewing of Cringleford, Norfolk, and dated 04 October 1826, in support of the Pedigree of the children of William Creasey and Mary Robins.","04/10/1826","1 page, A4, photocopied.","Copy in private hands",null,null,null,null,null,null,null,"Not known","English","Parent-Child Relationship","Family History",null,"Martham",null,null,"William Creasey","Mary Robins","John Ewing","Pedigrees","Family Tree",null,"Document photocopied from the collection of the late Stuart Chapman of Clarke's Farm, Martham.",null,null,null,null,null,null,null,null,null,null,"AM","0000000007","0000000002","0000000008","AM000000000700000000028"]
["AM",7,2,"9","AM/7/2/9","File","A Supplemental Abstract dated, c.1827 re the Pedigrees of the children of William Creasey & Mary Robins.","CJH","A photocopy of a Supplemental Abstract dated c. 1827, re the Pedigrees of the children of William Creasey & Mary Robins.","c.1827","5 pages, A3, 2 pages, A4, photocopied.","Copy in private hands",null,null,null,null,null,null,null,"Not known","English","Parent-Child Relationship","Family History",null,"Martham",null,null,"William Creasey","Mary Robins",null,"Pedigrees","Family Tree","Supplemental Abstract","Document photocopied from the collection of the late Stuart Chapman of Clarke's Farm, Martham.  Also includes a statement made in 1822 re: the missing Parish Registers.",null,null,null,null,null,null,null,null,null,null,"AM","0000000007","0000000002","0000000009","AM000000000700000000029"]
["AM",7,2,"10","AM/7/2/10","Item","An extract of the Will of Elizabeth Cookson, widow, dated 20 September 1818.","CJH","A photocopy of an extract of the Will of Elizabeth Cookson, widow, dated 20 September 1818, bequeathing (interalia) the manor of Moregrove to her four nephews.","20/9/1818","1 page, A4, photocopied.","Copy in private hands",null,null,null,null,null,null,null,"Not known","English","Wills","Conveyancing",null,"Martham","Moregrove",null,"Elizabeth Cookson",null,null,"Probate: Will",null,null,"Document photocopied from the collection of the late Stuart Chapman of Clarke's Farm, Martham.  Will proved 20 December 1825.",null,null,null,null,null,null,null,null,null,null,"AM","0000000007","0000000002","0000000010","AM0000000007000000000210"]
["AM",7,2,"11","AM/7/2/11","Item","Title Deed of land awarded to Mrs Elizabeth Cookson at the Martham Inclosure Award of 1812.","CJH","A photocopy of the Title Deed of the land awarded  to Mrs Elizabeth Cookson at the Martham Inclosure Award of 1812.  Document dated 4 April 1815.","04/04/1815","2 pages, A3, photocopied.","Copy in private hands",null,null,null,null,null,null,null,"Not known","English","Inclosure Award","Title Deeds",null,"Martham",null,null,"Elizabeth Cookson",null,null,"Manorial Records",null,null,"Document photocopied from the collection of the late Stuart Chapman of Clarke's Farm, Martham.",null,null,null,null,null,null,null,null,null,null,"AM","0000000007","0000000002","0000000011","AM0000000007000000000211"]
["AM",7,2,"12","AM/7/2/12","Item","Title Deed of land awarded to Mr Benjamin Rising at the Martham Inclosure Award of 1812.","CJH","A photocopy of the Title Deed of the land awarded  to Mr Benjamin Rising at the Martham Inclosure Award of 1812.  Document dated 12 June 1812.","12/06/1812","3 pages, A3, photocopied.","Copy in private hands",null,null,null,null,null,null,null,"Not known","English","Inclosure Award","Title Deeds",null,"Martham",null,null,"Benjamin Rising",null,null,"Manorial Records",null,null,"Document photocopied from the collection of the late Stuart Chapman of Clarke's Farm, Martham.",null,null,null,null,null,null,null,null,null,null,"AM","0000000007","0000000002","0000000012","AM0000000007000000000212"]
["AM",7,3,null,"AM/7/3","File","Index of correspondence relating to the Powles or Powels Family.","CJH","Index of correspondence relating to the Powles or Powels Family.","2021-05-08","1 page, A4, typed.","Original",null,null,null,null,null,null,null,"None","English","Families","Family History",null,"Martham",null,null,"Powles","Powels",null,"Family Tree",null,null,null,null,null,null,null,null,null,null,null,null,null,"AM","0000000007","0000000003","0000000000","AM00000000070000000003"]
["AM",7,3,"1","AM/7/3/1","Item","Letter from Kevin George to Ann Meakin.","CJH","A letter, dated 23 February 1998, from Kevin George to Ann Meakin, re her book on Martham, asking whether she knows of the location of a property known as Brunsdens.","1998-02-23","1 page, typed, A4.","Original",null,null,null,null,null,null,null,null,"English","Families","Property",null,"Martham","Brunsdens",null,"Richard Powles","Robert Powles",null,"Family Tree","Letters, letter",null,null,null,null,null,null,null,null,null,null,null,null,"AM","0000000007","0000000003","0000000001","AM000000000700000000031"]
["AM",7,3,"2","AM/7/3/2","Item","Letter from Ann Meakin replying to Kevin George.","CJH","Carbon copy of a letter, dated 17 March 1998, from Ann Meakin to Kevin George, stating that she did not have any knowledge of the property known as Brunsdens.  She also requested a copy of his family tree.","1998-03-17","1 page, typed, carbon copy, A4.","Copy in private hands",null,null,null,null,null,null,null,"©Ann Meakin","English","Families","Property",null,"Martham","Brunsdens",null,"Richard Powles",null,null,"Letters, letter","Family Tree",null,null,null,null,null,null,null,null,null,null,null,null,"AM","0000000007","0000000003","0000000002","AM000000000700000000032"]
["AM",7,3,"3","AM/7/3/3","Item","Letter from Kevin George enclosing copy of family tree & Will transcripts.","CJH","A letter, dated 24 March 1998, from Kevin George to Ann Meakin enclosing a copy of the Powles family tree, and transcripts of the Wills of Richard Powles (made in 1766), and John Powles (made in 1805)","1998-03-24","2 pages, typed, A4.","Original",null,null,null,null,null,null,null,"©Kevin George","English","Families",null,null,"Martham",null,null,"Richard Powles","Robert Powles",null,"Letters, letter","Family Tree",null,null,null,null,null,null,null,null,null,null,null,null,"AM","0000000007","0000000003","0000000003","AM000000000700000000033"]
["AM",7,3,"3/1","AM/7/3/3/1","File","Transcript of the Will of Richard Powles.","CJH","A transcript of the Will of Richard Powels, dated 17 March 1766.",1998,"1 page, typed, A4.","Copy in public domain",null,null,null,null,null,null,null,null,"English","Wills",null,null,"Martham","Norfolk",null,"Richard Powels (Powles)",null,null,"Transcripts","Family Tree",null,"NRO Ref: The Peculiar of the Dean & Chapter of Norwich Vol VI 123",null,null,null,null,null,null,null,null,null,null,"AM","0000000007","0000000003","00000003/1","AM000000000700000000033/1"]
["AM",7,3,"3/2","AM/7/3/3/2","Item","Transcript of the Will of John Powles.","CJH","A transcript of the Will of John Powels of Martham, dated 16 August 1805.",1998,"1 page, typed, A4.","Copy in public domain",null,null,null,null,null,null,null,null,"English","Wills",null,null,"Martham","Norfolk",null,"John Powels (Powles)",null,null,"Transcripts","Family Tree",null,"NRO Ref: The Peculiar of the Dean & Chapter of Norwich Vol VII 63",null,null,null,null,null,null,null,null,null,null,"AM","0000000007","0000000003","00000003/2","AM000000000700000000033/2"]
["AM",7,3,"4","AM/7/3/4","File","Family Tree of the Powles (Powels) Family of Loddon, Lowestoft, London & Liverpool.","CJH","Family Tree of the Powles (Powels) Family of Loddon, Lowestoft, London & Liverpool.",1998,"8 pages, landscape, A4, typed.","Copy in private hands",null,null,null,null,null,null,null,"©Kevin George","English","Families","Family History",null,"Loddon","Lowestoft","London","Powles","Powels",null,"Family Tree",null,null,"Also of Liverpool.",null,null,null,null,null,null,null,null,null,null,"AM","0000000007","0000000003","0000000004","AM000000000700000000034"]
["AM",7,3,"5","AM/7/3/5","File","Family Tree of the Powles (Powels) Family of Martham, Winterton, South Shields & New Zealand.","CJH","Family Tree of the Powles (Powels) Family of Martham, Winterton, South Shields & New Zealand.",1998,"23 pages, landscape, typed, A4.","Copy in private hands",null,null,null,null,null,null,null,"©Kevin George","English","Families","Family History",null,"Martham","Winterton","South Shields","Powles","Powels",null,"Family Tree",null,null,"Also of New Zealand.",null,null,null,null,null,null,null,null,null,null,"AM","0000000007","0000000003","0000000005","AM000000000700000000035"]
["AM",7,4,null,"AM/7/4","File","Index of correspondence relating to the Starkings Family.","CJH","Index of correspondence relating to the Starkings Family.","2021-05-08","1 page, A4, typed.","Original",null,null,null,null,null,null,null,null,"English","Families","Family History",null,"Martham",null,null,"Starkings",null,null,null,null,null,null,null,null,null,null,null,null,null,null,null,null,"AM","0000000007","0000000004","0000000000","AM00000000070000000004"]
["AM",7,4,"1","AM/7/4/1","Item","Letter, dated 8 June 1997, from Pat Twelvetree to Ann Meakin, re her book on Martham, and enquiring whether she has information on the Starkings family of Cess.","CJH","Letter, dated 8 June 1997, from Pat Twelvetree to Ann Meakin, re her book on Martham, and enquiring whether she has information on the Starkings family of Cess.","1997-06-08","1 page, typed, A4.","Original",null,null,null,null,null,null,null,"©P M Twelvetree","English","Families","Family History",null,"Martham","Cess",null,"Starkings",null,null,"Family Tree","Letters, letter",null,null,null,null,null,null,null,null,null,null,null,null,"AM","0000000007","0000000004","0000000001","AM000000000700000000041"]
["AM",7,4,"2","AM/7/4/2","Item","Letter, dated 8 July 1997, from Pat Twelvetree to Ann Meakin requesting that she mark the Starkings' property on an enclosed map.","CJH","Letter, dated 8 July 1997, from Pat Twelvetree to Ann Meakin requesting that she mark the Starkings' property on an enclosed map.","1997-07-08","1 page, A4, typed.","Original",null,null,null,null,null,null,null,"©P M Twelvetree","English","Families","Property","Maps","Martham","Cess",null,"Starkings",null,null,"Letters, letter",null,null,null,null,null,null,null,null,null,null,null,null,null,"AM","0000000007","0000000004","0000000002","AM000000000700000000042"]
["AM",7,4,"3","AM/7/4/3","Item","Letter, dated 1 February 1998, from Pat Twelvetree to Ann Meakin.","CJH","Letter, dated 1 February 1998, from Pat Twelvetree & husband to Ann Meakin, mentioning George Starkings who was a servant of Lord Braybrook.","1998-02-01","2 pages, A4, typed & handwritten.","Original",null,null,null,null,null,null,null,"©P M Twelvetree","English","Families","Family History",null,"Audley End","Essex",null,"George Starkings","Lord Braybrook",null,"Letters, letter",null,null,null,null,null,null,null,null,null,null,null,null,null,"AM","0000000007","0000000004","0000000003","AM000000000700000000043"]
["AM",7,4,"4",{"$f":"CONCATENATE(A308,(IF(B308<>\"\",\"/\",\"\")),B308,(IF(C308<>\"\",\"/\",\"\")),C308,(IF(D308<>\"\",\"/\",\"\")),D308)","v":"AM/7/4/4"},"File","Starkings Family Tree.","CJH","Starkings family tree of descendents from John Starkin of Martham.","2021-05-08","1 page, typed, A4.","Copy in private hands",null,null,null,null,null,null,null,null,"English","Family History","Families",null,"Martham",null,null,"John Starkin",null,null,"Family Tree",null,null,"This family tree starts circa 1733.",null,null,null,null,null,null,null,null,null,null,{"$f":"A308","v":"AM"},{"$f":"IF(B308=\"\",\"0000000000\",RIGHT(\"0000000000\"&B308,10))","v":"0000000007"},{"$f":"IF(C308=\"\",\"0000000000\",RIGHT(\"0000000000\"&C308,10))","v":"0000000004"},{"$f":"IF(D308=\"\",\"0000000000\",RIGHT(\"0000000000\"&D308, 10))","v":"0000000004"},{"$f":"CONCATENATE(AS308,AT308,AU308,D308,)","v":"AM000000000700000000044"}]
["AM",7,5,null,"AM/7/5","File","Index of other Martham families.","CJH","An index of other Martham families that have research information about them.","2021-05-08","1 page, A4, typed","Original",null,null,null,null,null,null,null,null,"English","Families","Family History",null,"Martham",null,null,"Grimble","Reeve",null,"Index",null,null,null,null,null,null,null,null,null,null,null,null,null,"AM","0000000007","0000000005","0000000000","AM00000000070000000005"]
["AM",7,5,"1","AM/7/5/1","Item","Letter, dated 1 August 1999, from T Kendrick & S Billett, requesting information About William Grimble.","CJH","A letter, dated 1 August 1999, from T Kendrick & S Billett, to Ann Meakin re her book on Martham, requesting information about William Grimble who built their house in Norwich, and enclosing their research information about the Grimble family.","1999-08-01","2 pages, A4, typed.","Original",null,null,null,null,null,null,null,"©T Kendrick & S Billett","English","Family History","Families",null,"Martham","Norwich",null,"William Grimble",null,null,"Letters, letter",null,null,null,null,null,null,null,null,null,null,null,null,null,"AM","0000000007","0000000005","0000000001","AM000000000700000000051"]
["AM",7,5,"2","AM/7/5/2","File","The Story of 14 Kingsley Road, Norwich.","CJH","The story of 14 Kingsley Road, Norwich.  Information about William Grimble of Martham, a builder, who built the property aforementioned in Norwich.",1999,"3 pages, A4, typed.","Copy in private hands",null,null,null,null,null,null,null,"©T Kendrick & S Billett","English","Family History","Property",null,"14 Kingsley Road, Norwich","Norfolk","Martham","William Grimble",null,null,"Research document",null,null,null,null,null,null,null,null,null,null,null,null,null,"AM","0000000007","0000000005","0000000002","AM000000000700000000052"]
["AM",7,6,"1","AM/7/6/1","File","The Reeve family in the Martham Registers.","CJH","The Reeve family in the Martham Church Registers.","2021-05-08","1 page, A4, landscape, typed.","Original",null,null,null,null,null,null,null,"©Ann Meakin","English","Family History",null,null,"Martham","Norfolk",null,"Reeve",null,null,"Research document","Parish Registers",null,null,null,null,null,null,null,null,null,null,null,null,"AM","0000000007","0000000006","0000000001","AM000000000700000000061"]
["AM",8,null,null,"AM/8","Series","Black File. Ferry Riverside/The Green Railway/Businesses,Housing,Estates. House Histories","SLC",null,"1877-2015",null,null,null,null,null,null,null,null,null,null,null,null,null,null,null,null,null,null,null,null,null,null,null,null,null,null,null,null,null,null,null,null,null,null,"AM","0000000008","0000000000","0000000000","AM00000000080000000000"]
["AM",8,1,null,"AM/8/1","File","An article entitled ' Martham Ferry' ","SLC","An article describing the history and operation of Martham Ferry.  ","1897-1999 ","7 x A4 pages","Copy in public domain",null,null,null,null,null,null,"Open","©Derek Manning & Peter Brown ","English","Martham Ferry","Agriculture","Norfolk Industries","Martham Ferry","Ferrygate Lane","River Thurne","Derek Manning","Peter Brown",null,"Report","Architectural/building plans","Maps","A NIAS members survey of the Ferry, dated April 11th 1999.",null,null,null,null,null,null,null,null,null,null,"AM","0000000008","0000000001","0000000000","AM00000000080000000001"]
["AM",8,2,null,"AM/8/2","File","A copy of a record of a court case between Great Yarmouth Port and Haven Commissioners and Harry Hill.","SLC","The case was Mr Hill was accused of blocking the River by leaving the ferry placed across it in readiness for driving his cows across. ","1937-12-20","3 x A4 pages","Copy in public domain",null,null,null,null,null,null,"Open","©High Court of Justice King's Bench Division","English","Martham Ferry","Court Proceedings","Agriculture","Martham Ferry",null,null,"Great Yarmouth Port and Haven Commissioners","Harry Hill",null,"Court Proceedings",null,null,"A copy of a Court record of a case between Great Yarmouth Port and Haven Commissioners and Harry Hill.",null,null,null,null,null,null,null,null,null,null,"AM","0000000008","0000000002","0000000000","AM00000000080000000002"]
["AM",8,3,null,"AM/8/3","File","A copy of an agreement between the proprietors of land on Martham Holmes regarding the use and maintenance of the floating bridge- (Martham Ferry)","SLC","The agreement details the individual acreage owned by each land owner and the drainage commissioners and their agreement to maintain the floating bridge.","1927-09-07","6 x A4 pages","Copy in public domain",null,null,null,null,null,null,"Open","©Cozens-Hardy & Hewson NORWICH","English","Martham Ferry","Agriculture - Community",null,"Martham Ferry","Martham Holme","River Thurne",null,null,null,"Agreement",null,null,"A copy of an agreement between the proprietors of land on Martham Holmes regarding the use and maintenance of the floating bridge (Martham Ferry)",null,null,null,null,null,null,null,null,null,null,"AM","0000000008","0000000003","0000000000","AM00000000080000000003"]
["AM",8,4,null,{"$f":"CONCATENATE(A317,(IF(B317<>\"\",\"/\",\"\")),B317,(IF(C317<>\"\",\"/\",\"\")),C317,(IF(D317<>\"\",\"/\",\"\")),D317)","v":"AM/8/4"},"File","A Booklet' A History of the River Thurne Bungalows'","SLC","A Booklet by Di Cornell. Describing the history of some the bungalows on the River Thurne.",2008,"92 pages A5","Original",null,null,null,null,null,null,null,"©Di Cornell","English","Community","River Thurne Bungalows",null,"River Thurne","Martham ","Potter Heigham","Di Cornell",null,null,"Guide, Leaflet",null,null,"Illustrated booklet. Detailing history of the River Thurne Bungalows.",null,null,null,null,null,null,null,null,null,null,"AM","0000000008","0000000004","0000000000","AM00000000080000000004"]
["AM",8,5,null,"AM/8/5","File","Copy of one page A4 letter from the Office of the Commons Commissioners to Mr Cornford, regarding the registration of the Martham Green. Includes their decision that the ownership of  Martham Village Green, can be registered under the Commons Registration Act 1965","SLC","One copy of the original letter from the Office of the Commons Commissioners to Mr Cornford. In addition a copy of their decision.","1973-11-01","5 x A4 pages","Copy in public domain",null,null,null,null,null,null,null,"©The Office of the Commons Commissioners. Watergate House, 15 York Buildings. Adelphi, London. WC2N 6LB","English","Commons","Village Life","Community","Martham",null,null,null,null,null,"Letters, letter",null,null,"Letter from The Office of the Commons Commissioners to Mr Cornford of Damgate, Martham. A decision to the ownership of Martham Village Green. Under the Commons Registration Act of 1965.  Letter is dated 1 Nov 1973.",null,null,null,null,null,null,null,null,null,null,"AM","0000000008","0000000005","0000000000","AM00000000080000000005"]
["AM",8,6,null,"AM/8/6","File","Copy of a letter from Nicholas ,Cadge and Gilbert solicitors  to R.B. Crisp Esq. re The Green. In addition a copy of the agreement between the trustees of William Bascey deceased, and Martham Parish Council, that from April 1st 1975, the council will control and manage the Green. ","SLC",null,"1/11/1988 & 3/6/1975","4 pages A4","Copy in public domain",null,null,null,null,null,null,null,"Unknown","English","Village Life","Parish Council","Village Green","Martham",null,null,null,null,null,"Agreement","Trusts",null,"The agreement which transferred responsibility for Martham Village Green to the Parish Council.",null,null,null,null,null,null,null,null,null,null,"AM","0000000008","0000000006","0000000000","AM00000000080000000006"]
["AM",8,7,null,"AM/8/7","File","Martham Twin Ponds' by Peter Dawson","SLC","A 42 page booklet by Peter Dawson","2015-12-01","48 pages A4","Copy in public domain",null,null,null,null,null,null,null,"©Peter Dawson","English","Village Life","Village Green",null,"Martham",null,null,"Peter Dawson",null,null,"Publications",null,null,"Martham Twin Ponds by Peter Dawson",null,null,null,null,null,null,null,null,null,null,"AM","0000000008","0000000007","0000000000","AM00000000080000000007"]
["AM",8,8,null,"AM/8/8","File","Copy of a British Railways poster advertising cheap day tickets to Yarmouth Beach station.","SLC","A4",1958,null,"Copy in public domain",null,null,null,null,null,null,null,"©British Railways","English","Transport","Railways - History",null,"Martham",null,null,null,null,null,"Poster",null,null,"Copy of a British Railways poster from 1958.",null,null,null,null,null,null,null,null,null,null,"AM","0000000008","0000000008","0000000000","AM00000000080000000008"]
["AM",8,9,null,"AM/8/9","File","Copy of a single second Class ticket price 6d from Martham to Potter Heigham.","SLC","A4","Undated",null,"Copy in public domain",null,null,null,null,null,null,null,"©British Railways","English","Transport","Railways - History",null,"Martham",null,null,null,null,null,"Publications",null,null,"Copy of a railway ticket.",null,null,null,null,null,null,null,null,null,null,"AM","0000000008","0000000009","0000000000","AM00000000080000000009"]
["AM",8,10,null,"AM/8/10","File","An article about Kirkland 'for fashions that please' by P Sutton and B Warnes.","SLC",null,2012,"A4","Copy in public domain",null,null,null,null,null,null,null,"©P.Sutton & B Warnes","English","Trade","Businesses",null,"Martham",null,null,"Kirkland",null,null,"Publications",null,null,"Article giving a brief history of Kirkland's shop. Established in 1865.",null,null,null,null,null,null,null,null,null,null,"AM","0000000008","0000000010","0000000000","AM00000000080000000010"]
["AM",8,11,null,"AM/8/11","File","Article about J.D. Lown Coal Merchants. By Barbara Warnes.","SLC",null,"1890 to 2004","A4","Copy in public domain",null,null,null,null,null,null,null,"©B Warnes","English","Trade","Businesses","Coal industries","Martham",null,null,"J.D. Lown",null,null,"Publications",null,null,"Article giving a potted history of J.D.Lown 1890-2004. ",null,null,null,null,null,null,null,null,null,null,"AM","0000000008","0000000011","0000000000","AM00000000080000000011"]
["AM",8,12,null,"AM/8/12","File","Letter from G.A. Bailey Ltd. to AM giving a brief history of G.A Bailey Ltd..- Glasshouse Flowers Growers. ","SLC","A letter from G.A Bailey to AM, enclosing a cheque for an advertisement in her book. 'Glimpses into the History of the Village of Martham'. The second page of the letter, details a potted history of the history of the business from 1927-1996.","1927-1996","A4 x2","Copy in private hands",null,null,null,null,null,null,null,"©Ann Meakin","English","Trade","Businesses","Agriculture","Martham",null,null,"G.A Bailey",null,null,"Letters, letter",null,null,"Letter from G.A.Bailey Ltd to AM. Detailing history of the Glasshouse Flower growers. ",null,null,null,null,null,null,null,null,null,null,"AM","0000000008","0000000012","0000000000","AM00000000080000000012"]
["AM",8,13,null,"AM/8/13","File","An article from 'The Fruit Grower' about G.A Bailey Ltd. and W. Bracey Ltd.","SLC","A copy of an article dated July 13th 1950. Describing the Glasshouse Flower grower and the 80 acre Blackcurrant Farm in Martham.","1950-07-13","2x A4 pages","Copy in public domain",null,null,null,null,null,null,null,"©The Fruit Grower","English","Agriculture","Trade","Businesses","Martham",null,null,"G.A Bailey","W.Bracey Ltd.",null,"Publications",null,null,null,"Article from 'The Fruit Grower' journal. Title 'Norfolk Neighbours reach the Top'. Growers visit a Family Glasshouse Holding and Eighty Acre Blackcurrant Farm at Martham.",null,null,null,null,null,null,null,null,null,"AM","0000000008","0000000013","0000000000","AM00000000080000000013"]
["AM",8,14,null,"AM/8/14","File","Copy of a 'Martham Boat Building & Development Company a Brief History'.","SLC","A History of Martham Boat Building and Development Company and colour holiday brochure advertising the boats for hire.","Date unknown","9 x A4 pages","Copy in public domain",null,null,null,null,null,null,null,"©Martham Boat Building and Development Company.","English","Norfolk Broads Boatbuilding & Boat Hire.","Businesses","Norfolk Broads","Martham",null,null,"Martham Boat Building and Development Company",null,null,"Guide, Leaflet",null,null,"A copy of a leaflet describing the history of Martham Boat and development company and a colour brochure advertising the boats for hire. Exhibited at the Jubilee exhibition of 2012.","Martham Boat Building & Development Company a Brief History'",null,null,null,null,null,null,null,null,null,"AM","0000000008","0000000014","0000000000","AM00000000080000000014"]
["AM",8,15,null,"AM/8/15","Item","Poster advertising the sale by auction in 1990 of equipment of Messrs J.E. Kirby & Sons Ltd. ","SLC","An advertisement of Haulage Contractor's Equipment by auction. By Howlett & Edrich on 14th September 1990.  Auctioneers Acle Norwich .","1990-09-14",null,"Copy in private hands",null,null,null,null,null,null,null,"©Howlett & Edrich","English","Transport","Businesses",null,"Martham",null,null,"J.E Kirby & Sons Ltd","Howlett & Edrich",null,"Poster","Brochures",null,"A4",null,null,null,null,null,null,null,null,null,null,"AM","0000000008","0000000015","0000000000","AM00000000080000000015"]
["AM",8,16,null,"AM/8/16","File","An article 'An Introduction to the Countryside Collection'.","SLC","An article about the Countryside Collection. By D.J.Bradfield","Unknown","A4 1 page","Copy in public domain",null,null,null,null,null,null,null,"©D.J Bradfield","English","Agriculture - Community","Community",null,"Martham",null,null,"Countryside Collection","D.J Bradfield",null,"Publications",null,null,null,null,null,null,null,null,null,null,null,null,null,"AM","0000000008","0000000016","0000000000","AM00000000080000000016"]
["AM",8,17,null,"AM/8/17","File","Notice delivered in 1995 to local residents of plans for a New Housing Estate. North Repps Road.","SLC","A notice from Gt Yarmouth Borough Council regarding the Borough-Wide Local Plan for Martham. This is the Deposit Version. ",1995,"1 A5 page and 1xA4 map.","Copy in public domain",null,null,null,null,null,null,null,"©Great Yarmouth Borough Council ","English","Community","Building ","Local government","Martham","Repps Road",null,null,null,null,"Publications",null,null,"Great Yarmouth Borough-Wide Local Plan-Deposit Version and map. The Deposit Version was published after taking full account of local public opinion. The new version contains a new housing allocation of 2.8 hectares located to the North of Repps Road to provide 75 houses. It discusses the new access to Repps Road.This new draft proposal was displayed in the library and the post office for 6 weeks for comment. ",null,null,null,null,null,null,null,null,null,null,"AM","0000000008","0000000017","0000000000","AM00000000080000000017"]
["AM",8,18,null,"AM/8/18","File","A History of Bramble Cottage, 23 Somerton Road, Martham.","SLC","A history of the cottage, an introduction, the house and its site and its owners and occupiers.","From approx 1837","4 pages of A4","Copy in private hands",null,null,null,null,null,null,null,"©Geoffrey I.Kelly","English","Housing","Households","Businesses","Martham","Somerton Road",null,"Bramble Cottage",null,null,"Publications",null,null,"A History of Bramble Cottage, 23 Somerton Road. A History by Geoffrey I.Kelly.",null,null,null,null,null,null,null,null,null,null,"AM","0000000008","0000000018","0000000000","AM00000000080000000018"]
["AM",9,null,null,"AM/9","Series","Dark Red Ring File","CJH","Dark Red Ring File containing items relating to 19th century Martham.  Including, the Enclosure, Tithe Commutation, and Changes that took place in the Parish of Martham between 1836-1906.","2021-05-11",null,null,null,null,null,null,null,null,null,null,null,null,null,null,null,null,null,null,null,null,null,null,null,null,null,null,null,null,null,null,null,null,null,null,"AM","0000000009","0000000000","0000000000","AM00000000090000000000"]
["AM",9,1,null,"AM/9/1","File","Index of items contained within File AM/9","CJH","An Index of items contained within the Dark Red Ring File AM/9.","2021-05-11","2 pages, A4, typed.","Original",null,null,null,null,null,null,null,null,"English","Enclosure","Tithes",null,"Martham",null,null,null,null,null,"Index",null,null,null,null,null,null,null,null,null,null,null,null,null,"AM","0000000009","0000000001","0000000000","AM00000000090000000001"]
["AM",9,1,"1","AM/9/1/1","File","Martham Inclosure notification, dated 12 November 1897.","CJH","Photocopies from the document dated 12 November 1807 giving notice of the details of the Act of Parliament for Inclosure of land at Martham, and of the intention to hold a meeting at the King's Arms public house on 30 November 1807, including an index to the claimants and \"A State of the Claims\".","12/11/1807","11 pages, A4, double-sided, photocopied.","Copy in public domain",null,null,null,null,null,null,null,null,"English","Inclosure Award",null,null,"Martham",null,null,null,null,null,null,null,null,null,null,null,null,null,null,null,null,null,null,null,"AM","0000000009","0000000001","0000000001","AM000000000900000000011"]
["AM",9,1,"2","AM/9/1/2","File","Research project of 2012 - \"A Study of the Claims made to the General Commissioners at the time of 'An Act for Inclosing and Draining certain Lands in the Parish of Martham in the County of Norfolk' in 1807.","CJH","Research project of 2012 by Ann Meakin - \"A Study of the Claims made to the General Commissioners at the time of 'An Act for Inclosing and Draining certain Lands in the Parish of Martham in the County of Norfolk' in 1807, and some of the results - including appendices.","2012-01-01","17 pages, A4, single-sided, including - 11 pages in landscape table format, entries handwritten.  3 pages typed, 3 pages photocopied inc. map (part of Fadens map of 1797) with three appendices.","Original",null,null,null,null,null,null,null,"©Ann Meakin","English","Inclosure Award","Drainage","Land Ownership, Land Tenure","Martham","Norfolk",null,null,null,null,"Enclosure Maps","Tithe Maps",null,null,null,null,null,null,null,null,null,null,null,null,"AM","0000000009","0000000001","0000000002","AM000000000900000000012"]
["AM",9,1,"3","AM/9/1/3","File","Extracts from the Martham Inclosure Award of 16 August 1812.","CJH","Transcript copies of \"Extracts from the Martham Inclosure Award of 16 August 1812.\"","16/8/1812","7 pages, A4 Portrait, 3 double-sided, 4 single-sided, photocopied.","Copy in public domain",null,null,null,null,null,null,null,null,"English","Inclosure Award","Drainage","Land Ownership, Land Tenure","Martham","Norfolk",null,"George Cubitt","Robert Cory (the Younger)","Nathaniel Palmer","Enclosure Maps","Tithe Maps",null,null,null,null,null,null,null,null,null,null,null,null,"AM","0000000009","0000000001","0000000003","AM000000000900000000013"]
["AM",9,1,"4","AM/9/1/4","File","Details of people awarded land who are not listed as having made a claim.","CJH","A table of Enclosure claim details of people awarded land who are not listed as having made a claim.","2021-05-15","1 page, A4 landscape, Table format, with handwritten entries.","Original",null,null,null,null,null,null,null,null,"English","Inclosure Award","Land Ownership, Land Tenure","Tithes","Martham","Norfolk",null,null,null,null,"Enclosure Maps","Tithe Maps",null,null,null,null,null,null,null,null,null,null,null,null,"AM","0000000009","0000000001","0000000004","AM000000000900000000014"]
["AM",9,1,"5","AM/9/1/5","File","Details of land sold by three people in Martham between the date of the Inclosure Act 1807 and the Inclosure Award of 1812.","CJH","Photocopies of documents giving details of land sold by three people in Martham between the date of the Inclosure Act 1807 and the Inclosure Award of 1812.","19/1/1809","9 pages of varying sizes, 3 x A4 portrait, photocopied.","Copy in public domain",null,null,null,null,null,null,null,null,"English","Inclosure Award","Enclosure","Land Ownership, Land Tenure","Martham","Norfolk",null,"John Watson","Thomas Dixon","Nathaniel Hindle","Enclosure Maps","Tithe Maps","Sale Particulars","Also named in the document Mr John LeNain.",null,null,null,null,null,null,null,null,null,null,"AM","0000000009","0000000001","0000000005","AM000000000900000000015"]
["AM",9,1,"6","AM/9/1/6","file","Martham Inclosure document, dated 12 June 1812, allotting three pieces of land to John Watson of Martham.","CJH","Photocopy of the document 'Martham Inclosure', dated 12 June 1812, allotting three pieces of land, marked 115, 120 & 121, on the Inclosure Map, to Mr John Watson.","12/6/1812","2 pages, A3 portrait, single-sided, photocopied.","Copy in public domain",null,null,null,null,null,null,null,null,"English","Inclosure Award","Land Ownership, Land Tenure",null,"Martham","Norfolk",null,"John Watson",null,null,"Enclosure Maps","Tithe Maps","Sale Particulars",null,null,null,null,null,null,null,null,null,null,null,"AM","0000000009","0000000001","0000000006","AM000000000900000000016"]
["AM",9,1,"7","AM/9/1/7","Item","Martham Inclosure Award Map of 1812.","CJH","Copy of the Martham Inclosure Award Map of 1812, printed from the microfilm at Norfolk Record Office.",1812,"2 pages, A3 portrait, single-sided, photocopied.  Hand coloured.","Copy in public domain",null,null,null,null,null,null,null,"©Norfolk Record Office","English","Inclosure Award","Land Ownership, Land Tenure","Maps","Martham","Norfolk",null,null,null,null,"Enclosure Maps","Tithe Maps","Maps","NRO Ref: PC125/9/1",null,null,null,null,null,null,null,null,null,null,"AM","0000000009","0000000001","0000000007","AM000000000900000000017"]
["AM",9,1,"8","AM/9/1/8","Item","1884 Ordnance Survey Map of Martham, 6\", showing allotment of land at  the Inclosure Award of 1812.","CJH","The 1884 6\" Ordnance Survey Map of Martham, showing the land allotted to individual people at the Inclosure Award of 1812.",1884,"5 pages, A4 landscape, single-sided, photocopied and hand coloured.","Copy in public domain",null,null,null,null,null,null,null,"©Ordnance Survey","English","Maps","Inclosure Award","Land Ownership, Land Tenure","Martham","Norfolk",null,null,null,null,"Enclosure Maps","Maps",null,null,null,null,null,null,null,null,null,null,null,null,"AM","0000000009","0000000001","0000000008","AM000000000900000000018"]
["AM",9,1,"9","AM/9/1/9","file","The Act for Inclosing and Draining certain lands in the parish of Martham, 1807.","CJH","Copy of an article by Ann Meakin, published in the Journal of Great Yarmouth Archaeology & Local History 2013, entitled \"The Act for Inclosing and Draining certain lands in the parish of Martham, 1807.\"",2013,"3 pages, A4 portrait, single-sided, typed.","Copy in private hands",null,null,null,null,null,null,null,"©Ann Meakin","English","Inclosure Award","Drainage","Land Ownership, Land Tenure","Martham","Norfolk",null,null,null,null,"Enclosure Maps","Research Document","Journals",null,null,null,null,null,null,null,null,null,null,null,"AM","0000000009","0000000001","0000000009","AM000000000900000000019"]
["AM",9,1,"10","AM/9/1/10","File","Alterations to the Inclosure Award for Winterton, East Somerton, West Somerton & Martham, dated 28 May 1827.","CJH","Copy of the document dated 28 May 1827, making alterations to the Inclosure Award for Winterton, East Somerton, West Somerton & Martham.","28/5/1827","3 pages, A4 portrait, double-sided, photocopied.","Copy in public domain",null,null,null,null,null,null,null,null,"English","Inclosure Award","Drainage",null,"West Somerton","Winterton","Martham",null,null,null,"Enclosure Maps","Acts of Parliament",null,null,null,null,null,null,null,null,null,null,null,null,"AM","0000000009","0000000001","0000000010","AM0000000009000000000110"]
["AM",9,2,null,"AM/9/2","File","Tithe Commutation - Index of items","CJH","An index of items under the heading Tithe Commutation for Martham.","2021-05-18","1 page, A4 portrait, typed.",null,null,null,null,null,null,null,null,null,null,null,null,null,null,null,null,null,null,null,null,null,null,null,null,null,null,null,null,null,null,null,null,null,"AM","0000000009","0000000002","0000000000","AM00000000090000000002"]
["AM",9,2,"1","AM/9/2/1","File","A Study of Land Use and Ownership in the Parish of Martham in the County of Norfolk at the time of the Tithe Commutation Award of 31 December 1841.","CJH","A research project by Ann Meakin in 1999 entitled \"A Study of Land Use and Ownership in the Parish of Martham in the County of Norfolk at the time of the Tithe Commutation Award of 31 December 1841.\"",1999,"76 pages, comprising: A4, 7 typed pages, 53 handwritten pages.  A3, 16 pages of maps photocopied and hand-coloured.  All contained within 4 appendices.","Original",null,null,null,null,null,null,null,"©Ann Meakin","English","Tithes","Land ownership, Land tenure","Maps","Martham","Norfolk",null,null,null,null,"Tithe Maps","Research document",null,"Tithe Commutation Award document held at Norfolk Record Office\nReference DN/TA 750",null,null,null,null,null,null,null,null,null,null,"AM","0000000009","0000000002","0000000001","AM000000000900000000021"]
["AM",9,2,"2","AM/9/2/2","File","A list of land owners numbered on the Tithe Map of Martham.","CJH","A handwritten list of the land owners numbered on the Tithe Map of Martham.",1999,"22 pages, A4, handwritten, portrait.","Original",null,null,null,null,null,null,null,"©Ann Meakin","English","Tithes","Land ownership, Land tenure","Maps","Martham","Norfolk",null,null,null,null,"Tithe Maps","Research document","Transcripts",null,null,null,null,null,null,null,null,null,null,null,"AM","0000000009","0000000002","0000000002","AM000000000900000000022"]
["AM",9,3,null,"AM/9/3","File","Changes in Martham 1750-1906, Index of items.","CJH","An Index of items under the heading \"Changes in Martham 1750-1906.","2021-05-18","1 page, A4, typed","Original",null,null,null,null,null,null,null,null,null,null,null,null,null,null,null,null,null,null,null,null,null,null,null,null,null,null,null,null,null,null,null,null,"AM","0000000009","0000000003","0000000000","AM00000000090000000003"]
["AM",9,3,"1","AM/9/3/1","File","The Impact of Changes in Agriculture since c.1750 on the Layout and Appearance of the Parish of Martham.","CJH","A research project by Ann Meakin, dated 2000, entitled \"The Impact of Changes in Agriculture since c.1750 on the Layout and Appearance of the Parish of Martham.\"",2000,"14 pages in total comprising: A4, 4 pages typed, 1 photocopied.  Maps photocopied & hand-coloured 5 x A3, 5 x A4.","Original",null,null,null,null,null,null,null,"©Ann Meakin","English","Agriculture","Enclosure","Maps","Martham","Norfolk",null,null,null,null,"Tithe Maps","Enclosure Maps","Research Document","NRO Ref: PC 125/9/1  Polite Village  Ref MC 90/1, 2  S36 x6.",null,null,null,null,null,null,null,null,null,null,"AM","0000000009","0000000003","0000000001","AM000000000900000000031"]
["AM",9,3,"2","AM/9/3/2","File","A Study of the Parish of Martham situated in the Hundred of West Flegg in the County of Norfolk, during the period 1836-1906, to show the changes that took place.","CJH","A research project by Ann Meakin, dated 2005, entitled \"A Study of the Parish of Martham situated in the Hundred of West Flegg in the County of Norfolk, during the period 1836-1906, to show the changes that took place.\"",2005,"56 pages in total comprising: A4, 5 typed, 1 photocopied, 8 typed in tables landscape & handwritten, 33 portrait typed headings for photographs.  A3, 6 photocopied maps hand-coloured, plus 2 cut-down A3 photocopied hand-coloured maps.","Original",null,null,null,null,null,null,null,"©Ann Meakin","English","Housing","Railways - Great Britain","Schools","Martham","Norfolk",null,"William Bracey",null,null,"Maps","Tithe Maps","Photographic Print","Photographs included in this research project include:\nBlack Street houses prior to 1842, Martham Rectory, St Mary the Virgin church chancel, the second Methodist Chapel in Black Street, the third Methodist Chapel in Repps Road (opened in 1881), the second Baptist Chapel (opened in 1881), the first Baptist Manse on the Green, the Vicar's School (built in 1852), the Board School in School Road (now demolished), the Level Crossing Keeper's cottage in Low Road, a station building in the garden of The Firs in Rollesby Road, prestigious houses in Repps Road built between 1870-80, Garfield House, Clarence Villa, Ross Villas, West End Cottage (Grange Farm), cottages in White Street circa 1640, Martham Hall, Chapman's butcher shop, former Clowes Store building, Bell Yard dwellings, Martham House Lodge, bylaw housing in Providence Place Black Street, Bracey's Buildings in Cess Road, Alberta House Farm, Thunder Hill Farmhouse, Mill Farm House, Gibbet Hill Farmhouse, Staithe Road properties, Clarkes Farm & outbuildings, Star Inn, Ealing House, The Firs, The Kings Arms PH, Victoria Inn PH, Damgate Farmhouse.",null,null,null,null,null,null,null,null,null,null,"AM","0000000009","0000000003","0000000002","AM000000000900000000032"]
["AM",10,null,null,"AM/10","Series","Large Yellow Ring File","CJH","Large yellow ring file containing  research into the connections and history of the Rising family, including a transcript of the Diary of William Rising for the year 1815.","2021-05-22",null,null,null,null,null,null,null,null,null,null,null,null,null,null,null,null,null,null,null,null,null,null,null,null,null,null,null,null,null,null,null,null,null,null,"AM","0000000010","0000000000","0000000000","AM00000000100000000000"]
["AM",10,1,null,"AM/10/1","File","William Rising, his Diary of 1815, and Rising connections and research.","CJH","William Rising, his Diary of 1815, and Rising connections and research.","2021-05-22",null,null,null,null,null,null,null,null,null,null,null,null,null,null,null,null,null,null,null,null,null,null,null,null,null,null,null,null,null,null,null,null,null,null,"AM","0000000010"]
["AM",10,1,"1","AM/10/1/1","File","Research project \"My search for the world of William Rising\"","CJH","A research project by Ann Meakin in 2003 entitled \"My search for the world of William Rising\".",2003,"42 pages, A4, comprising: 11 pages portrait typed, 31 pages landscape typed, most in table format. Photocopies of images and maps.","Copy in private hands",null,null,null,null,null,null,null,"©Ann Meakin","English","Family History","Farms","Agricultural crops","Martham","West Somerton","Horsey","Robert Rising","William Rising","Elizabeth Howes","Diaries","Farm Accounts","Family Records","A copy of the image of Martham Church interior showing the Ringers Gallery is courtesy of the Duleep Singh Collection in Thetford Library.",null,null,null,null,null,null,null,null,null,null,"AM","0000000010","0000000001","0000000001","AM000000001000000000011"]
["AM",10,1,"2","AM/10/1/2","File","The Rising Family Tree from c.1504-1996","CJH","A photocopy of the Rising family Tree from c.1504-1996, compiled by Arthur Rising Utting, as of April 1996.",1996,"1 page, A3, landscape, photocopied.","Copy in private hands",null,null,null,null,null,null,null,"©Arthur Rising Utting","English","Family History","Genealogy","Family Relationships","Martham","West Somerton","Horsey","Robert Rising","William Rising",null,"Family Tree",null,null,null,null,null,null,null,null,null,null,null,null,null,"AM","0000000010","0000000001","0000000002","AM000000001000000000012"]
["AM",10,1,"3","AM/10/1/3","Item","Marriage Certificate William Rising","CJH","A photocopy of the Marriage Certificate of William Rising & Elizabeth Howes on 27 May 1842, at Somerton Church in the County of Norfolk.","27/5/1842","1 page, A4 landscape, photocopied.","Copy in public domain",null,null,null,null,null,null,null,null,"English","Marriage","Family History",null,"West Somerton",null,null,"William Rising","Elizabeth Howes",null,"Marriage Certificate",null,null,"Entry No 7 in Page 4 of the Marriage Register for West Somerton church.",null,null,null,null,null,null,null,null,null,null,"AM","0000000010","0000000001","0000000003","AM000000001000000000013"]
["AM",11,null,null,"AM/11","Series","Red Ring File - Farming & Manorial History, Farm & Estate Sales in Martham & Somerton","CJH","Details of farming & manorial history in Martham and Somerton, together with samples of farm & estate sales in Martham.","2021-07-03",null,null,null,null,null,null,null,null,null,null,null,null,null,null,null,null,null,null,null,null,null,null,null,null,null,null,null,null,null,null,null,null,null,null,"AM","0000000011","0000000000","0000000000","AM00000000110000000000"]
["AM",11,1,null,"AM/11/1","File","Index of documents within the red ring file","CJH","An index of documents & items within the red ring file.","2021-07-03","2 pages, A4 portrait",null,null,null,null,null,null,null,null,null,null,null,null,null,null,null,null,null,null,null,null,null,null,null,null,null,null,null,null,null,null,null,null,null,"AM","0000000011"]
["AM",11,1,"1","AM/11/1/1","Item","Photocopy of an article 'Farming in Martham and Somerton a hundred years ago' by Barbara Cornford","CJH","Photocopy of an article 'Farming in Martham and Somerton a hundred years ago' by Barbara Cornford in 1976, taken from information in the diary of Humphrey Dyball who lived at Mill Farm House, Hemsby Road.  The article appeared in the Parish Magazine for September 1976.","Sep 1976","1 page, A4 portrait, photocopied.","Copy in public domain",null,null,null,null,null,null,null,"©Barbara Cornford","English","Farming - England","Farmworkers",null,"Martham","West Somerton",null,"Humphrey Dyball","John Gymer",null,"Diaries",null,null,null,null,null,null,null,null,null,null,null,null,null,"AM","0000000011"]
["AM",11,1,"2","AM/11/1/2","Item","A list of owners of Grange Farm, Martham from 1806 to 1964","CJH","A list of owners of Grange Farm, Martham from 1806 to 1964, researched by Ann Meakin.","2021-07-03","1 page, A4 portrait","Original",null,null,null,null,null,null,null,"©Ann Meakin","English","Farmers","Farms",null,"Martham","Grange Farm",null,"Thomas Francis","Percy Wiseman","Alfred Wiseman","Research document",null,null,null,null,null,null,null,null,null,null,null,null,null,"AM","0000000011"]
["AM",11,1,"3","AM/11/1/3","Item","The mystery of Moorgrove by AP Cobb","CJH","The Mystery of Moorgrove, an article by A P Cobb.","2000-08-20","1 page, A4 portrait, double-sided.","Copy in private hands",null,null,null,null,null,null,null,"©A P Cobb","English","Manors","Family History",null,"Martham","Moorgrove Manor (Moregrove)",null,"John Cobb of Somerton",null,null,"Family Records","Research document",null,"A number of other members of the Cobb family are also mentioned",null,null,null,null,null,null,null,null,null,null,"AM","0000000011"]
["AM",11,1,"4","AM/11/1/4","File","Particulars & Conditions of Sale of Martham Hall Estate in 1874","CJH","A photocopy of the Particulars and Conditions of Sale of a freehold residential property known as Martham Hall Estate, comprising of 402 acres.  The sale to take place on 15 August 1874","15/8/1874","5 pages, A4 portrait, 1 page A4 portrait, photocopied.  Includes a map of the estate.","Copy in public domain",null,null,null,null,null,null,null,null,"English","Property","Advertising","Maps","Martham","Martham Hall Estate",null,"Henry Spelman",null,null,"Sale Particulars",null,null,"The map included with this is dated 1874.",null,null,null,null,null,null,null,null,null,null,"AM","0000000011"]
["AM",11,1,"5","AM/11/1/5","File","Particulars & Conditions of Sale of \"Clarke's Farm\" in 1896","CJH","A photocopy of the Particulars and Conditions of Sale of a small estate known as \"Clarke's Farm\".  The sale to take place on 1 Aug 1896","1/8/1896","8 pages, A4. Three pages double-sided. 4 pages of a map of the location in Martham.","Copy in public domain",null,null,null,null,null,null,null,null,"English","Property","Advertising","Maps","Martham","Clarke's Farm",null,null,null,null,"Sale Particulars",null,null,"The map included with this is dated 1896.",null,null,null,null,null,null,null,null,null,null,"AM","0000000011"]
["AM",11,1,"6","AM/11/1/6","File","Particulars & Conditions of Sale of Two Cottages & Gardens at Cess in 1901","CJH","A photocopy of the particulars and Conditions of Sale of Two Cottages & Gardens in Cess.  The sale to take place on 11 Sep 1901.","1901-09-11","2 pages A3. Includes a map of the location in Martham.","Copy in public domain",null,null,null,null,null,null,null,null,"English","Property","Advertising","Maps","Cess","Martham",null,null,null,null,"Sale Particulars",null,null,"The map included is dated 1901.",null,null,null,null,null,null,null,null,null,null,"AM","0000000011"]
["AM",11,1,"7","AM/11/1/7","File","Particulars of The Martham House Estate for sale by auction 22 July 1908","CJH","A photocopy of the particulars of The Martham House Estate for sale by auction on Wednesday, 22 July 1908.  Listing details of the property including Thunder Hill Farm.  Includes images of Martham House & garden plus a map, part of which is missing.","1908-07-22","5 pages A3, plus 8 pages A4.  Includes part of a map and images of house & garden.","Copy in public domain",null,null,null,null,null,null,null,null,"English","Property","Advertising","Maps","Martham","Martham House Estate","Thunder Hill Farm","Revd Benjamin Rising","John Harman",null,"Sale Particulars","Memorandum",null,"Includes a memorandum of the sale to Mr John Harman for £305.00",null,null,null,null,null,null,null,null,null,null,"AM","0000000011"]
["AM",11,1,"8","AM/11/1/8","File","Part of an estate agent's brochure of 1909 giving details of Martham Hall Estate for sale, including map","CJH","Photocopy of part of an estate agent's brochure of 1909 giving details of Martham Hall Estate for sale.  Includes map and two images (one of Ormesby Broad).",1909,"2 pages A3.  Includes map and 2 images.","Copy in public domain",null,null,null,null,null,null,null,null,"English","Property","Advertising","Maps","Martham","Martham Hall Estate","Ormesby Broad",null,null,null,"Sale Particulars",null,null,null,null,null,null,null,null,null,null,null,null,null,"AM","0000000011"]
["AM",11,1,"9","AM/11/1/9","File","Part of an estate agent's brochure of 1919 giving details of the property Moregrove Manor Farm for sale","CJH","Photocopy of part of an estate agent's brochure of 1919, giving details of the property known as Moregrove Manor Farm for sale.  Includes a Memorandum of the sale.","1919-06-04","3 pages A4, double-sided.","Copy in public domain",null,null,null,null,null,null,null,null,"English","Property","Advertising",null,"Martham","Moregrove Manor Farm",null,"George Chapman",null,null,"Sale Particulars","Memorandum",null,null,null,null,null,null,null,null,null,null,null,null,"AM","0000000011"]
["AM",11,1,"10","AM/11/1/10","File","Clarkes Farm, Staithe Road, Martham.  Research by Peter Dawson in 2020","CJH","A research document by Peter Dawson in 2020 about Clarkes Farm, Staithe Road, Martham.  Includes pictures, maps, census returns, sale notices, and advert.",2020,"13 pages A4. Includes copies of photographs, maps, census returns, adverts & sale notices.","Copy in private hands",null,null,null,null,null,null,null,"©Peter Dawson","English","Property","Maps","Census","Clarkes Farm","Martham",null,"Benjamin Rising","William Henry Garnham",null,"Research document",null,null,null,null,null,null,null,null,null,null,null,null,null,"AM","0000000011"]
["AM",11,1,"11/1",{"$f":"CONCATENATE(A367,(IF(B367<>\"\",\"/\",\"\")),B367,(IF(C367<>\"\",\"/\",\"\")),C367,(IF(D367<>\"\",\"/\",\"\")),D367)","v":"AM/11/1/11/1"},"File","Research document by Peter Dawson in 2020 - Moregrove Parts 1-3","CJH","A research document by Peter Dawson in 2020 about Moregrove.  Parts 1 to 3.  ",2020,"11 pages A4. Includes maps, photographs.","Copy in private hands",null,null,null,null,null,null,null,"©Peter Dawson","English","Property","Maps","Manors","Moregrove","Martham",null,"Gunton family","William Knightley",null,"Research document",null,null,null,null,null,null,null,null,null,null,null,null,null,"AM","0000000011"]
["AM",11,1,"11/2",{"$f":"CONCATENATE(A368,(IF(B368<>\"\",\"/\",\"\")),B368,(IF(C368<>\"\",\"/\",\"\")),C368,(IF(D368<>\"\",\"/\",\"\")),D368)","v":"AM/11/1/11/2"},"File","Research document by Peter Dawson in 2020 - Moregrove Part 4","CJH","A research document by Peter Dawson in 2020 about Moregrove.  Part 4.  ",2020,"25 pages, A4, mixture of typed, handwritten & photocopied pages. Includes colour & greyscale images, maps, census returns, adverts & family tree.","Copy in private hands",null,null,null,null,null,null,null,"©Peter Dawson","English","Property","Maps","Manors","Moregrove","Martham",null,"Elizabeth Cookson","Robert Garnham","Revd George Pearse","Research document",null,null,null,null,null,null,null,null,null,null,null,null,null,"AM","0000000011"]
["AM",12,null,null,"AM/12","Series","Purple File - Village Events and Organisations","SLC",null,null,null,null,null,null,null,null,null,null,null,null,null,null,null,null,null,null,null,null,null,null,null,null,null,null,null,null,null,null,null,null,null,null,null,null,"AM","0000000012","0000000000","0000000000","AM00000000120000000000"]
["AM",12,1,null,"AM/12/1","File","Poster of a Martham Fair 1842","SLC","A poster advertising Martham Fair July 26th & July 27th 1842, at the Kings Arms and Bowling Green. There was a Brass Band Concert and a singer Mr J Fuller from London and the comic singer Mr J Creake.","26 & 27 July 1842","8¼\" x 18¼\" ","Copy in public domain",null,null,null,null,null,null,null,"NFO","English","Entertainments","Community","Public Houses","Martham","Kings Arms Inn",null,"Mr Rogers",null,null,"Poster",null,null,null,null,null,null,null,null,null,null,null,null,null,"AM","0000000012","0000000001","0000000000","AM00000000120000000001"]
["AM",12,2,null,"AM/12/2","File","A photo of a board commemorating a special peal rung in 1887 at Queen Victoria's 50th Jubilee.","SLC","An advertisement for a special peal on June 21st 1887. Ringers, George Hayton, Edward England, Ernest Reeve, Robert Dove, Mark Chubbock and William Mace. The poster mentions Revd G Merriman, J Love and A Wiseman the churchwardens.","21/07/1887","1 A4","Copy in public domain",null,null,null,null,null,null,null,"Unknown","English","Christian Communities","Royal Family","Bell-ringing","Martham",null,null,"Queen Victoria",null,null,"Photographic print",null,null,null,"A photo of a board commemorating a special Peal at St Mary's Church, celebrating Queen Victoria's 50th Jubilee.",null,null,null,null,null,null,null,null,null,"AM","0000000012","0000000002","0000000000","AM00000000120000000002"]
["AM",12,3,null,"AM/12/3","File","Souvenir programme of Martham Coronation Day Programme","SLC","Programme for Queen Elizabeth's Coronation, listing events.","1953-06-02","2 x A4 pages folded","Original",null,null,null,null,null,null,null,"©Stone of Wymondham","English","Royal Family","Great Britain - History - 1950-1959",null,"Martham",null,null,"Queen Elizabeth ",null,null,"Programmes",null,null,null,"The programme advertised the official opening by Mrs W Bracey the lady of the Manor, Children's Sports on The Green. Assembly of Decorated Vehicles, Procession of decorated vehicles and Fancy Dress parade around the village, Collection of souvenir mugs, Children's tea, Comic football match, Dancing on the Green.  There was a competition of the best decorated private houses and trade premises in the village.",null,null,null,null,null,null,null,null,null,"AM","0000000012","0000000003","0000000000","AM00000000120000000003"]
["AM",12,4,null,"AM/12/4","File","Programme for the opening of the pavilion by Lieut. Col Sir Edmund Bacon, the Lord Lieutenant of the County and President of the Norfolk County Playing Fields Association. ","SLC","The programme of Events included a dedication by Revd. HC Kemp, a Carnival Fare, Children's sports programme, and afternoon tea.","1959-07-23","1 A4 page","Original",null,null,null,null,null,null,null,"©Martham Coronation Recreation Ground Pavilion Committee","English","Recreation","Sport",null,"Martham","Martham Coronation Recreation Ground",null,null,null,null,"Programmes",null,null,null,null,null,null,null,null,null,null,null,null,null,"AM","0000000012","0000000004","0000000000","AM00000000120000000004"]
["AM",12,5,null,"AM/12/5","File","Copy of an invitation to Mrs C Spencer to an afternoon tea party in the Garden of Buckingham Palace. This was to mark the Golden Jubilee of the National Federation of Women's Institutes.","SLC","The invitation and instructions for the day.","1965-05-31","2 x A4 sheets","Copy in private hands",null,null,null,null,null,null,null,"Unknown","English","Women's Institute","Garden Party",null,"Buckingham Palace",null,null,"Women's Institute","C Spencer",null,"Programmes","Invitations",null,null,null,null,null,null,null,null,null,null,null,null,"AM","0000000012","0000000005","0000000000","AM00000000120000000005"]
["AM",12,6,null,"AM/12/6",null,"FILE DELETED",null,null,null,null,null,null,null,null,null,null,null,null,null,null,null,null,null,null,null,null,null,null,null,null,null,null,null,null,null,null,null,null,null,null,null,null,null,"AM","0000000012","0000000006","0000000000","AM00000000120000000006"]
["AM",12,7,null,"AM/12/7","File","Copy of Martham Fair Programme ","SLC",null,"02-04/07/1976","6 x A4 Sheets","Original",null,null,null,null,null,null,null,"©Martham Fair Committee","English","Community",null,null,"Martham",null,null,null,null,null,"Programmes",null,null,null,null,null,null,null,null,null,null,null,null,null,"AM","0000000012","0000000007","0000000000","AM00000000120000000007"]
["AM",12,8,null,"AM/12/8","File","Programme of an organ recital at Martham Parish Church, by Mr Arie Plomp from Holland","SLC",null,"1979-04-30"," 1 x A4","Original",null,null,null,null,null,null,null,"©Martham Parish Church","English","Choral music","Christian communities",null,"Martham",null,null,"Arie Plomp",null,null,"Programmes",null,null,null,null,null,null,null,null,null,null,null,null,null,"AM","0000000012","0000000008","0000000000","AM00000000120000000008"]
["AM",12,9,null,"AM/12/9","File","An invitation to AB to attend the Centenary Celebrations in 1979 of Martham Baptist Church.","SLC",null,"12-13/05/1979","1 postcard size","Original",null,null,null,null,null,null,null,"©Martham Baptist Church","English","Christian communities",null,null,"Martham",null,null,"Martham Baptist Church",null,null,"Programmes",null,null,null,null,null,null,null,null,null,null,null,null,null,"AM","0000000012","0000000009","0000000000","AM00000000120000000009"]
["AM",12,10,null,"AM/12/10","File","Programme of an organ recital at Martham Parish Church by Andrew Benians","SLC",null,"1981-08-11","A4","Original",null,null,null,null,null,null,null,"©Martham Parish Church","English","Choral music","Christian communities",null,"Martham",null,null,"Andrew Benians",null,null,"Programmes",null,null,null,null,null,null,null,null,null,null,null,null,null,"AM","0000000012","0000000010","0000000000","AM00000000120000000010"]
["AM",12,11,null,"AM/12/11","File","Programme of an organ recital at Martham Parish Church by Alan Tait","SLC",null,"1981-08-27","A4","Original",null,null,null,null,null,null,null,"©Martham Parish Church","English","Choral music","Christian communities",null,"Martham",null,null,"Alan Tait",null,null,"Programmes",null,null,null,null,null,null,null,null,null,null,null,null,null,"AM","0000000012","0000000011","0000000000","AM00000000120000000011"]
["AM",12,12,null,"AM/12/12","File","Programme of an organ recital at Martham Parish Church by Michael Nicholas","SLC",null,"1982-05-22","A4","Original",null,null,null,null,null,null,null,"©Martham Parish Church","English","Choral music","Christian communities",null,"Martham",null,null,"Michael Nicholas",null,null,"Programmes",null,null,null,null,null,null,null,null,null,null,null,null,null,"AM","0000000012","0000000012","0000000000","AM00000000120000000012"]
["AM",12,13,null,"AM/12/13","File","Programme of an organ recital at Martham Parish Church by Roger  Rayner","SLC",null,"1982-06-23","A4","Original",null,null,null,null,null,null,null,"©Martham Parish Church","English","Choral music","Christian communities",null,"Martham",null,null,"Roger Rayner",null,null,"Programmes",null,null,null,null,null,null,null,null,null,null,null,null,null,"AM","0000000012","0000000013","0000000000","AM00000000120000000013"]
["AM",12,14,null,"AM/12/14","File","Programme of an organ recital at Martham Parish Church by David Trendell","SLC",null,"1982-07-20","A4","Original",null,null,null,null,null,null,null,"©Martham Parish Church","English","Choral music","Christian communities",null,"Martham",null,null,"David Trendell",null,null,"Programmes",null,null,null,null,null,null,null,null,null,null,null,null,null,"AM","0000000012","0000000014","0000000000","AM00000000120000000014"]
["AM",12,15,null,"AM/12/15","File","Programme of an organ recital at Martham Parish Church by Andrew Benians","SLC",null,"1982-07-28","A4","Original",null,null,null,null,null,null,null,"©Martham Parish Church","English","Choral music","Christian communities",null,"Martham",null,null,"Andrew Benians",null,null,"Programmes",null,null,null,null,null,null,null,null,null,null,null,null,null,"AM","0000000012","0000000015","0000000000","AM00000000120000000015"]
["AM",12,16,null,"AM/12/16","File","Programme of an organ recital at Martham Parish Church by Roger Rayner.","SLC",null,"1983-06-16","A4","Original",null,null,null,null,null,null,null,"©Martham Parish Church","English","Choral music","Christian communities",null,"Martham",null,null,"Roger Rayner",null,null,"Programmes",null,null,null,null,null,null,null,null,null,null,null,null,null,"AM","0000000012","0000000016","0000000000","AM00000000120000000016"]
["AM",12,17,null,"AM/12/17","File","Programme of an organ recital at Martham Parish Church by Colin Fenn","SLC",null,"1983-06-23","A4","Original",null,null,null,null,null,null,null,"©Martham Parish Church","English","Choral music","Christian communities",null,"Martham",null,null,"Colin Fenn",null,null,"Programmes",null,null,null,null,null,null,null,null,null,null,null,null,null,"AM","0000000012","0000000017","0000000000","AM00000000120000000017"]
["AM",12,18,null,"AM/12/18","File","Programme of an organ recital at Martham Parish Church by Ronald Watson and songs by Isabel Turner soprano.","SLC",null,"1983-07-13","A4","Original",null,null,null,null,null,null,null,"©Martham Parish Church","English","Choral music","Christian communities",null,"Martham",null,null,"Ronald Watson","Isabel Turner",null,"Programmes",null,null,null,null,null,null,null,null,null,null,null,null,null,"AM","0000000012","0000000018","0000000000","AM00000000120000000018"]
["AM",12,19,null,"AM/12/19","File","Programme of an organ recital at Martham Parish Church  by David Trendell","SLC",null,"1983-07-28","A4","Original",null,null,null,null,null,null,null,"©Martham Parish Church","English","Choral music","Christian communities",null,"Martham",null,null,"David Trendell",null,null,"Programmes",null,null,null,null,null,null,null,null,null,null,null,null,null,"AM","0000000012","0000000019","0000000000","AM00000000120000000019"]
["AM",12,20,null,"AM/12/20","File","Programme of an organ recital at Martham Parish Church by Andrew Benians","SLC",null,"1983-04-30","A4","Original",null,null,null,null,null,null,null,"©Martham Parish Church","English","Choral music","Christian communities",null,"Martham",null,null,"Andrew Benians",null,null,"Programmes",null,null,null,null,null,null,null,null,null,null,null,null,null,"AM","0000000012","0000000020","0000000000","AM00000000120000000020"]
["AM",12,21,null,"AM/12/21","File","Programme of an organ recital at Martham Parish Church by Roger Rayner.","SLC",null,"1985-06-19","A4","Original",null,null,null,null,null,null,null,"©Martham Parish Church","English","Choral music","Christian communities",null,"Martham",null,null,"Roger Rayner",null,null,"Programmes",null,null,null,null,null,null,null,null,null,null,null,null,null,"AM","0000000012","0000000021","0000000000","AM00000000120000000021"]
["AM",12,22,null,"AM/12/22","File","Programme of an organ recital at Martham Parish Church by David Trendell","SLC",null,"1985-07-17","A4","Original",null,null,null,null,null,null,null,"©Martham Parish Church","English","Choral music","Christian communities",null,"Martham",null,null,"David Trendell",null,null,"Programmes",null,null,null,null,null,null,null,null,null,null,null,null,null,"AM","0000000012","0000000022","0000000000","AM00000000120000000022"]
["AM",12,23,null,"AM/12/23","File","Programme of an organ recital at Martham Parish Church by Kenneth Ryder.","SLC",null,"1986-07-11","A4","Original",null,null,null,null,null,null,null,"©Martham Parish Church","English","Choral music","Christian communities",null,"Martham",null,null,"Kenneth Ryder",null,null,"Programmes",null,null,null,null,null,null,null,null,null,null,null,null,null,"AM","0000000012","0000000023","0000000000","AM00000000120000000023"]
["AM",12,24,null,"AM/12/24","File","Guide Leaflet for the exhibition held at St Mary's Church, for the heritage weekend.","SLC","A list of the exhibits and those people who contributed to the exhibition.","25-26/08/1996","A4","Original",null,null,null,null,null,null,null,"©Martham Parish Church","English","Christian communities","Norfolk History","Norfolk Life","Martham",null,null,null,null,null,"Programmes",null,null,null,null,null,null,null,null,null,null,null,null,null,"AM","0000000012","0000000024","0000000000","AM00000000120000000024"]
["AM",12,25,null,"AM/12/25","File","Programme of an organ recital at Martham Parish Church by Neil Taylor","SLC",null,"1997-06-14","A4","Original",null,null,null,null,null,null,null,"©Martham Parish Church","English","Christian communities","Choral Music",null,"Martham",null,null,"Neil Taylor",null,null,"Programmes",null,null,null,null,null,null,null,null,null,null,null,null,null,"AM","0000000012","0000000025","0000000000","AM00000000120000000025"]
["AM",12,26,null,"AM/12/26","File","Programme of a concert at Martham Parish Church by The Marylebone Ensemble.","SLC",null,"1997-12-06","A4","Original",null,null,null,null,null,null,null,"©Martham Parish Church","English","Christian communities","Choral Music",null,"Martham",null,null,"Marylebone Ensemble",null,null,"Programmes",null,null,null,null,null,null,null,null,null,null,null,null,null,"AM","0000000012","0000000026","0000000000","AM00000000120000000026"]
["AM",12,27,null,"AM/12/27","File","Programme of an organ recital at Martham Parish Church by David  Dunnett","SLC",null,"1998-08-08","A4","Original",null,null,null,null,null,null,null,"©Martham Parish Church","English","Christian communities","Choral Music",null,"Martham",null,null,"David Dunnett",null,null,"Programmes",null,null,null,null,null,null,null,null,null,null,null,null,null,"AM","0000000012","0000000027","0000000000","AM00000000120000000027"]
["AM",12,28,null,"AM/12/28","File","Poster advertising the Wedding Photos Exhibition at St Mary's Parish Church to celebrate the Jubilee Weekend","SLC","This file also includes 7 photographs of the exhibit boards of the wedding photos.","01-04/06/2002","A4 and 7 photos (15 x7cm)","Original",null,null,null,null,null,null,null,"©Martham Parish Church","English","Christian communities","Wedding customs",null,"Martham",null,null,null,null,null,"Photographic print","Poster",null,"This advertised the exhibition of wedding photos of couples from Martham Village. The photos are of the exhibition boards, not individual photos.",null,null,null,null,null,null,null,null,null,null,"AM","0000000012","0000000028","0000000000","AM00000000120000000028"]
["AM",12,28,"1","AM/12/28/1","File","A list of all the photographs in the wedding photo exhibition held at St Mary's Parish Church","SLC",null,"01-04/06/2002","A4 x5","Original",null,null,null,null,null,null,null,"©Martham Parish Church","English","Wedding Customs",null,null,"Martham",null,null,null,null,null,"Index",null,null,"This is a list of the couples and the date of the wedding day. ",null,null,null,null,null,null,null,null,null,null,"AM","0000000012","0000000028","0000000001","AM000000001200000000281"]
["AM",12,29,null,"AM/12/29","File","Poster advertising the 'Memories of Martham' Exhibition held at Martham Parish Church","SLC",null,"26-28/05/2008","A5","Original",null,null,null,null,null,null,null,"©Martham Parish Church","English","Norfolk Life","Family businesses","Community","Martham",null,null,null,null,null,"Poster",null,null,null,null,null,null,null,null,null,null,null,null,null,"AM","0000000012","0000000029","0000000000","AM00000000120000000029"]
["AM",12,29,"1","AM/12/29/1","File","Photographs of the exhibition boards for 'Memories of Martham'","SLC"," Photographs of the exhibition boards","2008-05-28","A4 x17","Copy in private hands",null,null,null,null,null,null,null,"©Martham Parish Church","English","Norfolk Life","Family businesses","Community","Martham",null,null,null,null,null,"Photographic print",null,null,"These pages are copies of photos taken of the exhibiiton boards and not of the individual photos. They may be able to be magnified to see some of the individual photographs.",null,null,null,null,null,null,null,null,null,null,"AM","0000000012","0000000029","0000000001","AM000000001200000000291"]
["AM",12,30,null,"AM/12/30","File","Poster advertising the Gray Brothers, Super Funfare visit to Martham.","SLC",null,"30/04-04/05/2009","A5","Original",null,null,null,null,null,null,null,"©Gray Brothers","English","Norfolk Life","Entertainments","Community","Martham",null,null,null,null,null,"Poster",null,null,null,null,null,null,null,null,null,null,null,null,null,"AM","0000000012","0000000030","0000000000","AM00000000120000000030"]
["AM",12,31,null,"AM/12/31","File","Programme for Theatre East's production of 'The Old Woman who lived in a Shoe' and entrance ticket. ","SLC",null,"2009-02-04","A4","Original",null,null,null,null,null,null,null,"©Flegg High School","English","Entertainment",null,null,"Martham","Flegg High School",null,"Norman Robbins",null,null,"Poster",null,null,"A poster advisertisng the pantomime by Norman Robbins. Held at Flegg High School.",null,null,null,null,null,null,null,null,null,null,"AM","0000000012","0000000031","0000000000","AM00000000120000000031"]
["AM",12,32,null,"AM/12/32","File","Programme for Martham Carnival Weekend","SLC","A programme advertising all the events around the village on Carnival weekend.","04-05/07/2009","2 A4 pages","Original",null,null,null,null,null,null,null,"©Martham Carnival Committee","English","Entertainment","Norfolk Life","Community","Martham",null,null,"Martham Carnival",null,null,"Programmes",null,null,"A programme of all the events over the 2 days of the Martham Carnival.",null,null,null,null,null,null,null,null,null,null,"AM","0000000012","0000000032","0000000000","AM00000000120000000032"]
["AM",12,33,null,"AM/12/33","File","Programme of a concert at Martham Parish Church by Patrick Hawes and Linda Purdy.","SLC",null,"2010-03-13","A4","Original",null,null,null,null,null,null,null,"©Martham Parish Church","English","Choral music","Entertainments",null,"Martham","St Mary's Parish Church",null,"Patrick Hawes","Linda Purdy",null,"Programmes",null,null,"A programme for the concert held at Martham Parish Church by Patrick Hawes and Linda Purdy.",null,null,null,null,null,null,null,null,null,null,"AM","0000000012","0000000033","0000000000","AM00000000120000000033"]
["AM",12,34,null,{"$f":"CONCATENATE(A405,(IF(B405<>\"\",\"/\",\"\")),B405,(IF(C405<>\"\",\"/\",\"\")),C405,(IF(D405<>\"\",\"/\",\"\")),D405)","v":"AM/12/34"},"File","Programme for a concert at Martham Parish Church by Rafal Luc on Classical Accordion and Jessica Hayes on Cello.","SLC","Part of the Norfolk and Norwich Festival of 2010. ","2010-05-17","A4","Original",null,null,null,null,null,null,null,"©Martham Parish Church","English","Choral music","Entertainments",null,"Martham","St Mary's Parish Church",null,"Rafal Luc","Jessica Hayes",null,"Programmes",null,null,"A programme for the concert held at Martham Parish Church by Rafal Luc on classical Accordion and Jessica Hayes on Cello. Part of the Norfolk and Norwich Festival of 2010.",null,null,null,null,null,null,null,null,null,null,{"$f":"A405","v":"AM"},{"$f":"IF(B405=\"\",\"0000000000\",RIGHT(\"0000000000\"&B405,10))","v":"0000000012"},"0000000034",{"$f":"IF(D405=\"\",\"0000000000\",RIGHT(\"0000000000\"&D405, 10))","v":"0000000000"},{"$f":"CONCATENATE(AS405,AT405,AU405,D405,)","v":"AM00000000120000000034"}]
["AM",12,35,null,"AM/12/35","File","Draft booklet 'Martham Sixty Years of Change' - Souvenir Booklet sold at the Exhibition held at Martham Parish Church to celebrate the Diamond Jubilee of Her Majesty Queen Elizabeth II.","SLC","The booklet lists the main events of the village from 1952-2012, as a souvenir of the exhibition.","02-05/6/2012","A4 x 20 double sided pages.","Original",null,null,null,null,null,null,null,"©Martham Parish Church","English","Martham History","Queen Elizabeth II Diamond Jubilee",null,"Martham","St Mary's Parish Church",null,"Queen Elizabeth II",null,null,"Programmes","Souvenir Booklet",null,"A Souvenir Booklet (draft) celebrating 60 years of Martham Village history, with contributions from villagers. Contains maps and photographs. Some advertisments from sponsors.",null,null,null,null,null,null,null,null,null,null,"AM","0000000012","0000000035","0000000000","AM00000000120000000035"]
["AM",12,36,null,"AM/12/36","Item","A list of all the wedding photographs exhibited at Martham Parish Church at the Carnival Weekend July 2017","SLC","A List of all the wedding photographs exhibited at Martham Parish Church at the Carnival Weekend July 2017","01-02/07/2017","7 pages of A4 double sided","Copy in private hands",null,null,null,null,null,null,null,"©Martham Parish Church","English","Martham History","Wedding customs",null,"Martham","St Mary's Parish Church",null,null,null,null,"Programmes",null,null,"The list of wedding photographs exhibited at Martham Parish church, date from 1914 -2016",null,null,null,null,null,null,null,null,null,null,"AM","0000000012","0000000036","0000000000","AM00000000120000000036"]
[null,null,null,null,{"$f":"CONCATENATE(A408,(IF(B408<>\"\",\"/\",\"\")),B408,(IF(C408<>\"\",\"/\",\"\")),C408,(IF(D408<>\"\",\"/\",\"\")),D408)","v":""},null,null,null,null,null,null,null,null,null,null,null,null,null,null,null,null,null,null,null,null,null,null,null,null,null,null,null,null,null,null,null,null,null,null,null,null,null,null,null,{"$f":"A408","v":0},{"$f":"IF(B408=\"\",\"0000000000\",RIGHT(\"0000000000\"&B408,10))","v":"0000000000"},{"$f":"IF(C408=\"\",\"0000000000\",RIGHT(\"0000000000\"&C408,10))","v":"0000000000"},{"$f":"IF(D408=\"\",\"0000000000\",RIGHT(\"0000000000\"&D408, 10))","v":"0000000000"},{"$f":"CONCATENATE(AS408,AT408,AU408,D408,)","v":"000000000000000000000"}]
[null,null,null,null,"",null,null,null,null,null,null,null,null,null,null,null,null,null,null,null,null,null,null,null,null,null,null,null,null,null,null,null,null,null,null,null,null,null,null,null,null,null,null,null,0,"0000000000","0000000000","0000000000","000000000000000000000"]
[null,null,null,null,"",null,null,null,null,null,null,null,null,null,null,null,null,null,null,null,null,null,null,null,null,null,null,null,null,null,null,null,null,null,null,null,null,null,null,null,null,null,null,null,0,"0000000000","0000000000","0000000000","000000000000000000000"]
[null,null,null,null,"",null,null,null,null,null,null,null,null,null,null,null,null,null,null,null,null,null,null,null,null,null,null,null,null,null,null,null,null,null,null,null,null,null,null,null,null,null,null,null,0,"0000000000","0000000000","0000000000","000000000000000000000"]
[null,null,null,null,"",null,null,null,null,null,null,null,null,null,null,null,null,null,null,null,null,null,null,null,null,null,null,null,null,null,null,null,null,null,null,null,null,null,null,null,null,null,null,null,0,"0000000000","0000000000","0000000000","000000000000000000000"]
[null,null,null,null,"",null,null,null,null,null,null,null,null,null,null,null,null,null,null,null,null,null,null,null,null,null,null,null,null,null,null,null,null,null,null,null,null,null,null,null,null,null,null,null,0,"0000000000","0000000000","0000000000","000000000000000000000"]
[null,null,null,null,"",null,null,null,null,null,null,null,null,null,null,null,null,null,null,null,null,null,null,null,null,null,null,null,null,null,null,null,null,null,null,null,null,null,null,null,null,null,null,null,0,"0000000000","0000000000","0000000000","000000000000000000000"]
[null,null,null,null,"",null,null,null,null,null,null,null,null,null,null,null,null,null,null,null,null,null,null,null,null,null,null,null,null,null,null,null,null,null,null,null,null,null,null,null,null,null,null,null,0,"0000000000","0000000000","0000000000","000000000000000000000"]
[null,null,null,null,"",null,null,null,null,null,null,null,null,null,null,null,null,null,null,null,null,null,null,null,null,null,null,null,null,null,null,null,null,null,null,null,null,null,null,null,null,null,null,null,0,"0000000000","0000000000","0000000000","000000000000000000000"]
[null,null,null,null,"",null,null,null,null,null,null,null,null,null,null,null,null,null,null,null,null,null,null,null,null,null,null,null,null,null,null,null,null,null,null,null,null,null,null,null,null,null,null,null,0,"0000000000","0000000000","0000000000","000000000000000000000"]
[null,null,null,null,"",null,null,null,null,null,null,null,null,null,null,null,null,null,null,null,null,null,null,null,null,null,null,null,null,null,null,null,null,null,null,null,null,null,null,null,null,null,null,null,0,"0000000000","0000000000","0000000000","000000000000000000000"]
[null,null,null,null,"",null,null,null,null,null,null,null,null,null,null,null,null,null,null,null,null,null,null,null,null,null,null,null,null,null,null,null,null,null,null,null,null,null,null,null,null,null,null,null,0,"0000000000","0000000000","0000000000","000000000000000000000"]
[null,null,null,null,"",null,null,null,null,null,null,null,null,null,null,null,null,null,null,null,null,null,null,null,null,null,null,null,null,null,null,null,null,null,null,null,null,null,null,null,null,null,null,null,0,"0000000000","0000000000","0000000000","000000000000000000000"]
[null,null,null,null,"",null,null,null,null,null,null,null,null,null,null,null,null,null,null,null,null,null,null,null,null,null,null,null,null,null,null,null,null,null,null,null,null,null,null,null,null,null,null,null,0,"0000000000","0000000000","0000000000","000000000000000000000"]
[null,null,null,null,"",null,null,null,null,null,null,null,null,null,null,null,null,null,null,null,null,null,null,null,null,null,null,null,null,null,null,null,null,null,null,null,null,null,null,null,null,null,null,null,0,"0000000000","0000000000","0000000000","000000000000000000000"]
[null,null,null,null,"",null,null,null,null,null,null,null,null,null,null,null,null,null,null,null,null,null,null,null,null,null,null,null,null,null,null,null,null,null,null,null,null,null,null,null,null,null,null,null,0,"0000000000","0000000000","0000000000","000000000000000000000"]
[null,null,null,null,"",null,null,null,null,null,null,null,null,null,null,null,null,null,null,null,null,null,null,null,null,null,null,null,null,null,null,null,null,null,null,null,null,null,null,null,null,null,null,null,0,"0000000000","0000000000","0000000000","000000000000000000000"]
[null,null,null,null,"",null,null,null,null,null,null,null,null,null,null,null,null,null,null,null,null,null,null,null,null,null,null,null,null,null,null,null,null,null,null,null,null,null,null,null,null,null,null,null,0,"0000000000","0000000000","0000000000","000000000000000000000"]
[null,null,null,null,"",null,null,null,null,null,null,null,null,null,null,null,null,null,null,null,null,null,null,null,null,null,null,null,null,null,null,null,null,null,null,null,null,null,null,null,null,null,null,null,0,"0000000000","0000000000","0000000000","000000000000000000000"]
[null,null,null,null,"",null,null,null,null,null,null,null,null,null,null,null,null,null,null,null,null,null,null,null,null,null,null,null,null,null,null,null,null,null,null,null,null,null,null,null,null,null,null,null,0,"0000000000","0000000000","0000000000","000000000000000000000"]
[null,null,null,null,"",null,null,null,null,null,null,null,null,null,null,null,null,null,null,null,null,null,null,null,null,null,null,null,null,null,null,null,null,null,null,null,null,null,null,null,null,null,null,null,0,"0000000000","0000000000","0000000000","000000000000000000000"]
[null,null,null,null,"",null,null,null,null,null,null,null,null,null,null,null,null,null,null,null,null,null,null,null,null,null,null,null,null,null,null,null,null,null,null,null,null,null,null,null,null,null,null,null,0,"0000000000","0000000000","0000000000","000000000000000000000"]
[null,null,null,null,"",null,null,null,null,null,null,null,null,null,null,null,null,null,null,null,null,null,null,null,null,null,null,null,null,null,null,null,null,null,null,null,null,null,null,null,null,null,null,null,0,"0000000000","0000000000","0000000000","000000000000000000000"]
[null,null,null,null,"",null,null,null,null,null,null,null,null,null,null,null,null,null,null,null,null,null,null,null,null,null,null,null,null,null,null,null,null,null,null,null,null,null,null,null,null,null,null,null,0,"0000000000","0000000000","0000000000","000000000000000000000"]
[null,null,null,null,"",null,null,null,null,null,null,null,null,null,null,null,null,null,null,null,null,null,null,null,null,null,null,null,null,null,null,null,null,null,null,null,null,null,null,null,null,null,null,null,0,"0000000000","0000000000","0000000000","000000000000000000000"]
[null,null,null,null,"",null,null,null,null,null,null,null,null,null,null,null,null,null,null,null,null,null,null,null,null,null,null,null,null,null,null,null,null,null,null,null,null,null,null,null,null,null,null,null,0,"0000000000","0000000000","0000000000","000000000000000000000"]
[null,null,null,null,"",null,null,null,null,null,null,null,null,null,null,null,null,null,null,null,null,null,null,null,null,null,null,null,null,null,null,null,null,null,null,null,null,null,null,null,null,null,null,null,0,"0000000000","0000000000","0000000000","000000000000000000000"]
[null,null,null,null,"",null,null,null,null,null,null,null,null,null,null,null,null,null,null,null,null,null,null,null,null,null,null,null,null,null,null,null,null,null,null,null,null,null,null,null,null,null,null,null,0,"0000000000","0000000000","0000000000","000000000000000000000"]
[null,null,null,null,"",null,null,null,null,null,null,null,null,null,null,null,null,null,null,null,null,null,null,null,null,null,null,null,null,null,null,null,null,null,null,null,null,null,null,null,null,null,null,null,0,"0000000000","0000000000","0000000000","000000000000000000000"]
[null,null,null,null,"",null,null,null,null,null,null,null,null,null,null,null,null,null,null,null,null,null,null,null,null,null,null,null,null,null,null,null,null,null,null,null,null,null,null,null,null,null,null,null,0,"0000000000","0000000000","0000000000","000000000000000000000"]
[null,null,null,null,"",null,null,null,null,null,null,null,null,null,null,null,null,null,null,null,null,null,null,null,null,null,null,null,null,null,null,null,null,null,null,null,null,null,null,null,null,null,null,null,0,"0000000000","0000000000","0000000000","000000000000000000000"]
[null,null,null,null,"",null,null,null,null,null,null,null,null,null,null,null,null,null,null,null,null,null,null,null,null,null,null,null,null,null,null,null,null,null,null,null,null,null,null,null,null,null,null,null,0,"0000000000","0000000000","0000000000","000000000000000000000"]
[null,null,null,null,"",null,null,null,null,null,null,null,null,null,null,null,null,null,null,null,null,null,null,null,null,null,null,null,null,null,null,null,null,null,null,null,null,null,null,null,null,null,null,null,0,"0000000000","0000000000","0000000000","000000000000000000000"]
[null,null,null,null,"",null,null,null,null,null,null,null,null,null,null,null,null,null,null,null,null,null,null,null,null,null,null,null,null,null,null,null,null,null,null,null,null,null,null,null,null,null,null,null,0,"0000000000","0000000000","0000000000","000000000000000000000"]
[null,null,null,null,"",null,null,null,null,null,null,null,null,null,null,null,null,null,null,null,null,null,null,null,null,null,null,null,null,null,null,null,null,null,null,null,null,null,null,null,null,null,null,null,0,"0000000000","0000000000","0000000000","000000000000000000000"]
[null,null,null,null,"",null,null,null,null,null,null,null,null,null,null,null,null,null,null,null,null,null,null,null,null,null,null,null,null,null,null,null,null,null,null,null,null,null,null,null,null,null,null,null,0,"0000000000","0000000000","0000000000","000000000000000000000"]
[null,null,null,null,"",null,null,null,null,null,null,null,null,null,null,null,null,null,null,null,null,null,null,null,null,null,null,null,null,null,null,null,null,null,null,null,null,null,null,null,null,null,null,null,0,"0000000000","0000000000","0000000000","000000000000000000000"]
[null,null,null,null,"",null,null,null,null,null,null,null,null,null,null,null,null,null,null,null,null,null,null,null,null,null,null,null,null,null,null,null,null,null,null,null,null,null,null,null,null,null,null,null,0,"0000000000","0000000000","0000000000","000000000000000000000"]
[null,null,null,null,"",null,null,null,null,null,null,null,null,null,null,null,null,null,null,null,null,null,null,null,null,null,null,null,null,null,null,null,null,null,null,null,null,null,null,null,null,null,null,null,0,"0000000000","0000000000","0000000000","000000000000000000000"]
[null,null,null,null,"",null,null,null,null,null,null,null,null,null,null,null,null,null,null,null,null,null,null,null,null,null,null,null,null,null,null,null,null,null,null,null,null,null,null,null,null,null,null,null,0,"0000000000","0000000000","0000000000","000000000000000000000"]
[null,null,null,null,"",null,null,null,null,null,null,null,null,null,null,null,null,null,null,null,null,null,null,null,null,null,null,null,null,null,null,null,null,null,null,null,null,null,null,null,null,null,null,null,0,"0000000000","0000000000","0000000000","000000000000000000000"]
[null,null,null,null,"",null,null,null,null,null,null,null,null,null,null,null,null,null,null,null,null,null,null,null,null,null,null,null,null,null,null,null,null,null,null,null,null,null,null,null,null,null,null,null,0,"0000000000","0000000000","0000000000","000000000000000000000"]
[null,null,null,null,"",null,null,null,null,null,null,null,null,null,null,null,null,null,null,null,null,null,null,null,null,null,null,null,null,null,null,null,null,null,null,null,null,null,null,null,null,null,null,null,0,"0000000000","0000000000","0000000000","000000000000000000000"]
[null,null,null,null,"",null,null,null,null,null,null,null,null,null,null,null,null,null,null,null,null,null,null,null,null,null,null,null,null,null,null,null,null,null,null,null,null,null,null,null,null,null,null,null,0,"0000000000","0000000000","0000000000","000000000000000000000"]
[null,null,null,null,"",null,null,null,null,null,null,null,null,null,null,null,null,null,null,null,null,null,null,null,null,null,null,null,null,null,null,null,null,null,null,null,null,null,null,null,null,null,null,null,0,"0000000000","0000000000","0000000000","000000000000000000000"]
[null,null,null,null,"",null,null,null,null,null,null,null,null,null,null,null,null,null,null,null,null,null,null,null,null,null,null,null,null,null,null,null,null,null,null,null,null,null,null,null,null,null,null,null,0,"0000000000","0000000000","0000000000","000000000000000000000"]
[null,null,null,null,"",null,null,null,null,null,null,null,null,null,null,null,null,null,null,null,null,null,null,null,null,null,null,null,null,null,null,null,null,null,null,null,null,null,null,null,null,null,null,null,0,"0000000000","0000000000","0000000000","000000000000000000000"]
[null,null,null,null,"",null,null,null,null,null,null,null,null,null,null,null,null,null,null,null,null,null,null,null,null,null,null,null,null,null,null,null,null,null,null,null,null,null,null,null,null,null,null,null,0,"0000000000","0000000000","0000000000","000000000000000000000"]
[null,null,null,null,"",null,null,null,null,null,null,null,null,null,null,null,null,null,null,null,null,null,null,null,null,null,null,null,null,null,null,null,null,null,null,null,null,null,null,null,null,null,null,null,0,"0000000000","0000000000","0000000000","000000000000000000000"]
[null,null,null,null,"",null,null,null,null,null,null,null,null,null,null,null,null,null,null,null,null,null,null,null,null,null,null,null,null,null,null,null,null,null,null,null,null,null,null,null,null,null,null,null,0,"0000000000","0000000000","0000000000","000000000000000000000"]
[null,null,null,null,"",null,null,null,null,null,null,null,null,null,null,null,null,null,null,null,null,null,null,null,null,null,null,null,null,null,null,null,null,null,null,null,null,null,null,null,null,null,null,null,0,"0000000000","0000000000","0000000000","000000000000000000000"]
[null,null,null,null,"",null,null,null,null,null,null,null,null,null,null,null,null,null,null,null,null,null,null,null,null,null,null,null,null,null,null,null,null,null,null,null,null,null,null,null,null,null,null,null,0,"0000000000","0000000000","0000000000","000000000000000000000"]
[null,null,null,null,"",null,null,null,null,null,null,null,null,null,null,null,null,null,null,null,null,null,null,null,null,null,null,null,null,null,null,null,null,null,null,null,null,null,null,null,null,null,null,null,0,"0000000000","0000000000","0000000000","000000000000000000000"]
[null,null,null,null,"",null,null,null,null,null,null,null,null,null,null,null,null,null,null,null,null,null,null,null,null,null,null,null,null,null,null,null,null,null,null,null,null,null,null,null,null,null,null,null,0,"0000000000","0000000000","0000000000","000000000000000000000"]
[null,null,null,null,"",null,null,null,null,null,null,null,null,null,null,null,null,null,null,null,null,null,null,null,null,null,null,null,null,null,null,null,null,null,null,null,null,null,null,null,null,null,null,null,0,"0000000000","0000000000","0000000000","000000000000000000000"]
[null,null,null,null,"",null,null,null,null,null,null,null,null,null,null,null,null,null,null,null,null,null,null,null,null,null,null,null,null,null,null,null,null,null,null,null,null,null,null,null,null,null,null,null,0,"0000000000","0000000000","0000000000","000000000000000000000"]
[null,null,null,null,"",null,null,null,null,null,null,null,null,null,null,null,null,null,null,null,null,null,null,null,null,null,null,null,null,null,null,null,null,null,null,null,null,null,null,null,null,null,null,null,0,"0000000000","0000000000","0000000000","000000000000000000000"]
[null,null,null,null,"",null,null,null,null,null,null,null,null,null,null,null,null,null,null,null,null,null,null,null,null,null,null,null,null,null,null,null,null,null,null,null,null,null,null,null,null,null,null,null,0,"0000000000","0000000000","0000000000","000000000000000000000"]
[null,null,null,null,"",null,null,null,null,null,null,null,null,null,null,null,null,null,null,null,null,null,null,null,null,null,null,null,null,null,null,null,null,null,null,null,null,null,null,null,null,null,null,null,0,"0000000000","0000000000","0000000000","000000000000000000000"]
[null,null,null,null,"",null,null,null,null,null,null,null,null,null,null,null,null,null,null,null,null,null,null,null,null,null,null,null,null,null,null,null,null,null,null,null,null,null,null,null,null,null,null,null,0,"0000000000","0000000000","0000000000","000000000000000000000"]
[null,null,null,null,"",null,null,null,null,null,null,null,null,null,null,null,null,null,null,null,null,null,null,null,null,null,null,null,null,null,null,null,null,null,null,null,null,null,null,null,null,null,null,null,0,"0000000000","0000000000","0000000000","000000000000000000000"]
[null,null,null,null,{"$f":"CONCATENATE(A469,(IF(B469<>\"\",\"/\",\"\")),B469,(IF(C469<>\"\",\"/\",\"\")),C469,(IF(D469<>\"\",\"/\",\"\")),D469)","v":""},null,null,null,null,null,null,null,null,null,null,null,null,null,null,null,null,null,null,null,null,null,null,null,null,null,null,null,null,null,null,null,null,null,null,null,null,null,null,null,{"$f":"A469","v":0},{"$f":"IF(B469=\"\",\"0000000000\",RIGHT(\"0000000000\"&B469,10))","v":"0000000000"},{"$f":"IF(C469=\"\",\"0000000000\",RIGHT(\"0000000000\"&C469,10))","v":"0000000000"},{"$f":"IF(D469=\"\",\"0000000000\",RIGHT(\"0000000000\"&D469, 10))","v":"0000000000"},{"$f":"CONCATENATE(AS469,AT469,AU469,D469,)","v":"000000000000000000000"}]
[null,null,null,null,"",null,null,null,null,null,null,null,null,null,null,null,null,null,null,null,null,null,null,null,null,null,null,null,null,null,null,null,null,null,null,null,null,null,null,null,null,null,null,null,0,"0000000000","0000000000","0000000000","000000000000000000000"]
[null,null,null,null,"",null,null,null,null,null,null,null,null,null,null,null,null,null,null,null,null,null,null,null,null,null,null,null,null,null,null,null,null,null,null,null,null,null,null,null,null,null,null,null,0,"0000000000","0000000000","0000000000","000000000000000000000"]
[null,null,null,null,"",null,null,null,null,null,null,null,null,null,null,null,null,null,null,null,null,null,null,null,null,null,null,null,null,null,null,null,null,null,null,null,null,null,null,null,null,null,null,null,0,"0000000000","0000000000","0000000000","000000000000000000000"]
[null,null,null,null,"",null,null,null,null,null,null,null,null,null,null,null,null,null,null,null,null,null,null,null,null,null,null,null,null,null,null,null,null,null,null,null,null,null,null,null,null,null,null,null,0,"0000000000","0000000000","0000000000","000000000000000000000"]
[null,null,null,null,"",null,null,null,null,null,null,null,null,null,null,null,null,null,null,null,null,null,null,null,null,null,null,null,null,null,null,null,null,null,null,null,null,null,null,null,null,null,null,null,0,"0000000000","0000000000","0000000000","000000000000000000000"]
[null,null,null,null,"",null,null,null,null,null,null,null,null,null,null,null,null,null,null,null,null,null,null,null,null,null,null,null,null,null,null,null,null,null,null,null,null,null,null,null,null,null,null,null,0,"0000000000","0000000000","0000000000","000000000000000000000"]
[null,null,null,null,"",null,null,null,null,null,null,null,null,null,null,null,null,null,null,null,null,null,null,null,null,null,null,null,null,null,null,null,null,null,null,null,null,null,null,null,null,null,null,null,0,"0000000000","0000000000","0000000000","000000000000000000000"]
[null,null,null,null,"",null,null,null,null,null,null,null,null,null,null,null,null,null,null,null,null,null,null,null,null,null,null,null,null,null,null,null,null,null,null,null,null,null,null,null,null,null,null,null,0,"0000000000","0000000000","0000000000","000000000000000000000"]
[null,null,null,null,"",null,null,null,null,null,null,null,null,null,null,null,null,null,null,null,null,null,null,null,null,null,null,null,null,null,null,null,null,null,null,null,null,null,null,null,null,null,null,null,0,"0000000000","0000000000","0000000000","000000000000000000000"]
[null,null,null,null,"",null,null,null,null,null,null,null,null,null,null,null,null,null,null,null,null,null,null,null,null,null,null,null,null,null,null,null,null,null,null,null,null,null,null,null,null,null,null,null,0,"0000000000","0000000000","0000000000","000000000000000000000"]
[null,null,null,null,"",null,null,null,null,null,null,null,null,null,null,null,null,null,null,null,null,null,null,null,null,null,null,null,null,null,null,null,null,null,null,null,null,null,null,null,null,null,null,null,0,"0000000000","0000000000","0000000000","000000000000000000000"]
[null,null,null,null,"",null,null,null,null,null,null,null,null,null,null,null,null,null,null,null,null,null,null,null,null,null,null,null,null,null,null,null,null,null,null,null,null,null,null,null,null,null,null,null,0,"0000000000","0000000000","0000000000","000000000000000000000"]
[null,null,null,null,"",null,null,null,null,null,null,null,null,null,null,null,null,null,null,null,null,null,null,null,null,null,null,null,null,null,null,null,null,null,null,null,null,null,null,null,null,null,null,null,0,"0000000000","0000000000","0000000000","000000000000000000000"]
[null,null,null,null,"",null,null,null,null,null,null,null,null,null,null,null,null,null,null,null,null,null,null,null,null,null,null,null,null,null,null,null,null,null,null,null,null,null,null,null,null,null,null,null,0,"0000000000","0000000000","0000000000","000000000000000000000"]
[null,null,null,null,"",null,null,null,null,null,null,null,null,null,null,null,null,null,null,null,null,null,null,null,null,null,null,null,null,null,null,null,null,null,null,null,null,null,null,null,null,null,null,null,0,"0000000000","0000000000","0000000000","000000000000000000000"]
[null,null,null,null,"",null,null,null,null,null,null,null,null,null,null,null,null,null,null,null,null,null,null,null,null,null,null,null,null,null,null,null,null,null,null,null,null,null,null,null,null,null,null,null,0,"0000000000","0000000000","0000000000","000000000000000000000"]
[null,null,null,null,"",null,null,null,null,null,null,null,null,null,null,null,null,null,null,null,null,null,null,null,null,null,null,null,null,null,null,null,null,null,null,null,null,null,null,null,null,null,null,null,0,"0000000000","0000000000","0000000000","000000000000000000000"]
[null,null,null,null,"",null,null,null,null,null,null,null,null,null,null,null,null,null,null,null,null,null,null,null,null,null,null,null,null,null,null,null,null,null,null,null,null,null,null,null,null,null,null,null,0,"0000000000","0000000000","0000000000","000000000000000000000"]
[null,null,null,null,"",null,null,null,null,null,null,null,null,null,null,null,null,null,null,null,null,null,null,null,null,null,null,null,null,null,null,null,null,null,null,null,null,null,null,null,null,null,null,null,0,"0000000000","0000000000","0000000000","000000000000000000000"]
[null,null,null,null,"",null,null,null,null,null,null,null,null,null,null,null,null,null,null,null,null,null,null,null,null,null,null,null,null,null,null,null,null,null,null,null,null,null,null,null,null,null,null,null,0,"0000000000","0000000000","0000000000","000000000000000000000"]
[null,null,null,null,"",null,null,null,null,null,null,null,null,null,null,null,null,null,null,null,null,null,null,null,null,null,null,null,null,null,null,null,null,null,null,null,null,null,null,null,null,null,null,null,0,"0000000000","0000000000","0000000000","000000000000000000000"]
[null,null,null,null,"",null,null,null,null,null,null,null,null,null,null,null,null,null,null,null,null,null,null,null,null,null,null,null,null,null,null,null,null,null,null,null,null,null,null,null,null,null,null,null,0,"0000000000","0000000000","0000000000","000000000000000000000"]
[null,null,null,null,"",null,null,null,null,null,null,null,null,null,null,null,null,null,null,null,null,null,null,null,null,null,null,null,null,null,null,null,null,null,null,null,null,null,null,null,null,null,null,null,0,"0000000000","0000000000","0000000000","000000000000000000000"]
[null,null,null,null,"",null,null,null,null,null,null,null,null,null,null,null,null,null,null,null,null,null,null,null,null,null,null,null,null,null,null,null,null,null,null,null,null,null,null,null,null,null,null,null,0,"0000000000","0000000000","0000000000","000000000000000000000"]
[null,null,null,null,"",null,null,null,null,null,null,null,null,null,null,null,null,null,null,null,null,null,null,null,null,null,null,null,null,null,null,null,null,null,null,null,null,null,null,null,null,null,null,null,0,"0000000000","0000000000","0000000000","000000000000000000000"]
[null,null,null,null,"",null,null,null,null,null,null,null,null,null,null,null,null,null,null,null,null,null,null,null,null,null,null,null,null,null,null,null,null,null,null,null,null,null,null,null,null,null,null,null,0,"0000000000","0000000000","0000000000","000000000000000000000"]
[null,null,null,null,"",null,null,null,null,null,null,null,null,null,null,null,null,null,null,null,null,null,null,null,null,null,null,null,null,null,null,null,null,null,null,null,null,null,null,null,null,null,null,null,0,"0000000000","0000000000","0000000000","000000000000000000000"]
[null,null,null,null,"",null,null,null,null,null,null,null,null,null,null,null,null,null,null,null,null,null,null,null,null,null,null,null,null,null,null,null,null,null,null,null,null,null,null,null,null,null,null,null,0,"0000000000","0000000000","0000000000","000000000000000000000"]
[null,null,null,null,"",null,null,null,null,null,null,null,null,null,null,null,null,null,null,null,null,null,null,null,null,null,null,null,null,null,null,null,null,null,null,null,null,null,null,null,null,null,null,null,0,"0000000000","0000000000","0000000000","000000000000000000000"]
[null,null,null,null,"",null,null,null,null,null,null,null,null,null,null,null,null,null,null,null,null,null,null,null,null,null,null,null,null,null,null,null,null,null,null,null,null,null,null,null,null,null,null,null,0,"0000000000","0000000000","0000000000","000000000000000000000"]
[null,null,null,null,"",null,null,null,null,null,null,null,null,null,null,null,null,null,null,null,null,null,null,null,null,null,null,null,null,null,null,null,null,null,null,null,null,null,null,null,null,null,null,null,0,"0000000000","0000000000","0000000000","000000000000000000000"]
[null,null,null,null,"",null,null,null,null,null,null,null,null,null,null,null,null,null,null,null,null,null,null,null,null,null,null,null,null,null,null,null,null,null,null,null,null,null,null,null,null,null,null,null,0,"0000000000","0000000000","0000000000","000000000000000000000"]
[null,null,null,null,"",null,null,null,null,null,null,null,null,null,null,null,null,null,null,null,null,null,null,null,null,null,null,null,null,null,null,null,null,null,null,null,null,null,null,null,null,null,null,null,0,"0000000000","0000000000","0000000000","000000000000000000000"]
[null,null,null,null,"",null,null,null,null,null,null,null,null,null,null,null,null,null,null,null,null,null,null,null,null,null,null,null,null,null,null,null,null,null,null,null,null,null,null,null,null,null,null,null,0,"0000000000","0000000000","0000000000","000000000000000000000"]
[null,null,null,null,"",null,null,null,null,null,null,null,null,null,null,null,null,null,null,null,null,null,null,null,null,null,null,null,null,null,null,null,null,null,null,null,null,null,null,null,null,null,null,null,0,"0000000000","0000000000","0000000000","000000000000000000000"]
[null,null,null,null,"",null,null,null,null,null,null,null,null,null,null,null,null,null,null,null,null,null,null,null,null,null,null,null,null,null,null,null,null,null,null,null,null,null,null,null,null,null,null,null,0,"0000000000","0000000000","0000000000","000000000000000000000"]
[null,null,null,null,"",null,null,null,null,null,null,null,null,null,null,null,null,null,null,null,null,null,null,null,null,null,null,null,null,null,null,null,null,null,null,null,null,null,null,null,null,null,null,null,0,"0000000000","0000000000","0000000000","000000000000000000000"]
[null,null,null,null,"",null,null,null,null,null,null,null,null,null,null,null,null,null,null,null,null,null,null,null,null,null,null,null,null,null,null,null,null,null,null,null,null,null,null,null,null,null,null,null,0,"0000000000","0000000000","0000000000","000000000000000000000"]
[null,null,null,null,"",null,null,null,null,null,null,null,null,null,null,null,null,null,null,null,null,null,null,null,null,null,null,null,null,null,null,null,null,null,null,null,null,null,null,null,null,null,null,null,0,"0000000000","0000000000","0000000000","000000000000000000000"]
[null,null,null,null,"",null,null,null,null,null,null,null,null,null,null,null,null,null,null,null,null,null,null,null,null,null,null,null,null,null,null,null,null,null,null,null,null,null,null,null,null,null,null,null,0,"0000000000","0000000000","0000000000","000000000000000000000"]
[null,null,null,null,"",null,null,null,null,null,null,null,null,null,null,null,null,null,null,null,null,null,null,null,null,null,null,null,null,null,null,null,null,null,null,null,null,null,null,null,null,null,null,null,0,"0000000000","0000000000","0000000000","000000000000000000000"]
[null,null,null,null,"",null,null,null,null,null,null,null,null,null,null,null,null,null,null,null,null,null,null,null,null,null,null,null,null,null,null,null,null,null,null,null,null,null,null,null,null,null,null,null,0,"0000000000","0000000000","0000000000","000000000000000000000"]
[null,null,null,null,"",null,null,null,null,null,null,null,null,null,null,null,null,null,null,null,null,null,null,null,null,null,null,null,null,null,null,null,null,null,null,null,null,null,null,null,null,null,null,null,0,"0000000000","0000000000","0000000000","000000000000000000000"]
[null,null,null,null,"",null,null,null,null,null,null,null,null,null,null,null,null,null,null,null,null,null,null,null,null,null,null,null,null,null,null,null,null,null,null,null,null,null,null,null,null,null,null,null,0,"0000000000","0000000000","0000000000","000000000000000000000"]
[null,null,null,null,"",null,null,null,null,null,null,null,null,null,null,null,null,null,null,null,null,null,null,null,null,null,null,null,null,null,null,null,null,null,null,null,null,null,null,null,null,null,null,null,0,"0000000000","0000000000","0000000000","000000000000000000000"]
[null,null,null,null,"",null,null,null,null,null,null,null,null,null,null,null,null,null,null,null,null,null,null,null,null,null,null,null,null,null,null,null,null,null,null,null,null,null,null,null,null,null,null,null,0,"0000000000","0000000000","0000000000","000000000000000000000"]
[null,null,null,null,"",null,null,null,null,null,null,null,null,null,null,null,null,null,null,null,null,null,null,null,null,null,null,null,null,null,null,null,null,null,null,null,null,null,null,null,null,null,null,null,0,"0000000000","0000000000","0000000000","000000000000000000000"]
[null,null,null,null,"",null,null,null,null,null,null,null,null,null,null,null,null,null,null,null,null,null,null,null,null,null,null,null,null,null,null,null,null,null,null,null,null,null,null,null,null,null,null,null,0,"0000000000","0000000000","0000000000","000000000000000000000"]
[null,null,null,null,"",null,null,null,null,null,null,null,null,null,null,null,null,null,null,null,null,null,null,null,null,null,null,null,null,null,null,null,null,null,null,null,null,null,null,null,null,null,null,null,0,"0000000000","0000000000","0000000000","000000000000000000000"]
[null,null,null,null,"",null,null,null,null,null,null,null,null,null,null,null,null,null,null,null,null,null,null,null,null,null,null,null,null,null,null,null,null,null,null,null,null,null,null,null,null,null,null,null,0,"0000000000","0000000000","0000000000","000000000000000000000"]
[null,null,null,null,"",null,null,null,null,null,null,null,null,null,null,null,null,null,null,null,null,null,null,null,null,null,null,null,null,null,null,null,null,null,null,null,null,null,null,null,null,null,null,null,0,"0000000000","0000000000","0000000000","000000000000000000000"]
[null,null,null,null,"",null,null,null,null,null,null,null,null,null,null,null,null,null,null,null,null,null,null,null,null,null,null,null,null,null,null,null,null,null,null,null,null,null,null,null,null,null,null,null,0,"0000000000","0000000000","0000000000","000000000000000000000"]
[null,null,null,null,"",null,null,null,null,null,null,null,null,null,null,null,null,null,null,null,null,null,null,null,null,null,null,null,null,null,null,null,null,null,null,null,null,null,null,null,null,null,null,null,0,"0000000000","0000000000","0000000000","000000000000000000000"]
[null,null,null,null,"",null,null,null,null,null,null,null,null,null,null,null,null,null,null,null,null,null,null,null,null,null,null,null,null,null,null,null,null,null,null,null,null,null,null,null,null,null,null,null,0,"0000000000","0000000000","0000000000","000000000000000000000"]
[null,null,null,null,"",null,null,null,null,null,null,null,null,null,null,null,null,null,null,null,null,null,null,null,null,null,null,null,null,null,null,null,null,null,null,null,null,null,null,null,null,null,null,null,0,"0000000000","0000000000","0000000000","000000000000000000000"]
[null,null,null,null,"",null,null,null,null,null,null,null,null,null,null,null,null,null,null,null,null,null,null,null,null,null,null,null,null,null,null,null,null,null,null,null,null,null,null,null,null,null,null,null,0,"0000000000","0000000000","0000000000","000000000000000000000"]
[null,null,null,null,"",null,null,null,null,null,null,null,null,null,null,null,null,null,null,null,null,null,null,null,null,null,null,null,null,null,null,null,null,null,null,null,null,null,null,null,null,null,null,null,0,"0000000000","0000000000","0000000000","000000000000000000000"]
[null,null,null,null,"",null,null,null,null,null,null,null,null,null,null,null,null,null,null,null,null,null,null,null,null,null,null,null,null,null,null,null,null,null,null,null,null,null,null,null,null,null,null,null,0,"0000000000","0000000000","0000000000","000000000000000000000"]
[null,null,null,null,"",null,null,null,null,null,null,null,null,null,null,null,null,null,null,null,null,null,null,null,null,null,null,null,null,null,null,null,null,null,null,null,null,null,null,null,null,null,null,null,0,"0000000000","0000000000","0000000000","000000000000000000000"]
[null,null,null,null,"",null,null,null,null,null,null,null,null,null,null,null,null,null,null,null,null,null,null,null,null,null,null,null,null,null,null,null,null,null,null,null,null,null,null,null,null,null,null,null,0,"0000000000","0000000000","0000000000","000000000000000000000"]
[null,null,null,null,"",null,null,null,null,null,null,null,null,null,null,null,null,null,null,null,null,null,null,null,null,null,null,null,null,null,null,null,null,null,null,null,null,null,null,null,null,null,null,null,0,"0000000000","0000000000","0000000000","000000000000000000000"]
[null,null,null,null,"",null,null,null,null,null,null,null,null,null,null,null,null,null,null,null,null,null,null,null,null,null,null,null,null,null,null,null,null,null,null,null,null,null,null,null,null,null,null,null,0,"0000000000","0000000000","0000000000","000000000000000000000"]
[null,null,null,null,"",null,null,null,null,null,null,null,null,null,null,null,null,null,null,null,null,null,null,null,null,null,null,null,null,null,null,null,null,null,null,null,null,null,null,null,null,null,null,null,0,"0000000000","0000000000","0000000000","000000000000000000000"]
[null,null,null,null,"",null,null,null,null,null,null,null,null,null,null,null,null,null,null,null,null,null,null,null,null,null,null,null,null,null,null,null,null,null,null,null,null,null,null,null,null,null,null,null,0,"0000000000","0000000000","0000000000","000000000000000000000"]
[null,null,null,null,"",null,null,null,null,null,null,null,null,null,null,null,null,null,null,null,null,null,null,null,null,null,null,null,null,null,null,null,null,null,null,null,null,null,null,null,null,null,null,null,0,"0000000000","0000000000","0000000000","000000000000000000000"]
[null,null,null,null,"",null,null,null,null,null,null,null,null,null,null,null,null,null,null,null,null,null,null,null,null,null,null,null,null,null,null,null,null,null,null,null,null,null,null,null,null,null,null,null,0,"0000000000","0000000000","0000000000","000000000000000000000"]
[null,null,null,null,"",null,null,null,null,null,null,null,null,null,null,null,null,null,null,null,null,null,null,null,null,null,null,null,null,null,null,null,null,null,null,null,null,null,null,null,null,null,null,null,0,"0000000000","0000000000","0000000000","000000000000000000000"]
[null,null,null,null,"",null,null,null,null,null,null,null,null,null,null,null,null,null,null,null,null,null,null,null,null,null,null,null,null,null,null,null,null,null,null,null,null,null,null,null,null,null,null,null,0,"0000000000","0000000000","0000000000","000000000000000000000"]
[null,null,null,null,"",null,null,null,null,null,null,null,null,null,null,null,null,null,null,null,null,null,null,null,null,null,null,null,null,null,null,null,null,null,null,null,null,null,null,null,null,null,null,null,0,"0000000000","0000000000","0000000000","000000000000000000000"]
[null,null,null,null,"",null,null,null,null,null,null,null,null,null,null,null,null,null,null,null,null,null,null,null,null,null,null,null,null,null,null,null,null,null,null,null,null,null,null,null,null,null,null,null,0,"0000000000","0000000000","0000000000","000000000000000000000"]
[null,null,null,null,"",null,null,null,null,null,null,null,null,null,null,null,null,null,null,null,null,null,null,null,null,null,null,null,null,null,null,null,null,null,null,null,null,null,null,null,null,null,null,null,0,"0000000000","0000000000","0000000000","000000000000000000000"]
[null,null,null,null,"",null,null,null,null,null,null,null,null,null,null,null,null,null,null,null,null,null,null,null,null,null,null,null,null,null,null,null,null,null,null,null,null,null,null,null,null,null,null,null,0,"0000000000","0000000000","0000000000","000000000000000000000"]
[null,null,null,null,"",null,null,null,null,null,null,null,null,null,null,null,null,null,null,null,null,null,null,null,null,null,null,null,null,null,null,null,null,null,null,null,null,null,null,null,null,null,null,null,0,"0000000000","0000000000","0000000000","000000000000000000000"]
[null,null,null,null,"",null,null,null,null,null,null,null,null,null,null,null,null,null,null,null,null,null,null,null,null,null,null,null,null,null,null,null,null,null,null,null,null,null,null,null,null,null,null,null,0,"0000000000","0000000000","0000000000","000000000000000000000"]
[null,null,null,null,"",null,null,null,null,null,null,null,null,null,null,null,null,null,null,null,null,null,null,null,null,null,null,null,null,null,null,null,null,null,null,null,null,null,null,null,null,null,null,null,0,"0000000000","0000000000","0000000000","000000000000000000000"]
[null,null,null,null,"",null,null,null,null,null,null,null,null,null,null,null,null,null,null,null,null,null,null,null,null,null,null,null,null,null,null,null,null,null,null,null,null,null,null,null,null,null,null,null,0,"0000000000","0000000000","0000000000","000000000000000000000"]
[null,null,null,null,"",null,null,null,null,null,null,null,null,null,null,null,null,null,null,null,null,null,null,null,null,null,null,null,null,null,null,null,null,null,null,null,null,null,null,null,null,null,null,null,0,"0000000000","0000000000","0000000000","000000000000000000000"]
[null,null,null,null,"",null,null,null,null,null,null,null,null,null,null,null,null,null,null,null,null,null,null,null,null,null,null,null,null,null,null,null,null,null,null,null,null,null,null,null,null,null,null,null,0,"0000000000","0000000000","0000000000","000000000000000000000"]
[null,null,null,null,"",null,null,null,null,null,null,null,null,null,null,null,null,null,null,null,null,null,null,null,null,null,null,null,null,null,null,null,null,null,null,null,null,null,null,null,null,null,null,null,0,"0000000000","0000000000","0000000000","000000000000000000000"]
[null,null,null,null,"",null,null,null,null,null,null,null,null,null,null,null,null,null,null,null,null,null,null,null,null,null,null,null,null,null,null,null,null,null,null,null,null,null,null,null,null,null,null,null,0,"0000000000","0000000000","0000000000","000000000000000000000"]
[null,null,null,null,"",null,null,null,null,null,null,null,null,null,null,null,null,null,null,null,null,null,null,null,null,null,null,null,null,null,null,null,null,null,null,null,null,null,null,null,null,null,null,null,0,"0000000000","0000000000","0000000000","000000000000000000000"]
[null,null,null,null,"",null,null,null,null,null,null,null,null,null,null,null,null,null,null,null,null,null,null,null,null,null,null,null,null,null,null,null,null,null,null,null,null,null,null,null,null,null,null,null,0,"0000000000","0000000000","0000000000","000000000000000000000"]
[null,null,null,null,"",null,null,null,null,null,null,null,null,null,null,null,null,null,null,null,null,null,null,null,null,null,null,null,null,null,null,null,null,null,null,null,null,null,null,null,null,null,null,null,0,"0000000000","0000000000","0000000000","000000000000000000000"]
[null,null,null,null,"",null,null,null,null,null,null,null,null,null,null,null,null,null,null,null,null,null,null,null,null,null,null,null,null,null,null,null,null,null,null,null,null,null,null,null,null,null,null,null,0,"0000000000","0000000000","0000000000","000000000000000000000"]
[null,null,null,null,"",null,null,null,null,null,null,null,null,null,null,null,null,null,null,null,null,null,null,null,null,null,null,null,null,null,null,null,null,null,null,null,null,null,null,null,null,null,null,null,0,"0000000000","0000000000","0000000000","000000000000000000000"]
[null,null,null,null,"",null,null,null,null,null,null,null,null,null,null,null,null,null,null,null,null,null,null,null,null,null,null,null,null,null,null,null,null,null,null,null,null,null,null,null,null,null,null,null,0,"0000000000","0000000000","0000000000","000000000000000000000"]
[null,null,null,null,"",null,null,null,null,null,null,null,null,null,null,null,null,null,null,null,null,null,null,null,null,null,null,null,null,null,null,null,null,null,null,null,null,null,null,null,null,null,null,null,0,"0000000000","0000000000","0000000000","000000000000000000000"]
[null,null,null,null,"",null,null,null,null,null,null,null,null,null,null,null,null,null,null,null,null,null,null,null,null,null,null,null,null,null,null,null,null,null,null,null,null,null,null,null,null,null,null,null,0,"0000000000","0000000000","0000000000","000000000000000000000"]
[null,null,null,null,"",null,null,null,null,null,null,null,null,null,null,null,null,null,null,null,null,null,null,null,null,null,null,null,null,null,null,null,null,null,null,null,null,null,null,null,null,null,null,null,0,"0000000000","0000000000","0000000000","000000000000000000000"]
[null,null,null,null,"",null,null,null,null,null,null,null,null,null,null,null,null,null,null,null,null,null,null,null,null,null,null,null,null,null,null,null,null,null,null,null,null,null,null,null,null,null,null,null,0,"0000000000","0000000000","0000000000","000000000000000000000"]
[null,null,null,null,"",null,null,null,null,null,null,null,null,null,null,null,null,null,null,null,null,null,null,null,null,null,null,null,null,null,null,null,null,null,null,null,null,null,null,null,null,null,null,null,0,"0000000000","0000000000","0000000000","000000000000000000000"]
[null,null,null,null,"",null,null,null,null,null,null,null,null,null,null,null,null,null,null,null,null,null,null,null,null,null,null,null,null,null,null,null,null,null,null,null,null,null,null,null,null,null,null,null,0,"0000000000","0000000000","0000000000","000000000000000000000"]
[null,null,null,null,"",null,null,null,null,null,null,null,null,null,null,null,null,null,null,null,null,null,null,null,null,null,null,null,null,null,null,null,null,null,null,null,null,null,null,null,null,null,null,null,0,"0000000000","0000000000","0000000000","000000000000000000000"]
[null,null,null,null,"",null,null,null,null,null,null,null,null,null,null,null,null,null,null,null,null,null,null,null,null,null,null,null,null,null,null,null,null,null,null,null,null,null,null,null,null,null,null,null,0,"0000000000","0000000000","0000000000","000000000000000000000"]
[null,null,null,null,"",null,null,null,null,null,null,null,null,null,null,null,null,null,null,null,null,null,null,null,null,null,null,null,null,null,null,null,null,null,null,null,null,null,null,null,null,null,null,null,0,"0000000000","0000000000","0000000000","000000000000000000000"]
[null,null,null,null,"",null,null,null,null,null,null,null,null,null,null,null,null,null,null,null,null,null,null,null,null,null,null,null,null,null,null,null,null,null,null,null,null,null,null,null,null,null,null,null,0,"0000000000","0000000000","0000000000","000000000000000000000"]
[null,null,null,null,"",null,null,null,null,null,null,null,null,null,null,null,null,null,null,null,null,null,null,null,null,null,null,null,null,null,null,null,null,null,null,null,null,null,null,null,null,null,null,null,0,"0000000000","0000000000","0000000000","000000000000000000000"]
[null,null,null,null,"",null,null,null,null,null,null,null,null,null,null,null,null,null,null,null,null,null,null,null,null,null,null,null,null,null,null,null,null,null,null,null,null,null,null,null,null,null,null,null,0,"0000000000","0000000000","0000000000","000000000000000000000"]
[null,null,null,null,"",null,null,null,null,null,null,null,null,null,null,null,null,null,null,null,null,null,null,null,null,null,null,null,null,null,null,null,null,null,null,null,null,null,null,null,null,null,null,null,0,"0000000000","0000000000","0000000000","000000000000000000000"]
[null,null,null,null,"",null,null,null,null,null,null,null,null,null,null,null,null,null,null,null,null,null,null,null,null,null,null,null,null,null,null,null,null,null,null,null,null,null,null,null,null,null,null,null,0,"0000000000","0000000000","0000000000","000000000000000000000"]
[null,null,null,null,"",null,null,null,null,null,null,null,null,null,null,null,null,null,null,null,null,null,null,null,null,null,null,null,null,null,null,null,null,null,null,null,null,null,null,null,null,null,null,null,0,"0000000000","0000000000","0000000000","000000000000000000000"]
[null,null,null,null,"",null,null,null,null,null,null,null,null,null,null,null,null,null,null,null,null,null,null,null,null,null,null,null,null,null,null,null,null,null,null,null,null,null,null,null,null,null,null,null,0,"0000000000","0000000000","0000000000","000000000000000000000"]
[null,null,null,null,"",null,null,null,null,null,null,null,null,null,null,null,null,null,null,null,null,null,null,null,null,null,null,null,null,null,null,null,null,null,null,null,null,null,null,null,null,null,null,null,0,"0000000000","0000000000","0000000000","000000000000000000000"]
[null,null,null,null,"",null,null,null,null,null,null,null,null,null,null,null,null,null,null,null,null,null,null,null,null,null,null,null,null,null,null,null,null,null,null,null,null,null,null,null,null,null,null,null,0,"0000000000","0000000000","0000000000","000000000000000000000"]
[null,null,null,null,"",null,null,null,null,null,null,null,null,null,null,null,null,null,null,null,null,null,null,null,null,null,null,null,null,null,null,null,null,null,null,null,null,null,null,null,null,null,null,null,0,"0000000000","0000000000","0000000000","000000000000000000000"]
[null,null,null,null,"",null,null,null,null,null,null,null,null,null,null,null,null,null,null,null,null,null,null,null,null,null,null,null,null,null,null,null,null,null,null,null,null,null,null,null,null,null,null,null,0,"0000000000","0000000000","0000000000","000000000000000000000"]
[null,null,null,null,"",null,null,null,null,null,null,null,null,null,null,null,null,null,null,null,null,null,null,null,null,null,null,null,null,null,null,null,null,null,null,null,null,null,null,null,null,null,null,null,0,"0000000000","0000000000","0000000000","000000000000000000000"]
[null,null,null,null,"",null,null,null,null,null,null,null,null,null,null,null,null,null,null,null,null,null,null,null,null,null,null,null,null,null,null,null,null,null,null,null,null,null,null,null,null,null,null,null,0,"0000000000","0000000000","0000000000","000000000000000000000"]
[null,null,null,null,"",null,null,null,null,null,null,null,null,null,null,null,null,null,null,null,null,null,null,null,null,null,null,null,null,null,null,null,null,null,null,null,null,null,null,null,null,null,null,null,0,"0000000000","0000000000","0000000000","000000000000000000000"]
[null,null,null,null,"",null,null,null,null,null,null,null,null,null,null,null,null,null,null,null,null,null,null,null,null,null,null,null,null,null,null,null,null,null,null,null,null,null,null,null,null,null,null,null,0,"0000000000","0000000000","0000000000","000000000000000000000"]
[null,null,null,null,{"$f":"CONCATENATE(A2005,(IF(B2005<>\"\",\"/\",\"\")),B2005,(IF(C2005<>\"\",\"/\",\"\")),C2005,(IF(D2005<>\"\",\"/\",\"\")),D2005)","v":""},null,null,null,null,null,null,null,null,null,null,null,null,null,null,null,null,null,null,null,null,null,null,null,null,null,null,null,null,null,null,null,null,null,null,null,null,null,null,null,{"$f":"A2005","v":0},{"$f":"IF(B2005=\"\",\"0000000000\",RIGHT(\"0000000000\"&B2005,10))","v":"0000000000"},{"$f":"IF(C2005=\"\",\"0000000000\",RIGHT(\"0000000000\"&C2005,10))","v":"0000000000"},{"$f":"IF(D2005=\"\",\"0000000000\",RIGHT(\"0000000000\"&D2005, 10))","v":"0000000000"},{"$f":"CONCATENATE(AS2005,AT2005,AU2005,D2005,)","v":"000000000000000000000"}]
[null,null,null,null,"",null,null,null,null,null,null,null,null,null,null,null,null,null,null,null,null,null,null,null,null,null,null,null,null,null,null,null,null,null,null,null,null,null,null,null,null,null,null,null,0,"0000000000","0000000000","0000000000","000000000000000000000"]
[null,null,null,null,"",null,null,null,null,null,null,null,null,null,null,null,null,null,null,null,null,null,null,null,null,null,null,null,null,null,null,null,null,null,null,null,null,null,null,null,null,null,null,null,0,"0000000000","0000000000","0000000000","000000000000000000000"]
[null,null,null,null,"",null,null,null,null,null,null,null,null,null,null,null,null,null,null,null,null,null,null,null,null,null,null,null,null,null,null,null,null,null,null,null,null,null,null,null,null,null,null,null,0,"0000000000","0000000000","0000000000","000000000000000000000"]
[null,null,null,null,"",null,null,null,null,null,null,null,null,null,null,null,null,null,null,null,null,null,null,null,null,null,null,null,null,null,null,null,null,null,null,null,null,null,null,null,null,null,null,null,0,"0000000000","0000000000","0000000000","000000000000000000000"]
[null,null,null,null,"",null,null,null,null,null,null,null,null,null,null,null,null,null,null,null,null,null,null,null,null,null,null,null,null,null,null,null,null,null,null,null,null,null,null,null,null,null,null,null,0,"0000000000","0000000000","0000000000","000000000000000000000"]
[null,null,null,null,"",null,null,null,null,null,null,null,null,null,null,null,null,null,null,null,null,null,null,null,null,null,null,null,null,null,null,null,null,null,null,null,null,null,null,null,null,null,null,null,0,"0000000000","0000000000","0000000000","000000000000000000000"]
[null,null,null,null,"",null,null,null,null,null,null,null,null,null,null,null,null,null,null,null,null,null,null,null,null,null,null,null,null,null,null,null,null,null,null,null,null,null,null,null,null,null,null,null,0,"0000000000","0000000000","0000000000","000000000000000000000"]
[null,null,null,null,"",null,null,null,null,null,null,null,null,null,null,null,null,null,null,null,null,null,null,null,null,null,null,null,null,null,null,null,null,null,null,null,null,null,null,null,null,null,null,null,0,"0000000000","0000000000","0000000000","000000000000000000000"]
[null,null,null,null,"",null,null,null,null,null,null,null,null,null,null,null,null,null,null,null,null,null,null,null,null,null,null,null,null,null,null,null,null,null,null,null,null,null,null,null,null,null,null,null,0,"0000000000","0000000000","0000000000","000000000000000000000"]
[null,null,null,null,"",null,null,null,null,null,null,null,null,null,null,null,null,null,null,null,null,null,null,null,null,null,null,null,null,null,null,null,null,null,null,null,null,null,null,null,null,null,null,null,0,"0000000000","0000000000","0000000000","000000000000000000000"]
[null,null,null,null,"",null,null,null,null,null,null,null,null,null,null,null,null,null,null,null,null,null,null,null,null,null,null,null,null,null,null,null,null,null,null,null,null,null,null,null,null,null,null,null,0,"0000000000","0000000000","0000000000","000000000000000000000"]
[null,null,null,null,"",null,null,null,null,null,null,null,null,null,null,null,null,null,null,null,null,null,null,null,null,null,null,null,null,null,null,null,null,null,null,null,null,null,null,null,null,null,null,null,0,"0000000000","0000000000","0000000000","000000000000000000000"]
[null,null,null,null,"",null,null,null,null,null,null,null,null,null,null,null,null,null,null,null,null,null,null,null,null,null,null,null,null,null,null,null,null,null,null,null,null,null,null,null,null,null,null,null,0,"0000000000","0000000000","0000000000","000000000000000000000"]
[null,null,null,null,"",null,null,null,null,null,null,null,null,null,null,null,null,null,null,null,null,null,null,null,null,null,null,null,null,null,null,null,null,null,null,null,null,null,null,null,null,null,null,null,0,"0000000000","0000000000","0000000000","000000000000000000000"]
[null,null,null,null,"",null,null,null,null,null,null,null,null,null,null,null,null,null,null,null,null,null,null,null,null,null,null,null,null,null,null,null,null,null,null,null,null,null,null,null,null,null,null,null,0,"0000000000","0000000000","0000000000","000000000000000000000"]
[null,null,null,null,"",null,null,null,null,null,null,null,null,null,null,null,null,null,null,null,null,null,null,null,null,null,null,null,null,null,null,null,null,null,null,null,null,null,null,null,null,null,null,null,0,"0000000000","0000000000","0000000000","000000000000000000000"]
[null,null,null,null,{"$f":"CONCATENATE(A2325,(IF(B2325<>\"\",\"/\",\"\")),B2325,(IF(C2325<>\"\",\"/\",\"\")),C2325,(IF(D2325<>\"\",\"/\",\"\")),D2325)","v":""},null,null,null,null,null,null,null,null,null,null,null,null,null,null,null,null,null,null,null,null,null,null,null,null,null,null,null,null,null,null,null,null,null,null,null,null,null,null,null,{"$f":"A2325","v":0},{"$f":"IF(B2325=\"\",\"0000000000\",RIGHT(\"0000000000\"&B2325,10))","v":"0000000000"},{"$f":"IF(C2325=\"\",\"0000000000\",RIGHT(\"0000000000\"&C2325,10))","v":"0000000000"},{"$f":"IF(D2325=\"\",\"0000000000\",RIGHT(\"0000000000\"&D2325, 10))","v":"0000000000"},{"$f":"CONCATENATE(AS2325,AT2325,AU2325,D2325,)","v":"000000000000000000000"}]
[null,null,null,null,"",null,null,null,null,null,null,null,null,null,null,null,null,null,null,null,null,null,null,null,null,null,null,null,null,null,null,null,null,null,null,null,null,null,null,null,null,null,null,null,0,"0000000000","0000000000","0000000000","000000000000000000000"]
[null,null,null,null,"",null,null,null,null,null,null,null,null,null,null,null,null,null,null,null,null,null,null,null,null,null,null,null,null,null,null,null,null,null,null,null,null,null,null,null,null,null,null,null,0,"0000000000","0000000000","0000000000","000000000000000000000"]
[null,null,null,null,"",null,null,null,null,null,null,null,null,null,null,null,null,null,null,null,null,null,null,null,null,null,null,null,null,null,null,null,null,null,null,null,null,null,null,null,null,null,null,null,0,"0000000000","0000000000","0000000000","000000000000000000000"]
[null,null,null,null,"",null,null,null,null,null,null,null,null,null,null,null,null,null,null,null,null,null,null,null,null,null,null,null,null,null,null,null,null,null,null,null,null,null,null,null,null,null,null,null,0,"0000000000","0000000000","0000000000","000000000000000000000"]
[null,null,null,null,"",null,null,null,null,null,null,null,null,null,null,null,null,null,null,null,null,null,null,null,null,null,null,null,null,null,null,null,null,null,null,null,null,null,null,null,null,null,null,null,0,"0000000000","0000000000","0000000000","000000000000000000000"]
[null,null,null,null,"",null,null,null,null,null,null,null,null,null,null,null,null,null,null,null,null,null,null,null,null,null,null,null,null,null,null,null,null,null,null,null,null,null,null,null,null,null,null,null,0,"0000000000","0000000000","0000000000","000000000000000000000"]
[null,null,null,null,"",null,null,null,null,null,null,null,null,null,null,null,null,null,null,null,null,null,null,null,null,null,null,null,null,null,null,null,null,null,null,null,null,null,null,null,null,null,null,null,0,"0000000000","0000000000","0000000000","000000000000000000000"]
[null,null,null,null,"",null,null,null,null,null,null,null,null,null,null,null,null,null,null,null,null,null,null,null,null,null,null,null,null,null,null,null,null,null,null,null,null,null,null,null,null,null,null,null,0,"0000000000","0000000000","0000000000","000000000000000000000"]
[null,null,null,null,"",null,null,null,null,null,null,null,null,null,null,null,null,null,null,null,null,null,null,null,null,null,null,null,null,null,null,null,null,null,null,null,null,null,null,null,null,null,null,null,0,"0000000000","0000000000","0000000000","000000000000000000000"]
[null,null,null,null,"",null,null,null,null,null,null,null,null,null,null,null,null,null,null,null,null,null,null,null,null,null,null,null,null,null,null,null,null,null,null,null,null,null,null,null,null,null,null,null,0,"0000000000","0000000000","0000000000","000000000000000000000"]
[null,null,null,null,"",null,null,null,null,null,null,null,null,null,null,null,null,null,null,null,null,null,null,null,null,null,null,null,null,null,null,null,null,null,null,null,null,null,null,null,null,null,null,null,0,"0000000000","0000000000","0000000000","000000000000000000000"]
[null,null,null,null,"",null,null,null,null,null,null,null,null,null,null,null,null,null,null,null,null,null,null,null,null,null,null,null,null,null,null,null,null,null,null,null,null,null,null,null,null,null,null,null,0,"0000000000","0000000000","0000000000","000000000000000000000"]
[null,null,null,null,"",null,null,null,null,null,null,null,null,null,null,null,null,null,null,null,null,null,null,null,null,null,null,null,null,null,null,null,null,null,null,null,null,null,null,null,null,null,null,null,0,"0000000000","0000000000","0000000000","000000000000000000000"]
[null,null,null,null,"",null,null,null,null,null,null,null,null,null,null,null,null,null,null,null,null,null,null,null,null,null,null,null,null,null,null,null,null,null,null,null,null,null,null,null,null,null,null,null,0,"0000000000","0000000000","0000000000","000000000000000000000"]
[null,null,null,null,"",null,null,null,null,null,null,null,null,null,null,null,null,null,null,null,null,null,null,null,null,null,null,null,null,null,null,null,null,null,null,null,null,null,null,null,null,null,null,null,0,"0000000000","0000000000","0000000000","000000000000000000000"]
[null,null,null,null,"",null,null,null,null,null,null,null,null,null,null,null,null,null,null,null,null,null,null,null,null,null,null,null,null,null,null,null,null,null,null,null,null,null,null,null,null,null,null,null,0,"0000000000","0000000000","0000000000","000000000000000000000"]
[null,null,null,null,"",null,null,null,null,null,null,null,null,null,null,null,null,null,null,null,null,null,null,null,null,null,null,null,null,null,null,null,null,null,null,null,null,null,null,null,null,null,null,null,0,"0000000000","0000000000","0000000000","000000000000000000000"]
[null,null,null,null,"",null,null,null,null,null,null,null,null,null,null,null,null,null,null,null,null,null,null,null,null,null,null,null,null,null,null,null,null,null,null,null,null,null,null,null,null,null,null,null,0,"0000000000","0000000000","0000000000","000000000000000000000"]
[null,null,null,null,"",null,null,null,null,null,null,null,null,null,null,null,null,null,null,null,null,null,null,null,null,null,null,null,null,null,null,null,null,null,null,null,null,null,null,null,null,null,null,null,0,"0000000000","0000000000","0000000000","000000000000000000000"]
[null,null,null,null,"",null,null,null,null,null,null,null,null,null,null,null,null,null,null,null,null,null,null,null,null,null,null,null,null,null,null,null,null,null,null,null,null,null,null,null,null,null,null,null,0,"0000000000","0000000000","0000000000","000000000000000000000"]
[null,null,null,null,"",null,null,null,null,null,null,null,null,null,null,null,null,null,null,null,null,null,null,null,null,null,null,null,null,null,null,null,null,null,null,null,null,null,null,null,null,null,null,null,0,"0000000000","0000000000","0000000000","000000000000000000000"]
[null,null,null,null,"",null,null,null,null,null,null,null,null,null,null,null,null,null,null,null,null,null,null,null,null,null,null,null,null,null,null,null,null,null,null,null,null,null,null,null,null,null,null,null,0,"0000000000","0000000000","0000000000","000000000000000000000"]
[null,null,null,null,"",null,null,null,null,null,null,null,null,null,null,null,null,null,null,null,null,null,null,null,null,null,null,null,null,null,null,null,null,null,null,null,null,null,null,null,null,null,null,null,0,"0000000000","0000000000","0000000000","000000000000000000000"]
[null,null,null,null,"",null,null,null,null,null,null,null,null,null,null,null,null,null,null,null,null,null,null,null,null,null,null,null,null,null,null,null,null,null,null,null,null,null,null,null,null,null,null,null,0,"0000000000","0000000000","0000000000","000000000000000000000"]
[null,null,null,null,"",null,null,null,null,null,null,null,null,null,null,null,null,null,null,null,null,null,null,null,null,null,null,null,null,null,null,null,null,null,null,null,null,null,null,null,null,null,null,null,0,"0000000000","0000000000","0000000000","000000000000000000000"]
[null,null,null,null,"",null,null,null,null,null,null,null,null,null,null,null,null,null,null,null,null,null,null,null,null,null,null,null,null,null,null,null,null,null,null,null,null,null,null,null,null,null,null,null,0,"0000000000","0000000000","0000000000","000000000000000000000"]
[null,null,null,null,"",null,null,null,null,null,null,null,null,null,null,null,null,null,null,null,null,null,null,null,null,null,null,null,null,null,null,null,null,null,null,null,null,null,null,null,null,null,null,null,0,"0000000000","0000000000","0000000000","000000000000000000000"]
[null,null,null,null,"",null,null,null,null,null,null,null,null,null,null,null,null,null,null,null,null,null,null,null,null,null,null,null,null,null,null,null,null,null,null,null,null,null,null,null,null,null,null,null,0,"0000000000","0000000000","0000000000","000000000000000000000"]
[null,null,null,null,"",null,null,null,null,null,null,null,null,null,null,null,null,null,null,null,null,null,null,null,null,null,null,null,null,null,null,null,null,null,null,null,null,null,null,null,null,null,null,null,0,"0000000000","0000000000","0000000000","000000000000000000000"]
[null,null,null,null,"",null,null,null,null,null,null,null,null,null,null,null,null,null,null,null,null,null,null,null,null,null,null,null,null,null,null,null,null,null,null,null,null,null,null,null,null,null,null,null,0,"0000000000","0000000000","0000000000","000000000000000000000"]
[null,null,null,null,"",null,null,null,null,null,null,null,null,null,null,null,null,null,null,null,null,null,null,null,null,null,null,null,null,null,null,null,null,null,null,null,null,null,null,null,null,null,null,null,0,"0000000000","0000000000","0000000000","000000000000000000000"]
[null,null,null,null,"",null,null,null,null,null,null,null,null,null,null,null,null,null,null,null,null,null,null,null,null,null,null,null,null,null,null,null,null,null,null,null,null,null,null,null,null,null,null,null,0,"0000000000","0000000000","0000000000","000000000000000000000"]
[null,null,null,null,"",null,null,null,null,null,null,null,null,null,null,null,null,null,null,null,null,null,null,null,null,null,null,null,null,null,null,null,null,null,null,null,null,null,null,null,null,null,null,null,0,"0000000000","0000000000","0000000000","000000000000000000000"]
[null,null,null,null,"",null,null,null,null,null,null,null,null,null,null,null,null,null,null,null,null,null,null,null,null,null,null,null,null,null,null,null,null,null,null,null,null,null,null,null,null,null,null,null,0,"0000000000","0000000000","0000000000","000000000000000000000"]
[null,null,null,null,"",null,null,null,null,null,null,null,null,null,null,null,null,null,null,null,null,null,null,null,null,null,null,null,null,null,null,null,null,null,null,null,null,null,null,null,null,null,null,null,0,"0000000000","0000000000","0000000000","000000000000000000000"]
[null,null,null,null,"",null,null,null,null,null,null,null,null,null,null,null,null,null,null,null,null,null,null,null,null,null,null,null,null,null,null,null,null,null,null,null,null,null,null,null,null,null,null,null,0,"0000000000","0000000000","0000000000","000000000000000000000"]
[null,null,null,null,"",null,null,null,null,null,null,null,null,null,null,null,null,null,null,null,null,null,null,null,null,null,null,null,null,null,null,null,null,null,null,null,null,null,null,null,null,null,null,null,0,"0000000000","0000000000","0000000000","000000000000000000000"]
[null,null,null,null,"",null,null,null,null,null,null,null,null,null,null,null,null,null,null,null,null,null,null,null,null,null,null,null,null,null,null,null,null,null,null,null,null,null,null,null,null,null,null,null,0,"0000000000","0000000000","0000000000","000000000000000000000"]
[null,null,null,null,"",null,null,null,null,null,null,null,null,null,null,null,null,null,null,null,null,null,null,null,null,null,null,null,null,null,null,null,null,null,null,null,null,null,null,null,null,null,null,null,0,"0000000000","0000000000","0000000000","000000000000000000000"]
[null,null,null,null,"",null,null,null,null,null,null,null,null,null,null,null,null,null,null,null,null,null,null,null,null,null,null,null,null,null,null,null,null,null,null,null,null,null,null,null,null,null,null,null,0,"0000000000","0000000000","0000000000","000000000000000000000"]
[null,null,null,null,"",null,null,null,null,null,null,null,null,null,null,null,null,null,null,null,null,null,null,null,null,null,null,null,null,null,null,null,null,null,null,null,null,null,null,null,null,null,null,null,0,"0000000000","0000000000","0000000000","000000000000000000000"]
[null,null,null,null,"",null,null,null,null,null,null,null,null,null,null,null,null,null,null,null,null,null,null,null,null,null,null,null,null,null,null,null,null,null,null,null,null,null,null,null,null,null,null,null,0,"0000000000","0000000000","0000000000","000000000000000000000"]
[null,null,null,null,"",null,null,null,null,null,null,null,null,null,null,null,null,null,null,null,null,null,null,null,null,null,null,null,null,null,null,null,null,null,null,null,null,null,null,null,null,null,null,null,0,"0000000000","0000000000","0000000000","000000000000000000000"]
[null,null,null,null,"",null,null,null,null,null,null,null,null,null,null,null,null,null,null,null,null,null,null,null,null,null,null,null,null,null,null,null,null,null,null,null,null,null,null,null,null,null,null,null,0,"0000000000","0000000000","0000000000","000000000000000000000"]
[null,null,null,null,"",null,null,null,null,null,null,null,null,null,null,null,null,null,null,null,null,null,null,null,null,null,null,null,null,null,null,null,null,null,null,null,null,null,null,null,null,null,null,null,0,"0000000000","0000000000","0000000000","000000000000000000000"]
[null,null,null,null,"",null,null,null,null,null,null,null,null,null,null,null,null,null,null,null,null,null,null,null,null,null,null,null,null,null,null,null,null,null,null,null,null,null,null,null,null,null,null,null,0,"0000000000","0000000000","0000000000","000000000000000000000"]
[null,null,null,null,"",null,null,null,null,null,null,null,null,null,null,null,null,null,null,null,null,null,null,null,null,null,null,null,null,null,null,null,null,null,null,null,null,null,null,null,null,null,null,null,0,"0000000000","0000000000","0000000000","000000000000000000000"]
[null,null,null,null,"",null,null,null,null,null,null,null,null,null,null,null,null,null,null,null,null,null,null,null,null,null,null,null,null,null,null,null,null,null,null,null,null,null,null,null,null,null,null,null,0,"0000000000","0000000000","0000000000","000000000000000000000"]
[null,null,null,null,"",null,null,null,null,null,null,null,null,null,null,null,null,null,null,null,null,null,null,null,null,null,null,null,null,null,null,null,null,null,null,null,null,null,null,null,null,null,null,null,0,"0000000000","0000000000","0000000000","000000000000000000000"]
[null,null,null,null,"",null,null,null,null,null,null,null,null,null,null,null,null,null,null,null,null,null,null,null,null,null,null,null,null,null,null,null,null,null,null,null,null,null,null,null,null,null,null,null,0,"0000000000","0000000000","0000000000","000000000000000000000"]
[null,null,null,null,"",null,null,null,null,null,null,null,null,null,null,null,null,null,null,null,null,null,null,null,null,null,null,null,null,null,null,null,null,null,null,null,null,null,null,null,null,null,null,null,0,"0000000000","0000000000","0000000000","000000000000000000000"]
[null,null,null,null,"",null,null,null,null,null,null,null,null,null,null,null,null,null,null,null,null,null,null,null,null,null,null,null,null,null,null,null,null,null,null,null,null,null,null,null,null,null,null,null,0,"0000000000","0000000000","0000000000","000000000000000000000"]
[null,null,null,null,"",null,null,null,null,null,null,null,null,null,null,null,null,null,null,null,null,null,null,null,null,null,null,null,null,null,null,null,null,null,null,null,null,null,null,null,null,null,null,null,0,"0000000000","0000000000","0000000000","000000000000000000000"]
[null,null,null,null,"",null,null,null,null,null,null,null,null,null,null,null,null,null,null,null,null,null,null,null,null,null,null,null,null,null,null,null,null,null,null,null,null,null,null,null,null,null,null,null,0,"0000000000","0000000000","0000000000","000000000000000000000"]
[null,null,null,null,"",null,null,null,null,null,null,null,null,null,null,null,null,null,null,null,null,null,null,null,null,null,null,null,null,null,null,null,null,null,null,null,null,null,null,null,null,null,null,null,0,"0000000000","0000000000","0000000000","000000000000000000000"]
[null,null,null,null,"",null,null,null,null,null,null,null,null,null,null,null,null,null,null,null,null,null,null,null,null,null,null,null,null,null,null,null,null,null,null,null,null,null,null,null,null,null,null,null,0,"0000000000","0000000000","0000000000","000000000000000000000"]
[null,null,null,null,"",null,null,null,null,null,null,null,null,null,null,null,null,null,null,null,null,null,null,null,null,null,null,null,null,null,null,null,null,null,null,null,null,null,null,null,null,null,null,null,0,"0000000000","0000000000","0000000000","000000000000000000000"]
[null,null,null,null,"",null,null,null,null,null,null,null,null,null,null,null,null,null,null,null,null,null,null,null,null,null,null,null,null,null,null,null,null,null,null,null,null,null,null,null,null,null,null,null,0,"0000000000","0000000000","0000000000","000000000000000000000"]
[null,null,null,null,"",null,null,null,null,null,null,null,null,null,null,null,null,null,null,null,null,null,null,null,null,null,null,null,null,null,null,null,null,null,null,null,null,null,null,null,null,null,null,null,0,"0000000000","0000000000","0000000000","000000000000000000000"]
[null,null,null,null,"",null,null,null,null,null,null,null,null,null,null,null,null,null,null,null,null,null,null,null,null,null,null,null,null,null,null,null,null,null,null,null,null,null,null,null,null,null,null,null,0,"0000000000","0000000000","0000000000","000000000000000000000"]
[null,null,null,null,"",null,null,null,null,null,null,null,null,null,null,null,null,null,null,null,null,null,null,null,null,null,null,null,null,null,null,null,null,null,null,null,null,null,null,null,null,null,null,null,0,"0000000000","0000000000","0000000000","000000000000000000000"]
[null,null,null,null,"",null,null,null,null,null,null,null,null,null,null,null,null,null,null,null,null,null,null,null,null,null,null,null,null,null,null,null,null,null,null,null,null,null,null,null,null,null,null,null,0,"0000000000","0000000000","0000000000","000000000000000000000"]
[null,null,null,null,"",null,null,null,null,null,null,null,null,null,null,null,null,null,null,null,null,null,null,null,null,null,null,null,null,null,null,null,null,null,null,null,null,null,null,null,null,null,null,null,0,"0000000000","0000000000","0000000000","000000000000000000000"]
[null,null,null,null,"",null,null,null,null,null,null,null,null,null,null,null,null,null,null,null,null,null,null,null,null,null,null,null,null,null,null,null,null,null,null,null,null,null,null,null,null,null,null,null,0,"0000000000","0000000000","0000000000","000000000000000000000"]
[null,null,null,null,"",null,null,null,null,null,null,null,null,null,null,null,null,null,null,null,null,null,null,null,null,null,null,null,null,null,null,null,null,null,null,null,null,null,null,null,null,null,null,null,0,"0000000000","0000000000","0000000000","000000000000000000000"]
[null,null,null,null,"",null,null,null,null,null,null,null,null,null,null,null,null,null,null,null,null,null,null,null,null,null,null,null,null,null,null,null,null,null,null,null,null,null,null,null,null,null,null,null,0,"0000000000","0000000000","0000000000","000000000000000000000"]
[null,null,null,null,"",null,null,null,null,null,null,null,null,null,null,null,null,null,null,null,null,null,null,null,null,null,null,null,null,null,null,null,null,null,null,null,null,null,null,null,null,null,null,null,0,"0000000000","0000000000","0000000000","000000000000000000000"]
[null,null,null,null,"",null,null,null,null,null,null,null,null,null,null,null,null,null,null,null,null,null,null,null,null,null,null,null,null,null,null,null,null,null,null,null,null,null,null,null,null,null,null,null,0,"0000000000","0000000000","0000000000","000000000000000000000"]
[null,null,null,null,"",null,null,null,null,null,null,null,null,null,null,null,null,null,null,null,null,null,null,null,null,null,null,null,null,null,null,null,null,null,null,null,null,null,null,null,null,null,null,null,0,"0000000000","0000000000","0000000000","000000000000000000000"]
[null,null,null,null,"",null,null,null,null,null,null,null,null,null,null,null,null,null,null,null,null,null,null,null,null,null,null,null,null,null,null,null,null,null,null,null,null,null,null,null,null,null,null,null,0,"0000000000","0000000000","0000000000","000000000000000000000"]
[null,null,null,null,"",null,null,null,null,null,null,null,null,null,null,null,null,null,null,null,null,null,null,null,null,null,null,null,null,null,null,null,null,null,null,null,null,null,null,null,null,null,null,null,0,"0000000000","0000000000","0000000000","000000000000000000000"]
[null,null,null,null,"",null,null,null,null,null,null,null,null,null,null,null,null,null,null,null,null,null,null,null,null,null,null,null,null,null,null,null,null,null,null,null,null,null,null,null,null,null,null,null,0,"0000000000","0000000000","0000000000","000000000000000000000"]
[null,null,null,null,"",null,null,null,null,null,null,null,null,null,null,null,null,null,null,null,null,null,null,null,null,null,null,null,null,null,null,null,null,null,null,null,null,null,null,null,null,null,null,null,0,"0000000000","0000000000","0000000000","000000000000000000000"]
[null,null,null,null,"",null,null,null,null,null,null,null,null,null,null,null,null,null,null,null,null,null,null,null,null,null,null,null,null,null,null,null,null,null,null,null,null,null,null,null,null,null,null,null,0,"0000000000","0000000000","0000000000","000000000000000000000"]
[null,null,null,null,"",null,null,null,null,null,null,null,null,null,null,null,null,null,null,null,null,null,null,null,null,null,null,null,null,null,null,null,null,null,null,null,null,null,null,null,null,null,null,null,0,"0000000000","0000000000","0000000000","000000000000000000000"]
[null,null,null,null,"",null,null,null,null,null,null,null,null,null,null,null,null,null,null,null,null,null,null,null,null,null,null,null,null,null,null,null,null,null,null,null,null,null,null,null,null,null,null,null,0,"0000000000","0000000000","0000000000","000000000000000000000"]
[null,null,null,null,"",null,null,null,null,null,null,null,null,null,null,null,null,null,null,null,null,null,null,null,null,null,null,null,null,null,null,null,null,null,null,null,null,null,null,null,null,null,null,null,0,"0000000000","0000000000","0000000000","000000000000000000000"]
[null,null,null,null,"",null,null,null,null,null,null,null,null,null,null,null,null,null,null,null,null,null,null,null,null,null,null,null,null,null,null,null,null,null,null,null,null,null,null,null,null,null,null,null,0,"0000000000","0000000000","0000000000","000000000000000000000"]
[null,null,null,null,"",null,null,null,null,null,null,null,null,null,null,null,null,null,null,null,null,null,null,null,null,null,null,null,null,null,null,null,null,null,null,null,null,null,null,null,null,null,null,null,0,"0000000000","0000000000","0000000000","000000000000000000000"]
[null,null,null,null,"",null,null,null,null,null,null,null,null,null,null,null,null,null,null,null,null,null,null,null,null,null,null,null,null,null,null,null,null,null,null,null,null,null,null,null,null,null,null,null,0,"0000000000","0000000000","0000000000","000000000000000000000"]
[null,null,null,null,"",null,null,null,null,null,null,null,null,null,null,null,null,null,null,null,null,null,null,null,null,null,null,null,null,null,null,null,null,null,null,null,null,null,null,null,null,null,null,null,0,"0000000000","0000000000","0000000000","000000000000000000000"]
[null,null,null,null,"",null,null,null,null,null,null,null,null,null,null,null,null,null,null,null,null,null,null,null,null,null,null,null,null,null,null,null,null,null,null,null,null,null,null,null,null,null,null,null,0,"0000000000","0000000000","0000000000","000000000000000000000"]
[null,null,null,null,"",null,null,null,null,null,null,null,null,null,null,null,null,null,null,null,null,null,null,null,null,null,null,null,null,null,null,null,null,null,null,null,null,null,null,null,null,null,null,null,0,"0000000000","0000000000","0000000000","000000000000000000000"]
[null,null,null,null,"",null,null,null,null,null,null,null,null,null,null,null,null,null,null,null,null,null,null,null,null,null,null,null,null,null,null,null,null,null,null,null,null,null,null,null,null,null,null,null,0,"0000000000","0000000000","0000000000","000000000000000000000"]
[null,null,null,null,"",null,null,null,null,null,null,null,null,null,null,null,null,null,null,null,null,null,null,null,null,null,null,null,null,null,null,null,null,null,null,null,null,null,null,null,null,null,null,null,0,"0000000000","0000000000","0000000000","000000000000000000000"]
[null,null,null,null,"",null,null,null,null,null,null,null,null,null,null,null,null,null,null,null,null,null,null,null,null,null,null,null,null,null,null,null,null,null,null,null,null,null,null,null,null,null,null,null,0,"0000000000","0000000000","0000000000","000000000000000000000"]
[null,null,null,null,"",null,null,null,null,null,null,null,null,null,null,null,null,null,null,null,null,null,null,null,null,null,null,null,null,null,null,null,null,null,null,null,null,null,null,null,null,null,null,null,0,"0000000000","0000000000","0000000000","000000000000000000000"]
[null,null,null,null,"",null,null,null,null,null,null,null,null,null,null,null,null,null,null,null,null,null,null,null,null,null,null,null,null,null,null,null,null,null,null,null,null,null,null,null,null,null,null,null,0,"0000000000","0000000000","0000000000","000000000000000000000"]
[null,null,null,null,"",null,null,null,null,null,null,null,null,null,null,null,null,null,null,null,null,null,null,null,null,null,null,null,null,null,null,null,null,null,null,null,null,null,null,null,null,null,null,null,0,"0000000000","0000000000","0000000000","000000000000000000000"]
[null,null,null,null,"",null,null,null,null,null,null,null,null,null,null,null,null,null,null,null,null,null,null,null,null,null,null,null,null,null,null,null,null,null,null,null,null,null,null,null,null,null,null,null,0,"0000000000","0000000000","0000000000","000000000000000000000"]
[null,null,null,null,"",null,null,null,null,null,null,null,null,null,null,null,null,null,null,null,null,null,null,null,null,null,null,null,null,null,null,null,null,null,null,null,null,null,null,null,null,null,null,null,0,"0000000000","0000000000","0000000000","000000000000000000000"]
[null,null,null,null,"",null,null,null,null,null,null,null,null,null,null,null,null,null,null,null,null,null,null,null,null,null,null,null,null,null,null,null,null,null,null,null,null,null,null,null,null,null,null,null,0,"0000000000","0000000000","0000000000","000000000000000000000"]
[null,null,null,null,"",null,null,null,null,null,null,null,null,null,null,null,null,null,null,null,null,null,null,null,null,null,null,null,null,null,null,null,null,null,null,null,null,null,null,null,null,null,null,null,0,"0000000000","0000000000","0000000000","000000000000000000000"]
[null,null,null,null,"",null,null,null,null,null,null,null,null,null,null,null,null,null,null,null,null,null,null,null,null,null,null,null,null,null,null,null,null,null,null,null,null,null,null,null,null,null,null,null,0,"0000000000","0000000000","0000000000","000000000000000000000"]
[null,null,null,null,"",null,null,null,null,null,null,null,null,null,null,null,null,null,null,null,null,null,null,null,null,null,null,null,null,null,null,null,null,null,null,null,null,null,null,null,null,null,null,null,0,"0000000000","0000000000","0000000000","000000000000000000000"]
[null,null,null,null,"",null,null,null,null,null,null,null,null,null,null,null,null,null,null,null,null,null,null,null,null,null,null,null,null,null,null,null,null,null,null,null,null,null,null,null,null,null,null,null,0,"0000000000","0000000000","0000000000","000000000000000000000"]
[null,null,null,null,"",null,null,null,null,null,null,null,null,null,null,null,null,null,null,null,null,null,null,null,null,null,null,null,null,null,null,null,null,null,null,null,null,null,null,null,null,null,null,null,0,"0000000000","0000000000","0000000000","000000000000000000000"]
[null,null,null,null,"",null,null,null,null,null,null,null,null,null,null,null,null,null,null,null,null,null,null,null,null,null,null,null,null,null,null,null,null,null,null,null,null,null,null,null,null,null,null,null,0,"0000000000","0000000000","0000000000","000000000000000000000"]
[null,null,null,null,"",null,null,null,null,null,null,null,null,null,null,null,null,null,null,null,null,null,null,null,null,null,null,null,null,null,null,null,null,null,null,null,null,null,null,null,null,null,null,null,0,"0000000000","0000000000","0000000000","000000000000000000000"]
[null,null,null,null,"",null,null,null,null,null,null,null,null,null,null,null,null,null,null,null,null,null,null,null,null,null,null,null,null,null,null,null,null,null,null,null,null,null,null,null,null,null,null,null,0,"0000000000","0000000000","0000000000","000000000000000000000"]
[null,null,null,null,"",null,null,null,null,null,null,null,null,null,null,null,null,null,null,null,null,null,null,null,null,null,null,null,null,null,null,null,null,null,null,null,null,null,null,null,null,null,null,null,0,"0000000000","0000000000","0000000000","000000000000000000000"]
[null,null,null,null,"",null,null,null,null,null,null,null,null,null,null,null,null,null,null,null,null,null,null,null,null,null,null,null,null,null,null,null,null,null,null,null,null,null,null,null,null,null,null,null,0,"0000000000","0000000000","0000000000","000000000000000000000"]
[null,null,null,null,"",null,null,null,null,null,null,null,null,null,null,null,null,null,null,null,null,null,null,null,null,null,null,null,null,null,null,null,null,null,null,null,null,null,null,null,null,null,null,null,0,"0000000000","0000000000","0000000000","000000000000000000000"]
[null,null,null,null,"",null,null,null,null,null,null,null,null,null,null,null,null,null,null,null,null,null,null,null,null,null,null,null,null,null,null,null,null,null,null,null,null,null,null,null,null,null,null,null,0,"0000000000","0000000000","0000000000","000000000000000000000"]
[null,null,null,null,"",null,null,null,null,null,null,null,null,null,null,null,null,null,null,null,null,null,null,null,null,null,null,null,null,null,null,null,null,null,null,null,null,null,null,null,null,null,null,null,0,"0000000000","0000000000","0000000000","000000000000000000000"]
[null,null,null,null,"",null,null,null,null,null,null,null,null,null,null,null,null,null,null,null,null,null,null,null,null,null,null,null,null,null,null,null,null,null,null,null,null,null,null,null,null,null,null,null,0,"0000000000","0000000000","0000000000","000000000000000000000"]
[null,null,null,null,"",null,null,null,null,null,null,null,null,null,null,null,null,null,null,null,null,null,null,null,null,null,null,null,null,null,null,null,null,null,null,null,null,null,null,null,null,null,null,null,0,"0000000000","0000000000","0000000000","000000000000000000000"]
[null,null,null,null,"",null,null,null,null,null,null,null,null,null,null,null,null,null,null,null,null,null,null,null,null,null,null,null,null,null,null,null,null,null,null,null,null,null,null,null,null,null,null,null,0,"0000000000","0000000000","0000000000","000000000000000000000"]
[null,null,null,null,"",null,null,null,null,null,null,null,null,null,null,null,null,null,null,null,null,null,null,null,null,null,null,null,null,null,null,null,null,null,null,null,null,null,null,null,null,null,null,null,0,"0000000000","0000000000","0000000000","000000000000000000000"]
[null,null,null,null,"",null,null,null,null,null,null,null,null,null,null,null,null,null,null,null,null,null,null,null,null,null,null,null,null,null,null,null,null,null,null,null,null,null,null,null,null,null,null,null,0,"0000000000","0000000000","0000000000","000000000000000000000"]
[null,null,null,null,"",null,null,null,null,null,null,null,null,null,null,null,null,null,null,null,null,null,null,null,null,null,null,null,null,null,null,null,null,null,null,null,null,null,null,null,null,null,null,null,0,"0000000000","0000000000","0000000000","000000000000000000000"]
[null,null,null,null,"",null,null,null,null,null,null,null,null,null,null,null,null,null,null,null,null,null,null,null,null,null,null,null,null,null,null,null,null,null,null,null,null,null,null,null,null,null,null,null,0,"0000000000","0000000000","0000000000","000000000000000000000"]
[null,null,null,null,"",null,null,null,null,null,null,null,null,null,null,null,null,null,null,null,null,null,null,null,null,null,null,null,null,null,null,null,null,null,null,null,null,null,null,null,null,null,null,null,0,"0000000000","0000000000","0000000000","000000000000000000000"]
[null,null,null,null,"",null,null,null,null,null,null,null,null,null,null,null,null,null,null,null,null,null,null,null,null,null,null,null,null,null,null,null,null,null,null,null,null,null,null,null,null,null,null,null,0,"0000000000","0000000000","0000000000","000000000000000000000"]
[null,null,null,null,"",null,null,null,null,null,null,null,null,null,null,null,null,null,null,null,null,null,null,null,null,null,null,null,null,null,null,null,null,null,null,null,null,null,null,null,null,null,null,null,0,"0000000000","0000000000","0000000000","000000000000000000000"]
[null,null,null,null,"",null,null,null,null,null,null,null,null,null,null,null,null,null,null,null,null,null,null,null,null,null,null,null,null,null,null,null,null,null,null,null,null,null,null,null,null,null,null,null,0,"0000000000","0000000000","0000000000","000000000000000000000"]
[null,null,null,null,"",null,null,null,null,null,null,null,null,null,null,null,null,null,null,null,null,null,null,null,null,null,null,null,null,null,null,null,null,null,null,null,null,null,null,null,null,null,null,null,0,"0000000000","0000000000","0000000000","000000000000000000000"]
[null,null,null,null,"",null,null,null,null,null,null,null,null,null,null,null,null,null,null,null,null,null,null,null,null,null,null,null,null,null,null,null,null,null,null,null,null,null,null,null,null,null,null,null,0,"0000000000","0000000000","0000000000","000000000000000000000"]
[null,null,null,null,"",null,null,null,null,null,null,null,null,null,null,null,null,null,null,null,null,null,null,null,null,null,null,null,null,null,null,null,null,null,null,null,null,null,null,null,null,null,null,null,0,"0000000000","0000000000","0000000000","000000000000000000000"]
[null,null,null,null,"",null,null,null,null,null,null,null,null,null,null,null,null,null,null,null,null,null,null,null,null,null,null,null,null,null,null,null,null,null,null,null,null,null,null,null,null,null,null,null,0,"0000000000","0000000000","0000000000","000000000000000000000"]
[null,null,null,null,"",null,null,null,null,null,null,null,null,null,null,null,null,null,null,null,null,null,null,null,null,null,null,null,null,null,null,null,null,null,null,null,null,null,null,null,null,null,null,null,0,"0000000000","0000000000","0000000000","000000000000000000000"]
[null,null,null,null,"",null,null,null,null,null,null,null,null,null,null,null,null,null,null,null,null,null,null,null,null,null,null,null,null,null,null,null,null,null,null,null,null,null,null,null,null,null,null,null,0,"0000000000","0000000000","0000000000","000000000000000000000"]
[null,null,null,null,"",null,null,null,null,null,null,null,null,null,null,null,null,null,null,null,null,null,null,null,null,null,null,null,null,null,null,null,null,null,null,null,null,null,null,null,null,null,null,null,0,"0000000000","0000000000","0000000000","000000000000000000000"]
[null,null,null,null,"",null,null,null,null,null,null,null,null,null,null,null,null,null,null,null,null,null,null,null,null,null,null,null,null,null,null,null,null,null,null,null,null,null,null,null,null,null,null,null,0,"0000000000","0000000000","0000000000","000000000000000000000"]
[null,null,null,null,"",null,null,null,null,null,null,null,null,null,null,null,null,null,null,null,null,null,null,null,null,null,null,null,null,null,null,null,null,null,null,null,null,null,null,null,null,null,null,null,0,"0000000000","0000000000","0000000000","000000000000000000000"]
[null,null,null,null,"",null,null,null,null,null,null,null,null,null,null,null,null,null,null,null,null,null,null,null,null,null,null,null,null,null,null,null,null,null,null,null,null,null,null,null,null,null,null,null,0,"0000000000","0000000000","0000000000","000000000000000000000"]
[null,null,null,null,"",null,null,null,null,null,null,null,null,null,null,null,null,null,null,null,null,null,null,null,null,null,null,null,null,null,null,null,null,null,null,null,null,null,null,null,null,null,null,null,0,"0000000000","0000000000","0000000000","000000000000000000000"]
[null,null,null,null,"",null,null,null,null,null,null,null,null,null,null,null,null,null,null,null,null,null,null,null,null,null,null,null,null,null,null,null,null,null,null,null,null,null,null,null,null,null,null,null,0,"0000000000","0000000000","0000000000","000000000000000000000"]
[null,null,null,null,"",null,null,null,null,null,null,null,null,null,null,null,null,null,null,null,null,null,null,null,null,null,null,null,null,null,null,null,null,null,null,null,null,null,null,null,null,null,null,null,0,"0000000000","0000000000","0000000000","000000000000000000000"]
[null,null,null,null,"",null,null,null,null,null,null,null,null,null,null,null,null,null,null,null,null,null,null,null,null,null,null,null,null,null,null,null,null,null,null,null,null,null,null,null,null,null,null,null,0,"0000000000","0000000000","0000000000","000000000000000000000"]
[null,null,null,null,"",null,null,null,null,null,null,null,null,null,null,null,null,null,null,null,null,null,null,null,null,null,null,null,null,null,null,null,null,null,null,null,null,null,null,null,null,null,null,null,0,"0000000000","0000000000","0000000000","000000000000000000000"]
[null,null,null,null,"",null,null,null,null,null,null,null,null,null,null,null,null,null,null,null,null,null,null,null,null,null,null,null,null,null,null,null,null,null,null,null,null,null,null,null,null,null,null,null,0,"0000000000","0000000000","0000000000","000000000000000000000"]
[null,null,null,null,"",null,null,null,null,null,null,null,null,null,null,null,null,null,null,null,null,null,null,null,null,null,null,null,null,null,null,null,null,null,null,null,null,null,null,null,null,null,null,null,0,"0000000000","0000000000","0000000000","000000000000000000000"]
[null,null,null,null,"",null,null,null,null,null,null,null,null,null,null,null,null,null,null,null,null,null,null,null,null,null,null,null,null,null,null,null,null,null,null,null,null,null,null,null,null,null,null,null,0,"0000000000","0000000000","0000000000","000000000000000000000"]
[null,null,null,null,"",null,null,null,null,null,null,null,null,null,null,null,null,null,null,null,null,null,null,null,null,null,null,null,null,null,null,null,null,null,null,null,null,null,null,null,null,null,null,null,0,"0000000000","0000000000","0000000000","000000000000000000000"]
[null,null,null,null,"",null,null,null,null,null,null,null,null,null,null,null,null,null,null,null,null,null,null,null,null,null,null,null,null,null,null,null,null,null,null,null,null,null,null,null,null,null,null,null,0,"0000000000","0000000000","0000000000","000000000000000000000"]
[null,null,null,null,"",null,null,null,null,null,null,null,null,null,null,null,null,null,null,null,null,null,null,null,null,null,null,null,null,null,null,null,null,null,null,null,null,null,null,null,null,null,null,null,0,"0000000000","0000000000","0000000000","000000000000000000000"]
[null,null,null,null,"",null,null,null,null,null,null,null,null,null,null,null,null,null,null,null,null,null,null,null,null,null,null,null,null,null,null,null,null,null,null,null,null,null,null,null,null,null,null,null,0,"0000000000","0000000000","0000000000","000000000000000000000"]
[null,null,null,null,{"$f":"CONCATENATE(A4949,(IF(B4949<>\"\",\"/\",\"\")),B4949,(IF(C4949<>\"\",\"/\",\"\")),C4949,(IF(D4949<>\"\",\"/\",\"\")),D4949)","v":""},null,null,null,null,null,null,null,null,null,null,null,null,null,null,null,null,null,null,null,null,null,null,null,null,null,null,null,null,null,null,null,null,null,null,null,null,null,null,null,{"$f":"A4949","v":0},{"$f":"IF(B4949=\"\",\"0000000000\",RIGHT(\"0000000000\"&B4949,10))","v":"0000000000"},{"$f":"IF(C4949=\"\",\"0000000000\",RIGHT(\"0000000000\"&C4949,10))","v":"0000000000"},{"$f":"IF(D4949=\"\",\"0000000000\",RIGHT(\"0000000000\"&D4949, 10))","v":"0000000000"},{"$f":"CONCATENATE(AS4949,AT4949,AU4949,D4949,)","v":"000000000000000000000"}]
[null,null,null,null,"",null,null,null,null,null,null,null,null,null,null,null,null,null,null,null,null,null,null,null,null,null,null,null,null,null,null,null,null,null,null,null,null,null,null,null,null,null,null,null,0,"0000000000","0000000000","0000000000","000000000000000000000"]
[null,null,null,null,"",null,null,null,null,null,null,null,null,null,null,null,null,null,null,null,null,null,null,null,null,null,null,null,null,null,null,null,null,null,null,null,null,null,null,null,null,null,null,null,0,"0000000000","0000000000","0000000000","000000000000000000000"]
[null,null,null,null,"",null,null,null,null,null,null,null,null,null,null,null,null,null,null,null,null,null,null,null,null,null,null,null,null,null,null,null,null,null,null,null,null,null,null,null,null,null,null,null,0,"0000000000","0000000000","0000000000","000000000000000000000"]
[null,null,null,null,"",null,null,null,null,null,null,null,null,null,null,null,null,null,null,null,null,null,null,null,null,null,null,null,null,null,null,null,null,null,null,null,null,null,null,null,null,null,null,null,0,"0000000000","0000000000","0000000000","000000000000000000000"]
[null,null,null,null,"",null,null,null,null,null,null,null,null,null,null,null,null,null,null,null,null,null,null,null,null,null,null,null,null,null,null,null,null,null,null,null,null,null,null,null,null,null,null,null,0,"0000000000","0000000000","0000000000","000000000000000000000"]
[null,null,null,null,"",null,null,null,null,null,null,null,null,null,null,null,null,null,null,null,null,null,null,null,null,null,null,null,null,null,null,null,null,null,null,null,null,null,null,null,null,null,null,null,0,"0000000000","0000000000","0000000000","000000000000000000000"]
[null,null,null,null,"",null,null,null,null,null,null,null,null,null,null,null,null,null,null,null,null,null,null,null,null,null,null,null,null,null,null,null,null,null,null,null,null,null,null,null,null,null,null,null,0,"0000000000","0000000000","0000000000","000000000000000000000"]
[null,null,null,null,"",null,null,null,null,null,null,null,null,null,null,null,null,null,null,null,null,null,null,null,null,null,null,null,null,null,null,null,null,null,null,null,null,null,null,null,null,null,null,null,0,"0000000000","0000000000","0000000000","000000000000000000000"]
[null,null,null,null,"",null,null,null,null,null,null,null,null,null,null,null,null,null,null,null,null,null,null,null,null,null,null,null,null,null,null,null,null,null,null,null,null,null,null,null,null,null,null,null,0,"0000000000","0000000000","0000000000","000000000000000000000"]
[null,null,null,null,"",null,null,null,null,null,null,null,null,null,null,null,null,null,null,null,null,null,null,null,null,null,null,null,null,null,null,null,null,null,null,null,null,null,null,null,null,null,null,null,0,"0000000000","0000000000","0000000000","000000000000000000000"]
[null,null,null,null,"",null,null,null,null,null,null,null,null,null,null,null,null,null,null,null,null,null,null,null,null,null,null,null,null,null,null,null,null,null,null,null,null,null,null,null,null,null,null,null,0,"0000000000","0000000000","0000000000","000000000000000000000"]
[null,null,null,null,"",null,null,null,null,null,null,null,null,null,null,null,null,null,null,null,null,null,null,null,null,null,null,null,null,null,null,null,null,null,null,null,null,null,null,null,null,null,null,null,0,"0000000000","0000000000","0000000000","000000000000000000000"]
[null,null,null,null,"",null,null,null,null,null,null,null,null,null,null,null,null,null,null,null,null,null,null,null,null,null,null,null,null,null,null,null,null,null,null,null,null,null,null,null,null,null,null,null,0,"0000000000","0000000000","0000000000","000000000000000000000"]
[null,null,null,null,"",null,null,null,null,null,null,null,null,null,null,null,null,null,null,null,null,null,null,null,null,null,null,null,null,null,null,null,null,null,null,null,null,null,null,null,null,null,null,null,0,"0000000000","0000000000","0000000000","000000000000000000000"]
[null,null,null,null,"",null,null,null,null,null,null,null,null,null,null,null,null,null,null,null,null,null,null,null,null,null,null,null,null,null,null,null,null,null,null,null,null,null,null,null,null,null,null,null,0,"0000000000","0000000000","0000000000","000000000000000000000"]
[null,null,null,null,"",null,null,null,null,null,null,null,null,null,null,null,null,null,null,null,null,null,null,null,null,null,null,null,null,null,null,null,null,null,null,null,null,null,null,null,null,null,null,null,0,"0000000000","0000000000","0000000000","000000000000000000000"]
[null,null,null,null,"",null,null,null,null,null,null,null,null,null,null,null,null,null,null,null,null,null,null,null,null,null,null,null,null,null,null,null,null,null,null,null,null,null,null,null,null,null,null,null,0,"0000000000","0000000000","0000000000","000000000000000000000"]
[null,null,null,null,"",null,null,null,null,null,null,null,null,null,null,null,null,null,null,null,null,null,null,null,null,null,null,null,null,null,null,null,null,null,null,null,null,null,null,null,null,null,null,null,0,"0000000000","0000000000","0000000000","000000000000000000000"]
[null,null,null,null,"",null,null,null,null,null,null,null,null,null,null,null,null,null,null,null,null,null,null,null,null,null,null,null,null,null,null,null,null,null,null,null,null,null,null,null,null,null,null,null,0,"0000000000","0000000000","0000000000","000000000000000000000"]
[null,null,null,null,"",null,null,null,null,null,null,null,null,null,null,null,null,null,null,null,null,null,null,null,null,null,null,null,null,null,null,null,null,null,null,null,null,null,null,null,null,null,null,null,0,"0000000000","0000000000","0000000000","000000000000000000000"]
[null,null,null,null,"",null,null,null,null,null,null,null,null,null,null,null,null,null,null,null,null,null,null,null,null,null,null,null,null,null,null,null,null,null,null,null,null,null,null,null,null,null,null,null,0,"0000000000","0000000000","0000000000","000000000000000000000"]
[null,null,null,null,"",null,null,null,null,null,null,null,null,null,null,null,null,null,null,null,null,null,null,null,null,null,null,null,null,null,null,null,null,null,null,null,null,null,null,null,null,null,null,null,0,"0000000000","0000000000","0000000000","000000000000000000000"]
[null,null,null,null,"",null,null,null,null,null,null,null,null,null,null,null,null,null,null,null,null,null,null,null,null,null,null,null,null,null,null,null,null,null,null,null,null,null,null,null,null,null,null,null,0,"0000000000","0000000000","0000000000","000000000000000000000"]
[null,null,null,null,"",null,null,null,null,null,null,null,null,null,null,null,null,null,null,null,null,null,null,null,null,null,null,null,null,null,null,null,null,null,null,null,null,null,null,null,null,null,null,null,0,"0000000000","0000000000","0000000000","000000000000000000000"]
[null,null,null,null,"",null,null,null,null,null,null,null,null,null,null,null,null,null,null,null,null,null,null,null,null,null,null,null,null,null,null,null,null,null,null,null,null,null,null,null,null,null,null,null,0,"0000000000","0000000000","0000000000","000000000000000000000"]
[null,null,null,null,"",null,null,null,null,null,null,null,null,null,null,null,null,null,null,null,null,null,null,null,null,null,null,null,null,null,null,null,null,null,null,null,null,null,null,null,null,null,null,null,0,"0000000000","0000000000","0000000000","000000000000000000000"]
[null,null,null,null,"",null,null,null,null,null,null,null,null,null,null,null,null,null,null,null,null,null,null,null,null,null,null,null,null,null,null,null,null,null,null,null,null,null,null,null,null,null,null,null,0,"0000000000","0000000000","0000000000","000000000000000000000"]
[null,null,null,null,"",null,null,null,null,null,null,null,null,null,null,null,null,null,null,null,null,null,null,null,null,null,null,null,null,null,null,null,null,null,null,null,null,null,null,null,null,null,null,null,0,"0000000000","0000000000","0000000000","000000000000000000000"]
[null,null,null,null,"",null,null,null,null,null,null,null,null,null,null,null,null,null,null,null,null,null,null,null,null,null,null,null,null,null,null,null,null,null,null,null,null,null,null,null,null,null,null,null,0,"0000000000","0000000000","0000000000","000000000000000000000"]
[null,null,null,null,"",null,null,null,null,null,null,null,null,null,null,null,null,null,null,null,null,null,null,null,null,null,null,null,null,null,null,null,null,null,null,null,null,null,null,null,null,null,null,null,0,"0000000000","0000000000","0000000000","000000000000000000000"]
[null,null,null,null,"",null,null,null,null,null,null,null,null,null,null,null,null,null,null,null,null,null,null,null,null,null,null,null,null,null,null,null,null,null,null,null,null,null,null,null,null,null,null,null,0,"0000000000","0000000000","0000000000","000000000000000000000"]
[null,null,null,null,"",null,null,null,null,null,null,null,null,null,null,null,null,null,null,null,null,null,null,null,null,null,null,null,null,null,null,null,null,null,null,null,null,null,null,null,null,null,null,null,0,"0000000000","0000000000","0000000000","000000000000000000000"]
[null,null,null,null,"",null,null,null,null,null,null,null,null,null,null,null,null,null,null,null,null,null,null,null,null,null,null,null,null,null,null,null,null,null,null,null,null,null,null,null,null,null,null,null,0,"0000000000","0000000000","0000000000","000000000000000000000"]
[null,null,null,null,"",null,null,null,null,null,null,null,null,null,null,null,null,null,null,null,null,null,null,null,null,null,null,null,null,null,null,null,null,null,null,null,null,null,null,null,null,null,null,null,0,"0000000000","0000000000","0000000000","000000000000000000000"]
[null,null,null,null,"",null,null,null,null,null,null,null,null,null,null,null,null,null,null,null,null,null,null,null,null,null,null,null,null,null,null,null,null,null,null,null,null,null,null,null,null,null,null,null,0,"0000000000","0000000000","0000000000","000000000000000000000"]
[null,null,null,null,"",null,null,null,null,null,null,null,null,null,null,null,null,null,null,null,null,null,null,null,null,null,null,null,null,null,null,null,null,null,null,null,null,null,null,null,null,null,null,null,0,"0000000000","0000000000","0000000000","000000000000000000000"]
[null,null,null,null,"",null,null,null,null,null,null,null,null,null,null,null,null,null,null,null,null,null,null,null,null,null,null,null,null,null,null,null,null,null,null,null,null,null,null,null,null,null,null,null,0,"0000000000","0000000000","0000000000","000000000000000000000"]
[null,null,null,null,"",null,null,null,null,null,null,null,null,null,null,null,null,null,null,null,null,null,null,null,null,null,null,null,null,null,null,null,null,null,null,null,null,null,null,null,null,null,null,null,0,"0000000000","0000000000","0000000000","000000000000000000000"]
[null,null,null,null,"",null,null,null,null,null,null,null,null,null,null,null,null,null,null,null,null,null,null,null,null,null,null,null,null,null,null,null,null,null,null,null,null,null,null,null,null,null,null,null,0,"0000000000","0000000000","0000000000","000000000000000000000"]
[null,null,null,null,"",null,null,null,null,null,null,null,null,null,null,null,null,null,null,null,null,null,null,null,null,null,null,null,null,null,null,null,null,null,null,null,null,null,null,null,null,null,null,null,0,"0000000000","0000000000","0000000000","000000000000000000000"]
[null,null,null,null,"",null,null,null,null,null,null,null,null,null,null,null,null,null,null,null,null,null,null,null,null,null,null,null,null,null,null,null,null,null,null,null,null,null,null,null,null,null,null,null,0,"0000000000","0000000000","0000000000","000000000000000000000"]
[null,null,null,null,"",null,null,null,null,null,null,null,null,null,null,null,null,null,null,null,null,null,null,null,null,null,null,null,null,null,null,null,null,null,null,null,null,null,null,null,null,null,null,null,0,"0000000000","0000000000","0000000000","000000000000000000000"]
[null,null,null,null,"",null,null,null,null,null,null,null,null,null,null,null,null,null,null,null,null,null,null,null,null,null,null,null,null,null,null,null,null,null,null,null,null,null,null,null,null,null,null,null,0,"0000000000","0000000000","0000000000","000000000000000000000"]
[null,null,null,null,"",null,null,null,null,null,null,null,null,null,null,null,null,null,null,null,null,null,null,null,null,null,null,null,null,null,null,null,null,null,null,null,null,null,null,null,null,null,null,null,0,"0000000000","0000000000","0000000000","000000000000000000000"]
[null,null,null,null,"",null,null,null,null,null,null,null,null,null,null,null,null,null,null,null,null,null,null,null,null,null,null,null,null,null,null,null,null,null,null,null,null,null,null,null,null,null,null,null,0,"0000000000","0000000000","0000000000","000000000000000000000"]
[null,null,null,null,"",null,null,null,null,null,null,null,null,null,null,null,null,null,null,null,null,null,null,null,null,null,null,null,null,null,null,null,null,null,null,null,null,null,null,null,null,null,null,null,0,"0000000000","0000000000","0000000000","000000000000000000000"]
[null,null,null,null,"",null,null,null,null,null,null,null,null,null,null,null,null,null,null,null,null,null,null,null,null,null,null,null,null,null,null,null,null,null,null,null,null,null,null,null,null,null,null,null,0,"0000000000","0000000000","0000000000","000000000000000000000"]
[null,null,null,null,"",null,null,null,null,null,null,null,null,null,null,null,null,null,null,null,null,null,null,null,null,null,null,null,null,null,null,null,null,null,null,null,null,null,null,null,null,null,null,null,0,"0000000000","0000000000","0000000000","000000000000000000000"]
[null,null,null,null,"",null,null,null,null,null,null,null,null,null,null,null,null,null,null,null,null,null,null,null,null,null,null,null,null,null,null,null,null,null,null,null,null,null,null,null,null,null,null,null,0,"0000000000","0000000000","0000000000","000000000000000000000"]
[null,null,null,null,"",null,null,null,null,null,null,null,null,null,null,null,null,null,null,null,null,null,null,null,null,null,null,null,null,null,null,null,null,null,null,null,null,null,null,null,null,null,null,null,0,"0000000000","0000000000","0000000000","000000000000000000000"]
[null,null,null,null,"",null,null,null,null,null,null,null,null,null,null,null,null,null,null,null,null,null,null,null,null,null,null,null,null,null,null,null,null,null,null,null,null,null,null,null,null,null,null,null,0,"0000000000","0000000000","0000000000","000000000000000000000"]
[null,null,null,null,"",null,null,null,null,null,null,null,null,null,null,null,null,null,null,null,null,null,null,null,null,null,null,null,null,null,null,null,null,null,null,null,null,null,null,null,null,null,null,null,0,"0000000000","0000000000","0000000000","000000000000000000000"]
[null,null,null,null,"",null,null,null,null,null,null,null,null,null,null,null,null,null,null,null,null,null,null,null,null,null,null,null,null,null,null,null,null,null,null,null,null,null,null,null,null,null,null,null,0,"0000000000","0000000000","0000000000","000000000000000000000"]
[null,null,null,null,"",null,null,null,null,null,null,null,null,null,null,null,null,null,null,null,null,null,null,null,null,null,null,null,null,null,null,null,null,null,null,null,null,null,null,null,null,null,null,null,0,"0000000000","0000000000","0000000000","000000000000000000000"]
[null,null,null,null,"",null,null,null,null,null,null,null,null,null,null,null,null,null,null,null,null,null,null,null,null,null,null,null,null,null,null,null,null,null,null,null,null,null,null,null,null,null,null,null,0,"0000000000","0000000000","0000000000","000000000000000000000"]
[null,null,null,null,"",null,null,null,null,null,null,null,null,null,null,null,null,null,null,null,null,null,null,null,null,null,null,null,null,null,null,null,null,null,null,null,null,null,null,null,null,null,null,null,0,"0000000000","0000000000","0000000000","000000000000000000000"]
[null,null,null,null,"",null,null,null,null,null,null,null,null,null,null,null,null,null,null,null,null,null,null,null,null,null,null,null,null,null,null,null,null,null,null,null,null,null,null,null,null,null,null,null,0,"0000000000","0000000000","0000000000","000000000000000000000"]
[null,null,null,null,"",null,null,null,null,null,null,null,null,null,null,null,null,null,null,null,null,null,null,null,null,null,null,null,null,null,null,null,null,null,null,null,null,null,null,null,null,null,null,null,0,"0000000000","0000000000","0000000000","000000000000000000000"]
[null,null,null,null,"",null,null,null,null,null,null,null,null,null,null,null,null,null,null,null,null,null,null,null,null,null,null,null,null,null,null,null,null,null,null,null,null,null,null,null,null,null,null,null,0,"0000000000","0000000000","0000000000","000000000000000000000"]
[null,null,null,null,"",null,null,null,null,null,null,null,null,null,null,null,null,null,null,null,null,null,null,null,null,null,null,null,null,null,null,null,null,null,null,null,null,null,null,null,null,null,null,null,0,"0000000000","0000000000","0000000000","000000000000000000000"]
[null,null,null,null,"",null,null,null,null,null,null,null,null,null,null,null,null,null,null,null,null,null,null,null,null,null,null,null,null,null,null,null,null,null,null,null,null,null,null,null,null,null,null,null,0,"0000000000","0000000000","0000000000","000000000000000000000"]
[null,null,null,null,"",null,null,null,null,null,null,null,null,null,null,null,null,null,null,null,null,null,null,null,null,null,null,null,null,null,null,null,null,null,null,null,null,null,null,null,null,null,null,null,0,"0000000000","0000000000","0000000000","000000000000000000000"]
[null,null,null,null,"",null,null,null,null,null,null,null,null,null,null,null,null,null,null,null,null,null,null,null,null,null,null,null,null,null,null,null,null,null,null,null,null,null,null,null,null,null,null,null,0,"0000000000","0000000000","0000000000","000000000000000000000"]
[null,null,null,null,"",null,null,null,null,null,null,null,null,null,null,null,null,null,null,null,null,null,null,null,null,null,null,null,null,null,null,null,null,null,null,null,null,null,null,null,null,null,null,null,0,"0000000000","0000000000","0000000000","000000000000000000000"]
[null,null,null,null,"",null,null,null,null,null,null,null,null,null,null,null,null,null,null,null,null,null,null,null,null,null,null,null,null,null,null,null,null,null,null,null,null,null,null,null,null,null,null,null,0,"0000000000","0000000000","0000000000","000000000000000000000"]
[null,null,null,null,"",null,null,null,null,null,null,null,null,null,null,null,null,null,null,null,null,null,null,null,null,null,null,null,null,null,null,null,null,null,null,null,null,null,null,null,null,null,null,null,0,"0000000000","0000000000","0000000000","000000000000000000000"]
[null,null,null,null,"",null,null,null,null,null,null,null,null,null,null,null,null,null,null,null,null,null,null,null,null,null,null,null,null,null,null,null,null,null,null,null,null,null,null,null,null,null,null,null,0,"0000000000","0000000000","0000000000","000000000000000000000"]
[null,null,null,null,"",null,null,null,null,null,null,null,null,null,null,null,null,null,null,null,null,null,null,null,null,null,null,null,null,null,null,null,null,null,null,null,null,null,null,null,null,null,null,null,0,"0000000000","0000000000","0000000000","000000000000000000000"]
[null,null,null,null,"",null,null,null,null,null,null,null,null,null,null,null,null,null,null,null,null,null,null,null,null,null,null,null,null,null,null,null,null,null,null,null,null,null,null,null,null,null,null,null,0,"0000000000","0000000000","0000000000","000000000000000000000"]
[null,null,null,null,"",null,null,null,null,null,null,null,null,null,null,null,null,null,null,null,null,null,null,null,null,null,null,null,null,null,null,null,null,null,null,null,null,null,null,null,null,null,null,null,0,"0000000000","0000000000","0000000000","000000000000000000000"]
[null,null,null,null,"",null,null,null,null,null,null,null,null,null,null,null,null,null,null,null,null,null,null,null,null,null,null,null,null,null,null,null,null,null,null,null,null,null,null,null,null,null,null,null,0,"0000000000","0000000000","0000000000","000000000000000000000"]
[null,null,null,null,"",null,null,null,null,null,null,null,null,null,null,null,null,null,null,null,null,null,null,null,null,null,null,null,null,null,null,null,null,null,null,null,null,null,null,null,null,null,null,null,0,"0000000000","0000000000","0000000000","000000000000000000000"]
[null,null,null,null,"",null,null,null,null,null,null,null,null,null,null,null,null,null,null,null,null,null,null,null,null,null,null,null,null,null,null,null,null,null,null,null,null,null,null,null,null,null,null,null,0,"0000000000","0000000000","0000000000","000000000000000000000"]
[null,null,null,null,"",null,null,null,null,null,null,null,null,null,null,null,null,null,null,null,null,null,null,null,null,null,null,null,null,null,null,null,null,null,null,null,null,null,null,null,null,null,null,null,0,"0000000000","0000000000","0000000000","000000000000000000000"]
[null,null,null,null,"",null,null,null,null,null,null,null,null,null,null,null,null,null,null,null,null,null,null,null,null,null,null,null,null,null,null,null,null,null,null,null,null,null,null,null,null,null,null,null,0,"0000000000","0000000000","0000000000","000000000000000000000"]
[null,null,null,null,"",null,null,null,null,null,null,null,null,null,null,null,null,null,null,null,null,null,null,null,null,null,null,null,null,null,null,null,null,null,null,null,null,null,null,null,null,null,null,null,0,"0000000000","0000000000","0000000000","000000000000000000000"]
[null,null,null,null,"",null,null,null,null,null,null,null,null,null,null,null,null,null,null,null,null,null,null,null,null,null,null,null,null,null,null,null,null,null,null,null,null,null,null,null,null,null,null,null,0,"0000000000","0000000000","0000000000","000000000000000000000"]
[null,null,null,null,"",null,null,null,null,null,null,null,null,null,null,null,null,null,null,null,null,null,null,null,null,null,null,null,null,null,null,null,null,null,null,null,null,null,null,null,null,null,null,null,0,"0000000000","0000000000","0000000000","000000000000000000000"]
[null,null,null,null,"",null,null,null,null,null,null,null,null,null,null,null,null,null,null,null,null,null,null,null,null,null,null,null,null,null,null,null,null,null,null,null,null,null,null,null,null,null,null,null,0,"0000000000","0000000000","0000000000","000000000000000000000"]
[null,null,null,null,"",null,null,null,null,null,null,null,null,null,null,null,null,null,null,null,null,null,null,null,null,null,null,null,null,null,null,null,null,null,null,null,null,null,null,null,null,null,null,null,0,"0000000000","0000000000","0000000000","000000000000000000000"]
[null,null,null,null,"",null,null,null,null,null,null,null,null,null,null,null,null,null,null,null,null,null,null,null,null,null,null,null,null,null,null,null,null,null,null,null,null,null,null,null,null,null,null,null,0,"0000000000","0000000000","0000000000","000000000000000000000"]
[null,null,null,null,"",null,null,null,null,null,null,null,null,null,null,null,null,null,null,null,null,null,null,null,null,null,null,null,null,null,null,null,null,null,null,null,null,null,null,null,null,null,null,null,0,"0000000000","0000000000","0000000000","000000000000000000000"]
[null,null,null,null,"",null,null,null,null,null,null,null,null,null,null,null,null,null,null,null,null,null,null,null,null,null,null,null,null,null,null,null,null,null,null,null,null,null,null,null,null,null,null,null,0,"0000000000","0000000000","0000000000","000000000000000000000"]
[null,null,null,null,"",null,null,null,null,null,null,null,null,null,null,null,null,null,null,null,null,null,null,null,null,null,null,null,null,null,null,null,null,null,null,null,null,null,null,null,null,null,null,null,0,"0000000000","0000000000","0000000000","000000000000000000000"]
[null,null,null,null,"",null,null,null,null,null,null,null,null,null,null,null,null,null,null,null,null,null,null,null,null,null,null,null,null,null,null,null,null,null,null,null,null,null,null,null,null,null,null,null,0,"0000000000","0000000000","0000000000","000000000000000000000"]
[null,null,null,null,"",null,null,null,null,null,null,null,null,null,null,null,null,null,null,null,null,null,null,null,null,null,null,null,null,null,null,null,null,null,null,null,null,null,null,null,null,null,null,null,0,"0000000000","0000000000","0000000000","000000000000000000000"]
[null,null,null,null,"",null,null,null,null,null,null,null,null,null,null,null,null,null,null,null,null,null,null,null,null,null,null,null,null,null,null,null,null,null,null,null,null,null,null,null,null,null,null,null,0,"0000000000","0000000000","0000000000","000000000000000000000"]
[null,null,null,null,"",null,null,null,null,null,null,null,null,null,null,null,null,null,null,null,null,null,null,null,null,null,null,null,null,null,null,null,null,null,null,null,null,null,null,null,null,null,null,null,0,"0000000000","0000000000","0000000000","000000000000000000000"]
[null,null,null,null,"",null,null,null,null,null,null,null,null,null,null,null,null,null,null,null,null,null,null,null,null,null,null,null,null,null,null,null,null,null,null,null,null,null,null,null,null,null,null,null,0,"0000000000","0000000000","0000000000","000000000000000000000"]
[null,null,null,null,"",null,null,null,null,null,null,null,null,null,null,null,null,null,null,null,null,null,null,null,null,null,null,null,null,null,null,null,null,null,null,null,null,null,null,null,null,null,null,null,0,"0000000000","0000000000","0000000000","000000000000000000000"]
[null,null,null,null,"",null,null,null,null,null,null,null,null,null,null,null,null,null,null,null,null,null,null,null,null,null,null,null,null,null,null,null,null,null,null,null,null,null,null,null,null,null,null,null,0,"0000000000","0000000000","0000000000","000000000000000000000"]
[null,null,null,null,"",null,null,null,null,null,null,null,null,null,null,null,null,null,null,null,null,null,null,null,null,null,null,null,null,null,null,null,null,null,null,null,null,null,null,null,null,null,null,null,0,"0000000000","0000000000","0000000000","000000000000000000000"]
[null,null,null,null,"",null,null,null,null,null,null,null,null,null,null,null,null,null,null,null,null,null,null,null,null,null,null,null,null,null,null,null,null,null,null,null,null,null,null,null,null,null,null,null,0,"0000000000","0000000000","0000000000","000000000000000000000"]
[null,null,null,null,"",null,null,null,null,null,null,null,null,null,null,null,null,null,null,null,null,null,null,null,null,null,null,null,null,null,null,null,null,null,null,null,null,null,null,null,null,null,null,null,0,"0000000000","0000000000","0000000000","000000000000000000000"]
[null,null,null,null,"",null,null,null,null,null,null,null,null,null,null,null,null,null,null,null,null,null,null,null,null,null,null,null,null,null,null,null,null,null,null,null,null,null,null,null,null,null,null,null,0,"0000000000","0000000000","0000000000","000000000000000000000"]
[null,null,null,null,"",null,null,null,null,null,null,null,null,null,null,null,null,null,null,null,null,null,null,null,null,null,null,null,null,null,null,null,null,null,null,null,null,null,null,null,null,null,null,null,0,"0000000000","0000000000","0000000000","000000000000000000000"]
[null,null,null,null,"",null,null,null,null,null,null,null,null,null,null,null,null,null,null,null,null,null,null,null,null,null,null,null,null,null,null,null,null,null,null,null,null,null,null,null,null,null,null,null,0,"0000000000","0000000000","0000000000","000000000000000000000"]
[null,null,null,null,"",null,null,null,null,null,null,null,null,null,null,null,null,null,null,null,null,null,null,null,null,null,null,null,null,null,null,null,null,null,null,null,null,null,null,null,null,null,null,null,0,"0000000000","0000000000","0000000000","000000000000000000000"]
[null,null,null,null,"",null,null,null,null,null,null,null,null,null,null,null,null,null,null,null,null,null,null,null,null,null,null,null,null,null,null,null,null,null,null,null,null,null,null,null,null,null,null,null,0,"0000000000","0000000000","0000000000","000000000000000000000"]
[null,null,null,null,"",null,null,null,null,null,null,null,null,null,null,null,null,null,null,null,null,null,null,null,null,null,null,null,null,null,null,null,null,null,null,null,null,null,null,null,null,null,null,null,0,"0000000000","0000000000","0000000000","000000000000000000000"]
[null,null,null,null,"",null,null,null,null,null,null,null,null,null,null,null,null,null,null,null,null,null,null,null,null,null,null,null,null,null,null,null,null,null,null,null,null,null,null,null,null,null,null,null,0,"0000000000","0000000000","0000000000","000000000000000000000"]
[null,null,null,null,"",null,null,null,null,null,null,null,null,null,null,null,null,null,null,null,null,null,null,null,null,null,null,null,null,null,null,null,null,null,null,null,null,null,null,null,null,null,null,null,0,"0000000000","0000000000","0000000000","000000000000000000000"]
[null,null,null,null,"",null,null,null,null,null,null,null,null,null,null,null,null,null,null,null,null,null,null,null,null,null,null,null,null,null,null,null,null,null,null,null,null,null,null,null,null,null,null,null,0,"0000000000","0000000000","0000000000","000000000000000000000"]
[null,null,null,null,"",null,null,null,null,null,null,null,null,null,null,null,null,null,null,null,null,null,null,null,null,null,null,null,null,null,null,null,null,null,null,null,null,null,null,null,null,null,null,null,0,"0000000000","0000000000","0000000000","000000000000000000000"]
[null,null,null,null,"",null,null,null,null,null,null,null,null,null,null,null,null,null,null,null,null,null,null,null,null,null,null,null,null,null,null,null,null,null,null,null,null,null,null,null,null,null,null,null,0,"0000000000","0000000000","0000000000","000000000000000000000"]
[null,null,null,null,"",null,null,null,null,null,null,null,null,null,null,null,null,null,null,null,null,null,null,null,null,null,null,null,null,null,null,null,null,null,null,null,null,null,null,null,null,null,null,null,0,"0000000000","0000000000","0000000000","000000000000000000000"]
[null,null,null,null,"",null,null,null,null,null,null,null,null,null,null,null,null,null,null,null,null,null,null,null,null,null,null,null,null,null,null,null,null,null,null,null,null,null,null,null,null,null,null,null,0,"0000000000","0000000000","0000000000","000000000000000000000"]
[null,null,null,null,{"$f":"CONCATENATE(A6997,(IF(B6997<>\"\",\"/\",\"\")),B6997,(IF(C6997<>\"\",\"/\",\"\")),C6997,(IF(D6997<>\"\",\"/\",\"\")),D6997)","v":""},null,null,null,null,null,null,null,null,null,null,null,null,null,null,null,null,null,null,null,null,null,null,null,null,null,null,null,null,null,null,null,null,null,null,null,null,null,null,null,{"$f":"A6997","v":0},{"$f":"IF(B6997=\"\",\"0000000000\",RIGHT(\"0000000000\"&B6997,10))","v":"0000000000"},{"$f":"IF(C6997=\"\",\"0000000000\",RIGHT(\"0000000000\"&C6997,10))","v":"0000000000"},{"$f":"IF(D6997=\"\",\"0000000000\",RIGHT(\"0000000000\"&D6997, 10))","v":"0000000000"},{"$f":"CONCATENATE(AS6997,AT6997,AU6997,D6997,)","v":"000000000000000000000"}]
[null,null,null,null,"",null,null,null,null,null,null,null,null,null,null,null,null,null,null,null,null,null,null,null,null,null,null,null,null,null,null,null,null,null,null,null,null,null,null,null,null,null,null,null,0,"0000000000","0000000000","0000000000","000000000000000000000"]
[null,null,null,null,"",null,null,null,null,null,null,null,null,null,null,null,null,null,null,null,null,null,null,null,null,null,null,null,null,null,null,null,null,null,null,null,null,null,null,null,null,null,null,null,0,"0000000000","0000000000","0000000000","000000000000000000000"]
[null,null,null,null,"",null,null,null,null,null,null,null,null,null,null,null,null,null,null,null,null,null,null,null,null,null,null,null,null,null,null,null,null,null,null,null,null,null,null,null,null,null,null,null,0,"0000000000","0000000000","0000000000","000000000000000000000"]
[null,null,null,null,"",null,null,null,null,null,null,null,null,null,null,null,null,null,null,null,null,null,null,null,null,null,null,null,null,null,null,null,null,null,null,null,null,null,null,null,null,null,null,null,0,"0000000000","0000000000","0000000000","000000000000000000000"]
[null,null,null,null,"",null,null,null,null,null,null,null,null,null,null,null,null,null,null,null,null,null,null,null,null,null,null,null,null,null,null,null,null,null,null,null,null,null,null,null,null,null,null,null,0,"0000000000","0000000000","0000000000","000000000000000000000"]
[null,null,null,null,"",null,null,null,null,null,null,null,null,null,null,null,null,null,null,null,null,null,null,null,null,null,null,null,null,null,null,null,null,null,null,null,null,null,null,null,null,null,null,null,0,"0000000000","0000000000","0000000000","000000000000000000000"]
[null,null,null,null,"",null,null,null,null,null,null,null,null,null,null,null,null,null,null,null,null,null,null,null,null,null,null,null,null,null,null,null,null,null,null,null,null,null,null,null,null,null,null,null,0,"0000000000","0000000000","0000000000","000000000000000000000"]
[null,null,null,null,"",null,null,null,null,null,null,null,null,null,null,null,null,null,null,null,null,null,null,null,null,null,null,null,null,null,null,null,null,null,null,null,null,null,null,null,null,null,null,null,0,"0000000000","0000000000","0000000000","000000000000000000000"]
[null,null,null,null,"",null,null,null,null,null,null,null,null,null,null,null,null,null,null,null,null,null,null,null,null,null,null,null,null,null,null,null,null,null,null,null,null,null,null,null,null,null,null,null,0,"0000000000","0000000000","0000000000","000000000000000000000"]
[null,null,null,null,"",null,null,null,null,null,null,null,null,null,null,null,null,null,null,null,null,null,null,null,null,null,null,null,null,null,null,null,null,null,null,null,null,null,null,null,null,null,null,null,0,"0000000000","0000000000","0000000000","000000000000000000000"]
[null,null,null,null,"",null,null,null,null,null,null,null,null,null,null,null,null,null,null,null,null,null,null,null,null,null,null,null,null,null,null,null,null,null,null,null,null,null,null,null,null,null,null,null,0,"0000000000","0000000000","0000000000","000000000000000000000"]
[null,null,null,null,"",null,null,null,null,null,null,null,null,null,null,null,null,null,null,null,null,null,null,null,null,null,null,null,null,null,null,null,null,null,null,null,null,null,null,null,null,null,null,null,0,"0000000000","0000000000","0000000000","000000000000000000000"]
[null,null,null,null,"",null,null,null,null,null,null,null,null,null,null,null,null,null,null,null,null,null,null,null,null,null,null,null,null,null,null,null,null,null,null,null,null,null,null,null,null,null,null,null,0,"0000000000","0000000000","0000000000","000000000000000000000"]
[null,null,null,null,"",null,null,null,null,null,null,null,null,null,null,null,null,null,null,null,null,null,null,null,null,null,null,null,null,null,null,null,null,null,null,null,null,null,null,null,null,null,null,null,0,"0000000000","0000000000","0000000000","000000000000000000000"]
[null,null,null,null,"",null,null,null,null,null,null,null,null,null,null,null,null,null,null,null,null,null,null,null,null,null,null,null,null,null,null,null,null,null,null,null,null,null,null,null,null,null,null,null,0,"0000000000","0000000000","0000000000","000000000000000000000"]
[null,null,null,null,"",null,null,null,null,null,null,null,null,null,null,null,null,null,null,null,null,null,null,null,null,null,null,null,null,null,null,null,null,null,null,null,null,null,null,null,null,null,null,null,0,"0000000000","0000000000","0000000000","000000000000000000000"]
[null,null,null,null,{"$f":"CONCATENATE(A7317,(IF(B7317<>\"\",\"/\",\"\")),B7317,(IF(C7317<>\"\",\"/\",\"\")),C7317,(IF(D7317<>\"\",\"/\",\"\")),D7317)","v":""},null,null,null,null,null,null,null,null,null,null,null,null,null,null,null,null,null,null,null,null,null,null,null,null,null,null,null,null,null,null,null,null,null,null,null,null,null,null,null,{"$f":"A7317","v":0},{"$f":"IF(B7317=\"\",\"0000000000\",RIGHT(\"0000000000\"&B7317,10))","v":"0000000000"},{"$f":"IF(C7317=\"\",\"0000000000\",RIGHT(\"0000000000\"&C7317,10))","v":"0000000000"},{"$f":"IF(D7317=\"\",\"0000000000\",RIGHT(\"0000000000\"&D7317, 10))","v":"0000000000"},{"$f":"CONCATENATE(AS7317,AT7317,AU7317,D7317,)","v":"000000000000000000000"}]
[null,null,null,null,"",null,null,null,null,null,null,null,null,null,null,null,null,null,null,null,null,null,null,null,null,null,null,null,null,null,null,null,null,null,null,null,null,null,null,null,null,null,null,null,0,"0000000000","0000000000","0000000000","000000000000000000000"]
[null,null,null,null,"",null,null,null,null,null,null,null,null,null,null,null,null,null,null,null,null,null,null,null,null,null,null,null,null,null,null,null,null,null,null,null,null,null,null,null,null,null,null,null,0,"0000000000","0000000000","0000000000","000000000000000000000"]
[null,null,null,null,"",null,null,null,null,null,null,null,null,null,null,null,null,null,null,null,null,null,null,null,null,null,null,null,null,null,null,null,null,null,null,null,null,null,null,null,null,null,null,null,0,"0000000000","0000000000","0000000000","000000000000000000000"]
[null,null,null,null,"",null,null,null,null,null,null,null,null,null,null,null,null,null,null,null,null,null,null,null,null,null,null,null,null,null,null,null,null,null,null,null,null,null,null,null,null,null,null,null,0,"0000000000","0000000000","0000000000","000000000000000000000"]
[null,null,null,null,"",null,null,null,null,null,null,null,null,null,null,null,null,null,null,null,null,null,null,null,null,null,null,null,null,null,null,null,null,null,null,null,null,null,null,null,null,null,null,null,0,"0000000000","0000000000","0000000000","000000000000000000000"]
[null,null,null,null,"",null,null,null,null,null,null,null,null,null,null,null,null,null,null,null,null,null,null,null,null,null,null,null,null,null,null,null,null,null,null,null,null,null,null,null,null,null,null,null,0,"0000000000","0000000000","0000000000","000000000000000000000"]
[null,null,null,null,"",null,null,null,null,null,null,null,null,null,null,null,null,null,null,null,null,null,null,null,null,null,null,null,null,null,null,null,null,null,null,null,null,null,null,null,null,null,null,null,0,"0000000000","0000000000","0000000000","000000000000000000000"]
[null,null,null,null,"",null,null,null,null,null,null,null,null,null,null,null,null,null,null,null,null,null,null,null,null,null,null,null,null,null,null,null,null,null,null,null,null,null,null,null,null,null,null,null,0,"0000000000","0000000000","0000000000","000000000000000000000"]
[null,null,null,null,"",null,null,null,null,null,null,null,null,null,null,null,null,null,null,null,null,null,null,null,null,null,null,null,null,null,null,null,null,null,null,null,null,null,null,null,null,null,null,null,0,"0000000000","0000000000","0000000000","000000000000000000000"]
[null,null,null,null,"",null,null,null,null,null,null,null,null,null,null,null,null,null,null,null,null,null,null,null,null,null,null,null,null,null,null,null,null,null,null,null,null,null,null,null,null,null,null,null,0,"0000000000","0000000000","0000000000","000000000000000000000"]
[null,null,null,null,"",null,null,null,null,null,null,null,null,null,null,null,null,null,null,null,null,null,null,null,null,null,null,null,null,null,null,null,null,null,null,null,null,null,null,null,null,null,null,null,0,"0000000000","0000000000","0000000000","000000000000000000000"]
[null,null,null,null,"",null,null,null,null,null,null,null,null,null,null,null,null,null,null,null,null,null,null,null,null,null,null,null,null,null,null,null,null,null,null,null,null,null,null,null,null,null,null,null,0,"0000000000","0000000000","0000000000","000000000000000000000"]
[null,null,null,null,"",null,null,null,null,null,null,null,null,null,null,null,null,null,null,null,null,null,null,null,null,null,null,null,null,null,null,null,null,null,null,null,null,null,null,null,null,null,null,null,0,"0000000000","0000000000","0000000000","000000000000000000000"]
[null,null,null,null,"",null,null,null,null,null,null,null,null,null,null,null,null,null,null,null,null,null,null,null,null,null,null,null,null,null,null,null,null,null,null,null,null,null,null,null,null,null,null,null,0,"0000000000","0000000000","0000000000","000000000000000000000"]
[null,null,null,null,"",null,null,null,null,null,null,null,null,null,null,null,null,null,null,null,null,null,null,null,null,null,null,null,null,null,null,null,null,null,null,null,null,null,null,null,null,null,null,null,0,"0000000000","0000000000","0000000000","000000000000000000000"]
[null,null,null,null,"",null,null,null,null,null,null,null,null,null,null,null,null,null,null,null,null,null,null,null,null,null,null,null,null,null,null,null,null,null,null,null,null,null,null,null,null,null,null,null,0,"0000000000","0000000000","0000000000","000000000000000000000"]
[null,null,null,null,"",null,null,null,null,null,null,null,null,null,null,null,null,null,null,null,null,null,null,null,null,null,null,null,null,null,null,null,null,null,null,null,null,null,null,null,null,null,null,null,0,"0000000000","0000000000","0000000000","000000000000000000000"]
[null,null,null,null,"",null,null,null,null,null,null,null,null,null,null,null,null,null,null,null,null,null,null,null,null,null,null,null,null,null,null,null,null,null,null,null,null,null,null,null,null,null,null,null,0,"0000000000","0000000000","0000000000","000000000000000000000"]
[null,null,null,null,"",null,null,null,null,null,null,null,null,null,null,null,null,null,null,null,null,null,null,null,null,null,null,null,null,null,null,null,null,null,null,null,null,null,null,null,null,null,null,null,0,"0000000000","0000000000","0000000000","000000000000000000000"]
[null,null,null,null,"",null,null,null,null,null,null,null,null,null,null,null,null,null,null,null,null,null,null,null,null,null,null,null,null,null,null,null,null,null,null,null,null,null,null,null,null,null,null,null,0,"0000000000","0000000000","0000000000","000000000000000000000"]
[null,null,null,null,"",null,null,null,null,null,null,null,null,null,null,null,null,null,null,null,null,null,null,null,null,null,null,null,null,null,null,null,null,null,null,null,null,null,null,null,null,null,null,null,0,"0000000000","0000000000","0000000000","000000000000000000000"]
[null,null,null,null,"",null,null,null,null,null,null,null,null,null,null,null,null,null,null,null,null,null,null,null,null,null,null,null,null,null,null,null,null,null,null,null,null,null,null,null,null,null,null,null,0,"0000000000","0000000000","0000000000","000000000000000000000"]
[null,null,null,null,"",null,null,null,null,null,null,null,null,null,null,null,null,null,null,null,null,null,null,null,null,null,null,null,null,null,null,null,null,null,null,null,null,null,null,null,null,null,null,null,0,"0000000000","0000000000","0000000000","000000000000000000000"]
[null,null,null,null,"",null,null,null,null,null,null,null,null,null,null,null,null,null,null,null,null,null,null,null,null,null,null,null,null,null,null,null,null,null,null,null,null,null,null,null,null,null,null,null,0,"0000000000","0000000000","0000000000","000000000000000000000"]
[null,null,null,null,"",null,null,null,null,null,null,null,null,null,null,null,null,null,null,null,null,null,null,null,null,null,null,null,null,null,null,null,null,null,null,null,null,null,null,null,null,null,null,null,0,"0000000000","0000000000","0000000000","000000000000000000000"]
[null,null,null,null,"",null,null,null,null,null,null,null,null,null,null,null,null,null,null,null,null,null,null,null,null,null,null,null,null,null,null,null,null,null,null,null,null,null,null,null,null,null,null,null,0,"0000000000","0000000000","0000000000","000000000000000000000"]
[null,null,null,null,"",null,null,null,null,null,null,null,null,null,null,null,null,null,null,null,null,null,null,null,null,null,null,null,null,null,null,null,null,null,null,null,null,null,null,null,null,null,null,null,0,"0000000000","0000000000","0000000000","000000000000000000000"]
[null,null,null,null,"",null,null,null,null,null,null,null,null,null,null,null,null,null,null,null,null,null,null,null,null,null,null,null,null,null,null,null,null,null,null,null,null,null,null,null,null,null,null,null,0,"0000000000","0000000000","0000000000","000000000000000000000"]
[null,null,null,null,"",null,null,null,null,null,null,null,null,null,null,null,null,null,null,null,null,null,null,null,null,null,null,null,null,null,null,null,null,null,null,null,null,null,null,null,null,null,null,null,0,"0000000000","0000000000","0000000000","000000000000000000000"]
[null,null,null,null,"",null,null,null,null,null,null,null,null,null,null,null,null,null,null,null,null,null,null,null,null,null,null,null,null,null,null,null,null,null,null,null,null,null,null,null,null,null,null,null,0,"0000000000","0000000000","0000000000","000000000000000000000"]
[null,null,null,null,"",null,null,null,null,null,null,null,null,null,null,null,null,null,null,null,null,null,null,null,null,null,null,null,null,null,null,null,null,null,null,null,null,null,null,null,null,null,null,null,0,"0000000000","0000000000","0000000000","000000000000000000000"]
[null,null,null,null,"",null,null,null,null,null,null,null,null,null,null,null,null,null,null,null,null,null,null,null,null,null,null,null,null,null,null,null,null,null,null,null,null,null,null,null,null,null,null,null,0,"0000000000","0000000000","0000000000","000000000000000000000"]
[null,null,null,null,"",null,null,null,null,null,null,null,null,null,null,null,null,null,null,null,null,null,null,null,null,null,null,null,null,null,null,null,null,null,null,null,null,null,null,null,null,null,null,null,0,"0000000000","0000000000","0000000000","000000000000000000000"]
[null,null,null,null,"",null,null,null,null,null,null,null,null,null,null,null,null,null,null,null,null,null,null,null,null,null,null,null,null,null,null,null,null,null,null,null,null,null,null,null,null,null,null,null,0,"0000000000","0000000000","0000000000","000000000000000000000"]
[null,null,null,null,"",null,null,null,null,null,null,null,null,null,null,null,null,null,null,null,null,null,null,null,null,null,null,null,null,null,null,null,null,null,null,null,null,null,null,null,null,null,null,null,0,"0000000000","0000000000","0000000000","000000000000000000000"]
[null,null,null,null,"",null,null,null,null,null,null,null,null,null,null,null,null,null,null,null,null,null,null,null,null,null,null,null,null,null,null,null,null,null,null,null,null,null,null,null,null,null,null,null,0,"0000000000","0000000000","0000000000","000000000000000000000"]
[null,null,null,null,"",null,null,null,null,null,null,null,null,null,null,null,null,null,null,null,null,null,null,null,null,null,null,null,null,null,null,null,null,null,null,null,null,null,null,null,null,null,null,null,0,"0000000000","0000000000","0000000000","000000000000000000000"]
[null,null,null,null,"",null,null,null,null,null,null,null,null,null,null,null,null,null,null,null,null,null,null,null,null,null,null,null,null,null,null,null,null,null,null,null,null,null,null,null,null,null,null,null,0,"0000000000","0000000000","0000000000","000000000000000000000"]
[null,null,null,null,"",null,null,null,null,null,null,null,null,null,null,null,null,null,null,null,null,null,null,null,null,null,null,null,null,null,null,null,null,null,null,null,null,null,null,null,null,null,null,null,0,"0000000000","0000000000","0000000000","000000000000000000000"]
[null,null,null,null,"",null,null,null,null,null,null,null,null,null,null,null,null,null,null,null,null,null,null,null,null,null,null,null,null,null,null,null,null,null,null,null,null,null,null,null,null,null,null,null,0,"0000000000","0000000000","0000000000","000000000000000000000"]
[null,null,null,null,"",null,null,null,null,null,null,null,null,null,null,null,null,null,null,null,null,null,null,null,null,null,null,null,null,null,null,null,null,null,null,null,null,null,null,null,null,null,null,null,0,"0000000000","0000000000","0000000000","000000000000000000000"]
[null,null,null,null,"",null,null,null,null,null,null,null,null,null,null,null,null,null,null,null,null,null,null,null,null,null,null,null,null,null,null,null,null,null,null,null,null,null,null,null,null,null,null,null,0,"0000000000","0000000000","0000000000","000000000000000000000"]
[null,null,null,null,"",null,null,null,null,null,null,null,null,null,null,null,null,null,null,null,null,null,null,null,null,null,null,null,null,null,null,null,null,null,null,null,null,null,null,null,null,null,null,null,0,"0000000000","0000000000","0000000000","000000000000000000000"]
[null,null,null,null,"",null,null,null,null,null,null,null,null,null,null,null,null,null,null,null,null,null,null,null,null,null,null,null,null,null,null,null,null,null,null,null,null,null,null,null,null,null,null,null,0,"0000000000","0000000000","0000000000","000000000000000000000"]
[null,null,null,null,"",null,null,null,null,null,null,null,null,null,null,null,null,null,null,null,null,null,null,null,null,null,null,null,null,null,null,null,null,null,null,null,null,null,null,null,null,null,null,null,0,"0000000000","0000000000","0000000000","000000000000000000000"]
[null,null,null,null,"",null,null,null,null,null,null,null,null,null,null,null,null,null,null,null,null,null,null,null,null,null,null,null,null,null,null,null,null,null,null,null,null,null,null,null,null,null,null,null,0,"0000000000","0000000000","0000000000","000000000000000000000"]
[null,null,null,null,"",null,null,null,null,null,null,null,null,null,null,null,null,null,null,null,null,null,null,null,null,null,null,null,null,null,null,null,null,null,null,null,null,null,null,null,null,null,null,null,0,"0000000000","0000000000","0000000000","000000000000000000000"]
[null,null,null,null,"",null,null,null,null,null,null,null,null,null,null,null,null,null,null,null,null,null,null,null,null,null,null,null,null,null,null,null,null,null,null,null,null,null,null,null,null,null,null,null,0,"0000000000","0000000000","0000000000","000000000000000000000"]
[null,null,null,null,"",null,null,null,null,null,null,null,null,null,null,null,null,null,null,null,null,null,null,null,null,null,null,null,null,null,null,null,null,null,null,null,null,null,null,null,null,null,null,null,0,"0000000000","0000000000","0000000000","000000000000000000000"]
[null,null,null,null,"",null,null,null,null,null,null,null,null,null,null,null,null,null,null,null,null,null,null,null,null,null,null,null,null,null,null,null,null,null,null,null,null,null,null,null,null,null,null,null,0,"0000000000","0000000000","0000000000","000000000000000000000"]
[null,null,null,null,"",null,null,null,null,null,null,null,null,null,null,null,null,null,null,null,null,null,null,null,null,null,null,null,null,null,null,null,null,null,null,null,null,null,null,null,null,null,null,null,0,"0000000000","0000000000","0000000000","000000000000000000000"]
[null,null,null,null,"",null,null,null,null,null,null,null,null,null,null,null,null,null,null,null,null,null,null,null,null,null,null,null,null,null,null,null,null,null,null,null,null,null,null,null,null,null,null,null,0,"0000000000","0000000000","0000000000","000000000000000000000"]
[null,null,null,null,"",null,null,null,null,null,null,null,null,null,null,null,null,null,null,null,null,null,null,null,null,null,null,null,null,null,null,null,null,null,null,null,null,null,null,null,null,null,null,null,0,"0000000000","0000000000","0000000000","000000000000000000000"]
[null,null,null,null,"",null,null,null,null,null,null,null,null,null,null,null,null,null,null,null,null,null,null,null,null,null,null,null,null,null,null,null,null,null,null,null,null,null,null,null,null,null,null,null,0,"0000000000","0000000000","0000000000","000000000000000000000"]
[null,null,null,null,"",null,null,null,null,null,null,null,null,null,null,null,null,null,null,null,null,null,null,null,null,null,null,null,null,null,null,null,null,null,null,null,null,null,null,null,null,null,null,null,0,"0000000000","0000000000","0000000000","000000000000000000000"]
[null,null,null,null,"",null,null,null,null,null,null,null,null,null,null,null,null,null,null,null,null,null,null,null,null,null,null,null,null,null,null,null,null,null,null,null,null,null,null,null,null,null,null,null,0,"0000000000","0000000000","0000000000","000000000000000000000"]
[null,null,null,null,"",null,null,null,null,null,null,null,null,null,null,null,null,null,null,null,null,null,null,null,null,null,null,null,null,null,null,null,null,null,null,null,null,null,null,null,null,null,null,null,0,"0000000000","0000000000","0000000000","000000000000000000000"]
[null,null,null,null,"",null,null,null,null,null,null,null,null,null,null,null,null,null,null,null,null,null,null,null,null,null,null,null,null,null,null,null,null,null,null,null,null,null,null,null,null,null,null,null,0,"0000000000","0000000000","0000000000","000000000000000000000"]
[null,null,null,null,"",null,null,null,null,null,null,null,null,null,null,null,null,null,null,null,null,null,null,null,null,null,null,null,null,null,null,null,null,null,null,null,null,null,null,null,null,null,null,null,0,"0000000000","0000000000","0000000000","000000000000000000000"]
[null,null,null,null,"",null,null,null,null,null,null,null,null,null,null,null,null,null,null,null,null,null,null,null,null,null,null,null,null,null,null,null,null,null,null,null,null,null,null,null,null,null,null,null,0,"0000000000","0000000000","0000000000","000000000000000000000"]
[null,null,null,null,"",null,null,null,null,null,null,null,null,null,null,null,null,null,null,null,null,null,null,null,null,null,null,null,null,null,null,null,null,null,null,null,null,null,null,null,null,null,null,null,0,"0000000000","0000000000","0000000000","000000000000000000000"]
[null,null,null,null,"",null,null,null,null,null,null,null,null,null,null,null,null,null,null,null,null,null,null,null,null,null,null,null,null,null,null,null,null,null,null,null,null,null,null,null,null,null,null,null,0,"0000000000","0000000000","0000000000","000000000000000000000"]
[null,null,null,null,"",null,null,null,null,null,null,null,null,null,null,null,null,null,null,null,null,null,null,null,null,null,null,null,null,null,null,null,null,null,null,null,null,null,null,null,null,null,null,null,0,"0000000000","0000000000","0000000000","000000000000000000000"]
[null,null,null,null,"",null,null,null,null,null,null,null,null,null,null,null,null,null,null,null,null,null,null,null,null,null,null,null,null,null,null,null,null,null,null,null,null,null,null,null,null,null,null,null,0,"0000000000","0000000000","0000000000","000000000000000000000"]
[null,null,null,null,"",null,null,null,null,null,null,null,null,null,null,null,null,null,null,null,null,null,null,null,null,null,null,null,null,null,null,null,null,null,null,null,null,null,null,null,null,null,null,null,0,"0000000000","0000000000","0000000000","000000000000000000000"]
[null,null,null,null,"",null,null,null,null,null,null,null,null,null,null,null,null,null,null,null,null,null,null,null,null,null,null,null,null,null,null,null,null,null,null,null,null,null,null,null,null,null,null,null,0,"0000000000","0000000000","0000000000","000000000000000000000"]
[null,null,null,null,"",null,null,null,null,null,null,null,null,null,null,null,null,null,null,null,null,null,null,null,null,null,null,null,null,null,null,null,null,null,null,null,null,null,null,null,null,null,null,null,0,"0000000000","0000000000","0000000000","000000000000000000000"]
[null,null,null,null,"",null,null,null,null,null,null,null,null,null,null,null,null,null,null,null,null,null,null,null,null,null,null,null,null,null,null,null,null,null,null,null,null,null,null,null,null,null,null,null,0,"0000000000","0000000000","0000000000","000000000000000000000"]
[null,null,null,null,"",null,null,null,null,null,null,null,null,null,null,null,null,null,null,null,null,null,null,null,null,null,null,null,null,null,null,null,null,null,null,null,null,null,null,null,null,null,null,null,0,"0000000000","0000000000","0000000000","000000000000000000000"]
[null,null,null,null,"",null,null,null,null,null,null,null,null,null,null,null,null,null,null,null,null,null,null,null,null,null,null,null,null,null,null,null,null,null,null,null,null,null,null,null,null,null,null,null,0,"0000000000","0000000000","0000000000","000000000000000000000"]
[null,null,null,null,"",null,null,null,null,null,null,null,null,null,null,null,null,null,null,null,null,null,null,null,null,null,null,null,null,null,null,null,null,null,null,null,null,null,null,null,null,null,null,null,0,"0000000000","0000000000","0000000000","000000000000000000000"]
[null,null,null,null,"",null,null,null,null,null,null,null,null,null,null,null,null,null,null,null,null,null,null,null,null,null,null,null,null,null,null,null,null,null,null,null,null,null,null,null,null,null,null,null,0,"0000000000","0000000000","0000000000","000000000000000000000"]
[null,null,null,null,"",null,null,null,null,null,null,null,null,null,null,null,null,null,null,null,null,null,null,null,null,null,null,null,null,null,null,null,null,null,null,null,null,null,null,null,null,null,null,null,0,"0000000000","0000000000","0000000000","000000000000000000000"]
[null,null,null,null,"",null,null,null,null,null,null,null,null,null,null,null,null,null,null,null,null,null,null,null,null,null,null,null,null,null,null,null,null,null,null,null,null,null,null,null,null,null,null,null,0,"0000000000","0000000000","0000000000","000000000000000000000"]
[null,null,null,null,"",null,null,null,null,null,null,null,null,null,null,null,null,null,null,null,null,null,null,null,null,null,null,null,null,null,null,null,null,null,null,null,null,null,null,null,null,null,null,null,0,"0000000000","0000000000","0000000000","000000000000000000000"]
[null,null,null,null,"",null,null,null,null,null,null,null,null,null,null,null,null,null,null,null,null,null,null,null,null,null,null,null,null,null,null,null,null,null,null,null,null,null,null,null,null,null,null,null,0,"0000000000","0000000000","0000000000","000000000000000000000"]
[null,null,null,null,"",null,null,null,null,null,null,null,null,null,null,null,null,null,null,null,null,null,null,null,null,null,null,null,null,null,null,null,null,null,null,null,null,null,null,null,null,null,null,null,0,"0000000000","0000000000","0000000000","000000000000000000000"]
[null,null,null,null,"",null,null,null,null,null,null,null,null,null,null,null,null,null,null,null,null,null,null,null,null,null,null,null,null,null,null,null,null,null,null,null,null,null,null,null,null,null,null,null,0,"0000000000","0000000000","0000000000","000000000000000000000"]
[null,null,null,null,"",null,null,null,null,null,null,null,null,null,null,null,null,null,null,null,null,null,null,null,null,null,null,null,null,null,null,null,null,null,null,null,null,null,null,null,null,null,null,null,0,"0000000000","0000000000","0000000000","000000000000000000000"]
[null,null,null,null,"",null,null,null,null,null,null,null,null,null,null,null,null,null,null,null,null,null,null,null,null,null,null,null,null,null,null,null,null,null,null,null,null,null,null,null,null,null,null,null,0,"0000000000","0000000000","0000000000","000000000000000000000"]
[null,null,null,null,"",null,null,null,null,null,null,null,null,null,null,null,null,null,null,null,null,null,null,null,null,null,null,null,null,null,null,null,null,null,null,null,null,null,null,null,null,null,null,null,0,"0000000000","0000000000","0000000000","000000000000000000000"]
[null,null,null,null,"",null,null,null,null,null,null,null,null,null,null,null,null,null,null,null,null,null,null,null,null,null,null,null,null,null,null,null,null,null,null,null,null,null,null,null,null,null,null,null,0,"0000000000","0000000000","0000000000","000000000000000000000"]
[null,null,null,null,"",null,null,null,null,null,null,null,null,null,null,null,null,null,null,null,null,null,null,null,null,null,null,null,null,null,null,null,null,null,null,null,null,null,null,null,null,null,null,null,0,"0000000000","0000000000","0000000000","000000000000000000000"]
[null,null,null,null,"",null,null,null,null,null,null,null,null,null,null,null,null,null,null,null,null,null,null,null,null,null,null,null,null,null,null,null,null,null,null,null,null,null,null,null,null,null,null,null,0,"0000000000","0000000000","0000000000","000000000000000000000"]
[null,null,null,null,"",null,null,null,null,null,null,null,null,null,null,null,null,null,null,null,null,null,null,null,null,null,null,null,null,null,null,null,null,null,null,null,null,null,null,null,null,null,null,null,0,"0000000000","0000000000","0000000000","000000000000000000000"]
[null,null,null,null,"",null,null,null,null,null,null,null,null,null,null,null,null,null,null,null,null,null,null,null,null,null,null,null,null,null,null,null,null,null,null,null,null,null,null,null,null,null,null,null,0,"0000000000","0000000000","0000000000","000000000000000000000"]
[null,null,null,null,"",null,null,null,null,null,null,null,null,null,null,null,null,null,null,null,null,null,null,null,null,null,null,null,null,null,null,null,null,null,null,null,null,null,null,null,null,null,null,null,0,"0000000000","0000000000","0000000000","000000000000000000000"]
[null,null,null,null,"",null,null,null,null,null,null,null,null,null,null,null,null,null,null,null,null,null,null,null,null,null,null,null,null,null,null,null,null,null,null,null,null,null,null,null,null,null,null,null,0,"0000000000","0000000000","0000000000","000000000000000000000"]
[null,null,null,null,"",null,null,null,null,null,null,null,null,null,null,null,null,null,null,null,null,null,null,null,null,null,null,null,null,null,null,null,null,null,null,null,null,null,null,null,null,null,null,null,0,"0000000000","0000000000","0000000000","000000000000000000000"]
[null,null,null,null,"",null,null,null,null,null,null,null,null,null,null,null,null,null,null,null,null,null,null,null,null,null,null,null,null,null,null,null,null,null,null,null,null,null,null,null,null,null,null,null,0,"0000000000","0000000000","0000000000","000000000000000000000"]
[null,null,null,null,"",null,null,null,null,null,null,null,null,null,null,null,null,null,null,null,null,null,null,null,null,null,null,null,null,null,null,null,null,null,null,null,null,null,null,null,null,null,null,null,0,"0000000000","0000000000","0000000000","000000000000000000000"]
[null,null,null,null,"",null,null,null,null,null,null,null,null,null,null,null,null,null,null,null,null,null,null,null,null,null,null,null,null,null,null,null,null,null,null,null,null,null,null,null,null,null,null,null,0,"0000000000","0000000000","0000000000","000000000000000000000"]
[null,null,null,null,"",null,null,null,null,null,null,null,null,null,null,null,null,null,null,null,null,null,null,null,null,null,null,null,null,null,null,null,null,null,null,null,null,null,null,null,null,null,null,null,0,"0000000000","0000000000","0000000000","000000000000000000000"]
[null,null,null,null,"",null,null,null,null,null,null,null,null,null,null,null,null,null,null,null,null,null,null,null,null,null,null,null,null,null,null,null,null,null,null,null,null,null,null,null,null,null,null,null,0,"0000000000","0000000000","0000000000","000000000000000000000"]
[null,null,null,null,"",null,null,null,null,null,null,null,null,null,null,null,null,null,null,null,null,null,null,null,null,null,null,null,null,null,null,null,null,null,null,null,null,null,null,null,null,null,null,null,0,"0000000000","0000000000","0000000000","000000000000000000000"]
[null,null,null,null,"",null,null,null,null,null,null,null,null,null,null,null,null,null,null,null,null,null,null,null,null,null,null,null,null,null,null,null,null,null,null,null,null,null,null,null,null,null,null,null,0,"0000000000","0000000000","0000000000","000000000000000000000"]
[null,null,null,null,"",null,null,null,null,null,null,null,null,null,null,null,null,null,null,null,null,null,null,null,null,null,null,null,null,null,null,null,null,null,null,null,null,null,null,null,null,null,null,null,0,"0000000000","0000000000","0000000000","000000000000000000000"]
[null,null,null,null,"",null,null,null,null,null,null,null,null,null,null,null,null,null,null,null,null,null,null,null,null,null,null,null,null,null,null,null,null,null,null,null,null,null,null,null,null,null,null,null,0,"0000000000","0000000000","0000000000","000000000000000000000"]
[null,null,null,null,"",null,null,null,null,null,null,null,null,null,null,null,null,null,null,null,null,null,null,null,null,null,null,null,null,null,null,null,null,null,null,null,null,null,null,null,null,null,null,null,0,"0000000000","0000000000","0000000000","000000000000000000000"]
[null,null,null,null,"",null,null,null,null,null,null,null,null,null,null,null,null,null,null,null,null,null,null,null,null,null,null,null,null,null,null,null,null,null,null,null,null,null,null,null,null,null,null,null,0,"0000000000","0000000000","0000000000","000000000000000000000"]
[null,null,null,null,"",null,null,null,null,null,null,null,null,null,null,null,null,null,null,null,null,null,null,null,null,null,null,null,null,null,null,null,null,null,null,null,null,null,null,null,null,null,null,null,0,"0000000000","0000000000","0000000000","000000000000000000000"]
[null,null,null,null,"",null,null,null,null,null,null,null,null,null,null,null,null,null,null,null,null,null,null,null,null,null,null,null,null,null,null,null,null,null,null,null,null,null,null,null,null,null,null,null,0,"0000000000","0000000000","0000000000","000000000000000000000"]
[null,null,null,null,"",null,null,null,null,null,null,null,null,null,null,null,null,null,null,null,null,null,null,null,null,null,null,null,null,null,null,null,null,null,null,null,null,null,null,null,null,null,null,null,0,"0000000000","0000000000","0000000000","000000000000000000000"]
[null,null,null,null,"",null,null,null,null,null,null,null,null,null,null,null,null,null,null,null,null,null,null,null,null,null,null,null,null,null,null,null,null,null,null,null,null,null,null,null,null,null,null,null,0,"0000000000","0000000000","0000000000","000000000000000000000"]
[null,null,null,null,"",null,null,null,null,null,null,null,null,null,null,null,null,null,null,null,null,null,null,null,null,null,null,null,null,null,null,null,null,null,null,null,null,null,null,null,null,null,null,null,0,"0000000000","0000000000","0000000000","000000000000000000000"]
[null,null,null,null,"",null,null,null,null,null,null,null,null,null,null,null,null,null,null,null,null,null,null,null,null,null,null,null,null,null,null,null,null,null,null,null,null,null,null,null,null,null,null,null,0,"0000000000","0000000000","0000000000","000000000000000000000"]
[null,null,null,null,"",null,null,null,null,null,null,null,null,null,null,null,null,null,null,null,null,null,null,null,null,null,null,null,null,null,null,null,null,null,null,null,null,null,null,null,null,null,null,null,0,"0000000000","0000000000","0000000000","000000000000000000000"]
[null,null,null,null,"",null,null,null,null,null,null,null,null,null,null,null,null,null,null,null,null,null,null,null,null,null,null,null,null,null,null,null,null,null,null,null,null,null,null,null,null,null,null,null,0,"0000000000","0000000000","0000000000","000000000000000000000"]
[null,null,null,null,"",null,null,null,null,null,null,null,null,null,null,null,null,null,null,null,null,null,null,null,null,null,null,null,null,null,null,null,null,null,null,null,null,null,null,null,null,null,null,null,0,"0000000000","0000000000","0000000000","000000000000000000000"]
[null,null,null,null,"",null,null,null,null,null,null,null,null,null,null,null,null,null,null,null,null,null,null,null,null,null,null,null,null,null,null,null,null,null,null,null,null,null,null,null,null,null,null,null,0,"0000000000","0000000000","0000000000","000000000000000000000"]
[null,null,null,null,"",null,null,null,null,null,null,null,null,null,null,null,null,null,null,null,null,null,null,null,null,null,null,null,null,null,null,null,null,null,null,null,null,null,null,null,null,null,null,null,0,"0000000000","0000000000","0000000000","000000000000000000000"]
[null,null,null,null,"",null,null,null,null,null,null,null,null,null,null,null,null,null,null,null,null,null,null,null,null,null,null,null,null,null,null,null,null,null,null,null,null,null,null,null,null,null,null,null,0,"0000000000","0000000000","0000000000","000000000000000000000"]
[null,null,null,null,"",null,null,null,null,null,null,null,null,null,null,null,null,null,null,null,null,null,null,null,null,null,null,null,null,null,null,null,null,null,null,null,null,null,null,null,null,null,null,null,0,"0000000000","0000000000","0000000000","000000000000000000000"]
[null,null,null,null,"",null,null,null,null,null,null,null,null,null,null,null,null,null,null,null,null,null,null,null,null,null,null,null,null,null,null,null,null,null,null,null,null,null,null,null,null,null,null,null,0,"0000000000","0000000000","0000000000","000000000000000000000"]
[null,null,null,null,"",null,null,null,null,null,null,null,null,null,null,null,null,null,null,null,null,null,null,null,null,null,null,null,null,null,null,null,null,null,null,null,null,null,null,null,null,null,null,null,0,"0000000000","0000000000","0000000000","000000000000000000000"]
[null,null,null,null,"",null,null,null,null,null,null,null,null,null,null,null,null,null,null,null,null,null,null,null,null,null,null,null,null,null,null,null,null,null,null,null,null,null,null,null,null,null,null,null,0,"0000000000","0000000000","0000000000","000000000000000000000"]
[null,null,null,null,"",null,null,null,null,null,null,null,null,null,null,null,null,null,null,null,null,null,null,null,null,null,null,null,null,null,null,null,null,null,null,null,null,null,null,null,null,null,null,null,0,"0000000000","0000000000","0000000000","000000000000000000000"]
[null,null,null,null,"",null,null,null,null,null,null,null,null,null,null,null,null,null,null,null,null,null,null,null,null,null,null,null,null,null,null,null,null,null,null,null,null,null,null,null,null,null,null,null,0,"0000000000","0000000000","0000000000","000000000000000000000"]
[null,null,null,null,"",null,null,null,null,null,null,null,null,null,null,null,null,null,null,null,null,null,null,null,null,null,null,null,null,null,null,null,null,null,null,null,null,null,null,null,null,null,null,null,0,"0000000000","0000000000","0000000000","000000000000000000000"]
[null,null,null,null,"",null,null,null,null,null,null,null,null,null,null,null,null,null,null,null,null,null,null,null,null,null,null,null,null,null,null,null,null,null,null,null,null,null,null,null,null,null,null,null,0,"0000000000","0000000000","0000000000","000000000000000000000"]
[null,null,null,null,"",null,null,null,null,null,null,null,null,null,null,null,null,null,null,null,null,null,null,null,null,null,null,null,null,null,null,null,null,null,null,null,null,null,null,null,null,null,null,null,0,"0000000000","0000000000","0000000000","000000000000000000000"]
[null,null,null,null,"",null,null,null,null,null,null,null,null,null,null,null,null,null,null,null,null,null,null,null,null,null,null,null,null,null,null,null,null,null,null,null,null,null,null,null,null,null,null,null,0,"0000000000","0000000000","0000000000","000000000000000000000"]
[null,null,null,null,"",null,null,null,null,null,null,null,null,null,null,null,null,null,null,null,null,null,null,null,null,null,null,null,null,null,null,null,null,null,null,null,null,null,null,null,null,null,null,null,0,"0000000000","0000000000","0000000000","000000000000000000000"]
[null,null,null,null,"",null,null,null,null,null,null,null,null,null,null,null,null,null,null,null,null,null,null,null,null,null,null,null,null,null,null,null,null,null,null,null,null,null,null,null,null,null,null,null,0,"0000000000","0000000000","0000000000","000000000000000000000"]
[null,null,null,null,{"$f":"CONCATENATE(A9685,(IF(B9685<>\"\",\"/\",\"\")),B9685,(IF(C9685<>\"\",\"/\",\"\")),C9685,(IF(D9685<>\"\",\"/\",\"\")),D9685)","v":""},null,null,null,null,null,null,null,null,null,null,null,null,null,null,null,null,null,null,null,null,null,null,null,null,null,null,null,null,null,null,null,null,null,null,null,null,null,null,null,{"$f":"A9685","v":0},{"$f":"IF(B9685=\"\",\"0000000000\",RIGHT(\"0000000000\"&B9685,10))","v":"0000000000"},{"$f":"IF(C9685=\"\",\"0000000000\",RIGHT(\"0000000000\"&C9685,10))","v":"0000000000"},{"$f":"IF(D9685=\"\",\"0000000000\",RIGHT(\"0000000000\"&D9685, 10))","v":"0000000000"},{"$f":"CONCATENATE(AS9685,AT9685,AU9685,D9685,)","v":"000000000000000000000"}]
[null,null,null,null,"",null,null,null,null,null,null,null,null,null,null,null,null,null,null,null,null,null,null,null,null,null,null,null,null,null,null,null,null,null,null,null,null,null,null,null,null,null,null,null,0,"0000000000","0000000000","0000000000","000000000000000000000"]
[null,null,null,null,"",null,null,null,null,null,null,null,null,null,null,null,null,null,null,null,null,null,null,null,null,null,null,null,null,null,null,null,null,null,null,null,null,null,null,null,null,null,null,null,0,"0000000000","0000000000","0000000000","000000000000000000000"]
[null,null,null,null,"",null,null,null,null,null,null,null,null,null,null,null,null,null,null,null,null,null,null,null,null,null,null,null,null,null,null,null,null,null,null,null,null,null,null,null,null,null,null,null,0,"0000000000","0000000000","0000000000","000000000000000000000"]
[null,null,null,null,"",null,null,null,null,null,null,null,null,null,null,null,null,null,null,null,null,null,null,null,null,null,null,null,null,null,null,null,null,null,null,null,null,null,null,null,null,null,null,null,0,"0000000000","0000000000","0000000000","000000000000000000000"]
[null,null,null,null,"",null,null,null,null,null,null,null,null,null,null,null,null,null,null,null,null,null,null,null,null,null,null,null,null,null,null,null,null,null,null,null,null,null,null,null,null,null,null,null,0,"0000000000","0000000000","0000000000","000000000000000000000"]
[null,null,null,null,"",null,null,null,null,null,null,null,null,null,null,null,null,null,null,null,null,null,null,null,null,null,null,null,null,null,null,null,null,null,null,null,null,null,null,null,null,null,null,null,0,"0000000000","0000000000","0000000000","000000000000000000000"]
[null,null,null,null,"",null,null,null,null,null,null,null,null,null,null,null,null,null,null,null,null,null,null,null,null,null,null,null,null,null,null,null,null,null,null,null,null,null,null,null,null,null,null,null,0,"0000000000","0000000000","0000000000","000000000000000000000"]
[null,null,null,null,"",null,null,null,null,null,null,null,null,null,null,null,null,null,null,null,null,null,null,null,null,null,null,null,null,null,null,null,null,null,null,null,null,null,null,null,null,null,null,null,0,"0000000000","0000000000","0000000000","000000000000000000000"]
[null,null,null,null,"",null,null,null,null,null,null,null,null,null,null,null,null,null,null,null,null,null,null,null,null,null,null,null,null,null,null,null,null,null,null,null,null,null,null,null,null,null,null,null,0,"0000000000","0000000000","0000000000","000000000000000000000"]
[null,null,null,null,"",null,null,null,null,null,null,null,null,null,null,null,null,null,null,null,null,null,null,null,null,null,null,null,null,null,null,null,null,null,null,null,null,null,null,null,null,null,null,null,0,"0000000000","0000000000","0000000000","000000000000000000000"]
[null,null,null,null,"",null,null,null,null,null,null,null,null,null,null,null,null,null,null,null,null,null,null,null,null,null,null,null,null,null,null,null,null,null,null,null,null,null,null,null,null,null,null,null,0,"0000000000","0000000000","0000000000","000000000000000000000"]
[null,null,null,null,"",null,null,null,null,null,null,null,null,null,null,null,null,null,null,null,null,null,null,null,null,null,null,null,null,null,null,null,null,null,null,null,null,null,null,null,null,null,null,null,0,"0000000000","0000000000","0000000000","000000000000000000000"]
[null,null,null,null,"",null,null,null,null,null,null,null,null,null,null,null,null,null,null,null,null,null,null,null,null,null,null,null,null,null,null,null,null,null,null,null,null,null,null,null,null,null,null,null,0,"0000000000","0000000000","0000000000","000000000000000000000"]
[null,null,null,null,"",null,null,null,null,null,null,null,null,null,null,null,null,null,null,null,null,null,null,null,null,null,null,null,null,null,null,null,null,null,null,null,null,null,null,null,null,null,null,null,0,"0000000000","0000000000","0000000000","000000000000000000000"]
[null,null,null,null,"",null,null,null,null,null,null,null,null,null,null,null,null,null,null,null,null,null,null,null,null,null,null,null,null,null,null,null,null,null,null,null,null,null,null,null,null,null,null,null,0,"0000000000","0000000000","0000000000","000000000000000000000"]
[null,null,null,null,"",null,null,null,null,null,null,null,null,null,null,null,null,null,null,null,null,null,null,null,null,null,null,null,null,null,null,null,null,null,null,null,null,null,null,null,null,null,null,null,0,"0000000000","0000000000","0000000000","000000000000000000000"]
[null,null,null,null,"",null,null,null,null,null,null,null,null,null,null,null,null,null,null,null,null,null,null,null,null,null,null,null,null,null,null,null,null,null,null,null,null,null,null,null,null,null,null,null,0,"0000000000","0000000000","0000000000","000000000000000000000"]
[null,null,null,null,"",null,null,null,null,null,null,null,null,null,null,null,null,null,null,null,null,null,null,null,null,null,null,null,null,null,null,null,null,null,null,null,null,null,null,null,null,null,null,null,0,"0000000000","0000000000","0000000000","000000000000000000000"]
[null,null,null,null,"",null,null,null,null,null,null,null,null,null,null,null,null,null,null,null,null,null,null,null,null,null,null,null,null,null,null,null,null,null,null,null,null,null,null,null,null,null,null,null,0,"0000000000","0000000000","0000000000","000000000000000000000"]
[null,null,null,null,"",null,null,null,null,null,null,null,null,null,null,null,null,null,null,null,null,null,null,null,null,null,null,null,null,null,null,null,null,null,null,null,null,null,null,null,null,null,null,null,0,"0000000000","0000000000","0000000000","000000000000000000000"]
[null,null,null,null,"",null,null,null,null,null,null,null,null,null,null,null,null,null,null,null,null,null,null,null,null,null,null,null,null,null,null,null,null,null,null,null,null,null,null,null,null,null,null,null,0,"0000000000","0000000000","0000000000","000000000000000000000"]
[null,null,null,null,"",null,null,null,null,null,null,null,null,null,null,null,null,null,null,null,null,null,null,null,null,null,null,null,null,null,null,null,null,null,null,null,null,null,null,null,null,null,null,null,0,"0000000000","0000000000","0000000000","000000000000000000000"]
[null,null,null,null,"",null,null,null,null,null,null,null,null,null,null,null,null,null,null,null,null,null,null,null,null,null,null,null,null,null,null,null,null,null,null,null,null,null,null,null,null,null,null,null,0,"0000000000","0000000000","0000000000","000000000000000000000"]
[null,null,null,null,"",null,null,null,null,null,null,null,null,null,null,null,null,null,null,null,null,null,null,null,null,null,null,null,null,null,null,null,null,null,null,null,null,null,null,null,null,null,null,null,0,"0000000000","0000000000","0000000000","000000000000000000000"]
[null,null,null,null,"",null,null,null,null,null,null,null,null,null,null,null,null,null,null,null,null,null,null,null,null,null,null,null,null,null,null,null,null,null,null,null,null,null,null,null,null,null,null,null,0,"0000000000","0000000000","0000000000","000000000000000000000"]
[null,null,null,null,"",null,null,null,null,null,null,null,null,null,null,null,null,null,null,null,null,null,null,null,null,null,null,null,null,null,null,null,null,null,null,null,null,null,null,null,null,null,null,null,0,"0000000000","0000000000","0000000000","000000000000000000000"]
[null,null,null,null,"",null,null,null,null,null,null,null,null,null,null,null,null,null,null,null,null,null,null,null,null,null,null,null,null,null,null,null,null,null,null,null,null,null,null,null,null,null,null,null,0,"0000000000","0000000000","0000000000","000000000000000000000"]
[null,null,null,null,"",null,null,null,null,null,null,null,null,null,null,null,null,null,null,null,null,null,null,null,null,null,null,null,null,null,null,null,null,null,null,null,null,null,null,null,null,null,null,null,0,"0000000000","0000000000","0000000000","000000000000000000000"]
[null,null,null,null,"",null,null,null,null,null,null,null,null,null,null,null,null,null,null,null,null,null,null,null,null,null,null,null,null,null,null,null,null,null,null,null,null,null,null,null,null,null,null,null,0,"0000000000","0000000000","0000000000","000000000000000000000"]
[null,null,null,null,"",null,null,null,null,null,null,null,null,null,null,null,null,null,null,null,null,null,null,null,null,null,null,null,null,null,null,null,null,null,null,null,null,null,null,null,null,null,null,null,0,"0000000000","0000000000","0000000000","000000000000000000000"]
[null,null,null,null,"",null,null,null,null,null,null,null,null,null,null,null,null,null,null,null,null,null,null,null,null,null,null,null,null,null,null,null,null,null,null,null,null,null,null,null,null,null,null,null,0,"0000000000","0000000000","0000000000","000000000000000000000"]
[null,null,null,null,"",null,null,null,null,null,null,null,null,null,null,null,null,null,null,null,null,null,null,null,null,null,null,null,null,null,null,null,null,null,null,null,null,null,null,null,null,null,null,null,0,"0000000000","0000000000","0000000000","000000000000000000000"]
[null,null,null,null,"",null,null,null,null,null,null,null,null,null,null,null,null,null,null,null,null,null,null,null,null,null,null,null,null,null,null,null,null,null,null,null,null,null,null,null,null,null,null,null,0,"0000000000","0000000000","0000000000","000000000000000000000"]
[null,null,null,null,"",null,null,null,null,null,null,null,null,null,null,null,null,null,null,null,null,null,null,null,null,null,null,null,null,null,null,null,null,null,null,null,null,null,null,null,null,null,null,null,0,"0000000000","0000000000","0000000000","000000000000000000000"]
[null,null,null,null,"",null,null,null,null,null,null,null,null,null,null,null,null,null,null,null,null,null,null,null,null,null,null,null,null,null,null,null,null,null,null,null,null,null,null,null,null,null,null,null,0,"0000000000","0000000000","0000000000","000000000000000000000"]
[null,null,null,null,"",null,null,null,null,null,null,null,null,null,null,null,null,null,null,null,null,null,null,null,null,null,null,null,null,null,null,null,null,null,null,null,null,null,null,null,null,null,null,null,0,"0000000000","0000000000","0000000000","000000000000000000000"]
[null,null,null,null,"",null,null,null,null,null,null,null,null,null,null,null,null,null,null,null,null,null,null,null,null,null,null,null,null,null,null,null,null,null,null,null,null,null,null,null,null,null,null,null,0,"0000000000","0000000000","0000000000","000000000000000000000"]
[null,null,null,null,"",null,null,null,null,null,null,null,null,null,null,null,null,null,null,null,null,null,null,null,null,null,null,null,null,null,null,null,null,null,null,null,null,null,null,null,null,null,null,null,0,"0000000000","0000000000","0000000000","000000000000000000000"]
[null,null,null,null,"",null,null,null,null,null,null,null,null,null,null,null,null,null,null,null,null,null,null,null,null,null,null,null,null,null,null,null,null,null,null,null,null,null,null,null,null,null,null,null,0,"0000000000","0000000000","0000000000","000000000000000000000"]
[null,null,null,null,"",null,null,null,null,null,null,null,null,null,null,null,null,null,null,null,null,null,null,null,null,null,null,null,null,null,null,null,null,null,null,null,null,null,null,null,null,null,null,null,0,"0000000000","0000000000","0000000000","000000000000000000000"]
[null,null,null,null,"",null,null,null,null,null,null,null,null,null,null,null,null,null,null,null,null,null,null,null,null,null,null,null,null,null,null,null,null,null,null,null,null,null,null,null,null,null,null,null,0,"0000000000","0000000000","0000000000","000000000000000000000"]
[null,null,null,null,"",null,null,null,null,null,null,null,null,null,null,null,null,null,null,null,null,null,null,null,null,null,null,null,null,null,null,null,null,null,null,null,null,null,null,null,null,null,null,null,0,"0000000000","0000000000","0000000000","000000000000000000000"]
[null,null,null,null,"",null,null,null,null,null,null,null,null,null,null,null,null,null,null,null,null,null,null,null,null,null,null,null,null,null,null,null,null,null,null,null,null,null,null,null,null,null,null,null,0,"0000000000","0000000000","0000000000","000000000000000000000"]
[null,null,null,null,"",null,null,null,null,null,null,null,null,null,null,null,null,null,null,null,null,null,null,null,null,null,null,null,null,null,null,null,null,null,null,null,null,null,null,null,null,null,null,null,0,"0000000000","0000000000","0000000000","000000000000000000000"]
[null,null,null,null,"",null,null,null,null,null,null,null,null,null,null,null,null,null,null,null,null,null,null,null,null,null,null,null,null,null,null,null,null,null,null,null,null,null,null,null,null,null,null,null,0,"0000000000","0000000000","0000000000","000000000000000000000"]
[null,null,null,null,"",null,null,null,null,null,null,null,null,null,null,null,null,null,null,null,null,null,null,null,null,null,null,null,null,null,null,null,null,null,null,null,null,null,null,null,null,null,null,null,0,"0000000000","0000000000","0000000000","000000000000000000000"]
[null,null,null,null,"",null,null,null,null,null,null,null,null,null,null,null,null,null,null,null,null,null,null,null,null,null,null,null,null,null,null,null,null,null,null,null,null,null,null,null,null,null,null,null,0,"0000000000","0000000000","0000000000","000000000000000000000"]
[null,null,null,null,"",null,null,null,null,null,null,null,null,null,null,null,null,null,null,null,null,null,null,null,null,null,null,null,null,null,null,null,null,null,null,null,null,null,null,null,null,null,null,null,0,"0000000000","0000000000","0000000000","000000000000000000000"]
[null,null,null,null,"",null,null,null,null,null,null,null,null,null,null,null,null,null,null,null,null,null,null,null,null,null,null,null,null,null,null,null,null,null,null,null,null,null,null,null,null,null,null,null,0,"0000000000","0000000000","0000000000","000000000000000000000"]
[null,null,null,null,"",null,null,null,null,null,null,null,null,null,null,null,null,null,null,null,null,null,null,null,null,null,null,null,null,null,null,null,null,null,null,null,null,null,null,null,null,null,null,null,0,"0000000000","0000000000","0000000000","000000000000000000000"]
[null,null,null,null,"",null,null,null,null,null,null,null,null,null,null,null,null,null,null,null,null,null,null,null,null,null,null,null,null,null,null,null,null,null,null,null,null,null,null,null,null,null,null,null,0,"0000000000","0000000000","0000000000","000000000000000000000"]
[null,null,null,null,"",null,null,null,null,null,null,null,null,null,null,null,null,null,null,null,null,null,null,null,null,null,null,null,null,null,null,null,null,null,null,null,null,null,null,null,null,null,null,null,0,"0000000000","0000000000","0000000000","000000000000000000000"]
[null,null,null,null,"",null,null,null,null,null,null,null,null,null,null,null,null,null,null,null,null,null,null,null,null,null,null,null,null,null,null,null,null,null,null,null,null,null,null,null,null,null,null,null,0,"0000000000","0000000000","0000000000","000000000000000000000"]
[null,null,null,null,"",null,null,null,null,null,null,null,null,null,null,null,null,null,null,null,null,null,null,null,null,null,null,null,null,null,null,null,null,null,null,null,null,null,null,null,null,null,null,null,0,"0000000000","0000000000","0000000000","000000000000000000000"]
[null,null,null,null,"",null,null,null,null,null,null,null,null,null,null,null,null,null,null,null,null,null,null,null,null,null,null,null,null,null,null,null,null,null,null,null,null,null,null,null,null,null,null,null,0,"0000000000","0000000000","0000000000","000000000000000000000"]
[null,null,null,null,"",null,null,null,null,null,null,null,null,null,null,null,null,null,null,null,null,null,null,null,null,null,null,null,null,null,null,null,null,null,null,null,null,null,null,null,null,null,null,null,0,"0000000000","0000000000","0000000000","000000000000000000000"]
[null,null,null,null,"",null,null,null,null,null,null,null,null,null,null,null,null,null,null,null,null,null,null,null,null,null,null,null,null,null,null,null,null,null,null,null,null,null,null,null,null,null,null,null,0,"0000000000","0000000000","0000000000","000000000000000000000"]
[null,null,null,null,"",null,null,null,null,null,null,null,null,null,null,null,null,null,null,null,null,null,null,null,null,null,null,null,null,null,null,null,null,null,null,null,null,null,null,null,null,null,null,null,0,"0000000000","0000000000","0000000000","000000000000000000000"]
[null,null,null,null,"",null,null,null,null,null,null,null,null,null,null,null,null,null,null,null,null,null,null,null,null,null,null,null,null,null,null,null,null,null,null,null,null,null,null,null,null,null,null,null,0,"0000000000","0000000000","0000000000","000000000000000000000"]
[null,null,null,null,{"$f":"CONCATENATE(A10005,(IF(B10005<>\"\",\"/\",\"\")),B10005,(IF(C10005<>\"\",\"/\",\"\")),C10005,(IF(D10005<>\"\",\"/\",\"\")),D10005)","v":""},null,null,null,null,null,null,null,null,null,null,null,null,null,null,null,null,null,null,null,null,null,null,null,null,null,null,null,null,null,null,null,null,null,null,null,null,null,null,null,{"$f":"A10005","v":0},{"$f":"IF(B10005=\"\",\"0000000000\",RIGHT(\"0000000000\"&B10005,10))","v":"0000000000"},{"$f":"IF(C10005=\"\",\"0000000000\",RIGHT(\"0000000000\"&C10005,10))","v":"0000000000"},{"$f":"IF(D10005=\"\",\"0000000000\",RIGHT(\"0000000000\"&D10005, 10))","v":"0000000000"},{"$f":"CONCATENATE(AS10005,AT10005,AU10005,D10005,)","v":"000000000000000000000"}]
[null,null,null,null,"",null,null,null,null,null,null,null,null,null,null,null,null,null,null,null,null,null,null,null,null,null,null,null,null,null,null,null,null,null,null,null,null,null,null,null,null,null,null,null,0,"0000000000","0000000000","0000000000","000000000000000000000"]
[null,null,null,null,"",null,null,null,null,null,null,null,null,null,null,null,null,null,null,null,null,null,null,null,null,null,null,null,null,null,null,null,null,null,null,null,null,null,null,null,null,null,null,null,0,"0000000000","0000000000","0000000000","000000000000000000000"]
[null,null,null,null,"",null,null,null,null,null,null,null,null,null,null,null,null,null,null,null,null,null,null,null,null,null,null,null,null,null,null,null,null,null,null,null,null,null,null,null,null,null,null,null,0,"0000000000","0000000000","0000000000","000000000000000000000"]
[null,null,null,null,"",null,null,null,null,null,null,null,null,null,null,null,null,null,null,null,null,null,null,null,null,null,null,null,null,null,null,null,null,null,null,null,null,null,null,null,null,null,null,null,0,"0000000000","0000000000","0000000000","000000000000000000000"]
[null,null,null,null,"",null,null,null,null,null,null,null,null,null,null,null,null,null,null,null,null,null,null,null,null,null,null,null,null,null,null,null,null,null,null,null,null,null,null,null,null,null,null,null,0,"0000000000","0000000000","0000000000","000000000000000000000"]
[null,null,null,null,"",null,null,null,null,null,null,null,null,null,null,null,null,null,null,null,null,null,null,null,null,null,null,null,null,null,null,null,null,null,null,null,null,null,null,null,null,null,null,null,0,"0000000000","0000000000","0000000000","000000000000000000000"]
[null,null,null,null,"",null,null,null,null,null,null,null,null,null,null,null,null,null,null,null,null,null,null,null,null,null,null,null,null,null,null,null,null,null,null,null,null,null,null,null,null,null,null,null,0,"0000000000","0000000000","0000000000","000000000000000000000"]
[null,null,null,null,"",null,null,null,null,null,null,null,null,null,null,null,null,null,null,null,null,null,null,null,null,null,null,null,null,null,null,null,null,null,null,null,null,null,null,null,null,null,null,null,0,"0000000000","0000000000","0000000000","000000000000000000000"]
[null,null,null,null,"",null,null,null,null,null,null,null,null,null,null,null,null,null,null,null,null,null,null,null,null,null,null,null,null,null,null,null,null,null,null,null,null,null,null,null,null,null,null,null,0,"0000000000","0000000000","0000000000","000000000000000000000"]
[null,null,null,null,"",null,null,null,null,null,null,null,null,null,null,null,null,null,null,null,null,null,null,null,null,null,null,null,null,null,null,null,null,null,null,null,null,null,null,null,null,null,null,null,0,"0000000000","0000000000","0000000000","000000000000000000000"]
[null,null,null,null,"",null,null,null,null,null,null,null,null,null,null,null,null,null,null,null,null,null,null,null,null,null,null,null,null,null,null,null,null,null,null,null,null,null,null,null,null,null,null,null,0,"0000000000","0000000000","0000000000","000000000000000000000"]
[null,null,null,null,"",null,null,null,null,null,null,null,null,null,null,null,null,null,null,null,null,null,null,null,null,null,null,null,null,null,null,null,null,null,null,null,null,null,null,null,null,null,null,null,0,"0000000000","0000000000","0000000000","000000000000000000000"]
[null,null,null,null,"",null,null,null,null,null,null,null,null,null,null,null,null,null,null,null,null,null,null,null,null,null,null,null,null,null,null,null,null,null,null,null,null,null,null,null,null,null,null,null,0,"0000000000","0000000000","0000000000","000000000000000000000"]
[null,null,null,null,"",null,null,null,null,null,null,null,null,null,null,null,null,null,null,null,null,null,null,null,null,null,null,null,null,null,null,null,null,null,null,null,null,null,null,null,null,null,null,null,0,"0000000000","0000000000","0000000000","000000000000000000000"]
[null,null,null,null,"",null,null,null,null,null,null,null,null,null,null,null,null,null,null,null,null,null,null,null,null,null,null,null,null,null,null,null,null,null,null,null,null,null,null,null,null,null,null,null,0,"0000000000","0000000000","0000000000","000000000000000000000"]
[null,null,null,null,"",null,null,null,null,null,null,null,null,null,null,null,null,null,null,null,null,null,null,null,null,null,null,null,null,null,null,null,null,null,null,null,null,null,null,null,null,null,null,null,0,"0000000000","0000000000","0000000000","000000000000000000000"]
[null,null,null,null,"",null,null,null,null,null,null,null,null,null,null,null,null,null,null,null,null,null,null,null,null,null,null,null,null,null,null,null,null,null,null,null,null,null,null,null,null,null,null,null,0,"0000000000","0000000000","0000000000","000000000000000000000"]
[null,null,null,null,"",null,null,null,null,null,null,null,null,null,null,null,null,null,null,null,null,null,null,null,null,null,null,null,null,null,null,null,null,null,null,null,null,null,null,null,null,null,null,null,0,"0000000000","0000000000","0000000000","000000000000000000000"]
[null,null,null,null,"",null,null,null,null,null,null,null,null,null,null,null,null,null,null,null,null,null,null,null,null,null,null,null,null,null,null,null,null,null,null,null,null,null,null,null,null,null,null,null,0,"0000000000","0000000000","0000000000","000000000000000000000"]
[null,null,null,null,"",null,null,null,null,null,null,null,null,null,null,null,null,null,null,null,null,null,null,null,null,null,null,null,null,null,null,null,null,null,null,null,null,null,null,null,null,null,null,null,0,"0000000000","0000000000","0000000000","000000000000000000000"]
[null,null,null,null,"",null,null,null,null,null,null,null,null,null,null,null,null,null,null,null,null,null,null,null,null,null,null,null,null,null,null,null,null,null,null,null,null,null,null,null,null,null,null,null,0,"0000000000","0000000000","0000000000","000000000000000000000"]
[null,null,null,null,"",null,null,null,null,null,null,null,null,null,null,null,null,null,null,null,null,null,null,null,null,null,null,null,null,null,null,null,null,null,null,null,null,null,null,null,null,null,null,null,0,"0000000000","0000000000","0000000000","000000000000000000000"]
[null,null,null,null,"",null,null,null,null,null,null,null,null,null,null,null,null,null,null,null,null,null,null,null,null,null,null,null,null,null,null,null,null,null,null,null,null,null,null,null,null,null,null,null,0,"0000000000","0000000000","0000000000","000000000000000000000"]
[null,null,null,null,"",null,null,null,null,null,null,null,null,null,null,null,null,null,null,null,null,null,null,null,null,null,null,null,null,null,null,null,null,null,null,null,null,null,null,null,null,null,null,null,0,"0000000000","0000000000","0000000000","000000000000000000000"]
[null,null,null,null,"",null,null,null,null,null,null,null,null,null,null,null,null,null,null,null,null,null,null,null,null,null,null,null,null,null,null,null,null,null,null,null,null,null,null,null,null,null,null,null,0,"0000000000","0000000000","0000000000","000000000000000000000"]
[null,null,null,null,"",null,null,null,null,null,null,null,null,null,null,null,null,null,null,null,null,null,null,null,null,null,null,null,null,null,null,null,null,null,null,null,null,null,null,null,null,null,null,null,0,"0000000000","0000000000","0000000000","000000000000000000000"]
[null,null,null,null,"",null,null,null,null,null,null,null,null,null,null,null,null,null,null,null,null,null,null,null,null,null,null,null,null,null,null,null,null,null,null,null,null,null,null,null,null,null,null,null,0,"0000000000","0000000000","0000000000","000000000000000000000"]
[null,null,null,null,"",null,null,null,null,null,null,null,null,null,null,null,null,null,null,null,null,null,null,null,null,null,null,null,null,null,null,null,null,null,null,null,null,null,null,null,null,null,null,null,0,"0000000000","0000000000","0000000000","000000000000000000000"]
[null,null,null,null,"",null,null,null,null,null,null,null,null,null,null,null,null,null,null,null,null,null,null,null,null,null,null,null,null,null,null,null,null,null,null,null,null,null,null,null,null,null,null,null,0,"0000000000","0000000000","0000000000","000000000000000000000"]
[null,null,null,null,"",null,null,null,null,null,null,null,null,null,null,null,null,null,null,null,null,null,null,null,null,null,null,null,null,null,null,null,null,null,null,null,null,null,null,null,null,null,null,null,0,"0000000000","0000000000","0000000000","000000000000000000000"]
[null,null,null,null,"",null,null,null,null,null,null,null,null,null,null,null,null,null,null,null,null,null,null,null,null,null,null,null,null,null,null,null,null,null,null,null,null,null,null,null,null,null,null,null,0,"0000000000","0000000000","0000000000","000000000000000000000"]
[null,null,null,null,"",null,null,null,null,null,null,null,null,null,null,null,null,null,null,null,null,null,null,null,null,null,null,null,null,null,null,null,null,null,null,null,null,null,null,null,null,null,null,null,0,"0000000000","0000000000","0000000000","000000000000000000000"]
[null,null,null,null,"",null,null,null,null,null,null,null,null,null,null,null,null,null,null,null,null,null,null,null,null,null,null,null,null,null,null,null,null,null,null,null,null,null,null,null,null,null,null,null,0,"0000000000","0000000000","0000000000","000000000000000000000"]
[null,null,null,null,"",null,null,null,null,null,null,null,null,null,null,null,null,null,null,null,null,null,null,null,null,null,null,null,null,null,null,null,null,null,null,null,null,null,null,null,null,null,null,null,0,"0000000000","0000000000","0000000000","000000000000000000000"]
[null,null,null,null,"",null,null,null,null,null,null,null,null,null,null,null,null,null,null,null,null,null,null,null,null,null,null,null,null,null,null,null,null,null,null,null,null,null,null,null,null,null,null,null,0,"0000000000","0000000000","0000000000","000000000000000000000"]
[null,null,null,null,"",null,null,null,null,null,null,null,null,null,null,null,null,null,null,null,null,null,null,null,null,null,null,null,null,null,null,null,null,null,null,null,null,null,null,null,null,null,null,null,0,"0000000000","0000000000","0000000000","000000000000000000000"]
[null,null,null,null,"",null,null,null,null,null,null,null,null,null,null,null,null,null,null,null,null,null,null,null,null,null,null,null,null,null,null,null,null,null,null,null,null,null,null,null,null,null,null,null,0,"0000000000","0000000000","0000000000","000000000000000000000"]
[null,null,null,null,"",null,null,null,null,null,null,null,null,null,null,null,null,null,null,null,null,null,null,null,null,null,null,null,null,null,null,null,null,null,null,null,null,null,null,null,null,null,null,null,0,"0000000000","0000000000","0000000000","000000000000000000000"]
[null,null,null,null,"",null,null,null,null,null,null,null,null,null,null,null,null,null,null,null,null,null,null,null,null,null,null,null,null,null,null,null,null,null,null,null,null,null,null,null,null,null,null,null,0,"0000000000","0000000000","0000000000","000000000000000000000"]
[null,null,null,null,"",null,null,null,null,null,null,null,null,null,null,null,null,null,null,null,null,null,null,null,null,null,null,null,null,null,null,null,null,null,null,null,null,null,null,null,null,null,null,null,0,"0000000000","0000000000","0000000000","000000000000000000000"]
[null,null,null,null,"",null,null,null,null,null,null,null,null,null,null,null,null,null,null,null,null,null,null,null,null,null,null,null,null,null,null,null,null,null,null,null,null,null,null,null,null,null,null,null,0,"0000000000","0000000000","0000000000","000000000000000000000"]
[null,null,null,null,"",null,null,null,null,null,null,null,null,null,null,null,null,null,null,null,null,null,null,null,null,null,null,null,null,null,null,null,null,null,null,null,null,null,null,null,null,null,null,null,0,"0000000000","0000000000","0000000000","000000000000000000000"]
[null,null,null,null,"",null,null,null,null,null,null,null,null,null,null,null,null,null,null,null,null,null,null,null,null,null,null,null,null,null,null,null,null,null,null,null,null,null,null,null,null,null,null,null,0,"0000000000","0000000000","0000000000","000000000000000000000"]
[null,null,null,null,"",null,null,null,null,null,null,null,null,null,null,null,null,null,null,null,null,null,null,null,null,null,null,null,null,null,null,null,null,null,null,null,null,null,null,null,null,null,null,null,0,"0000000000","0000000000","0000000000","000000000000000000000"]
[null,null,null,null,"",null,null,null,null,null,null,null,null,null,null,null,null,null,null,null,null,null,null,null,null,null,null,null,null,null,null,null,null,null,null,null,null,null,null,null,null,null,null,null,0,"0000000000","0000000000","0000000000","000000000000000000000"]
[null,null,null,null,"",null,null,null,null,null,null,null,null,null,null,null,null,null,null,null,null,null,null,null,null,null,null,null,null,null,null,null,null,null,null,null,null,null,null,null,null,null,null,null,0,"0000000000","0000000000","0000000000","000000000000000000000"]
[null,null,null,null,"",null,null,null,null,null,null,null,null,null,null,null,null,null,null,null,null,null,null,null,null,null,null,null,null,null,null,null,null,null,null,null,null,null,null,null,null,null,null,null,0,"0000000000","0000000000","0000000000","000000000000000000000"]
[null,null,null,null,"",null,null,null,null,null,null,null,null,null,null,null,null,null,null,null,null,null,null,null,null,null,null,null,null,null,null,null,null,null,null,null,null,null,null,null,null,null,null,null,0,"0000000000","0000000000","0000000000","000000000000000000000"]
[null,null,null,null,"",null,null,null,null,null,null,null,null,null,null,null,null,null,null,null,null,null,null,null,null,null,null,null,null,null,null,null,null,null,null,null,null,null,null,null,null,null,null,null,0,"0000000000","0000000000","0000000000","000000000000000000000"]
[null,null,null,null,"",null,null,null,null,null,null,null,null,null,null,null,null,null,null,null,null,null,null,null,null,null,null,null,null,null,null,null,null,null,null,null,null,null,null,null,null,null,null,null,0,"0000000000","0000000000","0000000000","000000000000000000000"]
[null,null,null,null,"",null,null,null,null,null,null,null,null,null,null,null,null,null,null,null,null,null,null,null,null,null,null,null,null,null,null,null,null,null,null,null,null,null,null,null,null,null,null,null,0,"0000000000","0000000000","0000000000","000000000000000000000"]
[null,null,null,null,"",null,null,null,null,null,null,null,null,null,null,null,null,null,null,null,null,null,null,null,null,null,null,null,null,null,null,null,null,null,null,null,null,null,null,null,null,null,null,null,0,"0000000000","0000000000","0000000000","000000000000000000000"]
[null,null,null,null,"",null,null,null,null,null,null,null,null,null,null,null,null,null,null,null,null,null,null,null,null,null,null,null,null,null,null,null,null,null,null,null,null,null,null,null,null,null,null,null,0,"0000000000","0000000000","0000000000","000000000000000000000"]
[null,null,null,null,"",null,null,null,null,null,null,null,null,null,null,null,null,null,null,null,null,null,null,null,null,null,null,null,null,null,null,null,null,null,null,null,null,null,null,null,null,null,null,null,0,"0000000000","0000000000","0000000000","000000000000000000000"]
[null,null,null,null,"",null,null,null,null,null,null,null,null,null,null,null,null,null,null,null,null,null,null,null,null,null,null,null,null,null,null,null,null,null,null,null,null,null,null,null,null,null,null,null,0,"0000000000","0000000000","0000000000","000000000000000000000"]
[null,null,null,null,"",null,null,null,null,null,null,null,null,null,null,null,null,null,null,null,null,null,null,null,null,null,null,null,null,null,null,null,null,null,null,null,null,null,null,null,null,null,null,null,0,"0000000000","0000000000","0000000000","000000000000000000000"]
[null,null,null,null,"",null,null,null,null,null,null,null,null,null,null,null,null,null,null,null,null,null,null,null,null,null,null,null,null,null,null,null,null,null,null,null,null,null,null,null,null,null,null,null,0,"0000000000","0000000000","0000000000","000000000000000000000"]
[null,null,null,null,"",null,null,null,null,null,null,null,null,null,null,null,null,null,null,null,null,null,null,null,null,null,null,null,null,null,null,null,null,null,null,null,null,null,null,null,null,null,null,null,0,"0000000000","0000000000","0000000000","000000000000000000000"]
[null,null,null,null,"",null,null,null,null,null,null,null,null,null,null,null,null,null,null,null,null,null,null,null,null,null,null,null,null,null,null,null,null,null,null,null,null,null,null,null,null,null,null,null,0,"0000000000","0000000000","0000000000","000000000000000000000"]
[null,null,null,null,"",null,null,null,null,null,null,null,null,null,null,null,null,null,null,null,null,null,null,null,null,null,null,null,null,null,null,null,null,null,null,null,null,null,null,null,null,null,null,null,0,"0000000000","0000000000","0000000000","000000000000000000000"]
[null,null,null,null,"",null,null,null,null,null,null,null,null,null,null,null,null,null,null,null,null,null,null,null,null,null,null,null,null,null,null,null,null,null,null,null,null,null,null,null,null,null,null,null,0,"0000000000","0000000000","0000000000","000000000000000000000"]
[null,null,null,null,"",null,null,null,null,null,null,null,null,null,null,null,null,null,null,null,null,null,null,null,null,null,null,null,null,null,null,null,null,null,null,null,null,null,null,null,null,null,null,null,0,"0000000000","0000000000","0000000000","000000000000000000000"]
[null,null,null,null,"",null,null,null,null,null,null,null,null,null,null,null,null,null,null,null,null,null,null,null,null,null,null,null,null,null,null,null,null,null,null,null,null,null,null,null,null,null,null,null,0,"0000000000","0000000000","0000000000","000000000000000000000"]
[null,null,null,null,{"$f":"CONCATENATE(A10069,(IF(B10069<>\"\",\"/\",\"\")),B10069,(IF(C10069<>\"\",\"/\",\"\")),C10069,(IF(D10069<>\"\",\"/\",\"\")),D10069)","v":""},null,null,null,null,null,null,null,null,null,null,null,null,null,null,null,null,null,null,null,null,null,null,null,null,null,null,null,null,null,null,null,null,null,null,null,null,null,null,null,{"$f":"A10069","v":0},{"$f":"IF(B10069=\"\",\"0000000000\",RIGHT(\"0000000000\"&B10069,10))","v":"0000000000"},{"$f":"IF(C10069=\"\",\"0000000000\",RIGHT(\"0000000000\"&C10069,10))","v":"0000000000"},{"$f":"IF(D10069=\"\",\"0000000000\",RIGHT(\"0000000000\"&D10069, 10))","v":"0000000000"},{"$f":"CONCATENATE(AS10069,AT10069,AU10069,D10069,)","v":"000000000000000000000"}]
[null,null,null,null,"",null,null,null,null,null,null,null,null,null,null,null,null,null,null,null,null,null,null,null,null,null,null,null,null,null,null,null,null,null,null,null,null,null,null,null,null,null,null,null,0,"0000000000","0000000000","0000000000","000000000000000000000"]
[null,null,null,null,"",null,null,null,null,null,null,null,null,null,null,null,null,null,null,null,null,null,null,null,null,null,null,null,null,null,null,null,null,null,null,null,null,null,null,null,null,null,null,null,0,"0000000000","0000000000","0000000000","000000000000000000000"]
[null,null,null,null,"",null,null,null,null,null,null,null,null,null,null,null,null,null,null,null,null,null,null,null,null,null,null,null,null,null,null,null,null,null,null,null,null,null,null,null,null,null,null,null,0,"0000000000","0000000000","0000000000","000000000000000000000"]
[null,null,null,null,"",null,null,null,null,null,null,null,null,null,null,null,null,null,null,null,null,null,null,null,null,null,null,null,null,null,null,null,null,null,null,null,null,null,null,null,null,null,null,null,0,"0000000000","0000000000","0000000000","000000000000000000000"]
[null,null,null,null,"",null,null,null,null,null,null,null,null,null,null,null,null,null,null,null,null,null,null,null,null,null,null,null,null,null,null,null,null,null,null,null,null,null,null,null,null,null,null,null,0,"0000000000","0000000000","0000000000","000000000000000000000"]
[null,null,null,null,"",null,null,null,null,null,null,null,null,null,null,null,null,null,null,null,null,null,null,null,null,null,null,null,null,null,null,null,null,null,null,null,null,null,null,null,null,null,null,null,0,"0000000000","0000000000","0000000000","000000000000000000000"]
[null,null,null,null,"",null,null,null,null,null,null,null,null,null,null,null,null,null,null,null,null,null,null,null,null,null,null,null,null,null,null,null,null,null,null,null,null,null,null,null,null,null,null,null,0,"0000000000","0000000000","0000000000","000000000000000000000"]
[null,null,null,null,"",null,null,null,null,null,null,null,null,null,null,null,null,null,null,null,null,null,null,null,null,null,null,null,null,null,null,null,null,null,null,null,null,null,null,null,null,null,null,null,0,"0000000000","0000000000","0000000000","000000000000000000000"]
[null,null,null,null,"",null,null,null,null,null,null,null,null,null,null,null,null,null,null,null,null,null,null,null,null,null,null,null,null,null,null,null,null,null,null,null,null,null,null,null,null,null,null,null,0,"0000000000","0000000000","0000000000","000000000000000000000"]
[null,null,null,null,"",null,null,null,null,null,null,null,null,null,null,null,null,null,null,null,null,null,null,null,null,null,null,null,null,null,null,null,null,null,null,null,null,null,null,null,null,null,null,null,0,"0000000000","0000000000","0000000000","000000000000000000000"]
[null,null,null,null,"",null,null,null,null,null,null,null,null,null,null,null,null,null,null,null,null,null,null,null,null,null,null,null,null,null,null,null,null,null,null,null,null,null,null,null,null,null,null,null,0,"0000000000","0000000000","0000000000","000000000000000000000"]
[null,null,null,null,"",null,null,null,null,null,null,null,null,null,null,null,null,null,null,null,null,null,null,null,null,null,null,null,null,null,null,null,null,null,null,null,null,null,null,null,null,null,null,null,0,"0000000000","0000000000","0000000000","000000000000000000000"]
[null,null,null,null,"",null,null,null,null,null,null,null,null,null,null,null,null,null,null,null,null,null,null,null,null,null,null,null,null,null,null,null,null,null,null,null,null,null,null,null,null,null,null,null,0,"0000000000","0000000000","0000000000","000000000000000000000"]
[null,null,null,null,"",null,null,null,null,null,null,null,null,null,null,null,null,null,null,null,null,null,null,null,null,null,null,null,null,null,null,null,null,null,null,null,null,null,null,null,null,null,null,null,0,"0000000000","0000000000","0000000000","000000000000000000000"]
[null,"End of data store",null,null,null,"End of data store",null,null,null,null,null,null,null,null,null,null,null,"End of data store",null,null,null,null,null,null,null,"End of data store",null,null,null,null,null,null,null,"End of data store",null,null,null,null,null,null,null,null,null,null,"End of data store",null,null,null,"End of data store"]

{"sheet":"Public Access","index":2,"n_rows":2,"n_cols":28,"rows_kept":2,"cut":false,"hidden":false,"merged":[]}
["Ref Level 1","Ref Level 2","Ref Level 3","Ref Level 4","Full Reference","Level","Title","Creator","Description","Dates","Extent","Original/Copy","Access Conditions","Copyright","Language","Subject 1","Subject 2","Subject 3","Place 1","Place 2","Place 3","Name 1","Name 2 ","Name 3","Genre 1","Genre 2","Genre 3","Public Notes"]
["AM",null,null,null,{"$f":"CONCATENATE(A2,(IF(B2<>\"\",\"/\",\"\")),B2,(IF(C2<>\"\",\"/\",\"\")),C2,(IF(D2<>\"\",\"/\",\"\")),D2)","v":"AM"},"Collection","Ann Meakin","SLC","Martham and local History","2021-01-04","Multiple folders and storage boxes? Number."]

{"sheet":"LookUpCopy","index":3,"n_rows":5,"n_cols":3,"rows_kept":5,"cut":false,"hidden":true,"merged":[]}
["Original/Copy","Level","AllLevels"]
["Original","Series","Collection"]
["Copy in private hands","File","Series"]
["Copy in public domain","Item","File"]
[null,null,"Item"]

{"sheet":"LookUpSubjects","index":4,"n_rows":1660,"n_cols":1,"rows_kept":1660,"cut":false,"hidden":false,"merged":[]}
["Subjects"]
["Abbeys"]
["Abortion"]
["Accidents"]
["Accordions"]
["Accountancy"]
["Accounts"]
["Acting"]
["Actors"]
["Admiralty"]
["Adolescence"]
["Advertising"]
["Advice"]
["Advice, Maternal"]
["Aeroplanes"]
["Afghanistan"]
["Africa - Foreign relations"]
["African American"]
["Agricultural Crops"]
["Agricultural machinery"]
["Agriculture"]
["Agriculture - Community"]
["Agriculture - Great Britain"]
["Agriculture - Rabbit farming"]
["Agriculture - Sheep farming"]
["AIDS"]
["Air pilots"]
["Air pollution"]
["Aircraft industry - Great Britain - Reminiscences"]
["Aircraft industry - Military aspects - Great Britain"]
["Airports"]
["Alchemy"]
["Alcohol - Effects"]
["Alcoholic Beverages, Drinking of"]
["Alcoholism"]
["Aldermen"]
["Ale"]
["Alehouses"]
["Algerian conflict, 1954-1962"]
["Aliens"]
["Almshouses"]
["Amateur theatre - Great Britain"]
["Ambassadors"]
["Ambulance services"]
["Amusements - Great Britain"]
["Anger"]
["Anglican Church"]
["Animal welfare"]
["Animals"]
["Anorexia nervosa"]
["Anthropology"]
["Antiquarian books"]
["Antiquarian/Antiquaries"]
["Antiques"]
["Antisocial Behaviour and Disorder"]
["Apartheid"]
["Apprentices/Apprenticeships"]
["Arbitration, Arbitrator"]
["Archaeology"]
["Archaeology - Great Britain"]
["Archers"]
["Archery"]
["Architects"]
["Architecture"]
["Architecture -- Conservation and restoration -- Great Britain"]
["Architecture, British"]
["Architecture, British - Ecclesiastical architecture"]
["Archives"]
["Armed Forces"]
["Armed forces - Great Britain"]
["Armorial Bearings"]
["Armour"]
["Arms trade - Great Britain"]
["Army"]
["Arrest"]
["Arson"]
["Art"]
["Art - 20th century"]
["Art - Great Britain"]
["Art - Great Britain - 21st century"]
["Art - Scotland"]
["Art and colour"]
["Art and landscape"]
["Art and politics"]
["Art criticism"]
["Art education"]
["Art, abstract"]
["Art, Artists"]
["Art, British"]
["Art, Chinese"]
["Art, Drawings"]
["Art, German - 20th century"]
["Art, Hindu - Classical"]
["Art, Hindu - Popular"]
["Art, Islamic"]
["Art, Scottish"]
["Art, Welsh"]
["Artillery"]
["Artists"]
["Arts - Administration"]
["Arts festivals"]
["Arts funding - Great Britain"]
["Assault"]
["Assizes"]
["Astrology"]
["Astronomy"]
["Astrophysics"]
["Athletics"]
["Atmospheric physics"]
["Autographs"]
["Automobile Association"]
["Aversion"]
["Aviation"]
["Avionics"]
["Badgers"]
["Bagpipes"]
["Bailiffs"]
["Bailiffs, Estate"]
["Bakers"]
["Baking"]
["Ballet"]
["Bankruptcy"]
["Banks and banking"]
["Baptism"]
["Barley"]
["Basset-horns"]
["Battles"]
["Battles, Naval"]
["Beauty"]
["Beer"]
["Beer drinking"]
["Bell-ringing"]
["Bells, Church"]
["Benediction"]
["Bereavement"]
["Berlin Wall - Dismantling, 1989"]
["Betrothal"]
["Beverages"]
["Bicycles"]
["Biography"]
["Biography - Politicians"]
["Biological diversity"]
["Biomedical industry"]
["Bird sounds"]
["Bird sounds - Vocal copying"]
["Bird watching"]
["Birds"]
["Birds - Eggs and nests"]
["Birds - Migratory"]
["Birds - Seabirds"]
["Birds - Social behaviour"]
["Birds, garden - Identification"]
["Bishop of Norwich"]
["Black community - Great Britain"]
["Black community - Great Britain - Arts"]
["Black feminism"]
["Blacksmiths"]
["Blitz"]
["Boatbuilding"]
["Boats"]
["Boer War, 1899-1902"]
["Books and Reading"]
["Bootmaker"]
["Botanic gardens"]
["Botany"]
["Bowman's Charity"]
["Boxers"]
["Boxing"]
["Boy Scouts"]
["Boys' clubs"]
["Brass bands"]
["Brass bands - History"]
["Brass instrument players"]
["Bread "]
["Brewing - History"]
["Brewing, Brewers"]
["Bribery"]
["Brickmaking"]
["Bridges"]
["Bridges - England"]
["British Empire"]
["British Empire - Legacy"]
["British Union of Fascists"]
["Bronze Age"]
["Bubonic Plague"]
["Builders"]
["Building "]
["Building services"]
["Buildings"]
["Buildings, Repairs and Reconstruction"]
["Burma - British rule, 1824-1948"]
["Buses"]
["Business finance"]
["Business methods - Great Britain"]
["Butchers"]
["Cafés"]
["Campaign for Nuclear Disarmament"]
["Cancer"]
["Canoeing"]
["Capital punishment"]
["Capitalism"]
["Car factories"]
["Car safety"]
["Caravanning"]
["Card Games"]
["Carding"]
["Caribbean community - Great Britain"]
["Caribbean culture"]
["Caricatures"]
["Carpenters"]
["Carpentry"]
["Cars"]
["Cartography"]
["Carts"]
["Cartularies"]
["Castles"]
["Cathedrals"]
["Catholic Church"]
["Catholicism"]
["Cattle"]
["Celebrations"]
["Cemeteries, Churchyards"]
["Censorship"]
["Census"]
["Cerebral palsy"]
["Channel Tunnel"]
["Chantries"]
["Chapels"]
["Chaplains"]
["Charitable Bequests"]
["Charity"]
["Charters"]
["Chauffeurs"]
["Cheese"]
["Chemical industry"]
["Chernobyl' (Ukraine) - Nuclear reactor disaster, 1986"]
["Chess"]
["Child abuse"]
["Child Care"]
["Child labour"]
["Child Rearing"]
["Child Support Agency"]
["Childbirth"]
["Childhood"]
["Childhood - Reminiscences"]
["Children"]
["Children, Discipline of"]
["Children's games"]
["Children's literature"]
["Children's pastimes"]
["Children's songs"]
["Choral music"]
["Christian church"]
["Christian communities"]
["Christianity"]
["Christmas"]
["Chronicle, Chronicles"]
["Church Architecture"]
["Church Buildings"]
["Church services"]
["Church Terriers"]
["Churches"]
["Churchwardens"]
["Churchyard"]
["Cinema"]
["Cinemas - Attendance"]
["Cinematography"]
["Ciphers"]
["Circuses"]
["City of London"]
["Civil Defence"]
["Civil rights"]
["Civil rights - Great Britain"]
["Civil service"]
["Civil War"]
["Clairvoyance"]
["Clergy"]
["Clerical work"]
["Clocks"]
["Cloth"]
["Cloth Manufacture, Cloth Trade "]
["Clothing"]
["Clothing and dress"]
["Coaches and Carriages "]
["Coal industries"]
["Coal mining"]
["Coast"]
["Coastal Defence"]
["Coastal Raids"]
["Coercion"]
["Coffee"]
["Coffee Houses"]
["Cold War"]
["Collectors and collecting - Great Britain"]
["Colleges of priests"]
["Colonialism"]
["Colonialism, British"]
["Combat"]
["Comedians"]
["Comedy"]
["Common Agricultural Policy of the EEC"]
["Commons"]
["Commonwealth of Nations"]
["Communes"]
["Communism"]
["Community"]
["Community arts projects"]
["Community centres"]
["Community development"]
["Community opera"]
["Community poetry projects"]
["Community radio"]
["Community singing"]
["Community theatre projects"]
["Complaints (Rhetoric)"]
["Composers"]
["Computer games"]
["Computers"]
["Concentration camps, Nazi"]
["Concorde (Jet transports)"]
["Conscientious objectors"]
["Consciousness"]
["Conservative Party (Great Britain)"]
["Conspiracy"]
["Constables"]
["Construction industry - Great Britain - Reminiscences"]
["Consumers"]
["Consumption (Disease)"]
["Contraception"]
["Conveyancing"]
["Cookery"]
["Cooks"]
["Co-operative societies - Great Britain"]
["Coopers and cooperage"]
["Copper mining"]
["Cordwainer"]
["Corn/Flour Merchant"]
["Cornwall"]
["Coronations"]
["Coroners"]
["Corporate planning"]
["Correspondence"]
["Corruption"]
["Cottages"]
["Cotton industry"]
["Cotton industry - Great Britain"]
["council, county"]
["council, district"]
["council, local"]
["council, parish"]
["council, rural district"]
["council, urban district"]
["Court Proceedings"]
["Courtly love"]
["Courts"]
["Courtship"]
["Crewe Junction"]
["Cricket"]
["Crime"]
["Crime - Burglary"]
["Crime and the law"]
["Crime victims"]
["Criminal prosecutions"]
["Criminals - Punishment"]
["Criminals - Surveillance"]
["Criminology"]
["Crocheting"]
["Crofts, crofters and crofting"]
["Cultural politics"]
["Customs"]
["Customs - Wassailing"]
["Customs and Manners"]
["Customs Duty"]
["Customs Farming"]
["Cycling"]
["Dairy farming - England"]
["Dairy products"]
["Dance - History - 20th century"]
["Dance - Social aspects"]
["Dance bands, British"]
["Dance in motion pictures, television, etc."]
["Dance, African"]
["Dance, Caribbean"]
["Dance, Indian"]
["Dance, Irish"]
["Dance, modern"]
["Dance, Scottish"]
["Dances, Irish"]
["Dancing"]
["Deafness"]
["Death"]
["Debt"]
["Defence"]
["Democracy"]
["Demonstrations"]
["Dentistry"]
["Depression, Mental"]
["Deputy Lieutenants"]
["Detectives, private"]
["Developing countries"]
["Developing countries - Foreign assistance, Chinese"]
["Diabetes"]
["Dialect"]
["Dialect - Study and teaching"]
["Dictatorships"]
["Diet"]
["Digital cinematography"]
["Dinosaurs"]
["Diplomatic and consular service"]
["Diplomats"]
["Disabled"]
["Disabled - Access and mobility"]
["Disabled - Care"]
["Disabled - Civil rights"]
["Disabled - Facilities"]
["Disease"]
["Dispute Resolution (Law)"]
["Disputes"]
["Dissidents"]
["Distraint"]
["Diversity"]
["DIY"]
["DNA"]
["Docks - London"]
["Docks - Reminiscences"]
["Doctors - General practice"]
["Dogs"]
["Dolls"]
["Domestic life"]
["Domestic Service"]
["Domestic violence"]
["Dovecot"]
["Dowry"]
["Drainage"]
["Drapers"]
["Driving"]
["Driving tests"]
["Drug policies"]
["Drugs"]
["Drummers"]
["Drums"]
["Drunkenness"]
["Duels"]
["Dutch (People and Cultural Identity)"]
["Dwellings"]
["Dyes and dyeing - Textiles"]
["Early music"]
["Earthquakes"]
["East Anglian flood disaster, 1953"]
["Easter"]
["Ecology"]
["Economic development"]
["Economic development - Environmental aspects"]
["Economic policy"]
["Economic recession - Great Britain - 1990-"]
["Economics"]
["Economics - Moral and ethical aspects"]
["Economy"]
["Education"]
["Education - Great Britain"]
["Education - Great Britain - Funding"]
["Education - Scotland"]
["Education - United States"]
["Education, adult"]
["Education, compulsory - Great Britain"]
["Education, further"]
["Education, religious"]
["Election Campaigns"]
["Elections"]
["Electricity"]
["Electricity industry"]
["Electronic commerce"]
["Electronics"]
["Emergency management"]
["Emergency services"]
["Emigration"]
["Employment"]
["Employment - Great Britain - 1990-1999"]
["Enclosure"]
["Energy - conservation"]
["Energy sources"]
["Engineering"]
["Engineers"]
["English (People and Cultural Identity)"]
["English choral singing"]
["English folk songs and music"]
["English folk songs and music (Norfolk)"]
["English language"]
["English language - Dialects"]
["Entertaining"]
["Entertainments"]
["Entrepreneurs"]
["Environment"]
["Environmental issues"]
["Epidemics"]
["Escheator"]
["Estate Accounts"]
["Estate Improvements"]
["Estate Management"]
["Ethics"]
["Ethnomusicology"]
["Eucharist"]
["Europe"]
["Europe - Communism"]
["European Economic Community"]
["European Economic Community - Single European Currency"]
["European federation"]
["European Union"]
["Examinations"]
["Exchequer"]
["Excise"]
["Excise Farming"]
["Executions"]
["Executors and Administrators"]
["Exercise, Physical"]
["Exploration and discovery"]
["Export marketing - Great Britain"]
["Extortion"]
["Extrasensory perception"]
["Eye diseases and disorders"]
["Factories"]
["Factories - Sounds"]
["Fairgrounds"]
["Fairies"]
["Fairs"]
["Falconry"]
["Falkland Islands War, 1982"]
["Families"]
["Family businesses"]
["Family history"]
["Family life"]
["Family life - Great Britain"]
["Family life - Ireland"]
["Family Relationships"]
["Family reunions"]
["Family Trusts"]
["Famine - Developing countries"]
["Fanatics"]
["Farmers"]
["Farming - England"]
["Farming - Northern Ireland"]
["Farming - Scotland"]
["Farming - Wales"]
["Farms"]
["Farmworkers"]
["Farmworkers - East Anglia"]
["Fascism - Great Britain"]
["Fashion"]
["Fear"]
["Female models"]
["Feminism"]
["Feminism - Anti-Feminism"]
["Feminism and art"]
["Feminist literature"]
["Feminist poetry"]
["Fences, Fencing"]
["Festivals - Great Britain - The Festival of Britain (1951)"]
["Fiction"]
["Fiddle playing, English"]
["Film adaptations"]
["Film documentaries"]
["Film industry"]
["Film industry - Great Britain"]
["Film industry - Scotland"]
["Film industry - United States"]
["Film music"]
["Films"]
["Films - Censorship"]
["Films - Directors"]
["Films - Gay and lesbian representation"]
["Films - Great Britain"]
["Films - History"]
["Films - Independent film makers"]
["Films - Producers"]
["Films - Production and direction"]
["Films - Production techniques"]
["Films - Russia"]
["Films - Script writing"]
["Films - Social impact"]
["Films - sound recording"]
["Finance"]
["Finance, international, and moralities"]
["Finance, Personal"]
["Financial services industry - Employees"]
["Financial services industry - Great Britain"]
["Fire"]
["Fire services"]
["Fires"]
["First aid"]
["Fish"]
["Fish and chips"]
["Fish Ponds"]
["Fishermen"]
["Fishing"]
["Fishing - Mussel fishing"]
["Fishing industry"]
["Fishing industry - Reminiscences"]
["Fishing industry - Scotland"]
["Fishing Rights"]
["Flamenco music"]
["Flemish, Flemings (People and Cultural Identity)"]
["Floods"]
["Floods - Great Britain"]
["Flute playing"]
["Foldcourse"]
["Folk dances"]
["Folk songs and music"]
["Folk songs and music - Collectors and collecting"]
["Folk songs and music - Performance"]
["Folklore"]
["Folklore, Channel Islands"]
["Folklore, English"]
["Folklore, Irish"]
["Folklore, Welsh"]
["Food"]
["Food - Preservation"]
["Food - Scotland"]
["Food and society"]
["Food habits - Great Britain - History - 20th century"]
["Food hygiene"]
["Food industry"]
["Food industry - Machines - Canning machines"]
["Foot-and-mouth disease - England"]
["Football"]
["Football - Referees - Women"]
["Football clubs - Leeds Football Club"]
["Football clubs - Manchester United Football Club"]
["Football clubs - Newcastle United Football Club"]
["Football pools winners"]
["Football supporters"]
["Footpaths"]
["Forcible Entry"]
["Foreign Affairs"]
["Forest fires - Prevention and control"]
["Forestry"]
["Forgery"]
["Foster families"]
["Foster home care"]
["Fostering"]
["Fowling"]
["France"]
["Freedom"]
["freemansonry"]
["Freemasonry"]
["Freight trains"]
["French (People and Cultural Identity)"]
["French Language"]
["Freshwater pollution"]
["Friaries"]
["Friars"]
["Friendly societies"]
["Friendship"]
["Fruit"]
["Funeral rites and ceremonies"]
["Funerals"]
["Funerals - Customs and superstitions"]
["Furniture"]
["Furniture industry and trade"]
["Gaelic language"]
["Gaelic language, Irish"]
["Gaelic language, Scottish"]
["Gambling"]
["Game"]
["Games"]
["Garden Party"]
["Gardeners"]
["Gardening"]
["Gardens"]
["Gay culture"]
["Gay rights"]
["Genealogy"]
["General strike, 1926"]
["Genetics"]
["Gentry"]
["Geology"]
["Georgia"]
["Germany"]
["Germany (East)"]
["Germany (West)"]
["Gerontology"]
["Ghana"]
["Ghost stories"]
["Ghosts"]
["Giant's Causeway"]
["Gifts"]
["Girl guides"]
["Glasgow"]
["Glasgow - Markets - The Barras"]
["Glassware"]
["Glebe Land"]
["Gliding and soaring"]
["Global environmental change"]
["Globalization"]
["God"]
["Gold"]
["Golf"]
["Gout"]
["Government and the press"]
["Grand Tours (Education)"]
["Great Britain"]
["Great Britain - Armed forces"]
["Great Britain - Communism"]
["Great Britain - Constitution"]
["Great Britain - Economy"]
["Great Britain - Foreign relations"]
["Great Britain - Government"]
["Great Britain - History"]
["Great Britain - History - 13th century"]
["Great Britain - History - 16th century"]
["Great Britain - History - 1837-1901"]
["Great Britain - History - 18th century"]
["Great Britain - History - 1910-1919"]
["Great Britain - History - 1920-1929"]
["Great Britain - History - 1930-1939"]
["Great Britain - History - 1940-1949"]
["Great Britain - History - 1950-1959"]
["Great Britain - History - 1960-1969"]
["Great Britain - History - 1970-1979"]
["Great Britain - History - 1980-1989"]
["Great Britain - History - 1990-1999"]
["Great Britain - History - 20th century"]
["Great Britain - History - Anglo-Saxon period, 449-1066"]
["Great Britain - History - Roman occupation"]
["Great Britain - Industries"]
["Great Britain - Local government"]
["Great Britain - Military policy"]
["Great Britain - Penal system"]
["Great Britain - Politics"]
["Great Britain - Religion - Buddhism"]
["Great Britain - Religion - Christianity"]
["Great Britain - Religion - Hinduism"]
["Great Britain - Religion - Islam"]
["Great Britain - Religion - Judaism"]
["Great Britain - Religion - Sikhism"]
["Great Britain - Religious life and customs"]
["Great Britain - Riots, 1981"]
["Great Britain - Stately homes"]
["Great Britain. Army - Recruitment"]
["Great Britain. Foreign and Commonwealth Office"]
["Great Britain. National Health Service"]
["Great Britain. Parliament. General Elections, 1970"]
["Great Britain. Parliament. General Elections, 1992"]
["Great Britain. Royal Navy"]
["Great Britain. Scottish Home and Health Department"]
["Great Britain. Scottish Home Department"]
["Great Yarmouth (England)"]
["Greece"]
["Grief"]
["Guernsey"]
["Guilds"]
["Gulf War"]
["Guns"]
["Gurkha regiments"]
["Gurkhas"]
["Hagiography"]
["Hairdressing"]
["Handicrafts"]
["Handicrafts - Weaving"]
["Hansom cab"]
["Happiness"]
["Harbours"]
["Harpists"]
["Harps"]
["Hartley colliery disaster, 1862"]
["Harvest"]
["Hat making"]
["Hats"]
["Hawick (Scotland)"]
["Hawking - Reminiscences"]
["Hawks"]
["Health"]
["Health education"]
["Health resorts -- History"]
["Hearing disorders"]
["Hell's Angels"]
["Herrings"]
["High Steward"]
["Highwaymen"]
["Hiring fairs"]
["Historical reenactments - Great Britain"]
["History education"]
["HIV healthcare and public services"]
["Holiday camps"]
["Holidays - Reminiscences"]
["Holy Wells"]
["Home life - Great Britain"]
["Homelessness"]
["Homosexuality"]
["Homosexuals - History"]
["Hop-picking"]
["Horse racing"]
["Horse racing - Trainers"]
["Horses"]
["Horticulture"]
["Horticulture - Allotments"]
["Hospitals"]
["Hotel managers"]
["Hotels - Reminiscences"]
["House Furnishings"]
["House of Industry"]
["Household Accounts"]
["Household Management"]
["Households"]
["Housekeepers"]
["Houses of Parliament"]
["Housing"]
["Housing - Great Britain"]
["Hovercraft"]
["Human behaviour"]
["Human nature"]
["Human rights"]
["Hunting"]
["Hunting - Foxhunting"]
["Husbandman"]
["Hypnotism"]
["Identity"]
["Illegitimacy"]
["Illness"]
["Immigrants, Italian"]
["Immigration"]
["Impeachments"]
["Imperialism, 20th century"]
["Impressing of Seamen, Press Gang"]
["Inclosure Award"]
["Income"]
["India"]
["India - British rule, 1765-1947"]
["India - Independence, 1947"]
["India - Partition, 1947"]
["India. Army - British rule, 1765-1947 - British regiments"]
["India. Army - British rule, 1765-1947 - Reminiscences"]
["Industrial action"]
["Industrial action - British Leyland Motor Corporation, Cowley, 1983"]
["Industrial action - Coal miners, 1926"]
["Industrial archaeology"]
["Industrial Revolution - Great Britain"]
["Industrial safety"]
["Industry"]
["Inequality in society"]
["Infertility"]
["Inflation (Finance)"]
["Influence, Undue"]
["Influenza"]
["Information technology"]
["Informers"]
["Inheritance and Succession"]
["Injuries"]
["Inns"]
["Inquisitions Post Mortem"]
["Inspiration in the arts"]
["Installations"]
["Insurance"]
["Interior Decoration"]
["Interior design"]
["International economic relations"]
["International relations"]
["Internet"]
["Internet marketing"]
["Interpersonal relations in adolescence"]
["Interpersonal Relationsinships"]
["Invasion"]
["Inventing"]
["Inventories"]
["Investments"]
["Iraq"]
["Iraq War, 2003-"]
["Ireland"]
["Ireland - Arts"]
["Ireland - Border regions"]
["Ireland - Cultural identity"]
["Ireland - History"]
["Ireland - History - 19th century"]
["Ireland - Music"]
["Ireland - Potato crop"]
["Irish folk songs and music"]
["Irish singing styles"]
["Irish Unification Question"]
["Iron industry"]
["Israel"]
["Italy"]
["Jamaica"]
["Jazz"]
["Jealousy"]
["Jewellery"]
["Jews - Great Britain"]
["Journalism"]
["Jousting"]
["Judiciary - Great Britain"]
["Jury"]
["Justice, Administration of"]
["Justices of the Peace"]
["Kenya"]
["Kings"]
["Kitchenalia"]
["Kitchens"]
["Knights and Knighthood"]
["Korean War, 1950-1953"]
["Labour Exchanges"]
["Labour Party (Great Britain)"]
["Lace-making"]
["Ladies' football"]
["Land Ownership, Land Tenure"]
["Land speed record"]
["Land use - Great Britain"]
["Landscapes"]
["Landscapes - England"]
["Language and languages"]
["Language in art criticism"]
["Latin America"]
["Latin language"]
["Law"]
["Law - England"]
["Law - Scotland"]
["Lawsuits"]
["Lawyers"]
["Lead mining"]
["Learning disabilities"]
["Leases"]
["Leather industry and trade"]
["Leeds"]
["Legacies"]
["Legal Procedure"]
["Legal system - Great Britain"]
["Leisure"]
["Leisure activities"]
["Lesbians"]
["Letters"]
["Letters Patent"]
["Leukaemia"]
["Libel and Slander"]
["Liberal Party (Great Britain)"]
["Librarianship"]
["Libraries"]
["Libraries - Academic"]
["Lifeboat service - Great Britain"]
["Lifeboats"]
["Lighthouses"]
["Lincolnshire (England)"]
["Lingerie"]
["Liquor laws - Great Britain"]
["Literature"]
["Literature - Criticism"]
["Literature - Scotland"]
["Literature in English"]
["Literature in English - Welsh writers"]
["Live art, devised performance"]
["Livery"]
["Livestock"]
["Lloyd's (Firm)"]
["Loans"]
["Local authority housing"]
["Local government"]
["Local government - Scotland"]
["Locomotives"]
["Locomotives - Steam"]
["London"]
["London - Transport"]
["London Bridge"]
["Love"]
["Love stories"]
["Maastricht Treaty"]
["Madrigals"]
["Magic"]
["Magicians"]
["Make-up"]
["Male voice choirs"]
["Malt"]
["Manorial Courts"]
["Manorial Customs"]
["Manorial Lordships"]
["Manorial Tenants"]
["Manorial Tenure"]
["Manors"]
["Manufacturing industries - Great Britain"]
["Maps"]
["Market research"]
["Marketing"]
["Markets"]
["Markets "]
["Marriage"]
["Marriage - Proposals - Reminiscences"]
["Marriage Customs and Rites"]
["Marriage Settlements"]
["Marriage, Husband-Wife Relationship"]
["Marriages, arranged"]
["Marshes"]
["Marxism"]
["Maternity leave - Law and legislation - Great Britain"]
["Mathematics"]
["Mayor of Norwich"]
["Mayors"]
["Meat"]
["Meat industry and trade"]
["Mechanical engineering"]
["Media"]
["Medical care"]
["Medical education - Great Britain"]
["Medical practise"]
["Medicine"]
["Medicine - Herbal remedies"]
["Medicine - Research"]
["Medicine, folk"]
["Medicines (Drugs)"]
["Meetings"]
["Members of Parliament"]
["Menstruation"]
["Mental health services - England"]
["Mental illness"]
["Merchants"]
["Methodism"]
["Microcomputers"]
["Midwifery"]
["Midwives, Midwifery"]
["Migration"]
["Migration and social integration"]
["Military Defeats"]
["Military Service"]
["Militia"]
["Milling"]
["Mills and milling - History, technology and reminiscences"]
["Mills, Drainage, Water and Wind"]
["Mines, Mining "]
["Missing persons"]
["Missionaries"]
["Missionaries - Reminiscences"]
["Molly dancing"]
["Monarchy, British"]
["Money"]
["Monks"]
["Monsters"]
["Moralities"]
["Morris dancing"]
["Mortgages"]
["Motor racing"]
["Motorcycle racing"]
["Motorcycles"]
["Motoring"]
["Motorways"]
["Mourning"]
["Mouth music"]
["Mouth-organs"]
["Multi-cultural society - Great Britain"]
["Multiculturalism"]
["Multimedia"]
["Mummers' plays"]
["Municipal Officers and Employees"]
["Murders"]
["Museums"]
["Music"]
["Musical Instruments"]
["Musicals"]
["Music-halls (Variety theatres, cabarets, etc.)"]
["Musicians"]
["Myth - History"]
["Myths"]
["Myxomatosis"]
["Narrow boats"]
["National minimum wage - Great Britain"]
["National parks - UK"]
["National service"]
["Native peoples"]
["Navy, Naval"]
["Negotiation"]
["New business enterprises"]
["New towns"]
["New wave music"]
["New York (N.Y.)"]
["News and current affairs programmes"]
["News and Gossip"]
["Newsreels"]
["Night clubs"]
["Noise pollution"]
["Nonconformists, Nonconformity"]
["Norfolk (England, UK)"]
["Norfolk Broads"]
["Norfolk Coast"]
["Norfolk culture"]
["Norfolk History"]
["Norfolk Industries"]
["Norfolk Life"]
["Northern Ireland - Belfast - Protestants"]
["Northern Ireland - Cultural identity"]
["Northern Ireland - Dundonald - Protestants"]
["Northern Ireland - Education"]
["Northern Ireland - Lurgan - Protestants"]
["Northern Ireland - Musical life"]
["Northern Ireland - Poetry"]
["Northern Ireland - Politics and government"]
["Northern Ireland - Protestant/Catholic relations"]
["Northern Ireland - Republicanism"]
["Northern Ireland - Sectarianism"]
["Northern Ireland - Social life and customs"]
["Northern Ireland conflict, 1969-"]
["Northern Ireland conflict, 1969- - Artistic response"]
["Northern Ireland conflict, 1969- - Effect on children"]
["Northern Ireland conflict, 1969- - Media coverage"]
["Norway"]
["Norwich (England)"]
["Norwich history"]
["Norwich industry"]
["Norwich life"]
["Nuclear disarmament"]
["Nuclear physics"]
["Nuclear power stations, British"]
["Nuns"]
["Nursing"]
["Obesity"]
["Occupations"]
["Ocean travel"]
["Oil industry"]
["Old persons"]
["Older people - Government policy - Great Britain"]
["Olympic games"]
["Olympic Games, 2012, London"]
["Opera"]
["Oral history"]
["Oranges"]
["Orchards"]
["Orchestras"]
["Ordination of women"]
["Organs"]
["Orphans"]
["Overseers"]
["Pacifism"]
["Painting"]
["Painting and Decorating"]
["Paintings"]
["Pakistan"]
["Pakistan - Independence, 1947"]
["Palaeography"]
["Palaeontology"]
["Pamphlets and Tracts"]
["Pantomimes (Music)"]
["Papacy"]
["Papal tours - Great Britain - 1982"]
["Parachuting"]
["Pardon, Royal"]
["Parent-Child Relationship"]
["Parenthood"]
["Parents"]
["Paris"]
["Parks - Great Britain"]
["Parliament"]
["Parliamentary Acts"]
["Parliamentary Bills"]
["Parliamentary Candidates"]
["Party Politics"]
["Patronage"]
["Pawnbroking"]
["Payment"]
["Peace movement"]
["Peace Treaties"]
["Peat-cutting"]
["Pensions"]
["People with disabilities - Care - Great Britain - History"]
["People with disabilities - Great Britain - Employment"]
["People with disabilities in motion pictures"]
["People with visual disabilities"]
["Perambulations"]
["Percussion music"]
["Performance art"]
["Pest control"]
["Pesticides and wildlife"]
["Petitions"]
["Pharmaceutical industry"]
["Philosophy"]
["Photography"]
["Photography - Exhibitions"]
["Physical exercises"]
["Physically handicapped persons - Reminiscences"]
["Physically handicapped women"]
["Physicians"]
["Physiotherapy"]
["Pianists"]
["Piano tuners"]
["Pies, Pastries"]
["Pigeon racing"]
["Pigs"]
["Pilgrims and Pilgrimages"]
["Piracy"]
["Plants - Conservation"]
["Plate"]
["Plays"]
["Plays for children"]
["Playwrights - Great Britain"]
["Poaching"]
["Poetry"]
["Poetry in English"]
["Poetry in Scots"]
["Poetry in Welsh"]
["Poland"]
["Police work"]
["Police, American"]
["Police, British"]
["Political activists"]
["Political campaigns"]
["Political Conflicts"]
["Political Factions"]
["Political oratory"]
["Political science"]
["politician"]
["Politicians"]
["Politics and culture - Northern Ireland"]
["Politics and culture - Scotland"]
["Politics and culture - Wales"]
["Politics and Government, Local "]
["Politics and Government, National"]
["Politics and moralities"]
["Poll tax"]
["Pollution"]
["Poor's Allotment"]
["Pope"]
["Popular music"]
["Portrait painting"]
["Ports"]
["Post Office workers"]
["Post Office workers - Messenger boys"]
["Postal Services"]
["Postmen"]
["Postmodernism"]
["Postmodernism (Architecture)"]
["Postmodernism (Art)"]
["Pottery - 20th century"]
["Poultry"]
["Poultry farming"]
["Poverty"]
["Poverty - Great Britain"]
["Prayers"]
["Preachers"]
["Preaching"]
["Preferment"]
["Pregnancy"]
["Pregnancy "]
["Prejudices"]
["Prejudices - Great Britain"]
["Presbyterian, Presbyterians"]
["Press"]
["Press - Great Britain"]
["Press - Scotland"]
["Press and politics - Great Britain"]
["Press freedom - Great Britain"]
["Prices"]
["Priests, Catholic"]
["Primates - Social behaviour"]
["Printing industry"]
["Priories"]
["Prison life"]
["Prison sentences"]
["Prisoners"]
["Prisoners of war"]
["Prisons"]
["Prisons, British"]
["Privatisation"]
["Processions"]
["Profession"]
["Professional organisation"]
["Progressive rock (Music)"]
["Propaganda"]
["Property"]
["Property Disputes"]
["Property, Offences against"]
["Prostitution"]
["Protest marches"]
["Protest poetry"]
["Protest, public"]
["Psychoanalysis"]
["Psychology"]
["Psychotherapy"]
["Public administration - Great Britain"]
["Public administration - Scotland"]
["Public health"]
["Public Houses"]
["Public relations"]
["Public transport - Scotland"]
["Public-private sector cooperation"]
["Publishers and Publishing"]
["Publishing - Great Britain"]
["Quakers"]
["Quality of life"]
["Quarries and quarrying"]
["Quarter Sessions Court"]
["Queens"]
["Quilting"]
["Rabbits"]
["Race relations"]
["Race riots - Great Britain - History - 20th century"]
["Racism"]
["Racism - Great Britain"]
["Radar"]
["Radio broadcasting"]
["Radio broadcasting - Great Britain"]
["Radio broadcasting - Local stations"]
["Radio broadcasting - Traffic reports"]
["Radio programmes"]
["Radioactivity"]
["Radiocarbon dating"]
["Raids "]
["Railways - Great Britain"]
["Railways - Great Western Railway - History"]
["Railways - History"]
["Rare books"]
["Real Estate Development"]
["Rebellions"]
["Recreation"]
["Recreation - Great Britain"]
["Recycling"]
["Redundancy"]
["Reeds, Rushes"]
["Reels (Music)"]
["Refugees"]
["Religion"]
["Religious Faith"]
["Religious Houses"]
["Religious life and customs"]
["Religious Orders"]
["Rented Accommodation"]
["Rents"]
["Resentment"]
["Residential homes for old persons"]
["Respite care"]
["Retail trade"]
["Retirement"]
["Revivals, religious"]
["Road traffic collision"]
["Roads"]
["Roads - Building"]
["Rock and roll music"]
["Roma"]
["Roman Catholics, Recusants"]
["Romance"]
["Romance - 1940's"]
["Romance - 1950's"]
["Romania"]
["Romans"]
["Rowing"]
["Royal Court"]
["Royal families - Great Britain"]
["Royal Family"]
["Royal Greenwich Observatory"]
["Royal Household"]
["Royal Visits"]
["Royal Warrants"]
["Rugby League"]
["Rugby Union"]
["Rumour"]
["Rural development - Great Britain"]
["Rural life"]
["Russia"]
["Sacred music"]
["Sailing"]
["Sailors - Great Britain"]
["Sailors - Scotland"]
["Salvation Army"]
["Sanitary engineering"]
["Santa Claus"]
["Saxon"]
["School children - Industrial action"]
["School Teachers"]
["Schools"]
["Science"]
["Science - Education - Great Britain"]
["Science - Public understanding"]
["Science fiction"]
["Scotland - Government - 20th century"]
["Scribes"]
["Sculpture"]
["Sculpture with sound"]
["Sculpture, European"]
["Sculpture, modern - 20th Century"]
["Sculpture, public"]
["Scurvy"]
["Sea"]
["Seal hunting"]
["Seals (Document)"]
["Secretaries"]
["Sedition"]
["September 11 Terrorist Attacks, 2001"]
["Servants"]
["Sewers, Commission of"]
["Sexual Behaviour"]
["Shakespeare, William, 1564-1616 - Production and direction"]
["Sheep"]
["Sheep farming - Reminiscences"]
["Sheepdogs"]
["Shepherding"]
["Sheriffs/Shrievalty"]
["Shielings"]
["Shipbuilding"]
["Shipbuilding - Tyneside"]
["Shipping industry"]
["Ships"]
["Ships, Shipping"]
["Shipwrecks"]
["Shoe manufacturing"]
["Shooting"]
["Shopping"]
["Sieges"]
["Sikhism"]
["Silent films"]
["Silent films - Cinema music"]
["Silk industry"]
["Silversmiths"]
["Singing"]
["Singing - A cappella"]
["Skin hygiene"]
["Slaughtering and slaughter-houses"]
["Slavery"]
["Slums - Great Britain"]
["Smallpox"]
["Smoking"]
["Smuggling"]
["Snooker"]
["Social classes"]
["Social classes - Great Britain"]
["Social life and customs"]
["Social Mobility"]
["Social Participation, Social Engagements"]
["Social sciences"]
["Social Status"]
["Social status - Health aspects"]
["Social welfare"]
["Socialism"]
["Solar eclipses"]
["soldier"]
["Soldiers"]
["Soldiers - Reminiscences"]
["Songwriting"]
["Sound archives"]
["Space exploration"]
["Space Shuttle Program"]
["Spain"]
["Spanish (People and Cultural Identity)"]
["Spectacles"]
["Sport"]
["Sports"]
["Stables"]
["Steam baths"]
["Steam engines"]
["Steel industry"]
["Stewards, Household"]
["Stone"]
["Stonemasons"]
["Storytelling"]
["Street gangs - Great Britain"]
["Stunt performers"]
["Subsidies"]
["Suffolk (England)"]
["Suffragettes - Great Britain"]
["Sugar"]
["Suicide"]
["Supermarkets"]
["Supernatural"]
["Superstitions"]
["Surgeons"]
["Surrealist movement"]
["Surveying"]
["Surveyors"]
["Sustainable development"]
["Swearing"]
["Swimming competitions"]
["Swords"]
["Table tennis"]
["Tailors"]
["Talking books"]
["Taxation"]
["Taxi drivers"]
["Taxidermy"]
["Taxis"]
["Teachers"]
["Teaching"]
["Technology"]
["Teenagers"]
["Telecommunications systems"]
["Television"]
["Television broadcasting"]
["Television broadcasting - Documentaries"]
["Television broadcasting - News"]
["Television broadcasting - Regional programmes"]
["Tenants"]
["Tennis"]
["Terrorism"]
["Textile industry"]
["Textile industry and fabrics - Tweed - Production"]
["Theatre"]
["Theatres"]
["Theft"]
["Thermodynamics"]
["Threats, Threatening Language"]
["Timber trade - Reminiscences"]
["Titanic (Steamship)"]
["Titanic (Steamship) - Sinking, 1912"]
["Titanic (Steamship) - Sinking, 1912 - Recollections"]
["Tithes"]
["Title Deeds"]
["Titles of Honour and Nobility"]
["Tobacco "]
["Tobacco farming"]
["Tobacco industry"]
["Tombs"]
["Tourism - Great Britain"]
["Tournaments, Medieval"]
["Town criers"]
["Town planning"]
["Toys"]
["Traction engines"]
["Tracts and Pamphlets"]
["Trade"]
["Trade unions"]
["Trade, international"]
["Traffic congestion - Great Britain - Prevention"]
["Traffic signs and signals"]
["Traffic wardens"]
["Train crashes"]
["Trams"]
["Translating and interpreting"]
["Translation - Poetry"]
["Transport"]
["Transportation - Great Britain"]
["Trapeze artists"]
["Travel"]
["Traveller"]
["Travellers"]
["Travellers, English"]
["Travellers, Irish"]
["Travellers, Scottish"]
["Travellers, Welsh"]
["Treason"]
["Trees"]
["Trees - Great Britain"]
["Trees, Care of"]
["Trespass"]
["Trials"]
["Trinity House"]
["Trusts and Trustees"]
["Tuberculosis"]
["Turner Prize"]
["Ukulele"]
["Unemployment"]
["Unemployment - Great Britain"]
["Unidentified flying objects"]
["Unions"]
["United States"]
["United States Army Air Forces"]
["Universities"]
["Universities and colleges"]
["Urban development"]
["Utopias"]
["Vaccination of children"]
["Vagrants"]
["Valentines"]
["Valentine's day"]
["Vandalism"]
["Vaudeville"]
["Vegetarianism"]
["Venezuela"]
["Ventriloquists"]
["Veterinary surgeons"]
["Vice-Admiralty, Vice-Admiralty Court"]
["Villeins"]
["Violence"]
["Vocational guidance"]
["Voluntary Service Overseas"]
["Voluntary work"]
["Wages and Salaries"]
["Wales"]
["Walking"]
["War"]
["Wardship and Guardianship"]
["Warrens"]
["Waste disposal"]
["Water shortages"]
["Water supply"]
["Water supply - History"]
["Watermarks"]
["Wealth"]
["Weapons"]
["Weather"]
["Weather reports"]
["Weaving"]
["Weaving, Weavers"]
["Wedding customs"]
["Weights and Measures"]
["Welfare State, British"]
["Welfare work"]
["Welsh (People and Cultural Identity)"]
["Whales"]
["Whaling"]
["Wheat"]
["Wherries"]
["Widowhood"]
["Wildfowl"]
["Wildlife conservation"]
["Wills"]
["Wine"]
["Wine trade - Reminiscences"]
["Winter"]
["Witches"]
["Women"]
["Women - Lifestyles"]
["Women and religion"]
["Women and work"]
["Women in art"]
["Women in business"]
["Women in marriage"]
["Women in politics"]
["Women in society"]
["Women in the armed forces"]
["Women photographers"]
["Women writers"]
["Women’s health - Great Britain "]
["Women's Institute"]
["Women's Land Army (Great Britain)"]
["Wood"]
["Woodlands"]
["Woodwork"]
["Wool"]
["Wool industry - Great Britain"]
["Wool Trade"]
["Work environment"]
["Workhouses - Reminiscences"]
["Working class culture"]
["World War, 1914-1918"]
["World War, 1914-1918 - Air raids"]
["World War, 1914-1918 - Great Britain"]
["World War, 1939-1945"]
["World War, 1939-1945 - Africa, North"]
["World War, 1939-1945 - Air raids"]
["World War, 1939-1945 - Dambusters' raid, 1943"]
["World War, 1939-1945 - Germany"]
["World War, 1939-1945 - Great Britain"]
["World War, 1939-1945 - Great Britain - Bombardment"]
["World War, 1939-1945 - Great Britain - Evacuation"]
["World War, 1939-1945 - Great Britain - Home Guard"]
["World War, 1939-1945 - Great Britain - Land Army"]
["World War, 1939-1945 - Great Britain - Rationing"]
["World War, 1939-1945 - Great Britain - War work"]
["World War, 1939-1945 - Great Britain - Women"]
["World War, 1939-1945 - Prisoner of war camps - Colditz"]
["World War, 1939-1945 - Prisoner of war camps, German"]
["World War, 1939-1945 - Prisoner of war camps, Japanese"]
["World War, 1939-1945 - Prisoners of war"]
["World War, 1939-1945 - Scotland"]
["World War, 1939-1945 - Scotland - Scapa Flow"]
["World War, 1939-1945 - V.E. Day, 1945.5.8"]
["World War, 1939-1945 - Women - War work"]
["Worry"]
["Worsted Cloth"]
["Wrestling"]
["Writing"]
["Writs"]
["Xenophobia"]
["Yachting"]
["Yeomanry"]
["Yoga"]
["Youth - Great Britain"]
["Youth - Great Britain - Social conditions"]
["Youth - Great Britain - Societies and clubs"]
["Youth clubs"]
["Youth culture - Britain"]
["Zoos"]

{"sheet":"LookUpNames","index":5,"n_rows":1,"n_cols":2,"rows_kept":1,"cut":false,"hidden":false,"merged":[]}
["Name","Notes"]

{"sheet":"LookUpPlaces","index":6,"n_rows":1,"n_cols":2,"rows_kept":1,"cut":false,"hidden":false,"merged":[]}
["Place Name","Notes"]

{"sheet":"LookUpGenres","index":7,"n_rows":146,"n_cols":1,"rows_kept":146,"cut":false,"hidden":false,"merged":[]}
["Genre"]
["Accounts"]
["Accounts, personal"]
["Acts of Parliament"]
["Admission registers"]
["Agenda"]
["Agreement"]
["Apprenticeship indenture"]
["Architectural/building plans"]
["Artefact"]
["Audio recording"]
["Autograph albums"]
["Bastardy bond"]
["Bastardy examination"]
["Bastardy examinations"]
["Bastardy order"]
["Biography"]
["Blank forms"]
["Born digital"]
["Botanical specimens"]
["Broadsides"]
["Brochures"]
["Carte de visite"]
["Cartulary"]
["Cash book"]
["Catalogue"]
["Charities"]
["Charities Commission"]
["Charter / letters patent"]
["Churchwardens' accounts"]
["Classical music"]
["Coat of arms"]
["Committee minutes"]
["Commonplace books"]
["Contents List"]
["Corporate minutes"]
["Death Certificate"]
["Deeds"]
["Depositions"]
["Diaries"]
["Dividend Mandate"]
["Drawings"]
["Enclosure maps"]
["Engravings"]
["Facsimile"]
["Faculty"]
["Family records"]
["Family Tree"]
["Farm Accounts"]
["Feather specimens"]
["Forms"]
["Glass slide/transparencies"]
["Greeting cards"]
["Guide, Leaflet"]
["Handwriting, medieval"]
["Herbarium"]
["Illuminated/decorated manuscripts"]
["Illustrations/paintings"]
["Indenture"]
["Index"]
["Invitations"]
["Invoices"]
["Job book"]
["Journals"]
["Letter books"]
["Letters, letter"]
["Local newspapers"]
["Log books"]
["Manorial records"]
["Maps"]
["Marriage Certificate"]
["Meeting papers"]
["Memoir"]
["Memorandum"]
["Menus"]
["Microform"]
["Minutes, Meetings"]
["Music, notations of"]
["Music, recordings of"]
["Muster Rolls"]
["Negatives"]
["News programmes"]
["Newspaper cuttings"]
["Newspapers"]
["Notebooks"]
["Obituaries"]
["Oral histories"]
["Overseer's Account Books"]
["Painting"]
["Parish apprenticeship indenture"]
["Parish register transcripts"]
["Parish registers"]
["Passports"]
["Pedigrees"]
["Personal correspondence"]
["Personal papers"]
["Photograph albums"]
["Photographic negatives"]
["Photographic print"]
["Poor law records"]
["Portrait miniature"]
["Portraits"]
["Postcards"]
["Press cuttings books"]
["Price lists"]
["Printing plates"]
["Probate"]
["Probate: administration"]
["Probate: inventory"]
["Probate: will"]
["Programmes"]
["Publications"]
["Radio broadcast"]
["Reading"]
["Removal order"]
["Report"]
["Reports, business"]
["Research document"]
["Sale particulars"]
["School records"]
["Scrapbooks"]
["Seals, pre-reformation"]
["Settlement certificate"]
["Settlement certificates"]
["Settlement examination"]
["Share certificate"]
["Sheet music"]
["Sketch books"]
["Slides"]
["Sound effects"]
["Statement of Accounts"]
["Statistics"]
["Student newspapers and periodicals"]
["Supplemental Abstract"]
["Telegram"]
["Terrier"]
["Tithe maps"]
["Transcripts"]
["Travel guides"]
["Travel journals/diaries/notes"]
["Trusts"]
["Vestry minutes"]
["Video recordings"]
["Visitors' books"]
["Watercolour"]
["Wood engravings"]